Workbook

Sheet Notes
A1: TechnicalMethodForRatingStocks.xlsm; Traders Tip spreadsheet created for the June 2018 Issue
A2: Coded beginning 2018-April-09 by Ronald McAllister (rpmac_xltt@sprynet.com)
A4: This Workbook demonstrates an EXCEL version of the ideas presented
A5: by Markos Katsanos in an article titled "A Technical Method For Rating Stocks"
A6: which originally appeared in the June 2018 issue of
A7: "Technical Analysis of Stocks and Commodities" magazine.
A9: General Construction Notes
A10: This spreadsheet requires data for our target stock and data for an Index or ETF representing the overall state of the
A11: market or at least a segment of the market corresponding to the stock in question.
A12: This means that both the Input Price Data tab and the InputIndexData tab will automatically be refreshed each time you
A13: refresh data from the web or any time you change the index or stock symbol. So please be patient with the amount of screen flickering before things stabilize.
A15: For the market index tab, the author suggests SPY as a generalized choice, QQQ for technology stocks, or IWM for Small-Cap stocks
A16: You are certainly wecome to us another when you think you it will be a better fit for your stock of choice.
A18: CalculationsAndCharts construction Notes:
A21: Development Notes:
C22: This workbook contains and uses VBA macros and may use VBA Class structures.
C23: Input Data
C24: The data in this workbook is sorted date descending (most recent date at the top). All formulas and
C25: VBA routines are built accordingly.
A27: Reported Data Download Error and FIX. Note: The spreadsheet you currently have open already incorporates this fix.
A28: For T-Tips spreadsheets since December 2017, my first spreadsheet to support for the new Yahoo Finance interface,
A29: through March 2018, several readers have reported the following failure message:
A31: “User Defined Type Not Defined”
A33: If the user selects the “Debug” option, the following statement is highlighted in the VBA code
A35: Dim MSXML2Object As MSXML2.XMLHTTP
A37: For anyone encountering this failure who is comfortable with the VBA editor, two simple edits have proven to fix the problem.
A38: First, find
A39: Dim MSXML2Object As MSXML2.XMLHTTP (which is failing for you and others)
A40: And change it to
A41: Dim MSXML2Object As MSXML2.XMLHTTP60
A43: And then later in the code find and make a necessary mirroring change from
A44: Set MSXML2Object = New MSXML2.XMLHTTP
A45: to
A46: Set MSXML2Object = New MSXML2.XMLHTTP60
A48: This spreadsheet incorporates my first cut at retrieving historical data from the "New", and not necessarily "Improved", Yahoo Finance History Download interface.
B50: My sincere apologies to our Macintosh based readers: MSXML is not supported in your environment. So as it stands this version of the spreadsheet will not work for you.
B51: See "Why this approach does not work for Macintosh" below.
B52: I am investigating cURL as a non-Querytable based approach for the Macintosh environment.
A54: The new Yahoo Finance history download interface has changed rather radically. The biggest hurdle being a pseudo-security requirement of adding a
B55: crumb character string to any URL requesting any type of history download. That crumb must match up (by way of some sort of hash algorithm) with
B56: the Yahoo Finance cookie that must also be sent with any request to the new Yahoo History down load interface.
B58: A crumb value is returned, buried in the HTML for any of what I call the "entry level" Yahoo Finance web pages (no crumb security requirement for entry level pages).
B59: A crumb may come with other Yahoo Finance pages. A crumb may even accompany some of the secured pages as well. I have not checked.
B61: Entry level pages are the top level pages of the various Yahoo Finance dialogs and include: Quote Lookup, Stock Summary Quote, and any of the pages
B62: with links in the horizontal row with the "Summary" link on the quote summary page such as Options, Historical Data, and the rest.
B64: To date I have found no way to get at this crumb value using any native EXCEL capabilities.
B66: So this crumb requirement effectively shuts out any solution that attempts to exclusively use built-in facilities of EXCEL, which is to say a purely Querytables solution.
B68: The approach built for this Traders Tip spreadsheet uses a combination of MSXML and EXCEL QueryTable calls to Load the InputPriceData worksheet.
B70: First I call MSXML to get the HTML text for the Yahoo Summary Quote page using the requested symbol. From this HTML text I extract the full company name,
B71: the market it trades, the market status and time stamp, and finally the associated crumb string. There is a bunch of other useful bits buried in this HTML
B72: text that do not necessarily appear on the web page your browser presents. Perhaps some day I will go after and build a worksheet with these other bits.
B74: Next I add the freshly extracted crumb string to the URLs I use in three separate Querytable calls to retrieve Price history, Split history, and Dividend history respectively.
B76: From there VBA code proceeds as in the past to fill in the cell formulas and formatting that make the "prettied up" InputPriceData sheet.
A78: Why this approach works for Windows:
B79: First, MSXML shares the permanent Internet Explorer web cache where cookies are maintained. Both IE and MSXML automatically
B80: update this cache when a "set cookie" header accompanies a web response. And they both automatically search this shared cache for
B81: cookies and add any "appropriate" cookies to the headers of any web requests they send out.
B82: This cookie handling automation means that even if the response to our MSXML call for the Summary web page includes a new version of
B83: the Yahoo Finance cookie, the imbedded Crumb value will always match the cookie newly installed in the cache!
B85: Second, in the Windows environment the EXCEL Querytable mechanism leans heavily on bits from Internet Explorer. This means that cookie
B86: handling is also automated from the shared cache for Querytable calls. We can count on any appropriate cookies being added to any Querytable call.
B87: We only need to do our part by adding the corresponding Crumb value to complete the security for the Querytable to access Yahoo History downloads.
A89: Why this approach does not work for Macintosh:
B90: For what it is worth, the Macintosh version of the MS Office suite of products do in fact maintain a special, shared amongst themselves only, cookie cache.
B91: They automate cookie handling into and from this cache JUST for the Office products and any Querytable activity they might originate.
B93: This cache is not tied to, nor shared with, any browser that might be installed on the MAC. And I have not found anything with HTTP capabilities similar to
B94: MSXML that can work with that Office product cookie cache.
B96: When working in the MAC EXCEL environment, without that MSXML like capability against the office shared cache, l have no mechanism
B97: to obtain a crumb value that would be a valid match to the Yahoo Finance cookie that will be automatically attached to a Querytable call.
B98: This missing facility pretty much eliminates the use of Mac environment Querytables to access the new Yahoo Finance history download interface.
A100: One very low probability potential "Gottcha" for any Querytables approach.
B101: Yahoo Finance cookies typically have an assigned expiration that is a year out (to the second) from the time they are issued.
B102: Further, these cookies are unique. Yours will not match mine.
B104: If for testing purposes, instead of MSXML, you use a fresh instance of Winhttp (Fresh instance = empty cache = no cookie to automatically send)
B105: every time you call an entry level page, the Yahoo server says "What? Entry level page? With no inbound cookie? Get them a cookie!!"
B106: and will send you a new, unique cookie and will imbed the matching crumb value in the response text for each of these "no cookie attached" calls.
B108: The Gottcha: Lets say that the Yahoo Finance cookie presently in the IE cache has an expiration date and time that just happens
B109: to fall between our MSXML call to the summary page to fetch our crumb and our first (or second, or third) Querytable call.
B110: The Querytable call after the cookie expiration may fail with a cookie and crumb validation error.
B112: Querytable error reporting is atrocious. So we will not get any sort of helpful message here. Just a very generalized message like "failed to connect".
B114: The workaround is to simply go to the InputPriceData tab and click the download button.
B115: This second time through the retrieval process should not fail on a mismatch.
B116: After all, you now have a year before the new cookie that just got put into the cache expires!
A118: Calculation and Chart Worksheet Usage Comments:
C119: In General, Items in Bolded BLUE are items you may freely change to play what-if games.
C120: Be sure to have a backup copy of the spreadsheet before you alter anything else.
A122: Features carried forward from the June 2016 version of my T-Tips Template
A123: Added a pair of buttons near cell F12 that will allow the user to step the charting window forward or backward one bar for each click.
A124: I find this to be a good way to test my understanding of the author's ideas as I step through the evolution of the price behavior and the indicators.
B126: First: In the "Help! I would like to plot data" area.
B127: Added button to resolve #NA problems by locating the bar in the input data with a slightly more recent date than what the user actually requested.
B128: I find this particularly useful when I have a general idea of where I want to be date wise. Now I can pick a set of dates "out of the air".
B129: If either (or both) of my date specifications fall between dates that are available in the price history,
B130: this button will resolve them to the dates of the nearest, slightly more recent input bars.
B131: I can then refine my data interval search as necessary from there.
B132: Really great when working with Weekly or Monthly studies!
C133: 2016Jun11 - added logic to the "I would like to chart.." button to detect #N/A values and terminate
C134: gracefully with a message instead of blowing up in the charting logic.
B136: Second: In the "Price Chart Windowing Controls" area. (A11 and A12)
B137: When retrieving data for a new symbol or when changing from daily to weekly or monthly data, there was the possibility that the
B138: residual settings in A11 and A12 would fall outside of the number bars available on the input data tab after the new data retrieval.
B139: In certain combinations, this could create a serious error in the chart sizing logic and crash the spreadsheet.
B140: I have taken this opportunity to update the validity checking logic used in the chart sizing macros
B141: to adjust these values as necessary so that they fall within the boundaries of the newly retrieved input data.
A142: Features carried forward from the October 2015 Traders Tips Template
B143: Improved automation: changes to any of the following will automatically initiate calculations appropriate to reflect a change.
C144: Changing either of cells A11 (pan) or A12 (zoom) will automatically initiate the same chart sizing macros that the manual
C145: "Set Chart" button uses.

Sheet InputPriceData
A1: McDonald's Corporation (MCD) -NYSE (Daily)
F2: Market State == > | G2: As of | H2: 14:57:00 | I2: EDT. Market open. | IJ2: 241.79
A3: Request Online Yahoo History for:
A4: Symbol | B4: MCD | D4: Valid | I4: =OFFSET(I4,-2,0,1,1) -> EDT. Market open.
A5: From | B5: 1950-01-01 | D5: Data | AF5: Trailing 12 Div return (Cur Close)
A6: To | B6: =NOW() -> 2018-04-16T15:16:52.700 | D6: Types | E6: =VLOOKUP(B7,D7:E10,2,FALSE) -> d
A7: Data Type | B7: Daily | D7: Daily | E7: d
B8: dbtX2VDkalH | D8: Weekly | E8: w
A9: Available Data | D9: Monthly | E9: m
A10: Bar Count: | B10: 12182 | AF10: =OFFSET(AC15,1,0,1,1)/OFFSET(N15,1,0,1,1) -> 0.0241187384
A11: From: | B11: =IF(B10<=0,"",OFFSET(B15,B10,IF(HistReqDataType="v",1,0),1,1)) -> 1970-01-02 | W11: Trailing 12 Month Dividend Returns
A12: To: | B12: =IF(B10<=0,"",IF(HistReqDataType="v",OFFSET(B15,2,1,1,1),OFFSET(B15,1,0,1,1))) -> 2018-04-16 | W12: Raw Close price on Dividend date | X12: Div Year and Month | Y12: Looking for year ago Div Year and Month | Z12: Year ago Div Date we found | AA12: row offset to year ago div Date | AB12: Same month flag | AC12: Trailing 12 Div Total | AD12: Trailing 12 Div return
Q13: Split History | S13: 9 | T13: Running | U13: Dividend History
B14: Raw Data Values | H14: Adjusted | I14: Price Adjust | J14: Vol Adjust | K14: Adjusted Values | P14: Last | Q14: Effective | R14: Shares | T14: Vol Adjust | V14: 175
A15: RelRow | B15: Date | C15: Open | D15: High | E15: Low | F15: Close | G15: Volume | H15: Close | I15: Factor | J15: Factor | K15: Open | L15: High | M15: Low | N15: Close | O15: Volume | P15: Trade | Q15: 43207 | R15: New | S15: Old | T15: 1 | U15: Date | V15: $ / Share
A16: 1 | B16: 2018-04-16 | C16: 161.300003 | D16: 162.429993 | E16: 160.860001 | F16: 161.699997 | G16: 2261078 | H16: 161.699997 | I16: =IF(F16=0,1,H16/F16) -> 1 | J16: =INDEX(OFFSET($T$15,0,0,$S$13+1,1),MATCH(B16,OFFSET($Q$15,0,0,$S$13+1,1),-1)) -> 1 | K16: =ROUND($I16*C16,2) -> 161.3 | L16: =ROUND($I16*D16,2) -> 162.43 | M16: 160.86 | N16: 161.7 | O16: =G16*J16 -> 2261078 | Q16: 1999-03-08 | R16: 2 | S16: 1 | T16: 2 | U16: 2018-02-28 | V16: 1.01 | W16: =(INDEX(OFFSET($F$15,1,0,$B$10,1),MATCH(U16,OFFSET($B$15,1,0,$B$10,1),-1))) -> 157.740005 | X16: =YEAR(U16)&RIGHT("0"&MONTH(U16),2) -> 201802 | Y16: =YEAR(U16)-1&RIGHT("0"&MONTH(U16),2) -> 201702 | Z16: =OFFSET(U15,AA16,0,1,1) -> 2017-02-27 | AA16: =MATCH(Y16,OFFSET($X$15,A16,0,$V$14+1-A16,1),-1) -> 5 | AB16: =IF(OR(AND(YEAR(U16)=YEAR(Z16),MONTH(U16)=MONTH(Z16)),MONTH(U16)=MONTH(Z16)),1,0) -> 1 | AC16: =(V16+IF(AA16-AB16=0,0,IFERROR(SUM(OFFSET(V16,1,0,AA16-AB16-1,1)),0))) -> 3.9 | AD16: =AC16/(INDEX(OFFSET($F$15,1,0,$B$10,1),MATCH(U16,OFFSET($B$15,1,0,$B$10,1),-1))) -> 0.02472422896
A17: 2 | B17: 2018-04-13 | C17: 162.160004 | D17: 163.160004 | E17: 161.259995 | F17: 161.729996 | G17: 2441900 | H17: 161.729996 | I17: =IF(F17=0,1,H17/F17) -> 1 | J17: =INDEX(OFFSET($T$15,0,0,$S$13+1,1),MATCH(B17,OFFSET($Q$15,0,0,$S$13+1,1),-1)) -> 1 | K17: =ROUND($I17*C17,2) -> 162.16 | L17: =ROUND($I17*D17,2) -> 163.16 | M17: =ROUND($I17*E17,2) -> 161.26 | N17: =ROUND($I17*F17,2) -> 161.73 | O17: =G17*J17 -> 2441900 | Q17: 1994-06-27 | R17: 2 | S17: 1 | T17: 4 | U17: 2017-11-30 | V17: 1.01 | W17: =(INDEX(OFFSET($F$15,1,0,$B$10,1),MATCH(U17,OFFSET($B$15,1,0,$B$10,1),-1))) -> 171.970001 | X17: =YEAR(U17)&RIGHT("0"&MONTH(U17),2) -> 201711 | Y17: =YEAR(U17)-1&RIGHT("0"&MONTH(U17),2) -> 201611 | Z17: =OFFSET(U16,AA17,0,1,1) -> 2016-11-29 | AA17: =MATCH(Y17,OFFSET($X$15,A17,0,$V$14+1-A17,1),-1) -> 5 | AB17: =IF(OR(AND(YEAR(U17)=YEAR(Z17),MONTH(U17)=MONTH(Z17)),MONTH(U17)=MONTH(Z17)),1,0) -> 1 | AC17: =(V17+IF(AA17-AB17=0,0,IFERROR(SUM(OFFSET(V17,1,0,AA17-AB17-1,1)),0))) -> 3.83 | AD17: =AC17/(INDEX(OFFSET($F$15,1,0,$B$10,1),MATCH(U17,OFFSET($B$15,1,0,$B$10,1),-1))) -> 0.02227132626
A18: 3 | B18: 2018-04-12 | C18: 163.589996 | D18: 165.399994 | E18: 161.539993 | F18: 161.619995 | G18: 5178900 | H18: 161.619995 | I18: 1 | J18: 1 | K18: 163.59 | L18: 165.4 | M18: 161.54 | N18: 161.62 | O18: 5178900 | Q18: 1989-06-19 | R18: 2 | S18: 1 | T18: 8 | U18: 2017-08-30 | V18: 0.94 | W18: 159.529999 | X18: 201708 | Y18: 201608 | Z18: 2016-08-30 | AA18: 5 | AB18: 1 | AC18: 3.76 | AD18: 0.02356923477
A19: 4 | B19: 2018-04-11 | C19: 162.5 | D19: 164.059998 | E19: 162.279999 | F19: 163.339996 | G19: 2711100 | H19: 163.339996 | I19: 1 | J19: 1 | K19: 162.5 | L19: 164.06 | M19: 162.28 | N19: 163.34 | O19: 2711100 | Q19: 1987-06-23 | R19: 3 | S19: 2 | T19: 12 | U19: 2017-06-01 | V19: 0.94 | W19: 152.389999 | X19: 201706 | Y19: 201606 | Z19: 2016-06-02 | AA19: 5 | AB19: 1 | AC19: 3.71 | AD19: 0.02434542965
A20: 5 | B20: 2018-04-10 | C20: 162.830002 | D20: 163.960007 | E20: 162.050003 | F20: 162.770004 | G20: 3902600 | H20: 162.770004 | I20: 1 | J20: 1 | K20: 162.83 | L20: 163.96 | M20: 162.05 | N20: 162.77 | O20: 3902600 | Q20: 1986-06-26 | R20: 3 | S20: 2 | T20: 18 | U20: 2017-02-27 | V20: 0.94 | W20: 126.989998 | X20: 201702 | Y20: 201602 | Z20: 2016-02-26 | AA20: 5 | AB20: 1 | AC20: 3.66 | AD20: 0.02882116747
A21: 6 | B21: 2018-04-09 | C21: 162.220001 | D21: 163.570007 | E21: 161.059998 | F21: 161.229996 | G21: 3581500 | H21: 161.229996 | I21: 1 | J21: 1 | K21: 162.22 | L21: 163.57 | M21: 161.06 | N21: 161.23 | O21: 3581500 | Q21: 1984-09-25 | R21: 3 | S21: 2 | T21: 27 | U21: 2016-11-29 | V21: 0.94 | W21: 120.68 | X21: 201611 | Y21: 201511 | Z21: 2015-11-27 | AA21: 5 | AB21: 1 | AC21: 3.61 | AD21: 0.02991382168
A22: 7 | B22: 2018-04-06 | C22: 162.419998 | D22: 163.779999 | E22: 160.910004 | F22: 161.25 | G22: 4321900 | H22: 161.25 | I22: 1 | J22: 1 | K22: 162.42 | L22: 163.78 | M22: 160.91 | N22: 161.25 | O22: 4321900 | Q22: 1982-10-07 | R22: 3 | S22: 2 | T22: 40.5 | U22: 2016-08-30 | V22: 0.89 | W22: 115.360001 | X22: 201608 | Y22: 201508 | Z22: 2015-08-28 | AA22: 5 | AB22: 1 | AC22: 3.56 | AD22: 0.03085991651
A23: 8 | B23: 2018-04-05 | C23: 162.399994 | D23: 164.559998 | E23: 161.75 | F23: 163.949997 | G23: 4503900 | H23: 163.949997 | I23: 1 | J23: 1 | K23: 162.4 | L23: 164.56 | M23: 161.75 | N23: 163.95 | O23: 4503900 | Q23: 1972-06-06 | R23: 2 | S23: 1 | T23: 81 | U23: 2016-06-02 | V23: 0.89 | W23: 121.169998 | X23: 201606 | Y23: 201506 | Z23: 2015-08-28 | AA23: 4 | AB23: 0 | AC23: 3.52 | AD23: 0.02905009539
A24: 9 | B24: 2018-04-04 | C24: 158.5 | D24: 162.149994 | E24: 157.880005 | F24: 161.729996 | G24: 4888000 | H24: 161.729996 | I24: 1 | J24: 1 | K24: 158.5 | L24: 162.15 | M24: 157.88 | N24: 161.73 | O24: 4888000 | Q24: 1971-06-14 | R24: 3 | S24: 2 | T24: 121.5 | U24: 2016-02-26 | V24: 0.89 | W24: 117.059998 | X24: 201602 | Y24: 201502 | Z24: 2015-02-26 | AA24: 5 | AB24: 1 | AC24: 3.48 | AD24: 0.02972834495
A25: 10 | B25: 2018-04-03 | C25: 157.979996 | D25: 160.529999 | E25: 157.300003 | F25: 160.399994 | G25: 4719400 | H25: 160.399994 | I25: 1 | J25: 1 | K25: 157.98 | L25: 160.53 | M25: 157.3 | N25: 160.4 | O25: 4719400 | U25: 2015-11-27 | V25: 0.89 | W25: 114.230003 | X25: 201511 | Y25: 201411 | Z25: 2014-11-26 | AA25: 5 | AB25: 1 | AC25: 3.44 | AD25: 0.03011468012
A26: 11 | B26: 2018-04-02 | C26: 158.270004 | D26: 160.160004 | E26: 155.25 | F26: 157.720001 | G26: 6960100 | H26: 157.720001 | I26: 1 | J26: 1 | K26: 158.27 | L26: 160.16 | M26: 155.25 | N26: 157.72 | O26: 6960100 | U26: 2015-08-28 | V26: 0.85 | W26: 96.25 | X26: 201508 | Y26: 201408 | Z26: 2014-08-28 | AA26: 5 | AB26: 1 | AC26: 3.4 | AD26: 0.03532467532
A27: 12 | B27: 2018-03-29 | C27: 159 | D27: 159.830002 | E27: 156.380005 | F27: 156.380005 | G27: 5289500 | H27: 156.380005 | I27: 1 | J27: 1 | K27: 159 | L27: 159.83 | M27: 156.38 | N27: 156.38 | O27: 5289500 | U27: 2015-05-28 | V27: 0.85 | W27: 96.480003 | X27: 201505 | Y27: 201405 | Z27: 2014-05-29 | AA27: 5 | AB27: 1 | AC27: 3.36 | AD27: 0.03482586956
A28: 13 | B28: 2018-03-28 | C28: 157.839996 | D28: 159.759995 | E28: 157.820007 | F28: 158.410004 | G28: 3913200 | H28: 158.410004 | I28: 1 | J28: 1 | K28: 157.84 | L28: 159.76 | M28: 157.82 | N28: 158.41 | O28: 3913200 | U28: 2015-02-26 | V28: 0.85 | W28: 99.510002 | X28: 201502 | Y28: 201402 | Z28: 2014-02-27 | AA28: 5 | AB28: 1 | AC28: 3.32 | AD28: 0.03336348039
A29: 14 | B29: 2018-03-27 | C29: 158.5 | D29: 159.770004 | E29: 156.470001 | F29: 157.479996 | G29: 3519100 | H29: 157.479996 | I29: 1 | J29: 1 | K29: 158.5 | L29: 159.77 | M29: 156.47 | N29: 157.48 | O29: 3519100 | U29: 2014-11-26 | V29: 0.85 | W29: 96.220001 | X29: 201411 | Y29: 201311 | Z29: 2013-11-27 | AA29: 5 | AB29: 1 | AC29: 3.28 | AD29: 0.03408854673
A30: 15 | B30: 2018-03-26 | C30: 156.210007 | D30: 158.199997 | E30: 156.210007 | F30: 158.009995 | G30: 3477000 | H30: 158.009995 | I30: 1 | J30: 1 | K30: 156.21 | L30: 158.2 | M30: 156.21 | N30: 158.01 | O30: 3477000 | U30: 2014-08-28 | V30: 0.81 | W30: 94.139999 | X30: 201408 | Y30: 201308 | Z30: 2013-08-29 | AA30: 5 | AB30: 1 | AC30: 3.24 | AD30: 0.03441682637
A31: 16 | B31: 2018-03-23 | C31: 157.589996 | D31: 157.779999 | E31: 154.919998 | F31: 154.979996 | G31: 3447400 | H31: 154.979996 | I31: 1 | J31: 1 | K31: 157.59 | L31: 157.78 | M31: 154.92 | N31: 154.98 | O31: 3447400 | U31: 2014-05-29 | V31: 0.81 | W31: 101.339996 | X31: 201405 | Y31: 201305 | Z31: 2013-05-30 | AA31: 5 | AB31: 1 | AC31: 3.2 | AD31: 0.03157687119
A32: 17 | B32: 2018-03-22 | C32: 157.850006 | D32: 159.119995 | E32: 156.850006 | F32: 157.039993 | G32: 3669400 | H32: 157.039993 | I32: 1 | J32: 1 | K32: 157.85 | L32: 159.12 | M32: 156.85 | N32: 157.04 | O32: 3669400 | U32: 2014-02-27 | V32: 0.81 | W32: 95.080002 | X32: 201402 | Y32: 201302 | Z32: 2013-02-27 | AA32: 5 | AB32: 1 | AC32: 3.16 | AD32: 0.03323516968
A33: 18 | B33: 2018-03-21 | C33: 160 | D33: 160.410004 | E33: 158.289993 | F33: 158.660004 | G33: 3871900 | H33: 158.660004 | I33: 1 | J33: 1 | K33: 160 | L33: 160.41 | M33: 158.29 | N33: 158.66 | O33: 3871900 | U33: 2013-11-27 | V33: 0.81 | W33: 97.059998 | X33: 201311 | Y33: 201211 | Z33: 2012-11-29 | AA33: 5 | AB33: 1 | AC33: 3.12 | AD33: 0.03214506557
A34: 19 | B34: 2018-03-20 | C34: 159.75 | D34: 160.669998 | E34: 159.25 | F34: 159.380005 | G34: 3105100 | H34: 159.380005 | I34: 1 | J34: 1 | K34: 159.75 | L34: 160.67 | M34: 159.25 | N34: 159.38 | O34: 3105100 | U34: 2013-08-29 | V34: 0.77 | W34: 94.860001 | X34: 201308 | Y34: 201208 | Z34: 2012-08-30 | AA34: 5 | AB34: 1 | AC34: 3.08 | AD34: 0.0324689012
A35: 20 | B35: 2018-03-19 | C35: 162 | D35: 162.360001 | E35: 158.210007 | F35: 159.009995 | G35: 4307600 | H35: 159.009995 | I35: 1 | J35: 1 | K35: 162 | L35: 162.36 | M35: 158.21 | N35: 159.01 | O35: 4307600 | U35: 2013-05-30 | V35: 0.77 | W35: 97.07 | X35: 201305 | Y35: 201205 | Z35: 2012-05-31 | AA35: 5 | AB35: 1 | AC35: 3.01 | AD35: 0.03100855053
A36: 21 | B36: 2018-03-16 | C36: 161.880005 | D36: 163.229996 | E36: 161.580002 | F36: 162.360001 | G36: 14293800 | H36: 162.360001 | I36: 1 | J36: 1 | K36: 161.88 | L36: 163.23 | M36: 161.58 | N36: 162.36 | O36: 14293800 | U36: 2013-02-27 | V36: 0.77 | W36: 95.730003 | X36: 201302 | Y36: 201202 | Z36: 2012-02-28 | AA36: 5 | AB36: 1 | AC36: 2.94 | AD36: 0.03071137478
A37: 22 | B37: 2018-03-15 | C37: 158.710007 | D37: 162.149994 | E37: 158.589996 | F37: 161.610001 | G37: 5925700 | H37: 161.610001 | I37: 1 | J37: 1 | K37: 158.71 | L37: 162.15 | M37: 158.59 | N37: 161.61 | O37: 5925700 | U37: 2012-11-29 | V37: 0.77 | W37: 86.489998 | X37: 201211 | Y37: 201111 | Z37: 2011-11-29 | AA37: 5 | AB37: 1 | AC37: 2.87 | AD37: 0.03318302771
A38: 23 | B38: 2018-03-14 | C38: 159 | D38: 159.509995 | E38: 157.240005 | F38: 158.240005 | G38: 3879000 | H38: 158.240005 | I38: 1 | J38: 1 | K38: 159 | L38: 159.51 | M38: 157.24 | N38: 158.24 | O38: 3879000 | U38: 2012-08-30 | V38: 0.7 | W38: 88.699997 | X38: 201208 | Y38: 201108 | Z38: 2011-08-30 | AA38: 5 | AB38: 1 | AC38: 2.8 | AD38: 0.03156708111
A39: 24 | B39: 2018-03-13 | C39: 158.559998 | D39: 159.889999 | E39: 158.210007 | F39: 158.220001 | G39: 4333100 | H39: 158.220001 | I39: 1 | J39: 1 | K39: 158.56 | L39: 159.89 | M39: 158.21 | N39: 158.22 | O39: 4333100 | U39: 2012-05-31 | V39: 0.7 | W39: 89.339996 | X39: 201205 | Y39: 201105 | Z39: 2011-05-27 | AA39: 5 | AB39: 1 | AC39: 2.71 | AD39: 0.03033355856
A40: 25 | B40: 2018-03-12 | C40: 157.740005 | D40: 159.449997 | E40: 157.509995 | F40: 157.740005 | G40: 4461500 | H40: 157.740005 | I40: 1 | J40: 1 | K40: 157.74 | L40: 159.45 | M40: 157.51 | N40: 157.74 | O40: 4461500 | U40: 2012-02-28 | V40: 0.7 | W40: 99.779999 | X40: 201202 | Y40: 201102 | Z40: 2011-02-25 | AA40: 5 | AB40: 1 | AC40: 2.62 | AD40: 0.02625776735
A41: 26 | B41: 2018-03-09 | C41: 155.619995 | D41: 157.729996 | E41: 154.839996 | F41: 157.240005 | G41: 5076500 | H41: 157.240005 | I41: 1 | J41: 1 | K41: 155.62 | L41: 157.73 | M41: 154.84 | N41: 157.24 | O41: 5076500 | U41: 2011-11-29 | V41: 0.7 | W41: 93.459999 | X41: 201111 | Y41: 201011 | Z41: 2010-11-29 | AA41: 5 | AB41: 1 | AC41: 2.53 | AD41: 0.02707040474
A42: 27 | B42: 2018-03-08 | C42: 152.729996 | D42: 154.610001 | E42: 152.649994 | F42: 154.440002 | G42: 4291400 | H42: 154.440002 | I42: 1 | J42: 1 | K42: 152.73 | L42: 154.61 | M42: 152.65 | N42: 154.44 | O42: 4291400 | U42: 2011-08-30 | V42: 0.61 | W42: 90.779999 | X42: 201108 | Y42: 201008 | Z42: 2010-08-30 | AA42: 5 | AB42: 1 | AC42: 2.44 | AD42: 0.02687816729
A43: 28 | B43: 2018-03-07 | C43: 149.860001 | D43: 152.740005 | E43: 149.679993 | F43: 152.380005 | G43: 4492000 | H43: 152.380005 | I43: 1 | J43: 1 | K43: 149.86 | L43: 152.74 | M43: 149.68 | N43: 152.38 | O43: 4492000 | U43: 2011-05-27 | V43: 0.61 | W43: 81.620003 | X43: 201105 | Y43: 201005 | Z43: 2010-05-27 | AA43: 5 | AB43: 1 | AC43: 2.38 | AD43: 0.02915951865
A44: 29 | B44: 2018-03-06 | C44: 151.25 | D44: 151.710007 | E44: 150.130005 | F44: 151.199997 | G44: 5015400 | H44: 151.199997 | I44: 1 | J44: 1 | K44: 151.25 | L44: 151.71 | M44: 150.13 | N44: 151.2 | O44: 5015400 | U44: 2011-02-25 | V44: 0.61 | W44: 74.440002 | X44: 201102 | Y44: 201002 | Z44: 2010-02-25 | AA44: 5 | AB44: 1 | AC44: 2.32 | AD44: 0.03116603893
A45: 30 | B45: 2018-03-05 | C45: 148.279999 | D45: 151.479996 | E45: 147.919998 | F45: 151.029999 | G45: 6397800 | H45: 151.029999 | I45: 1 | J45: 1 | K45: 148.28 | L45: 151.48 | M45: 147.92 | N45: 151.03 | O45: 6397800 | U45: 2010-11-29 | V45: 0.61 | W45: 78.260002 | X45: 201011 | Y45: 200911 | Z45: 2009-11-27 | AA45: 5 | AB45: 1 | AC45: 2.26 | AD45: 0.02887809791
A46: 31 | B46: 2018-03-02 | C46: 148.910004 | D46: 150.449997 | E46: 146.839996 | F46: 148.270004 | G46: 11754300 | H46: 148.270004 | I46: 1 | J46: 1 | K46: 148.91 | L46: 150.45 | M46: 146.84 | N46: 148.27 | O46: 11754300 | U46: 2010-08-30 | V46: 0.55 | W46: 72.739998 | X46: 201008 | Y46: 200908 | Z46: 2009-08-28 | AA46: 5 | AB46: 1 | AC46: 2.2 | AD46: 0.03024470801
A47: 32 | B47: 2018-03-01 | C47: 157.800003 | D47: 160.429993 | E47: 155.210007 | F47: 155.699997 | G47: 5609000 | H47: 155.699997 | I47: 1 | J47: 1 | K47: 157.8 | L47: 160.43 | M47: 155.21 | N47: 155.7 | O47: 5609000 | U47: 2010-05-27 | V47: 0.55 | W47: 67.199997 | X47: 201005 | Y47: 200905 | Z47: 2009-06-04 | AA47: 5 | AB47: 0 | AC47: 2.65 | AD47: 0.03943452557
A48: 33 | B48: 2018-02-28 | C48: 160.429993 | D48: 161.210007 | E48: 157.720001 | F48: 157.740005 | G48: 6116800 | H48: 157.740005 | I48: 1 | J48: 1 | K48: 160.43 | L48: 161.21 | M48: 157.72 | N48: 157.74 | O48: 6116800 | U48: 2010-02-25 | V48: 0.55 | W48: 64.379997 | X48: 201002 | Y48: 200902 | Z48: 2009-02-26 | AA48: 5 | AB48: 1 | AC48: 2.1 | AD48: 0.03261882724
A49: 34 | B49: 2018-02-27 | C49: 164.190002 | D49: 164.5 | E49: 160.639999 | F49: 160.660004 | G49: 4907500 | H49: 159.650009 | I49: 0.9937134634 | J49: 1 | K49: 163.16 | L49: 163.47 | M49: 159.63 | N49: 159.65 | O49: 4907500 | U49: 2009-11-27 | V49: 0.55 | W49: 63.599998 | X49: 200911 | Y49: 200811 | Z49: 2008-11-26 | AA49: 5 | AB49: 1 | AC49: 2.05 | AD49: 0.03223270542
A50: 35 | B50: 2018-02-26 | C50: 164 | D50: 164.75 | E50: 162.300003 | F50: 163.580002 | G50: 4525200 | H50: 162.551651 | I50: 0.9937134675 | J50: 1 | K50: 162.97 | L50: 163.71 | M50: 161.28 | N50: 162.55 | O50: 4525200 | U50: 2009-08-28 | V50: 0.5 | W50: 56.07 | X50: 200908 | Y50: 200808 | Z50: 2008-08-28 | AA50: 5 | AB50: 1 | AC50: 2 | AD50: 0.03566969859
A51: 36 | B51: 2018-02-23 | C51: 161.440002 | D51: 163.309998 | E51: 161.440002 | F51: 163.059998 | G51: 4272400 | H51: 162.034912 | I51: 0.9937134428 | J51: 1 | K51: 160.43 | L51: 162.28 | M51: 160.43 | N51: 162.03 | O51: 4272400 | U51: 2009-06-04 | V51: 0.5 | W51: 60.240002 | X51: 200906 | Y51: 200806 | Z51: 2008-06-05 | AA51: 5 | AB51: 1 | AC51: 1.875 | AD51: 0.03112549697
A52: 37 | B52: 2018-02-22 | C52: 158.949997 | D52: 161.399994 | E52: 158.899994 | F52: 160.660004 | G52: 4398200 | H52: 159.650009 | I52: 0.9937134634 | J52: 1 | K52: 157.95 | L52: 160.39 | M52: 157.9 | N52: 159.65 | O52: 4398200 | U52: 2009-02-26 | V52: 0.5 | W52: 52.200001 | X52: 200902 | Y52: 200802 | Z52: 2008-02-28 | AA52: 5 | AB52: 1 | AC52: 1.75 | AD52: 0.03352490357
A53: 38 | B53: 2018-02-21 | C53: 157.759995 | D53: 161.320007 | E53: 157.600006 | F53: 158.639999 | G53: 7833400 | H53: 157.6427 | I53: 0.9937134455 | J53: 1 | K53: 156.77 | L53: 160.31 | M53: 156.61 | N53: 157.64 | O53: 7833400 | U53: 2008-11-26 | V53: 0.5 | W53: 57.900002 | X53: 200811 | Y53: 200711 | Z53: 2007-11-13 | AA53: 5 | AB53: 1 | AC53: 1.625 | AD53: 0.02806562943
A54: 39 | B54: 2018-02-20 | C54: 157 | D54: 159.160004 | E54: 156.279999 | F54: 157.160004 | G54: 5211100 | H54: 156.172012 | I54: 0.9937134641 | J54: 1 | K54: 156.01 | L54: 158.16 | M54: 155.3 | N54: 156.17 | O54: 5211100 | U54: 2008-08-28 | V54: 0.375 | W54: 62.889999 | X54: 200808 | Y54: 200708 | Z54: 2007-11-13 | AA54: 4 | AB54: 0 | AC54: 2.625 | AD54: 0.0417395459
A55: 40 | B55: 2018-02-16 | C55: 159.470001 | D55: 159.899994 | E55: 157.759995 | F55: 157.789993 | G55: 7165800 | H55: 156.798035 | I55: 0.993713429 | J55: 1 | K55: 158.47 | L55: 158.89 | M55: 156.77 | N55: 156.8 | O55: 7165800 | U55: 2008-06-05 | V55: 0.375 | W55: 58.049999 | X55: 200806 | Y55: 200706 | Z55: 2007-11-13 | AA55: 3 | AB55: 0 | AC55: 2.25 | AD55: 0.03875969059
A56: 41 | B56: 2018-02-15 | C56: 161.139999 | D56: 161.520004 | E56: 158.809998 | F56: 160.779999 | G56: 5012100 | H56: 159.769241 | I56: 0.9937134096 | J56: 1 | K56: 160.13 | L56: 160.5 | M56: 157.81 | N56: 159.77 | O56: 5012100 | U56: 2008-02-28 | V56: 0.375 | W56: 54.619999 | X56: 200802 | Y56: 200702 | Z56: 2007-11-13 | AA56: 2 | AB56: 0 | AC56: 1.875 | AD56: 0.03432808558
A57: 42 | B57: 2018-02-14 | C57: 161.440002 | D57: 162.020004 | E57: 159.679993 | F57: 159.990005 | G57: 5865600 | H57: 158.984222 | I57: 0.9937134635 | J57: 1 | K57: 160.43 | L57: 161 | M57: 158.68 | N57: 158.98 | O57: 5865600 | U57: 2007-11-13 | V57: 1.5 | W57: 57.099998 | X57: 200711 | Y57: 200611 | Z57: 2006-11-13 | AA57: 2 | AB57: 1 | AC57: 1.5 | AD57: 0.0262697032
A58: 43 | B58: 2018-02-13 | C58: 163 | D58: 163.830002 | E58: 161.720001 | F58: 162.399994 | G58: 5406000 | H58: 161.379059 | I58: 0.9937134542 | J58: 1 | K58: 161.98 | L58: 162.8 | M58: 160.7 | N58: 161.38 | O58: 5406000 | U58: 2006-11-13 | V58: 1 | W58: 41.509998 | X58: 200611 | Y58: 200511 | Z58: 2005-11-10 | AA58: 2 | AB58: 1 | AC58: 1 | AD58: 0.02409058174
A59: 44 | B59: 2018-02-12 | C59: 162.369995 | D59: 165.889999 | E59: 161.5 | F59: 163.899994 | G59: 5255900 | H59: 162.869629 | I59: 0.9937134531 | J59: 1 | K59: 161.35 | L59: 164.85 | M59: 160.48 | N59: 162.87 | O59: 5255900 | U59: 2005-11-10 | V59: 0.67 | W59: 33.23 | X59: 200511 | Y59: 200411 | Z59: 2004-11-10 | AA59: 2 | AB59: 1 | AC59: 0.67 | AD59: 0.02016250376
A60: 45 | B60: 2018-02-09 | C60: 159.979996 | D60: 161.979996 | E60: 155.229996 | F60: 160.800003 | G60: 7187100 | H60: 159.789124 | I60: 0.9937134392 | J60: 1 | K60: 158.97 | L60: 160.96 | M60: 154.25 | N60: 159.79 | O60: 7187100 | U60: 2004-11-10 | V60: 0.55 | W60: 30.02 | X60: 200411 | Y60: 200311 | Z60: 2003-11-12 | AA60: 2 | AB60: 1 | AC60: 0.55 | AD60: 0.01832111925
A61: 46 | B61: 2018-02-08 | C61: 165.690002 | D61: 165.729996 | E61: 158.759995 | F61: 158.970001 | G61: 5656000 | H61: 157.970627 | I61: 0.9937134428 | J61: 1 | K61: 164.65 | L61: 164.69 | M61: 157.76 | N61: 157.97 | O61: 5656000 | U61: 2003-11-12 | V61: 0.4 | W61: 26.24 | X61: 200311 | Y61: 200211 | Z61: 2002-11-13 | AA61: 2 | AB61: 1 | AC61: 0.4 | AD61: 0.01524390244
A62: 47 | B62: 2018-02-07 | C62: 164.860001 | D62: 168.259995 | E62: 164.520004 | F62: 165.710007 | G62: 4974000 | H62: 164.668259 | I62: 0.9937134273 | J62: 1 | K62: 163.82 | L62: 167.2 | M62: 163.49 | N62: 164.67 | O62: 4974000 | U62: 2002-11-13 | V62: 0.235 | W62: 17.15 | X62: 200211 | Y62: 200111 | Z62: 2001-11-13 | AA62: 2 | AB62: 1 | AC62: 0.235 | AD62: 0.01370262391
A63: 48 | B63: 2018-02-06 | C63: 158.350006 | D63: 166.050003 | E63: 158.25 | F63: 165.179993 | G63: 7020000 | H63: 164.141571 | I63: 0.9937133912 | J63: 1 | K63: 157.35 | L63: 165.01 | M63: 157.26 | N63: 164.14 | O63: 7020000 | U63: 2001-11-13 | V63: 0.225 | W63: 27.459999 | X63: 200111 | Y63: 200011 | Z63: 2000-11-13 | AA63: 2 | AB63: 1 | AC63: 0.225 | AD63: 0.008193736642
A64: 49 | B64: 2018-02-05 | C64: 168.610001 | D64: 169.460007 | E64: 153.860001 | F64: 163.850006 | G64: 7309300 | H64: 162.819946 | I64: 0.9937133966 | J64: 1 | K64: 167.55 | L64: 168.39 | M64: 152.89 | N64: 162.82 | O64: 7309300 | U64: 2000-11-13 | V64: 0.215 | W64: 33.0625 | X64: 200011 | Y64: 199911 | Z64: 1999-11-29 | AA64: 2 | AB64: 1 | AC64: 0.215 | AD64: 0.006502835539
A65: 50 | B65: 2018-02-02 | C65: 170.800003 | D65: 172.729996 | E65: 168.990005 | F65: 169.380005 | G65: 4604500 | H65: 168.315186 | I65: 0.9937134315 | J65: 1 | K65: 169.73 | L65: 171.64 | M65: 167.93 | N65: 168.32 | O65: 4604500 | U65: 1999-11-29 | V65: 0.0488 | W65: 45.5 | X65: 199911 | Y65: 199811 | Z65: 1998-11-25 | AA65: 5 | AB65: 1 | AC65: 0.1914 | AD65: 0.004206593407
A66: 51 | B66: 2018-02-01 | C66: 170.270004 | D66: 173.539993 | E66: 168.889999 | F66: 171.899994 | G66: 4751300 | H66: 170.819336 | I66: 0.9937134495 | J66: 1 | K66: 169.2 | L66: 172.45 | M66: 167.83 | N66: 170.82 | O66: 4751300 | U66: 1999-08-30 | V66: 0.0488 | W66: 42.0625 | X66: 199908 | Y66: 199808 | Z66: 1998-08-27 | AA66: 5 | AB66: 1 | AC66: 0.2326 | AD66: 0.00552986627
A67: 52 | B67: 2018-01-31 | C67: 173.600006 | D67: 174.300003 | E67: 170.270004 | F67: 171.139999 | G67: 7004200 | H67: 170.064117 | I67: 0.9937134393 | J67: 1 | K67: 172.51 | L67: 173.2 | M67: 169.2 | N67: 170.06 | O67: 7004200 | U67: 1999-05-27 | V67: 0.0488 | W67: 37.9375 | X67: 199905 | Y67: 199805 | Z67: 1998-05-28 | AA67: 5 | AB67: 1 | AC67: 0.2738 | AD67: 0.007217133443
A68: 53 | B68: 2018-01-30 | C68: 177.100006 | D68: 177.669998 | E68: 170.850006 | F68: 172.479996 | G68: 9613000 | H68: 171.395691 | I68: 0.9937134449 | J68: 1 | K68: 175.99 | L68: 176.55 | M68: 169.78 | N68: 171.4 | O68: 9613000 | U68: 1999-03-11 | V68: 0.045 | W68: 44.6875 | X68: 199903 | Y68: 199803 | Z68: 1998-05-28 | AA68: 4 | AB68: 0 | AC68: 0.315 | AD68: 0.007048951049
A69: 54 | B69: 2018-01-29 | C69: 178.300003 | D69: 178.699997 | E69: 177.240005 | F69: 177.770004 | G69: 6091900 | H69: 176.652435 | I69: 0.9937133995 | J69: 1 | K69: 177.18 | L69: 177.58 | M69: 176.13 | N69: 176.65 | O69: 6091900 | U69: 1998-11-25 | V69: 0.09 | W69: 36.09375 | X69: 199811 | Y69: 199711 | Z69: 1997-11-26 | AA69: 5 | AB69: 1 | AC69: 0.3526 | AD69: 0.009769004329
A70: 55 | B70: 2018-01-26 | C70: 175.669998 | D70: 178.399994 | E70: 175.009995 | F70: 178.360001 | G70: 3957700 | H70: 177.238724 | I70: 0.9937134055 | J70: 1 | K70: 174.57 | L70: 177.28 | M70: 173.91 | N70: 177.24 | O70: 3957700 | U70: 1998-08-27 | V70: 0.09 | W70: 31.21875 | X70: 199808 | Y70: 199708 | Z70: 1997-08-27 | AA70: 5 | AB70: 1 | AC70: 0.3452 | AD70: 0.01105745746
A71: 56 | B71: 2018-01-25 | C71: 176.399994 | D71: 176.619995 | E71: 174.660004 | F71: 175.660004 | G71: 2815800 | H71: 174.55571 | I71: 0.993713458 | J71: 1 | K71: 175.29 | L71: 175.51 | M71: 173.56 | N71: 174.56 | O71: 2815800 | U71: 1998-05-28 | V71: 0.09 | W71: 33.4375 | X71: 199805 | Y71: 199705 | Z71: 1997-05-29 | AA71: 5 | AB71: 1 | AC71: 0.3378 | AD71: 0.01010242991
A72: 57 | B72: 2018-01-24 | C72: 177.300003 | D72: 177.300003 | E72: 175.25 | F72: 176.119995 | G72: 2810800 | H72: 175.012802 | I72: 0.9937134168 | J72: 1 | K72: 176.19 | L72: 176.19 | M72: 174.15 | N72: 175.01 | O72: 2810800 | U72: 1998-02-25 | V72: 0.0826 | W72: 26.1875 | X72: 199802 | Y72: 199702 | Z72: 1997-02-26 | AA72: 5 | AB72: 1 | AC72: 0.3304 | AD72: 0.01261670644
A73: 58 | B73: 2018-01-23 | C73: 175.570007 | D73: 177.75 | E73: 174.850006 | F73: 176.809998 | G73: 3197600 | H73: 175.698471 | I73: 0.9937134381 | J73: 1 | K73: 174.47 | L73: 176.63 | M73: 173.75 | N73: 175.7 | O73: 3197600 | U73: 1997-11-26 | V73: 0.0826 | W73: 24.28125 | X73: 199711 | Y73: 199611 | Z73: 1996-11-27 | AA73: 5 | AB73: 1 | AC73: 0.3228 | AD73: 0.01329420849
A74: 59 | B74: 2018-01-22 | C74: 175.970001 | D74: 176.830002 | E74: 175.610001 | F74: 176.210007 | G74: 3217900 | H74: 175.102249 | I74: 0.9937134217 | J74: 1 | K74: 174.86 | L74: 175.72 | M74: 174.51 | N74: 175.1 | O74: 3217900 | U74: 1997-08-27 | V74: 0.0826 | W74: 24.125 | X74: 199708 | Y74: 199608 | Z74: 1996-08-28 | AA74: 5 | AB74: 1 | AC74: 0.3152 | AD74: 0.01306528497
A75: 60 | B75: 2018-01-19 | C75: 174.990005 | D75: 176.639999 | E75: 174.380005 | F75: 176.119995 | G75: 3746300 | H75: 175.012802 | I75: 0.9937134168 | J75: 1 | K75: 173.89 | L75: 175.53 | M75: 173.28 | N75: 175.01 | O75: 3746300 | U75: 1997-05-29 | V75: 0.0826 | W75: 24.9375 | X75: 199705 | Y75: 199605 | Z75: 1996-05-31 | AA75: 5 | AB75: 1 | AC75: 0.3076 | AD75: 0.01233483709
A76: 61 | B76: 2018-01-18 | C76: 175.190002 | D76: 175.449997 | E76: 173.899994 | F76: 174.570007 | G76: 2154800 | H76: 173.472565 | I76: 0.9937134562 | J76: 1 | K76: 174.09 | L76: 174.35 | M76: 172.81 | N76: 173.47 | O76: 2154800 | U76: 1997-02-26 | V76: 0.075 | W76: 22.4375 | X76: 199702 | Y76: 199602 | Z76: 1996-02-27 | AA76: 5 | AB76: 1 | AC76: 0.3 | AD76: 0.01337047354
A77: 62 | B77: 2018-01-17 | C77: 174.350006 | D77: 175.690002 | E77: 173.880005 | F77: 174.979996 | G77: 4129600 | H77: 173.879974 | I77: 0.9937134414 | J77: 1 | K77: 173.25 | L77: 174.59 | M77: 172.79 | N77: 173.88 | O77: 4129600 | U77: 1996-11-27 | V77: 0.075 | W77: 23.0625 | X77: 199611 | Y77: 199511 | Z77: 1995-11-28 | AA77: 5 | AB77: 1 | AC77: 0.2926 | AD77: 0.01268726287
A78: 63 | B78: 2018-01-16 | C78: 173.619995 | D78: 174.410004 | E78: 172.880005 | F78: 173.679993 | G78: 3662600 | H78: 172.58815 | I78: 0.9937134786 | J78: 1 | K78: 172.53 | L78: 173.31 | M78: 171.79 | N78: 172.59 | O78: 3662600 | U78: 1996-08-28 | V78: 0.075 | W78: 23.6875 | X78: 199608 | Y78: 199508 | Z78: 1995-08-29 | AA78: 5 | AB78: 1 | AC78: 0.2852 | AD78: 0.01204010554
A79: 64 | B79: 2018-01-12 | C79: 173.360001 | D79: 173.789993 | E79: 172.880005 | F79: 173.570007 | G79: 2901600 | H79: 172.478851 | I79: 0.993713453 | J79: 1 | K79: 172.27 | L79: 172.7 | M79: 171.79 | N79: 172.48 | O79: 2901600 | U79: 1996-05-31 | V79: 0.075 | W79: 24.0625 | X79: 199605 | Y79: 199505 | Z79: 1995-05-30 | AA79: 5 | AB79: 1 | AC79: 0.2778 | AD79: 0.01154493506
A80: 65 | B80: 2018-01-11 | C80: 173.559998 | D80: 174.550003 | E80: 172.100006 | F80: 173.389999 | G80: 3078000 | H80: 172.299973 | I80: 0.9937134436 | J80: 1 | K80: 172.47 | L80: 173.45 | M80: 171.02 | N80: 172.3 | O80: 3078000 | U80: 1996-02-27 | V80: 0.0676 | W80: 25.25 | X80: 199602 | Y80: 199502 | Z80: 1995-02-22 | AA80: 5 | AB80: 1 | AC80: 0.2704 | AD80: 0.01070891089
A81: 66 | B81: 2018-01-10 | C81: 173.5 | D81: 174 | E81: 172.470001 | F81: 173.509995 | G81: 2172500 | H81: 172.41922 | I81: =IF(F81=0,1,H81/F81) -> 0.9937134745 | J81: =INDEX(OFFSET($T$15,0,0,$S$13+1,1),MATCH(B81,OFFSET($Q$15,0,0,$S$13+1,1),-1)) -> 1 | K81: =ROUND($I81*C81,2) -> 172.41 | L81: =ROUND($I81*D81,2) -> 172.91 | M81: =ROUND($I81*E81,2) -> 171.39 | N81: =ROUND($I81*F81,2) -> 172.42 | O81: =G81*J81 -> 2172500 | U81: 1995-11-28 | V81: 0.0676 | W81: =(INDEX(OFFSET($F$15,1,0,$B$10,1),MATCH(U81,OFFSET($B$15,1,0,$B$10,1),-1))) -> 22.125 | X81: =YEAR(U81)&RIGHT("0"&MONTH(U81),2) -> 199511 | Y81: =YEAR(U81)-1&RIGHT("0"&MONTH(U81),2) -> 199411 | Z81: =OFFSET(U80,AA81,0,1,1) -> 1994-11-23 | AA81: =MATCH(Y81,OFFSET($X$15,A81,0,$V$14+1-A81,1),-1) -> 5 | AB81: =IF(OR(AND(YEAR(U81)=YEAR(Z81),MONTH(U81)=MONTH(Z81)),MONTH(U81)=MONTH(Z81)),1,0) -> 1 | AC81: =(V81+IF(AA81-AB81=0,0,IFERROR(SUM(OFFSET(V81,1,0,AA81-AB81-1,1)),0))) -> 0.2628 | AD81: =AC81/(INDEX(OFFSET($F$15,1,0,$B$10,1),MATCH(U81,OFFSET($B$15,1,0,$B$10,1),-1))) -> 0.0118779661
A82: 67 | B82: 2018-01-09 | C82: 174.229996 | D82: 174.229996 | E82: 173.009995 | F82: 173.539993 | G82: 2674300 | H82: 172.44902 | I82: 0.9937134203 | J82: 1 | K82: 173.13 | L82: 173.13 | M82: 171.92 | N82: 172.45 | O82: 2674300 | U82: 1995-08-29 | V82: 0.0676 | W82: 18.125 | X82: 199508 | Y82: 199408 | Z82: 1994-08-25 | AA82: 5 | AB82: 1 | AC82: 0.2552 | AD82: 0.01408
A83: 68 | B83: 2018-01-08 | C83: 173.740005 | D83: 174.210007 | E83: 172.929993 | F83: 173.929993 | G83: 2060800 | H83: 172.836578 | I83: 0.9937134764 | J83: 1 | K83: 172.65 | L83: 173.11 | M83: 171.84 | N83: 172.84 | O83: 2060800 | U83: 1995-05-30 | V83: 0.0676 | W83: 18.4375 | X83: 199505 | Y83: 199405 | Z83: 1994-06-01 | AA83: 5 | AB83: 0 | AC83: 0.3676 | AD83: 0.01993762712
A84: 69 | B84: 2018-01-05 | C84: 174 | D84: 175 | E84: 173.399994 | F84: 174.050003 | G84: 3737700 | H84: 172.955826 | I84: 0.993713433 | J84: 1 | K84: 172.91 | L84: 173.9 | M84: 172.31 | N84: 172.96 | O84: 3737700 | U84: 1995-02-22 | V84: 0.06 | W84: 16.5 | X84: 199502 | Y84: 199402 | Z84: 1994-02-22 | AA84: 5 | AB84: 1 | AC84: 0.3 | AD84: 0.01818181818
A85: 70 | B85: 2018-01-04 | C85: 173.240005 | D85: 174.130005 | E85: 172.729996 | F85: 173.699997 | G85: 2756400 | H85: 172.608017 | I85: 0.9937134138 | J85: 1 | K85: 172.15 | L85: 173.04 | M85: 171.64 | N85: 172.61 | O85: 2756400 | U85: 1994-11-23 | V85: 0.06 | W85: 14.25 | X85: 199411 | Y85: 199311 | Z85: 1993-11-23 | AA85: 5 | AB85: 1 | AC85: 0.3476 | AD85: 0.02439298246
A86: 71 | B86: 2018-01-03 | C86: 173.229996 | D86: 173.639999 | E86: 172 | F86: 172.490005 | G86: 3789600 | H86: 171.40564 | I86: 0.9937134618 | J86: 1 | K86: 172.14 | L86: 172.55 | M86: 170.92 | N86: 171.41 | O86: 3789600 | U86: 1994-08-25 | V86: 0.06 | W86: 13.375 | X86: 199408 | Y86: 199308 | Z86: 1993-08-25 | AA86: 5 | AB86: 1 | AC86: 0.3952 | AD86: 0.02954766355
A87: 72 | B87: 2018-01-02 | C87: 173.729996 | D87: 174.479996 | E87: 172.660004 | F87: 173.220001 | G87: 3696900 | H87: 172.131042 | I87: 0.9937134338 | J87: 1 | K87: 172.64 | L87: 173.38 | M87: 171.57 | N87: 172.13 | O87: 3696900 | U87: 1994-06-01 | V87: 0.12 | W87: 15.3125 | X87: 199406 | Y87: 199306 | Z87: 1993-06-01 | AA87: 5 | AB87: 1 | AC87: 0.4428 | AD87: 0.02891755102
A88: 73 | B88: 2017-12-29 | C88: 172.979996 | D88: 172.979996 | E88: 171.919998 | F88: 172.119995 | G88: 2201800 | H88: 171.037949 | I88: 0.9937134207 | J88: 1 | K88: 171.89 | L88: 171.89 | M88: 170.84 | N88: 171.04 | O88: 2201800 | U88: 1994-02-22 | V88: 0.1076 | W88: 15.21875 | X88: 199402 | Y88: 199302 | Z88: 1993-02-23 | AA88: 5 | AB88: 1 | AC88: 0.4304 | AD88: 0.02828090349
A89: 74 | B89: 2017-12-28 | C89: 173.259995 | D89: 173.550003 | E89: 172.619995 | F89: 173.100006 | G89: 1800100 | H89: 172.011795 | I89: 0.9937133971 | J89: 1 | K89: 172.17 | L89: 172.46 | M89: 171.53 | N89: 172.01 | O89: 1800100 | U89: 1993-11-23 | V89: 0.1076 | W89: 14.125 | X89: 199311 | Y89: 199211 | Z89: 1992-11-23 | AA89: 5 | AB89: 1 | AC89: 0.4228 | AD89: 0.02993274336
A90: 75 | B90: 2017-12-27 | C90: 171.330002 | D90: 172.740005 | E90: 170.850006 | F90: 172.669998 | G90: 1596800 | H90: 171.584503 | I90: 0.9937134707 | J90: 1 | K90: 170.25 | L90: 171.65 | M90: 169.78 | N90: 171.58 | O90: 1596800 | U90: 1993-08-25 | V90: 0.1076 | W90: 13.65625 | X90: 199308 | Y90: 199208 | Z90: 1992-08-25 | AA90: 5 | AB90: 1 | AC90: 0.4152 | AD90: 0.03040366133
A91: 76 | B91: 2017-12-26 | C91: 171.089996 | D91: 171.639999 | E91: 170.820007 | F91: 171.289993 | G91: 1280200 | H91: 170.213165 | I91: 0.9937134214 | J91: 1 | K91: 170.01 | L91: 170.56 | M91: 169.75 | N91: 170.21 | O91: 1280200 | U91: 1993-06-01 | V91: 0.1076 | W91: 12.53125 | X91: 199306 | Y91: 199206 | Z91: 1992-08-25 | AA91: 4 | AB91: 0 | AC91: 0.4076 | AD91: 0.03252668329
A92: 77 | B92: 2017-12-22 | C92: 171.820007 | D92: 172.039993 | E92: 170.550003 | F92: 171.419998 | G92: 3234100 | H92: 170.342361 | I92: 0.9937134698 | J92: 1 | K92: 170.74 | L92: 170.96 | M92: 169.48 | N92: 170.34 | O92: 3234100 | U92: 1993-02-23 | V92: 0.1 | W92: 12.46875 | X92: 199302 | Y92: 199202 | Z92: 1992-02-25 | AA92: 5 | AB92: 1 | AC92: 0.4 | AD92: 0.0320802005
A93: 78 | B93: 2017-12-21 | C93: 172.600006 | D93: 172.75 | E93: 171.669998 | F93: 171.850006 | G93: 2343300 | H93: 170.769653 | I93: 0.9937133956 | J93: 1 | K93: 171.51 | L93: 171.66 | M93: 170.59 | N93: 170.77 | O93: 2343300 | U93: 1992-11-23 | V93: 0.1 | W93: 12.03125 | X93: 199211 | Y93: 199111 | Z93: 1991-11-27 | AA93: 5 | AB93: 1 | AC93: 0.3928 | AD93: 0.03264831169
A94: 79 | B94: 2017-12-20 | C94: 173.830002 | D94: 173.880005 | E94: 171.710007 | F94: 172.169998 | G94: 2749400 | H94: 171.087646 | I94: 0.9937134692 | J94: 1 | K94: 172.74 | L94: 172.79 | M94: 170.63 | N94: 171.09 | O94: 2749400 | U94: 1992-08-25 | V94: 0.1 | W94: 10.4375 | X94: 199208 | Y94: 199108 | Z94: 1991-08-28 | AA94: 5 | AB94: 1 | AC94: 0.3856 | AD94: 0.03694371257
A95: 80 | B95: 2017-12-19 | C95: 174.389999 | D95: 174.899994 | E95: 173.080002 | F95: 173.389999 | G95: 3122500 | H95: 172.299973 | I95: 0.9937134436 | J95: 1 | K95: 173.29 | L95: 173.8 | M95: 171.99 | N95: 172.3 | O95: 3122500 | U95: 1992-05-27 | V95: 0.1 | W95: 11.28125 | X95: 199205 | Y95: 199105 | Z95: 1991-05-29 | AA95: 5 | AB95: 1 | AC95: 0.3784 | AD95: 0.03354238227
A96: 81 | B96: 2017-12-18 | C96: 174.869995 | D96: 175.779999 | E96: 174.110001 | F96: 174.199997 | G96: 2426300 | H96: 173.104874 | I96: 0.9937134155 | J96: 1 | K96: 173.77 | L96: 174.67 | M96: 173.02 | N96: 173.1 | O96: 2426300 | U96: 1992-02-25 | V96: 0.0928 | W96: 10.625 | X96: 199202 | Y96: 199102 | Z96: 1991-03-05 | AA96: 5 | AB96: 0 | AC96: 0.4564 | AD96: 0.04295529412
A97: 82 | B97: 2017-12-15 | C97: 174.300003 | D97: 175.089996 | E97: 173.679993 | F97: 174.059998 | G97: 7435200 | H97: 172.965759 | I97: 0.9937134378 | J97: 1 | K97: 173.2 | L97: 173.99 | M97: 172.59 | N97: 172.97 | O97: 7435200 | U97: 1991-11-27 | V97: 0.0928 | W97: 8.46875 | X97: 199111 | Y97: 199011 | Z97: 1990-11-26 | AA97: 5 | AB97: 1 | AC97: 0.3636 | AD97: 0.04293431734
A98: 83 | B98: 2017-12-14 | C98: 173.660004 | D98: 174.080002 | E98: 172.830002 | F98: 173.139999 | G98: 2666900 | H98: 172.051544 | I98: 0.99371344 | J98: 1 | K98: 172.57 | L98: 172.99 | M98: 171.74 | N98: 172.05 | O98: 2666900 | U98: 1991-08-28 | V98: 0.0928 | W98: 8.21875 | X98: 199108 | Y98: 199008 | Z98: 1990-08-27 | AA98: 5 | AB98: 1 | AC98: 0.356 | AD98: 0.04331558935
A99: 84 | B99: 2017-12-13 | C99: 172.440002 | D99: 173.960007 | E99: 172.399994 | F99: 173.550003 | G99: 2554000 | H99: 172.458969 | I99: 0.9937134314 | J99: 1 | K99: 171.36 | L99: 172.87 | M99: 171.32 | N99: 172.46 | O99: 2554000 | U99: 1991-05-29 | V99: 0.0928 | W99: 8.65625 | X99: 199105 | Y99: 199005 | Z99: 1990-05-30 | AA99: 5 | AB99: 1 | AC99: 0.3484 | AD99: 0.04024837545
A100: 85 | B100: 2017-12-12 | C100: 173 | D100: 173.199997 | E100: 171.850006 | F100: 172.229996 | G100: 2805900 | H100: 171.147263 | I100: 0.993713447 | J100: 1 | K100: 171.91 | L100: 172.11 | M100: 170.77 | N100: 171.15 | O100: 2805900 | U100: 1991-03-05 | V100: 0.0852 | W100: 8.28125 | X100: 199103 | Y100: 199003 | Z100: 1990-05-30 | AA100: 4 | AB100: 0 | AC100: 0.3408 | AD100: 0.04115320755
A101: 86 | B101: 2017-12-11 | C101: 172.940002 | D101: 173.25 | E101: 172.220001 | F101: 173.25 | G101: 2340800 | H101: 172.160858 | I101: 0.9937134661 | J101: 1 | K101: 171.85 | L101: 172.16 | M101: 171.14 | N101: 172.16 | O101: 2340800 | U101: 1990-11-26 | V101: 0.0852 | W101: 7.03125 | X101: 199011 | Y101: 198911 | Z101: 1989-11-24 | AA101: 5 | AB101: 1 | AC101: 0.3332 | AD101: 0.04738844444
A102: 87 | B102: 2017-12-08 | C102: 173.039993 | D102: 173.539993 | E102: 172.509995 | F102: 173.149994 | G102: 2241100 | H102: 172.061478 | I102: 0.9937134505 | J102: 1 | K102: 171.95 | L102: 172.45 | M102: 171.43 | N102: 172.06 | O102: 2241100 | U102: 1990-08-27 | V102: 0.0852 | W102: 7.0625 | X102: 199008 | Y102: 198908 | Z102: 1989-08-25 | AA102: 5 | AB102: 1 | AC102: 0.3256 | AD102: 0.04610265487
A103: 88 | B103: 2017-12-07 | C103: 172.550003 | D103: 173.289993 | E103: 171.919998 | F103: 172.910004 | G103: 2284800 | H103: 171.822998 | I103: 0.993713458 | J103: 1 | K103: 171.47 | L103: 172.2 | M103: 170.84 | N103: 171.82 | O103: 2284800 | U103: 1990-05-30 | V103: 0.0852 | W103: 8.65625 | X103: 199005 | Y103: 198905 | Z103: 1989-05-24 | AA103: 5 | AB103: 1 | AC103: 0.318 | AD103: 0.03673646209
A104: 89 | B104: 2017-12-06 | C104: 173.479996 | D104: 174.440002 | E104: 173 | F104: 173.479996 | G104: 2618700 | H104: 172.389404 | I104: 0.9937134423 | J104: 1 | K104: 172.39 | L104: 173.34 | M104: 171.91 | N104: 172.39 | O104: 2618700 | U104: 1990-02-27 | V104: 0.0776 | W104: 7.90625 | X104: 199002 | Y104: 198902 | Z104: 1989-02-22 | AA104: 5 | AB104: 1 | AC104: 0.388 | AD104: 0.04907509881
A105: 90 | B105: 2017-12-05 | C105: 173.639999 | D105: 174.25 | E105: 172.460007 | F105: 172.990005 | G105: 3228700 | H105: 171.902496 | I105: 0.9937134576 | J105: 1 | K105: 172.55 | L105: 173.15 | M105: 171.38 | N105: 171.9 | O105: 3228700 | U105: 1989-11-24 | V105: 0.0776 | W105: 8.21875 | X105: 198911 | Y105: 198811 | Z105: 1988-11-23 | AA105: 6 | AB105: 1 | AC105: 0.4679 | AD105: 0.05693079848
A106: 91 | B106: 2017-12-04 | C106: 173.270004 | D106: 173.479996 | E106: 170.429993 | F106: 170.649994 | G106: 3943100 | H106: 169.577194 | I106: 0.9937134484 | J106: 1 | K106: 172.18 | L106: 172.39 | M106: 169.36 | N106: 169.58 | O106: 3943100 | U106: 1989-08-25 | V106: 0.0776 | W106: 7.28125 | X106: 198908 | Y106: 198808 | Z106: 1988-08-22 | AA106: 6 | AB106: 1 | AC106: 0.5303 | AD106: 0.07283090129
A107: 92 | B107: 2017-12-01 | C107: 172.770004 | D107: 173.149994 | E107: 170.389999 | F107: 172.869995 | G107: 4279200 | H107: 171.783234 | I107: 0.9937134203 | J107: 1 | K107: 171.68 | L107: 172.06 | M107: 169.32 | N107: 171.78 | O107: 4279200 | U107: 1989-05-24 | V107: 0.1552 | W107: 7.25 | X107: 198905 | Y107: 198805 | Z107: 1988-05-24 | AA107: 6 | AB107: 1 | AC107: 0.5927 | AD107: 0.08175172414
A108: 93 | B108: 2017-11-30 | C108: 170.240005 | D108: 173.169998 | E108: 169.339996 | F108: 171.970001 | G108: 6023700 | H108: 170.888901 | I108: 0.9937134384 | J108: 1 | K108: 169.17 | L108: 172.08 | M108: 168.28 | N108: 170.89 | O108: 6023700 | U108: 1989-02-22 | V108: 0.14 | W108: 6.34375 | X108: 198902 | Y108: 198802 | Z108: 1988-05-24 | AA108: 5 | AB108: 0 | AC108: 0.5775 | AD108: 0.09103448276
A109: 94 | B109: 2017-11-29 | C109: 171.699997 | D109: 172.020004 | E109: 169.050003 | F109: 170.429993 | G109: 4590300 | H109: 168.354935 | I109: 0.9878245726 | J109: 1 | K109: 169.61 | L109: 169.93 | M109: 166.99 | N109: 168.35 | O109: 4590300 | U109: 1988-12-21 | V109: 0.0175 | W109: 5.96875 | X109: 198812 | Y109: 198712 | Z109: 1988-01-19 | AA109: 5 | AB109: 0 | AC109: 0.5631 | AD109: 0.09434136126
A110: 95 | B110: 2017-11-28 | C110: 169.229996 | D110: 171.380005 | E110: 169.039993 | F110: 171.339996 | G110: 2909900 | H110: 169.253845 | I110: 0.9878244949 | J110: 1 | K110: 167.17 | L110: 169.29 | M110: 166.98 | N110: 169.25 | O110: 2909900 | U110: 1988-11-23 | V110: 0.14 | W110: 5.859375 | X110: 198811 | Y110: 198711 | Z110: 1988-01-19 | AA110: 4 | AB110: 0 | AC110: 0.5456 | AD110: 0.09311573333
A111: 96 | B111: 2017-11-27 | C111: 168.899994 | D111: 169.179993 | E111: 168.089996 | F111: 168.960007 | G111: 2082400 | H111: 166.902832 | I111: 0.9878244856 | J111: 1 | K111: 166.84 | L111: 167.12 | M111: 166.04 | N111: 166.9 | O111: 2082400 | U111: 1988-08-22 | V111: 0.14 | W111: 5.390625 | X111: 198808 | Y111: 198708 | Z111: 1987-10-20 | AA111: 4 | AB111: 0 | AC111: 0.5312 | AD111: 0.09854144928
A112: 97 | B112: 2017-11-24 | C112: 168.880005 | D112: 169.559998 | E112: 168.820007 | F112: 169.110001 | G112: 963200 | H112: 167.050995 | I112: 0.9878244575 | J112: 1 | K112: 166.82 | L112: 167.5 | M112: 166.76 | N112: 167.05 | O112: 963200 | U112: 1988-05-24 | V112: 0.14 | W112: 5.359375 | X112: 198805 | Y112: 198705 | Z112: 1987-05-22 | AA112: 5 | AB112: 1 | AC112: 0.5168 | AD112: 0.09642915452
A113: 98 | B113: 2017-11-22 | C113: 169.270004 | D113: 170.350006 | E113: 168.669998 | F113: 169.050003 | G113: 2719200 | H113: 166.991745 | I113: 0.987824561 | J113: 1 | K113: 167.21 | L113: 168.28 | M113: 166.62 | N113: 166.99 | O113: 2719200 | U113: 1988-01-19 | V113: 0.1256 | W113: 5.515625 | X113: 198801 | Y113: 198701 | Z113: 1987-01-26 | AA113: 6 | AB113: 1 | AC113: 0.57988 | AD113: 0.105134051
A114: 99 | B114: 2017-11-21 | C114: 167.550003 | D114: 169.259995 | E114: 167.509995 | F114: 168.300003 | G114: 2653100 | H114: 166.25087 | I114: 0.9878245219 | J114: 1 | K114: 165.51 | L114: 167.2 | M114: 165.47 | N114: 166.25 | O114: 2653100 | U114: 1987-10-20 | V114: 0.1256 | W114: 4.921875 | X114: 198710 | Y114: 198610 | Z114: 1986-10-29 | AA114: 7 | AB114: 1 | AC114: 0.63303 | AD114: 0.128615619
A115: 100 | B115: 2017-11-20 | C115: 167.330002 | D115: 167.850006 | E115: 166.759995 | F115: 166.929993 | G115: 2442300 | H115: 164.897537 | I115: 0.9878245008 | J115: 1 | K115: 165.29 | L115: 165.81 | M115: 164.73 | N115: 164.9 | O115: 2442300 | U115: 1987-07-23 | V115: 0.1256 | W115: 6.640625 | X115: 198707 | Y115: 198607 | Z115: 1986-07-25 | AA115: 8 | AB115: 1 | AC115: 0.68618 | AD115: 0.1033306353
A116: 101 | B116: 2017-11-17 | C116: 167.539993 | D116: 167.699997 | E116: 166.160004 | F116: 166.720001 | G116: 2221400 | H116: 164.690094 | I116: 0.9878244542 | J116: 1 | K116: 165.5 | L116: 165.66 | M116: 164.14 | N116: 164.69 | O116: 2221400 | U116: 1987-05-22 | V116: 0.1875 | W116: 6.552083 | X116: 198705 | Y116: 198605 | Z116: 1986-05-30 | AA116: 9 | AB116: 1 | AC116: 0.73933 | AD116: 0.1128389247
A117: 102 | B117: 2017-11-16 | C117: 167.679993 | D117: 168.889999 | E117: 167.529999 | F117: 168.089996 | G117: 2293400 | H117: 166.043411 | I117: 0.9878244687 | J117: 1 | K117: 165.64 | L117: 166.83 | M117: 165.49 | N117: 166.04 | O117: 2293400 | U117: 1987-05-20 | V117: 0.01558 | W117: 6.270833 | X117: 198705 | Y117: 198605 | Z117: 1986-05-30 | AA117: 8 | AB117: 1 | AC117: 0.55183 | AD117: 0.08799947312
A118: 103 | B118: 2017-11-15 | C118: 167.690002 | D118: 168.690002 | E118: 167.149994 | F118: 167.320007 | G118: 2019300 | H118: 165.282791 | I118: 0.9878244327 | J118: 1 | K118: 165.65 | L118: 166.64 | M118: 165.11 | N118: 165.28 | O118: 2019300 | U118: 1987-01-26 | V118: 0.165 | W118: 5.583333 | X118: 198701 | Y118: 198601 | Z118: 1986-01-24 | AA118: 9 | AB118: 1 | AC118: 0.79292 | AD118: 0.1420155309
A119: 104 | B119: 2017-11-14 | C119: 166.839996 | D119: 168.419998 | E119: 166.570007 | F119: 168.110001 | G119: 2180900 | H119: 166.063187 | I119: 0.9878245554 | J119: 1 | K119: 164.81 | L119: 166.37 | M119: 164.54 | N119: 166.06 | O119: 2180900 | U119: 1987-01-22 | V119: 0.01375 | W119: 5.65625 | X119: 198701 | Y119: 198601 | Z119: 1986-01-24 | AA119: 8 | AB119: 1 | AC119: 0.62792 | AD119: 0.1110134807
A120: 105 | B120: 2017-11-13 | C120: 165.470001 | D120: 167.949997 | E120: 165.080002 | F120: 167.369995 | G120: 2605600 | H120: 165.332184 | I120: 0.9878245142 | J120: 1 | K120: 163.46 | L120: 165.91 | M120: 163.07 | N120: 165.33 | O120: 2605600 | U120: 1986-10-29 | V120: 0.165 | W120: 5.125 | X120: 198610 | Y120: 198510 | Z120: 1985-10-24 | AA120: 9 | AB120: 1 | AC120: 0.85167 | AD120: 0.1661795122
A121: 106 | B121: 2017-11-10 | C121: 166.399994 | D121: 166.800003 | E121: 163.520004 | F121: 165.589996 | G121: 4226800 | H121: 163.573853 | I121: 0.9878244879 | J121: 1 | K121: 164.37 | L121: 164.77 | M121: 161.53 | N121: 163.57 | O121: 4226800 | U121: 1986-10-27 | V121: 0.01375 | W121: 5.03125 | X121: 198610 | Y121: 198510 | Z121: 1985-10-24 | AA121: 8 | AB121: 1 | AC121: 0.68667 | AD121: 0.1364809938
A122: 107 | B122: 2017-11-09 | C122: 168.720001 | D122: 169.199997 | E122: 166.100006 | F122: 167 | G122: 4219000 | H122: 164.96669 | I122: 0.987824491 | J122: 1 | K122: 166.67 | L122: 167.14 | M122: 164.08 | N122: 164.97 | O122: 4219000 | U122: 1986-07-25 | V122: 0.165 | W122: 5.572917 | X122: 198607 | Y122: 198507 | Z122: 1985-07-25 | AA122: 9 | AB122: 1 | AC122: 0.91042 | AD122: 0.1633650743
A123: 108 | B123: 2017-11-08 | C123: 170.169998 | D123: 170.919998 | E123: 169.449997 | F123: 170.100006 | G123: 2605000 | H123: 168.028961 | I123: 0.9878245448 | J123: 1 | K123: 168.1 | L123: 168.84 | M123: 167.39 | N123: 168.03 | O123: 2605000 | U123: 1986-07-23 | V123: 0.01375 | W123: 5.5 | X123: 198607 | Y123: 198507 | Z123: 1985-07-25 | AA123: 8 | AB123: 1 | AC123: 0.74542 | AD123: 0.1355309091
A124: 109 | B124: 2017-11-07 | C124: 170.100006 | D124: 170.820007 | E124: 169.520004 | F124: 170.770004 | G124: 2506000 | H124: 168.690796 | I124: 0.9878245128 | J124: 1 | K124: 168.03 | L124: 168.74 | M124: 167.46 | N124: 168.69 | O124: 2506000 | U124: 1986-05-30 | V124: 0.2475 | W124: 5.701389 | X124: 198605 | Y124: 198505 | Z124: 1985-05-31 | AA124: 10 | AB124: 1 | AC124: 1.19417 | AD124: 0.2094524685
A125: 110 | B125: 2017-11-06 | C125: 168.899994 | D125: 170.419998 | E125: 168.600006 | F125: 170.070007 | G125: 3087700 | H125: 167.999313 | I125: 0.987824461 | J125: 1 | K125: 166.84 | L125: 168.35 | M125: 166.55 | N125: 168 | O125: 3087700 | U125: 1986-05-28 | V125: 0.00917 | W125: 5.916667 | X125: 198605 | Y125: 198505 | Z125: 1985-05-31 | AA125: 9 | AB125: 1 | AC125: 0.94667 | AD125: 0.1600005544
A126: 111 | B126: 2017-11-03 | C126: 168 | D126: 169.449997 | E126: 167.600006 | F126: 168.649994 | G126: 1959500 | H126: 166.596603 | I126: 0.9878245415 | J126: 1 | K126: 165.95 | L126: 167.39 | M126: 165.56 | N126: 166.6 | O126: 1959500 | U126: 1986-01-24 | V126: 0.225 | W126: 4.152778 | X126: 198601 | Y126: 198501 | Z126: 1985-01-24 | AA126: 9 | AB126: 1 | AC126: 0.95 | AD126: 0.2287625296
A127: 112 | B127: 2017-11-02 | C127: 166.990005 | D127: 168.470001 | E127: 166.5 | F127: 168.100006 | G127: 2291000 | H127: 166.053314 | I127: 0.9878245572 | J127: 1 | K127: 164.96 | L127: 166.42 | M127: 164.47 | N127: 166.05 | O127: 2291000 | U127: 1986-01-22 | V127: 0.0125 | W127: 4.0625 | X127: 198601 | Y127: 198501 | Z127: 1985-01-24 | AA127: 8 | AB127: 1 | AC127: 0.725 | AD127: 0.1784615385
A128: 113 | B128: 2017-11-01 | C128: 165.720001 | D128: 167.990005 | E128: 165.570007 | F128: 166.369995 | G128: 2186100 | H128: 164.344345 | I128: 0.9878244271 | J128: 1 | K128: 163.7 | L128: 165.94 | M128: 163.55 | N128: 164.34 | O128: 2186100 | U128: 1985-10-24 | V128: 0.225 | W128: 3.645833 | X128: 198510 | Y128: 198410 | Z128: 1984-10-25 | AA128: 9 | AB128: 1 | AC128: 0.92889 | AD128: 0.2547812804
A129: 114 | B129: 2017-10-31 | C129: 166.25 | D129: 167.410004 | E129: 166.130005 | F129: 166.910004 | G129: 2873000 | H129: 164.877792 | I129: 0.9878245045 | J129: 1 | K129: 164.23 | L129: 165.37 | M129: 164.11 | N129: 164.88 | O129: 2873000 | U129: 1985-10-22 | V129: 0.0125 | W129: 3.555556 | X129: 198510 | Y129: 198410 | Z129: 1984-10-25 | AA129: 8 | AB129: 1 | AC129: 0.70389 | AD129: 0.1979690378
A130: 115 | B130: 2017-10-30 | C130: 165 | D130: 166.559998 | E130: 164.669998 | F130: 166.229996 | G130: 2051000 | H130: 164.20607 | I130: 0.987824544 | J130: 1 | K130: 162.99 | L130: 164.53 | M130: 162.67 | N130: 164.21 | O130: 2051000 | U130: 1985-07-25 | V130: 0.225 | W130: 3.638889 | X130: 198507 | Y130: 198407 | Z130: 1984-07-26 | AA130: 9 | AB130: 1 | AC130: 0.90778 | AD130: 0.2494662519
A131: 116 | B131: 2017-10-27 | C131: 164.089996 | D131: 165.850006 | E131: 163.770004 | F131: 165.389999 | G131: 2298100 | H131: 163.376297 | I131: 0.9878245238 | J131: 1 | K131: 162.09 | L131: 163.83 | M131: 161.78 | N131: 163.38 | O131: 2298100 | U131: 1985-07-23 | V131: 0.0125 | W131: 3.75 | X131: 198507 | Y131: 198407 | Z131: 1984-07-26 | AA131: 8 | AB131: 1 | AC131: 0.68278 | AD131: 0.1820746667
A132: 117 | B132: 2017-10-26 | C132: 164.139999 | D132: 164.649994 | E132: 163.75 | F132: 164.009995 | G132: 2934400 | H132: 162.013092 | I132: 0.9878245042 | J132: 1 | K132: 162.14 | L132: 162.65 | M132: 161.76 | N132: 162.01 | O132: 2934400 | U132: 1985-06-04 | V132: 0.225 | W132: 3.8125 | X132: 198506 | Y132: 198406 | Z132: 1984-07-24 | AA132: 8 | AB132: 0 | AC132: 0.97102 | AD132: 0.2546937705
A133: 118 | B133: 2017-10-25 | C133: 163.410004 | D133: 165.119995 | E133: 163 | F133: 163.580002 | G133: 3716200 | H133: 161.588333 | I133: 0.9878244958 | J133: 1 | K133: 161.42 | L133: 163.11 | M133: 161.02 | N133: 161.59 | O133: 3716200 | U133: 1985-05-31 | V133: 0.0125 | W133: 3.708333 | X133: 198505 | Y133: 198405 | Z133: 1984-05-25 | AA133: 8 | AB133: 1 | AC133: 0.74602 | AD133: 0.2011739507
A134: 119 | B134: 2017-10-24 | C134: 165.259995 | D134: 166.490005 | E134: 163.589996 | F134: 163.880005 | G134: 7855200 | H134: 161.884674 | I134: 0.987824439 | J134: 1 | K134: 163.25 | L134: 164.46 | M134: 161.6 | N134: 161.88 | O134: 7855200 | U134: 1985-01-24 | V134: 0.205 | W134: 3.215278 | X134: 198501 | Y134: 198401 | Z134: 1984-01-26 | AA134: 9 | AB134: 1 | AC134: 1.03426 | AD134: 0.3216704745
A135: 120 | B135: 2017-10-23 | C135: 166.100006 | D135: 166.100006 | E135: 163.089996 | F135: 163.339996 | G135: 6214800 | H135: 161.351242 | I135: 0.9878244518 | J135: 1 | K135: 164.08 | L135: 164.08 | M135: 161.1 | N135: 161.35 | O135: 6214800 | U135: 1985-01-22 | V135: 0.01139 | W135: 3.118056 | X135: 198501 | Y135: 198401 | Z135: 1984-01-26 | AA135: 8 | AB135: 1 | AC135: 0.82926 | AD135: 0.2659541714
A136: 121 | B136: 2017-10-20 | C136: 167.229996 | D136: 167.899994 | E136: 165.5 | F136: 166.300003 | G136: 5577700 | H136: 164.275223 | I136: 0.9878245342 | J136: 1 | K136: 165.19 | L136: 165.86 | M136: 163.48 | N136: 164.28 | O136: 5577700 | U136: 1984-10-25 | V136: 0.205 | W136: 3 | X136: 198410 | Y136: 198310 | Z136: 1983-10-27 | AA136: 9 | AB136: 1 | AC136: 1.07713 | AD136: 0.3590433333
A137: 122 | B137: 2017-10-19 | C137: 165.820007 | D137: 166.949997 | E137: 164.919998 | F137: 166.5 | G137: 2478100 | H137: 164.472778 | I137: 0.9878244925 | J137: 1 | K137: 163.8 | L137: 164.92 | M137: 162.91 | N137: 164.47 | O137: 2478100 | U137: 1984-10-23 | V137: 0.01139 | W137: 2.944444 | X137: 198410 | Y137: 198310 | Z137: 1983-10-27 | AA137: 8 | AB137: 1 | AC137: 0.87213 | AD137: 0.296195139
A138: 123 | B138: 2017-10-18 | C138: 165.289993 | D138: 166.25 | E138: 163.889999 | F138: 165.770004 | G138: 2798300 | H138: 163.751663 | I138: 0.9878244498 | J138: 1 | K138: 163.28 | L138: 164.23 | M138: 161.89 | N138: 163.75 | O138: 2798300 | U138: 1984-07-26 | V138: 0.29 | W138: 2.601852 | X138: 198407 | Y138: 198307 | Z138: 1983-07-19 | AA138: 9 | AB138: 1 | AC138: 1.12 | AD138: 0.4304626089
A139: 124 | B139: 2017-10-17 | C139: 164.919998 | D139: 166.020004 | E139: 164.75 | F139: 165.399994 | G139: 2379700 | H139: 163.386169 | I139: 0.9878245159 | J139: 1 | K139: 162.91 | L139: 164 | M139: 162.74 | N139: 163.39 | O139: 2379700 | U139: 1984-07-24 | V139: 0.01074 | W139: 2.550926 | X139: 198407 | Y139: 198307 | Z139: 1983-07-19 | AA139: 8 | AB139: 1 | AC139: 0.83 | AD139: 0.3253720414
A140: 125 | B140: 2017-10-16 | C140: 165.440002 | D140: 165.740005 | E140: 164.440002 | F140: 165.009995 | G140: 2132300 | H140: 163.000916 | I140: 0.9878245012 | J140: 1 | K140: 163.43 | L140: 163.72 | M140: 162.44 | N140: 163 | O140: 2132300 | U140: 1984-05-25 | V140: 0.29 | W140: 2.314815 | X140: 198405 | Y140: 198305 | Z140: 1983-05-27 | AA140: 9 | AB140: 1 | AC140: 1.07852 | AD140: 0.4659206027
A141: 126 | B141: 2017-10-13 | C141: 164.449997 | D141: 165.509995 | E141: 164.080002 | F141: 165.369995 | G141: 2957400 | H141: 163.356537 | I141: 0.9878245265 | J141: 1 | K141: 162.45 | L141: 163.49 | M141: 162.08 | N141: 163.36 | O141: 2957400 | U141: 1984-05-23 | V141: 0.01074 | W141: 2.347222 | X141: 198405 | Y141: 198305 | Z141: 1983-05-27 | AA141: 8 | AB141: 1 | AC141: 0.78852 | AD141: 0.3359375466
A142: 127 | B142: 2017-10-12 | C142: 162.990005 | D142: 164.399994 | E142: 162.770004 | F142: 163.910004 | G142: 3023600 | H142: 161.914322 | I142: 0.987824526 | J142: 1 | K142: 161.01 | L142: 162.4 | M142: 160.79 | N142: 161.91 | O142: 3023600 | U142: 1984-01-26 | V142: 0.25 | W142: 2.527778 | X142: 198401 | Y142: 198301 | Z142: 1983-01-26 | AA142: 9 | AB142: 1 | AC142: 1.03704 | AD142: 0.4102575464
A143: 128 | B143: 2017-10-11 | C143: 160.899994 | D143: 163.240005 | E143: 160.580002 | F143: 163.149994 | G143: 3572500 | H143: 161.163559 | I143: 0.9878244862 | J143: 1 | K143: 158.94 | L143: 161.25 | M143: 158.62 | N143: 161.16 | O143: 3572500 | U143: 1984-01-24 | V143: 0.00926 | W143: 2.583333 | X143: 198401 | Y143: 198301 | Z143: 1983-01-26 | AA143: 8 | AB143: 1 | AC143: 0.78704 | AD143: 0.3046606845
A144: 129 | B144: 2017-10-10 | C144: 159.690002 | D144: 161.580002 | E144: 159.589996 | F144: 160.580002 | G144: 2909600 | H144: 158.624863 | I144: 0.9878245175 | J144: 1 | K144: 157.75 | L144: 159.61 | M144: 157.65 | N144: 158.62 | O144: 2909600 | U144: 1983-10-27 | V144: 0.25 | W144: 2.611111 | X144: 198310 | Y144: 198210 | Z144: 1982-10-19 | AA144: 9 | AB144: 1 | AC144: 1.00593 | AD144: 0.3852498036
A145: 130 | B145: 2017-10-09 | C145: 159.610001 | D145: 160.490005 | E145: 159.5 | F145: 160.119995 | G145: 2120000 | H145: 158.170456 | I145: =IF(F145=0,1,H145/F145) -> 0.9878245125 | J145: =INDEX(OFFSET($T$15,0,0,$S$13+1,1),MATCH(B145,OFFSET($Q$15,0,0,$S$13+1,1),-1)) -> 1 | K145: =ROUND($I145*C145,2) -> 157.67 | L145: =ROUND($I145*D145,2) -> 158.54 | M145: =ROUND($I145*E145,2) -> 157.56 | N145: =ROUND($I145*F145,2) -> 158.17 | O145: =G145*J145 -> 2120000 | U145: 1983-10-25 | V145: 0.00926 | W145: =(INDEX(OFFSET($F$15,1,0,$B$10,1),MATCH(U145,OFFSET($B$15,1,0,$B$10,1),-1))) -> 2.546296 | X145: =YEAR(U145)&RIGHT("0"&MONTH(U145),2) -> 198310 | Y145: =YEAR(U145)-1&RIGHT("0"&MONTH(U145),2) -> 198210 | Z145: =OFFSET(U144,AA145,0,1,1) -> 1982-10-19 | AA145: =MATCH(Y145,OFFSET($X$15,A145,0,$V$14+1-A145,1),-1) -> 8 | AB145: =IF(OR(AND(YEAR(U145)=YEAR(Z145),MONTH(U145)=MONTH(Z145)),MONTH(U145)=MONTH(Z145)),1,0) -> 1 | AC145: =(V145+IF(AA145-AB145=0,0,IFERROR(SUM(OFFSET(V145,1,0,AA145-AB145-1,1)),0))) -> 0.75593 | AD145: =AC145/(INDEX(OFFSET($F$15,1,0,$B$10,1),MATCH(U145,OFFSET($B$15,1,0,$B$10,1),-1))) -> 0.2968743618
A146: 131 | B146: 2017-10-06 | C146: 158.580002 | D146: 160.130005 | E146: 158.580002 | F146: 159.600006 | G146: 3548500 | H146: 157.656799 | I146: 0.987824518 | J146: 1 | K146: 156.65 | L146: 158.18 | M146: 156.65 | N146: 157.66 | O146: 3548500 | U146: 1983-07-19 | V146: 0.25 | W146: 2.388889 | X146: 198307 | Y146: 198207 | Z146: 1982-07-20 | AA146: 9 | AB146: 1 | AC146: 0.97482 | AD146: 0.4080641671
A147: 132 | B147: 2017-10-05 | C147: 157.300003 | D147: 158.919998 | E147: 157.300003 | F147: 158.800003 | G147: 2796000 | H147: 156.866531 | I147: 0.9878244839 | J147: 1 | K147: 155.38 | L147: 156.99 | M147: 155.38 | N147: 156.87 | O147: 2796000 | U147: 1983-07-15 | V147: 0.00926 | W147: 2.37037 | X147: 198307 | Y147: 198207 | Z147: 1982-07-20 | AA147: 8 | AB147: 1 | AC147: 0.72482 | AD147: 0.3057834853
A148: 133 | B148: 2017-10-04 | C148: 156.830002 | D148: 157.419998 | E148: 156.649994 | F148: 157.210007 | G148: 1823100 | H148: 155.295898 | I148: 0.9878245092 | J148: 1 | K148: 154.92 | L148: 155.5 | M148: 154.74 | N148: 155.3 | O148: 1823100 | U148: 1983-05-27 | V148: 0.25 | W148: 2.342592 | X148: 198305 | Y148: 198205 | Z148: 1982-05-26 | AA148: 9 | AB148: 1 | AC148: 1.02297 | AD148: 0.4366829563
A149: 134 | B149: 2017-10-03 | C149: 156.75 | D149: 157.460007 | E149: 156.360001 | F149: 156.860001 | G149: 2188400 | H149: 154.95015 | I149: 0.9878244869 | J149: 1 | K149: 154.84 | L149: 155.54 | M149: 154.46 | N149: 154.95 | O149: 2188400 | U149: 1983-05-24 | V149: 0.00926 | W149: 2.444444 | X149: 198305 | Y149: 198205 | Z149: 1982-05-26 | AA149: 8 | AB149: 1 | AC149: 0.77297 | AD149: 0.3162150575
A150: 135 | B150: 2017-10-02 | C150: 156 | D150: 157.179993 | E150: 155.800003 | F150: 156.960007 | G150: 2407000 | H150: 155.048935 | I150: 0.9878244654 | J150: 1 | K150: 154.1 | L150: 155.27 | M150: 153.9 | N150: 155.05 | O150: 2407000 | U150: 1983-01-26 | V150: 0.22 | W150: 2.087963 | X150: 198301 | Y150: 198201 | Z150: 1982-02-05 | AA150: 10 | AB150: 0 | AC150: 1.32729 | AD150: 0.6356865519
A151: 136 | B151: 2017-09-29 | C151: 157.509995 | D151: 158.039993 | E151: 156.119995 | F151: 156.679993 | G151: 3670100 | H151: 154.772339 | I151: 0.9878245208 | J151: 1 | K151: 155.59 | L151: 156.12 | M151: 154.22 | N151: 154.77 | O151: 3670100 | U151: 1983-01-24 | V151: 0.00815 | W151: 2.050926 | X151: 198301 | Y151: 198201 | Z151: 1982-02-05 | AA151: 9 | AB151: 0 | AC151: 1.10729 | AD151: 0.5398975877
A152: 137 | B152: 2017-09-28 | C152: 156.160004 | D152: 158.309998 | E152: 155.479996 | F152: 157.490005 | G152: 4210200 | H152: 155.572479 | I152: 0.9878244591 | J152: 1 | K152: 154.26 | L152: 156.38 | M152: 153.59 | N152: 155.57 | O152: 4210200 | U152: 1982-10-19 | V152: 0.22 | W152: 2.157408 | X152: 198210 | Y152: 198110 | Z152: 1981-10-29 | AA152: 9 | AB152: 1 | AC152: 1.09914 | AD152: 0.5094724781
A153: 138 | B153: 2017-09-27 | C153: 153.509995 | D153: 154.690002 | E153: 153.440002 | F153: 154.050003 | G153: 3915900 | H153: 152.174362 | I153: 0.9878244663 | J153: 1 | K153: 151.64 | L153: 152.81 | M153: 151.57 | N153: 152.17 | O153: 3915900 | U153: 1982-10-15 | V153: 0.00815 | W153: 2.125 | X153: 198210 | Y153: 198110 | Z153: 1981-10-29 | AA153: 8 | AB153: 1 | AC153: 0.87914 | AD153: 0.4137129412
A154: 139 | B154: 2017-09-26 | C154: 156.25 | D154: 156.839996 | E154: 153.270004 | F154: 153.350006 | G154: 6420000 | H154: 151.482895 | I154: 0.987824513 | J154: 1 | K154: 154.35 | L154: 154.93 | M154: 151.4 | N154: 151.48 | O154: 6420000 | U154: 1982-07-20 | V154: 0.00741 | W154: 1.888889 | X154: 198207 | Y154: 198107 | Z154: 1981-07-30 | AA154: 9 | AB154: 1 | AC154: 1.12716 | AD154: 0.5967317296
A155: 140 | B155: 2017-09-25 | C155: 158.470001 | D155: 158.690002 | E155: 156.100006 | F155: 156.259995 | G155: 3661500 | H155: 154.357452 | I155: 0.9878245036 | J155: 1 | K155: 156.54 | L155: 156.76 | M155: 154.2 | N155: 154.36 | O155: 3661500 | U155: 1982-07-19 | V155: 0.3 | W155: 1.888889 | X155: 198207 | Y155: 198107 | Z155: 1981-07-30 | AA155: 8 | AB155: 1 | AC155: 1.11975 | AD155: 0.5928087887
A156: 141 | B156: 2017-09-22 | C156: 158.880005 | D156: 159.740005 | E156: 158.559998 | F156: 158.910004 | G156: 2442700 | H156: 156.975204 | I156: 0.9878245551 | J156: 1 | K156: 156.95 | L156: 157.8 | M156: 156.63 | N156: 156.98 | O156: 2442700 | U156: 1982-05-26 | V156: 0.3 | W156: 1.626543 | X156: 198205 | Y156: 198105 | Z156: 1981-05-15 | AA156: 9 | AB156: 1 | AC156: 1.07592 | AD156: 0.661476518
A157: 142 | B157: 2017-09-21 | C157: 159.869995 | D157: 160.089996 | E157: 158.509995 | F157: 159.029999 | G157: 2503400 | H157: 157.093735 | I157: 0.9878245362 | J157: 1 | K157: 157.92 | L157: 158.14 | M157: 156.58 | N157: 157.09 | O157: 2503400 | U157: 1982-05-24 | V157: 0.00741 | W157: 1.648148 | X157: 198205 | Y157: 198105 | Z157: 1981-05-15 | AA157: 8 | AB157: 1 | AC157: 0.77592 | AD157: 0.4707829637
A158: 143 | B158: 2017-09-20 | C158: 157.899994 | D158: 159.889999 | E158: 157.759995 | F158: 159.880005 | G158: 3641100 | H158: 157.93338 | I158: 0.9878244625 | J158: 1 | K158: 155.98 | L158: 157.94 | M158: 155.84 | N158: 157.93 | O158: 3641100 | U158: 1982-02-09 | V158: 0.25 | W158: 1.487654 | X158: 198202 | Y158: 198102 | Z158: 1981-02-27 | AA158: 9 | AB158: 1 | AC158: 1.02468 | AD158: 0.6887891943
A159: 144 | B159: 2017-09-19 | C159: 157.270004 | D159: 157.899994 | E159: 156.330002 | F159: 157.429993 | G159: 3554600 | H159: 155.513214 | I159: 0.9878245628 | J159: 1 | K159: 155.36 | L159: 155.98 | M159: 154.43 | N159: 155.51 | O159: 3554600 | U159: 1982-02-05 | V159: 0.00617 | W159: 1.580247 | X159: 198202 | Y159: 198102 | Z159: 1981-02-27 | AA159: 8 | AB159: 1 | AC159: 0.77468 | AD159: 0.4902271607
A160: 145 | B160: 2017-09-18 | C160: 157.720001 | D160: 157.789993 | E160: 156.350006 | F160: 156.679993 | G160: 3831900 | H160: 154.772339 | I160: 0.9878245208 | J160: 1 | K160: 155.8 | L160: 155.87 | M160: 154.45 | N160: 154.77 | O160: 3831900 | U160: 1981-10-29 | V160: 0.25 | W160: 1.67284 | X160: 198110 | Y160: 198010 | Z160: 1980-10-29 | AA160: 9 | AB160: 1 | AC160: 0.97345 | AD160: 0.5819145884
A161: 146 | B161: 2017-09-15 | C161: 157.789993 | D161: 158 | E161: 156.880005 | F161: 156.919998 | G161: 7425100 | H161: 155.00943 | I161: 0.9878245729 | J161: 1 | K161: 155.87 | L161: 156.08 | M161: 154.97 | N161: 155.01 | O161: 7425100 | U161: 1981-10-27 | V161: 0.00617 | W161: 1.67284 | X161: 198110 | Y161: 198010 | Z161: 1980-10-29 | AA161: 8 | AB161: 1 | AC161: 0.72345 | AD161: 0.432468138
A162: 147 | B162: 2017-09-14 | C162: 157 | D162: 157.350006 | E162: 156.050003 | F162: 157 | G162: 3109700 | H162: 155.088455 | I162: 0.9878245541 | J162: 1 | K162: 155.09 | L162: 155.43 | M162: 154.15 | N162: 155.09 | O162: 3109700 | U162: 1981-07-30 | V162: 0.25 | W162: 1.512346 | X162: 198107 | Y162: 198007 | Z162: 1980-07-28 | AA162: 9 | AB162: 1 | AC162: 0.92222 | AD162: 0.6097943196
A163: 148 | B163: 2017-09-13 | C163: 156.740005 | D163: 157.779999 | E163: 156 | F163: 157 | G163: 4705600 | H163: 155.088455 | I163: 0.9878245541 | J163: 1 | K163: 154.83 | L163: 155.86 | M163: 154.1 | N163: 155.09 | O163: 4705600 | U163: 1981-07-28 | V163: 0.00617 | W163: 1.5 | X163: 198107 | Y163: 198007 | Z163: 1980-07-28 | AA163: 8 | AB163: 1 | AC163: 0.67222 | AD163: 0.4481466667
A164: 149 | B164: 2017-09-12 | C164: 160.210007 | D164: 160.720001 | E164: 155.770004 | F164: 156.330002 | G164: 10324100 | H164: 154.426605 | I164: 0.9878244932 | J164: 1 | K164: 158.26 | L164: 158.76 | M164: 153.87 | N164: 154.43 | O164: 10324100 | U164: 1981-05-15 | V164: 0.25 | W164: 1.537037 | X164: 198105 | Y164: 198005 | Z164: 1980-06-05 | AA164: 10 | AB164: 0 | AC164: 1.07593 | AD164: 0.7000026675
A165: 150 | B165: 2017-09-11 | C165: 160 | D165: 161.720001 | E165: 159.919998 | F165: 161.529999 | G165: 2333600 | H165: 159.563293 | I165: 0.9878245155 | J165: 1 | K165: 158.05 | L165: 159.75 | M165: 157.97 | N165: 159.56 | O165: 2333600 | U165: 1981-05-13 | V165: 0.00617 | W165: 1.493827 | X165: 198105 | Y165: 198005 | Z165: 1980-06-05 | AA165: 9 | AB165: 0 | AC165: 0.82593 | AD165: 0.5528953487
A166: 151 | B166: 2017-09-08 | C166: 159.529999 | D166: 160.380005 | E166: 159.179993 | F166: 159.710007 | G166: 2984200 | H166: 157.765457 | I166: 0.9878244949 | J166: 1 | K166: 157.59 | L166: 158.43 | M166: 157.24 | N166: 157.77 | O166: 2984200 | U166: 1981-02-27 | V166: 0.2 | W166: 1.469136 | X166: 198102 | Y166: 198002 | Z166: 1980-02-27 | AA166: 9 | AB166: 1 | AC166: 0.81976 | AD166: 0.5579878241
A167: 152 | B167: 2017-09-07 | C167: 158.470001 | D167: 160.070007 | E167: 158.330002 | F167: 159.899994 | G167: 2965400 | H167: 157.953125 | I167: 0.9878244586 | J167: 1 | K167: 156.54 | L167: 158.12 | M167: 156.4 | N167: 157.95 | O167: 2965400 | U167: 1981-02-24 | V167: 0.00494 | W167: 1.398148 | X167: 198102 | Y167: 198002 | Z167: 1980-02-27 | AA167: 8 | AB167: 1 | AC167: 0.61976 | AD167: 0.4432720999
A168: 153 | B168: 2017-09-06 | C168: 159.229996 | D168: 159.369995 | E168: 158.220001 | F168: 158.220001 | G168: 4143300 | H168: 156.293594 | I168: 0.9878245039 | J168: 1 | K168: 157.29 | L168: 157.43 | M168: 156.29 | N168: 156.29 | O168: 4143300 | U168: 1980-10-29 | V168: 0.2 | W168: 1.089506 | X168: 198010 | Y168: 197910 | Z168: 1979-10-26 | AA168: 9 | AB168: 1 | AC168: 0.75828 | AD168: 0.6959851529
A169: 154 | B169: 2017-09-05 | C169: 159 | D169: 159.779999 | E169: 158.070007 | F169: 159.100006 | G169: 4000500 | H169: 157.162888 | I169: 0.9878245259 | J169: 1 | K169: 157.06 | L169: 157.83 | M169: 156.15 | N169: 157.16 | O169: 4000500 | U169: 1980-10-27 | V169: 0.00494 | W169: 1.098765 | X169: 198010 | Y169: 197910 | Z169: 1979-10-26 | AA169: 8 | AB169: 1 | AC169: 0.55828 | AD169: 0.5080977279
A170: 155 | B170: 2017-09-01 | C170: 159.869995 | D170: 160.199997 | E170: 159.5 | F170: 159.809998 | G170: 1878300 | H170: 157.864227 | I170: 0.9878244727 | J170: 1 | K170: 157.92 | L170: 158.25 | M170: 157.56 | N170: 157.86 | O170: 1878300 | U170: 1980-07-28 | V170: 0.2 | W170: 1.123457 | X170: 198007 | Y170: 197907 | Z170: 1979-07-26 | AA170: 8 | AB170: 1 | AC170: 0.5568 | AD170: 0.4956130942
A171: 156 | B171: 2017-08-31 | C171: 159.770004 | D171: 160 | E171: 159.350006 | F171: 159.970001 | G171: 2717000 | H171: 158.022293 | I171: 0.9878245422 | J171: 1 | K171: 157.82 | L171: 158.05 | M171: 157.41 | N171: 158.02 | O171: 2717000 | U171: 1980-07-24 | V171: 0.00494 | W171: 1.141975 | X171: 198007 | Y171: 197907 | Z171: 1979-07-26 | AA171: 7 | AB171: 1 | AC171: 0.3568 | AD171: 0.3124411655
A172: 157 | B172: 2017-08-30 | C172: 158.399994 | D172: 159.639999 | E172: 158.320007 | F172: 159.529999 | G172: 2236500 | H172: 157.587646 | I172: 0.9878245282 | J172: 1 | K172: 156.47 | L172: 157.7 | M172: 156.39 | N172: 157.59 | O172: 2236500 | U172: 1980-06-09 | V172: 0.2 | W172: 1.182099 | X172: 198006 | Y172: 197906 | Z172: 1979-07-26 | AA172: 6 | AB172: 0 | AC172: 0.35532 | AD172: 0.3005839612
A173: 158 | B173: 2017-08-29 | C173: 159.199997 | D173: 159.759995 | E173: 158.729996 | F173: 159.380005 | G173: 3283400 | H173: 156.51091 | I173: 0.9819984006 | J173: 1 | K173: 156.33 | L173: 156.88 | M173: 155.87 | N173: 156.51 | O173: 3283400 | U173: 1980-06-05 | V173: 0.00494 | W173: 1.157407 | X173: 198006 | Y173: 197906 | Z173: 1979-07-26 | AA173: 5 | AB173: 0 | AC173: 0.15532 | AD173: 0.1341965272
A174: 159 | B174: 2017-08-28 | C174: 159.039993 | D174: 159.960007 | E174: 158.660004 | F174: 159.669998 | G174: 2027300 | H174: 156.7957 | I174: 0.9819985092 | J174: 1 | K174: 156.18 | L174: 157.08 | M174: 155.8 | N174: 156.8 | O174: 2027300 | U174: 1980-02-27 | V174: 0.14 | W174: 0.962963 | X174: 198002 | Y174: 197902 | Z174: 1979-02-14 | AA174: 6 | AB174: 1 | AC174: 0.15384 | AD174: 0.1597569169
A175: 160 | B175: 2017-08-25 | C175: 158.889999 | D175: 159.339996 | E175: 158.529999 | F175: 158.820007 | G175: 2019600 | H175: 155.960999 | I175: 0.9819984393 | J175: 1 | K175: 156.03 | L175: 156.47 | M175: 155.68 | N175: 155.96 | O175: 2019600 | U175: 1980-02-25 | V175: 0.00346 | W175: 1 | X175: 198002 | Y175: 197902 | Z175: 1979-02-14 | AA175: 5 | AB175: 1 | AC175: 0.01384 | AD175: 0.01384
A176: 161 | B176: 2017-08-24 | C176: 159.110001 | D176: 159.679993 | E176: 158.330002 | F176: 158.410004 | G176: 1634800 | H176: 155.55838 | I176: 0.9819984601 | J176: 1 | K176: 156.25 | L176: 156.81 | M176: 155.48 | N176: 155.56 | O176: 1634800 | U176: 1979-10-26 | V176: 0.00346 | W176: 1.080247 | X176: 197910 | Y176: 197810 | Z176: 1978-10-26 | AA176: 5 | AB176: 1 | AC176: 0.0126 | AD176: 0.01166399907
A177: 162 | B177: 2017-08-23 | C177: 159.300003 | D177: 159.369995 | E177: 158.380005 | F177: 158.809998 | G177: 2190700 | H177: 155.951172 | I177: 0.9819984508 | J177: 1 | K177: 156.43 | L177: 156.5 | M177: 155.53 | N177: 155.95 | O177: 2190700 | U177: 1979-07-26 | V177: 0.00346 | W177: 1.141975 | X177: 197907 | Y177: 197807 | Z177: 1978-07-19 | AA177: 5 | AB177: 1 | AC177: 0.01136 | AD177: 0.009947678364
A178: 163 | B178: 2017-08-22 | C178: 158.5 | D178: 159.940002 | E178: 158.389999 | F178: 159.639999 | G178: 2122600 | H178: 156.76622 | I178: 0.9819983775 | J178: 1 | K178: 155.65 | L178: 157.06 | M178: 155.54 | N178: 156.77 | O178: 2122600 | U178: 1979-05-21 | V178: 0.00346 | W178: 1.07716 | X178: 197905 | Y178: 197805 | Z178: 1978-05-16 | AA178: 5 | AB178: 1 | AC178: 0.01012 | AD178: 0.00939507594
A179: 164 | B179: 2017-08-21 | C179: 158.169998 | D179: 158.639999 | E179: 157.539993 | F179: 158.360001 | G179: 2195100 | H179: 155.509262 | I179: 0.9819983646 | J179: 1 | K179: 155.32 | L179: 155.78 | M179: 154.7 | N179: 155.51 | O179: 2195100 | U179: 1979-02-14 | V179: 0.00222 | W179: 1.037037 | X179: 197902 | Y179: 197802 | Z179: 1978-02-14 | AA179: 5 | AB179: 1 | AC179: 0.00888 | AD179: 0.008562857449
A180: 165 | B180: 2017-08-18 | C180: 157.990005 | D180: 158.279999 | E180: 157.020004 | F180: 157.759995 | G180: 2595700 | H180: 154.920059 | I180: 0.9819983767 | J180: 1 | K180: 155.15 | L180: 155.43 | M180: 154.19 | N180: 154.92 | O180: 2595700 | U180: 1978-10-26 | V180: 0.00222 | W180: 1.185185 | X180: 197810 | Y180: 197710 | Z180: 1977-10-18 | AA180: 5 | AB180: 1 | AC180: 0.00789 | AD180: 0.00665718854
A181: 166 | B181: 2017-08-17 | C181: 158.75 | D181: 159.529999 | E181: 157.809998 | F181: 157.889999 | G181: 3071600 | H181: 155.047729 | I181: 0.9819984165 | J181: 1 | K181: 155.89 | L181: 156.66 | M181: 154.97 | N181: 155.05 | O181: 3071600 | U181: 1978-07-19 | V181: 0.00222 | W181: 1.354938 | X181: 197807 | Y181: 197707 | Z181: 1977-07-19 | AA181: 5 | AB181: 1 | AC181: 0.0069 | AD181: 0.005092483937
A182: 167 | B182: 2017-08-16 | C182: 157.889999 | D182: 159.380005 | E182: 157.600006 | F182: 158.899994 | G182: 2921800 | H182: 156.039551 | I182: 0.9819984701 | J182: 1 | K182: 155.05 | L182: 156.51 | M182: 154.76 | N182: 156.04 | O182: 2921800 | U182: 1978-05-16 | V182: 0.00222 | W182: 1.290123 | X182: 197805 | Y182: 197705 | Z182: 1977-05-12 | AA182: 5 | AB182: 1 | AC182: 0.00591 | AD182: 0.00458095856
A183: 168 | B183: 2017-08-15 | C183: 157.839996 | D183: 158.580002 | E183: 157.339996 | F183: 157.619995 | G183: 2160100 | H183: 154.782593 | I183: 0.9819984641 | J183: 1 | K183: 155 | L183: 155.73 | M183: 154.51 | N183: 154.78 | O183: 2160100 | U183: 1978-02-14 | V183: 0.00123 | W183: 1.117284 | X183: 197802 | Y183: 197702 | Z183: 1977-02-14 | AA183: 5 | AB183: 1 | AC183: 0.00492 | AD183: 0.004403535717
A184: 169 | B184: 2017-08-14 | C184: 157.449997 | D184: 157.899994 | E184: 156.460007 | F184: 157.259995 | G184: 2798000 | H184: 154.429077 | I184: 0.981998486 | J184: 1 | K184: 154.62 | L184: 155.06 | M184: 153.64 | N184: 154.43 | O184: 2798000 | U184: 1977-10-18 | V184: 0.00123 | W184: 1.135803 | X184: 197710 | Y184: 197610 | Z184: 1976-10-21 | AA184: 5 | AB184: 1 | AC184: 0.00431 | AD184: 0.003794672139
A185: 170 | B185: 2017-08-11 | C185: 156.880005 | D185: 158.399994 | E185: 156.630005 | F185: 157.300003 | G185: 2925000 | H185: 154.468353 | I185: 0.981998411 | J185: 1 | K185: 154.06 | L185: 155.55 | M185: 153.81 | N185: 154.47 | O185: 2925000 | U185: 1977-07-19 | V185: 0.00123 | W185: 1.219136 | X185: 197707 | Y185: 197607 | Z185: 1976-07-16 | AA185: 5 | AB185: 1 | AC185: 0.0037 | AD185: 0.003034936217
A186: 171 | B186: 2017-08-10 | C186: 154.330002 | D186: 157.199997 | E186: 154.25 | F186: 156.619995 | G186: 3874500 | H186: 153.800583 | I186: 0.9819983904 | J186: 1 | K186: 151.55 | L186: 154.37 | M186: 151.47 | N186: 153.8 | O186: 3874500 | U186: 1977-05-12 | V186: 0.00123 | W186: 1.024691 | X186: 197705 | Y186: 197605 | Z186: 1976-05-10 | AA186: 5 | AB186: 1 | AC186: 0.00309 | AD186: 0.003015543222
A187: 172 | B187: 2017-08-09 | C187: 155.300003 | D187: 155.679993 | E187: 154.350006 | F187: 154.919998 | G187: 3006500 | H187: 152.131195 | I187: 0.9819984312 | J187: 1 | K187: 152.5 | L187: 152.88 | M187: 151.57 | N187: 152.13 | O187: 3006500 | U187: 1977-02-14 | V187: 0.00062 | W187: 1.138889 | X187: 197702 | Y187: 197602 | Z187: 1976-05-10 | AA187: 4 | AB187: 0 | AC187: 0.00248 | AD187: 0.002177560763
A188: 173 | B188: 2017-08-08 | C188: 154.669998 | D188: 155.25 | E188: 154.100006 | F188: 154.919998 | G188: 4234300 | H188: 152.131195 | I188: 0.9819984312 | J188: 1 | K188: 151.89 | L188: 152.46 | M188: 151.33 | N188: 152.13 | O188: 4234300 | U188: 1976-10-21 | V188: 0.00062 | W188: 1.253086 | X188: 197610 | Y188: 197510 | Z188: 1976-05-10 | AA188: 3 | AB188: 0 | AC188: 0.00186 | AD188: 0.001484335473
A189: 174 | B189: 2017-08-07 | C189: 154.139999 | D189: 155.389999 | E189: 154 | F189: 154.970001 | G189: 3252100 | H189: 152.180298 | I189: 0.9819984321 | J189: 1 | K189: 151.37 | L189: 152.59 | M189: 151.23 | N189: 152.18 | O189: 3252100 | U189: 1976-07-16 | V189: 0.00062 | W189: 1.475309 | X189: 197607 | Y189: 197507 | Z189: 1976-05-10 | AA189: 2 | AB189: 0 | AC189: 0.00124 | AD189: 0.0008405018881
A190: 175 | B190: 2017-08-04 | C190: 154.610001 | D190: 154.820007 | E190: 153.229996 | F190: 153.820007 | G190: 4435400 | H190: 151.05101 | I190: 0.9819984601 | J190: 1 | K190: 151.83 | L190: 152.03 | M190: 150.47 | N190: 151.05 | O190: 4435400 | U190: 1976-05-10 | V190: 0.00062 | W190: 1.555556 | X190: 197605 | Y190: 197505 | Z190: 1976-05-10 | AA190: 1 | AB190: 1 | AC190: 0.00062 | AD190: 0.0003985713147
A191: 176 | B191: 2017-08-03 | C191: 156.559998 | D191: 156.770004 | E191: 154.410004 | F191: 154.720001 | G191: 3666100 | H191: 151.934784 | I191: 0.9819983391 | J191: 1 | K191: 153.74 | L191: 153.95 | M191: 151.63 | N191: 151.93 | O191: 3666100
A192: 177 | B192: 2017-08-02 | C192: 153.759995 | D192: 156.649994 | E192: 153.710007 | F192: 156.589996 | G192: 3326000 | H192: 153.771133 | I192: 0.9819984477 | J192: 1 | K192: 150.99 | L192: 153.83 | M192: 150.94 | N192: 153.77 | O192: 3326000
A193: 178 | B193: 2017-08-01 | C193: 154.979996 | D193: 155.899994 | E193: 153.710007 | F193: 154.039993 | G193: 4185100 | H193: 151.267029 | I193: 0.9819984152 | J193: 1 | K193: 152.19 | L193: 153.09 | M193: 150.94 | N193: 151.27 | O193: 4185100
A194: 179 | B194: 2017-07-31 | C194: 155.919998 | D194: 156.419998 | E194: 154.850006 | F194: 155.139999 | G194: 4272400 | H194: 152.347229 | I194: 0.9819983884 | J194: 1 | K194: 153.11 | L194: 153.6 | M194: 152.06 | N194: 152.35 | O194: 4272400
A195: 180 | B195: 2017-07-28 | C195: 156.360001 | D195: 156.660004 | E195: 155.070007 | F195: 155.850006 | G195: 3964500 | H195: 153.044449 | I195: 0.9819983517 | J195: 1 | K195: 153.55 | L195: 153.84 | M195: 152.28 | N195: 153.04 | O195: 3964500
A196: 181 | B196: 2017-07-27 | C196: 156.419998 | D196: 157.429993 | E196: 155.539993 | F196: 156.949997 | G196: 4624100 | H196: 154.124664 | I196: 0.9819985151 | J196: 1 | K196: 153.6 | L196: 154.6 | M196: 152.74 | N196: 154.12 | O196: 4624100
A197: 182 | B197: 2017-07-26 | C197: 158.759995 | D197: 159 | E197: 155.679993 | F197: 156.509995 | G197: 4679000 | H197: 153.692581 | I197: 0.9819985043 | J197: 1 | K197: 155.9 | L197: 156.14 | M197: 152.88 | N197: 153.69 | O197: 4679000
A198: 183 | B198: 2017-07-25 | C198: 157.75 | D198: 159.979996 | E198: 156.539993 | F198: 159.070007 | G198: 9511400 | H198: 156.206497 | I198: 0.9819984292 | J198: 1 | K198: 154.91 | L198: 157.1 | M198: 153.72 | N198: 156.21 | O198: 9511400
A199: 184 | B199: 2017-07-24 | C199: 154 | D199: 154.220001 | E199: 151.770004 | F199: 151.850006 | G199: 5307400 | H199: 149.11647 | I199: 0.9819984465 | J199: 1 | K199: 151.23 | L199: 151.44 | M199: 149.04 | N199: 149.12 | O199: 5307400
A200: 185 | B200: 2017-07-21 | C200: 154.059998 | D200: 154.699997 | E200: 153.289993 | F200: 153.919998 | G200: 3522400 | H200: 151.1492 | I200: 0.9819984535 | J200: 1 | K200: 151.29 | L200: 151.92 | M200: 150.53 | N200: 151.15 | O200: 3522400
... 4300 more rows

Sheet InputIndexData
A1: SPDR S&P 500 ETF (SPY) -NYSEArca (Daily)
F2: Market State == > | G2: As of | H2: 14:57:00 | I2: EDT. Market open. | IJ2: 241.79
A3: Request Online Yahoo History for Index:
A4: Symbol | B4: SPY | D4: Valid | I4: =OFFSET(I4,-2,0,1,1) -> EDT. Market open.
A5: From | B5: 1950-01-01 | D5: Data | AF5: Trailing 12 Div return (Cur Close)
A6: To | B6: =NOW() -> 2018-04-16T15:16:52.680 | D6: Types | E6: =VLOOKUP(B7,D7:E10,2,FALSE) -> d
A7: Data Type | B7: Daily | D7: Daily | E7: d
B8: dbtX2VDkalH | D8: Weekly | E8: w
A9: Available Data | D9: Monthly | E9: m
A10: Bar Count: | B10: 6349 | AF10: =OFFSET(AC15,1,0,1,1)/OFFSET(N15,1,0,1,1) -> 0.01818249757
A11: From: | B11: =IF(B10<=0,"",OFFSET(B15,B10,IF(HistReqDataType="v",1,0),1,1)) -> 1993-01-29 | W11: Trailing 12 Month Dividend Returns
A12: To: | B12: =IF(B10<=0,"",IF(HistReqDataType="v",OFFSET(B15,2,1,1,1),OFFSET(B15,1,0,1,1))) -> 2018-04-16 | W12: Raw Close price on Dividend date | X12: Div Year and Month | Y12: Looking for year ago Div Year and Month | Z12: Year ago Div Date we found | AA12: row offset to year ago div Date | AB12: Same month flag | AC12: Trailing 12 Div Total | AD12: Trailing 12 Div return
Q13: Split History | S13: 0 | T13: Running | U13: Dividend History
B14: Raw Data Values | H14: Adjusted | I14: Price Adjust | J14: Vol Adjust | K14: Adjusted Values | P14: Last | Q14: Effective | R14: Shares | T14: Vol Adjust | V14: 105
A15: RelRow | B15: Date | C15: Open | D15: High | E15: Low | F15: Close | G15: Volume | H15: Close | I15: Factor | J15: Factor | K15: Open | L15: High | M15: Low | N15: Close | O15: Volume | P15: Trade | Q15: 43207 | R15: New | S15: Old | T15: 1 | U15: Date | V15: $ / Share
A16: 1 | B16: 2018-04-16 | C16: 267 | D16: 268.190002 | E16: 266.079987 | F16: 267.619995 | G16: 39046426 | H16: 267.619995 | I16: =IF(F16=0,1,H16/F16) -> 1 | J16: =INDEX(OFFSET($T$15,0,0,$S$13+1,1),MATCH(B16,OFFSET($Q$15,0,0,$S$13+1,1),-1)) -> 1 | K16: =ROUND($I16*C16,2) -> 267 | L16: =ROUND($I16*D16,2) -> 268.19 | M16: 266.08 | N16: 267.62 | O16: =G16*J16 -> 39046426 | U16: 2018-03-16 | V16: 1.097 | W16: =(INDEX(OFFSET($F$15,1,0,$B$10,1),MATCH(U16,OFFSET($B$15,1,0,$B$10,1),-1))) -> 274.200012 | X16: =YEAR(U16)&RIGHT("0"&MONTH(U16),2) -> 201803 | Y16: =YEAR(U16)-1&RIGHT("0"&MONTH(U16),2) -> 201703 | Z16: =OFFSET(U15,AA16,0,1,1) -> 2017-03-17 | AA16: =MATCH(Y16,OFFSET($X$15,A16,0,$V$14+1-A16,1),-1) -> 5 | AB16: =IF(OR(AND(YEAR(U16)=YEAR(Z16),MONTH(U16)=MONTH(Z16)),MONTH(U16)=MONTH(Z16)),1,0) -> 1 | AC16: =(V16+IF(AA16-AB16=0,0,IFERROR(SUM(OFFSET(V16,1,0,AA16-AB16-1,1)),0))) -> 4.866 | AD16: =AC16/(INDEX(OFFSET($F$15,1,0,$B$10,1),MATCH(U16,OFFSET($B$15,1,0,$B$10,1),-1))) -> 0.0177461699
A17: 2 | B17: 2018-04-13 | C17: 267.410004 | D17: 267.540009 | E17: 264.01001 | F17: 265.149994 | G17: 83341900 | H17: 265.149994 | I17: =IF(F17=0,1,H17/F17) -> 1 | J17: =INDEX(OFFSET($T$15,0,0,$S$13+1,1),MATCH(B17,OFFSET($Q$15,0,0,$S$13+1,1),-1)) -> 1 | K17: =ROUND($I17*C17,2) -> 267.41 | L17: =ROUND($I17*D17,2) -> 267.54 | M17: =ROUND($I17*E17,2) -> 264.01 | N17: =ROUND($I17*F17,2) -> 265.15 | O17: =G17*J17 -> 83341900 | U17: 2017-12-15 | V17: 1.351 | W17: =(INDEX(OFFSET($F$15,1,0,$B$10,1),MATCH(U17,OFFSET($B$15,1,0,$B$10,1),-1))) -> 266.51001 | X17: =YEAR(U17)&RIGHT("0"&MONTH(U17),2) -> 201712 | Y17: =YEAR(U17)-1&RIGHT("0"&MONTH(U17),2) -> 201612 | Z17: =OFFSET(U16,AA17,0,1,1) -> 2016-12-16 | AA17: =MATCH(Y17,OFFSET($X$15,A17,0,$V$14+1-A17,1),-1) -> 5 | AB17: =IF(OR(AND(YEAR(U17)=YEAR(Z17),MONTH(U17)=MONTH(Z17)),MONTH(U17)=MONTH(Z17)),1,0) -> 1 | AC17: =(V17+IF(AA17-AB17=0,0,IFERROR(SUM(OFFSET(V17,1,0,AA17-AB17-1,1)),0))) -> 4.802 | AD17: =AC17/(INDEX(OFFSET($F$15,1,0,$B$10,1),MATCH(U17,OFFSET($B$15,1,0,$B$10,1),-1))) -> 0.01801808495
A18: 3 | B18: 2018-04-12 | C18: 265.26001 | D18: 267 | E18: 265.059998 | F18: 265.929993 | G18: 68890500 | H18: 265.929993 | I18: 1 | J18: 1 | K18: 265.26 | L18: 267 | M18: 265.06 | N18: 265.93 | O18: 68890500 | U18: 2017-09-15 | V18: 1.235 | W18: 249.190002 | X18: 201709 | Y18: 201609 | Z18: 2016-09-16 | AA18: 5 | AB18: 1 | AC18: 4.78 | AD18: 0.01918215001
A19: 4 | B19: 2018-04-11 | C19: 263.470001 | D19: 265.640015 | E19: 263.390015 | F19: 263.76001 | G19: 91140200 | H19: 263.76001 | I19: 1 | J19: 1 | K19: 263.47 | L19: 265.64 | M19: 263.39 | N19: 263.76 | O19: 91140200 | U19: 2017-06-16 | V19: 1.183 | W19: 242.639999 | X19: 201706 | Y19: 201606 | Z19: 2016-06-17 | AA19: 5 | AB19: 1 | AC19: 4.62707 | AD19: 0.0190696918
A20: 5 | B20: 2018-04-10 | C20: 264.269989 | D20: 266.040009 | E20: 262.980011 | F20: 265.149994 | G20: 103529000 | H20: 265.149994 | I20: 1 | J20: 1 | K20: 264.27 | L20: 266.04 | M20: 262.98 | N20: 265.15 | O20: 103529000 | U20: 2017-03-17 | V20: 1.033 | W20: 237.029999 | X20: 201703 | Y20: 201603 | Z20: 2016-03-18 | AA20: 5 | AB20: 1 | AC20: 4.52207 | AD20: 0.01907804927
A21: 6 | B21: 2018-04-09 | C21: 261.369995 | D21: 264.839996 | E21: 259.940002 | F21: 261 | G21: 105442900 | H21: 261 | I21: 1 | J21: 1 | K21: 261.37 | L21: 264.84 | M21: 259.94 | N21: 261 | O21: 105442900 | U21: 2016-12-16 | V21: 1.329 | W21: 225.039993 | X21: 201612 | Y21: 201512 | Z21: 2015-12-18 | AA21: 5 | AB21: 1 | AC21: 4.53907 | AD21: 0.02017005928
A22: 7 | B22: 2018-04-06 | C22: 263.420013 | D22: 265.109985 | E22: 258 | F22: 259.720001 | G22: 179521200 | H22: 259.720001 | I22: 1 | J22: 1 | K22: 263.42 | L22: 265.11 | M22: 258 | N22: 259.72 | O22: 179521200 | U22: 2016-09-16 | V22: 1.08207 | W22: 213.369995 | X22: 201609 | Y22: 201509 | Z22: 2015-09-18 | AA22: 5 | AB22: 1 | AC22: 4.42162 | AD22: 0.02072278251
A23: 8 | B23: 2018-04-05 | C23: 265.549988 | D23: 266.640015 | E23: 264.320007 | F23: 265.640015 | G23: 82652600 | H23: 265.640015 | I23: 1 | J23: 1 | K23: 265.55 | L23: 266.64 | M23: 264.32 | N23: 265.64 | O23: 82652600 | U23: 2016-06-17 | V23: 1.078 | W23: 206.520004 | X23: 201606 | Y23: 201506 | Z23: 2015-06-19 | AA23: 5 | AB23: 1 | AC23: 4.37255 | AD23: 0.02117252525
A24: 9 | B24: 2018-04-04 | C24: 256.75 | D24: 264.359985 | E24: 256.600006 | F24: 263.559998 | G24: 123715300 | H24: 263.559998 | I24: 1 | J24: 1 | K24: 256.75 | L24: 264.36 | M24: 256.6 | N24: 263.56 | O24: 123715300 | U24: 2016-03-18 | V24: 1.05 | W24: 204.380005 | X24: 201603 | Y24: 201503 | Z24: 2015-03-20 | AA24: 5 | AB24: 1 | AC24: 4.32455 | AD24: 0.0211593595
A25: 10 | B25: 2018-04-03 | C25: 258.869995 | D25: 261.309998 | E25: 256.839996 | F25: 260.769989 | G25: 119956900 | H25: 260.769989 | I25: 1 | J25: 1 | K25: 258.87 | L25: 261.31 | M25: 256.84 | N25: 260.77 | O25: 119956900 | U25: 2015-12-18 | V25: 1.21155 | W25: 200.020004 | X25: 201512 | Y25: 201412 | Z25: 2014-12-19 | AA25: 5 | AB25: 1 | AC25: 4.20555 | AD25: 0.02102564701
A26: 11 | B26: 2018-04-02 | C26: 262.549988 | D26: 263.130005 | E26: 254.669998 | F26: 257.470001 | G26: 186286300 | H26: 257.470001 | I26: 1 | J26: 1 | K26: 262.55 | L26: 263.13 | M26: 254.67 | N26: 257.47 | O26: 186286300 | U26: 2015-09-18 | V26: 1.033 | W26: 195.360001 | X26: 201509 | Y26: 201409 | Z26: 2014-09-19 | AA26: 5 | AB26: 1 | AC26: 4.12892 | AD26: 0.02113493028
A27: 12 | B27: 2018-03-29 | C27: 261.119995 | D27: 265.26001 | E27: 259.839996 | F27: 263.149994 | G27: 111601600 | H27: 263.149994 | I27: 1 | J27: 1 | K27: 261.12 | L27: 265.26 | M27: 259.84 | N27: 263.15 | O27: 111601600 | U27: 2015-06-19 | V27: 1.03 | W27: 210.809998 | X27: 201506 | Y27: 201406 | Z27: 2014-06-20 | AA27: 5 | AB27: 1 | AC27: 4.03511 | AD27: 0.01914098021
A28: 13 | B28: 2018-03-28 | C28: 260.75 | D28: 262.640015 | E28: 258.579987 | F28: 259.829987 | G28: 146452300 | H28: 259.829987 | I28: 1 | J28: 1 | K28: 260.75 | L28: 262.64 | M28: 258.58 | N28: 259.83 | O28: 146452300 | U28: 2015-03-20 | V28: 0.931 | W28: 210.410004 | X28: 201503 | Y28: 201403 | Z28: 2014-03-21 | AA28: 5 | AB28: 1 | AC28: 3.9418 | AD28: 0.01873390012
A29: 14 | B29: 2018-03-27 | C29: 266.170013 | D29: 266.769989 | E29: 258.839996 | F29: 260.600006 | G29: 129941400 | H29: 260.600006 | I29: 1 | J29: 1 | K29: 266.17 | L29: 266.77 | M29: 258.84 | N29: 260.6 | O29: 129941400 | U29: 2014-12-19 | V29: 1.13492 | W29: 206.520004 | X29: 201412 | Y29: 201312 | Z29: 2013-12-20 | AA29: 5 | AB29: 1 | AC29: 3.83541 | AD29: 0.01857161498
A30: 15 | B30: 2018-03-26 | C30: 262.130005 | D30: 265.429993 | E30: 259.410004 | F30: 265.109985 | G30: 141956100 | H30: 265.109985 | I30: 1 | J30: 1 | K30: 262.13 | L30: 265.43 | M30: 259.41 | N30: 265.11 | O30: 141956100 | U30: 2014-09-19 | V30: 0.93919 | W30: 200.699997 | X30: 201409 | Y30: 201309 | Z30: 2013-09-20 | AA30: 5 | AB30: 1 | AC30: 3.68074 | AD30: 0.01833951198
A31: 16 | B31: 2018-03-23 | C31: 264.170013 | D31: 264.540009 | E31: 257.829987 | F31: 258.049988 | G31: 183534800 | H31: 258.049988 | I31: 1 | J31: 1 | K31: 264.17 | L31: 264.54 | M31: 257.83 | N31: 258.05 | O31: 183534800 | U31: 2014-06-20 | V31: 0.93669 | W31: 195.940002 | X31: 201406 | Y31: 201306 | Z31: 2013-06-21 | AA31: 5 | AB31: 1 | AC31: 3.5795 | AD31: 0.01826834727
A32: 17 | B32: 2018-03-22 | C32: 267.910004 | D32: 268.869995 | E32: 263.359985 | F32: 263.670013 | G32: 148785900 | H32: 263.670013 | I32: 1 | J32: 1 | K32: 267.91 | L32: 268.87 | M32: 263.36 | N32: 263.67 | O32: 148785900 | U32: 2014-03-21 | V32: 0.82461 | W32: 186.199997 | X32: 201403 | Y32: 201303 | Z32: 2013-03-15 | AA32: 5 | AB32: 1 | AC32: 3.48181 | AD32: 0.01869930213
A33: 18 | B33: 2018-03-21 | C33: 270.899994 | D33: 273.269989 | E33: 270.190002 | F33: 270.429993 | G33: 78709600 | H33: 270.429993 | I33: 1 | J33: 1 | K33: 270.9 | L33: 273.27 | M33: 270.19 | N33: 270.43 | O33: 78709600 | U33: 2013-12-20 | V33: 0.98025 | W33: 181.559998 | X33: 201312 | Y33: 201212 | Z33: 2012-12-21 | AA33: 5 | AB33: 1 | AC33: 3.3512 | AD33: 0.01845781029
A34: 19 | B34: 2018-03-20 | C34: 270.940002 | D34: 271.670013 | E34: 270.179993 | F34: 270.950012 | G34: 59757300 | H34: 270.950012 | I34: 1 | J34: 1 | K34: 270.94 | L34: 271.67 | M34: 270.18 | N34: 270.95 | O34: 59757300 | U34: 2013-09-20 | V34: 0.83795 | W34: 170.720001 | X34: 201309 | Y34: 201209 | Z34: 2012-09-21 | AA34: 5 | AB34: 1 | AC34: 3.39295 | AD34: 0.01987435555
A35: 20 | B35: 2018-03-19 | C35: 273.350006 | D35: 274.399994 | E35: 268.619995 | F35: 270.48999 | G35: 109208400 | H35: 270.48999 | I35: 1 | J35: 1 | K35: 273.35 | L35: 274.4 | M35: 268.62 | N35: 270.49 | O35: 109208400 | U35: 2013-06-21 | V35: 0.839 | W35: 159.070007 | X35: 201306 | Y35: 201206 | Z35: 2012-06-15 | AA35: 5 | AB35: 1 | AC35: 3.334 | AD35: 0.02095932516
A36: 21 | B36: 2018-03-16 | C36: 274.5 | D36: 275.390015 | E36: 274.140015 | F36: 274.200012 | G36: 100343700 | H36: 274.200012 | I36: 1 | J36: 1 | K36: 274.5 | L36: 275.39 | M36: 274.14 | N36: 274.2 | O36: 100343700 | U36: 2013-03-15 | V36: 0.694 | W36: 155.830002 | X36: 201303 | Y36: 201203 | Z36: 2012-03-16 | AA36: 5 | AB36: 1 | AC36: 3.183 | AD36: 0.02042610511
A37: 22 | B37: 2018-03-15 | C37: 275.880005 | D37: 276.609985 | E37: 274.429993 | F37: 275 | G37: 83433000 | H37: 273.902985 | I37: 0.9960108545 | J37: 1 | K37: 274.78 | L37: 275.51 | M37: 273.34 | N37: 273.9 | O37: 83433000 | U37: 2012-12-21 | V37: 1.022 | W37: 142.789993 | X37: 201212 | Y37: 201112 | Z37: 2011-12-16 | AA37: 5 | AB37: 1 | AC37: 3.103 | AD37: 0.02173121474
A38: 23 | B38: 2018-03-14 | C38: 277.809998 | D38: 278.019989 | E38: 274.670013 | F38: 275.299988 | G38: 105895100 | H38: 274.201782 | I38: 0.9960108752 | J38: 1 | K38: 276.7 | L38: 276.91 | M38: 273.57 | N38: 274.2 | O38: 105895100 | U38: 2012-09-21 | V38: 0.779 | W38: 145.869995 | X38: 201209 | Y38: 201109 | Z38: 2011-09-16 | AA38: 5 | AB38: 1 | AC38: 2.851 | AD38: 0.01954480083
A39: 24 | B39: 2018-03-13 | C39: 279.839996 | D39: 280.410004 | E39: 276.029999 | F39: 276.720001 | G39: 91968900 | H39: 275.61615 | I39: 0.9960109461 | J39: 1 | K39: 278.72 | L39: 279.29 | M39: 274.93 | N39: 275.62 | O39: 91968900 | U39: 2012-06-15 | V39: 0.688 | W39: 134.139999 | X39: 201206 | Y39: 201106 | Z39: 2011-06-17 | AA39: 5 | AB39: 1 | AC39: 2.697 | AD39: 0.0201058597
A40: 25 | B40: 2018-03-12 | C40: 279.200012 | D40: 279.910004 | E40: 278.079987 | F40: 278.519989 | G40: 71924800 | H40: 277.408936 | I40: 0.996010868 | J40: 1 | K40: 278.09 | L40: 278.79 | M40: 276.97 | N40: 277.41 | O40: 71924800 | U40: 2012-03-16 | V40: 0.614 | W40: 140.300003 | X40: 201203 | Y40: 201103 | Z40: 2011-03-18 | AA40: 5 | AB40: 1 | AC40: 2.637 | AD40: 0.01879543794
A41: 26 | B41: 2018-03-09 | C41: 275.700012 | D41: 278.869995 | E41: 275.339996 | F41: 278.869995 | G41: 113625300 | H41: 277.757568 | I41: 0.9960109477 | J41: 1 | K41: 274.6 | L41: 277.76 | M41: 274.24 | N41: 277.76 | O41: 113625300 | U41: 2011-12-16 | V41: 0.77 | W41: 121.589996 | X41: 201112 | Y41: 201012 | Z41: 2010-12-17 | AA41: 5 | AB41: 1 | AC41: 2.576 | AD41: 0.02118595349
A42: 27 | B42: 2018-03-08 | C42: 273.549988 | D42: 274.23999 | E42: 272.420013 | F42: 274.100006 | G42: 66901200 | H42: 273.006592 | I42: 0.9960108939 | J42: 1 | K42: 272.46 | L42: 273.15 | M42: 271.33 | N42: 273.01 | O42: 66901200 | U42: 2011-09-16 | V42: 0.625 | W42: 121.519997 | X42: 201109 | Y42: 201009 | Z42: 2010-09-17 | AA42: 5 | AB42: 1 | AC42: 2.459 | AD42: 0.0202353527
A43: 28 | B43: 2018-03-07 | C43: 270.420013 | D43: 273.179993 | E43: 270.200012 | F43: 272.779999 | G43: 87063500 | H43: 271.691864 | I43: 0.9960109429 | J43: 1 | K43: 269.34 | L43: 272.09 | M43: 269.12 | N43: 271.69 | O43: 87063500 | U43: 2011-06-17 | V43: 0.628 | W43: 127.050003 | X43: 201106 | Y43: 201006 | Z43: 2010-06-18 | AA43: 5 | AB43: 1 | AC43: 2.436 | AD43: 0.01917355327
A44: 29 | B44: 2018-03-06 | C44: 273.299988 | D44: 273.390015 | E44: 271.179993 | F44: 272.880005 | G44: 79213200 | H44: 271.791473 | I44: 0.9960109499 | J44: 1 | K44: 272.21 | L44: 272.3 | M44: 270.1 | N44: 271.79 | O44: 79213200 | U44: 2011-03-18 | V44: 0.553 | W44: 127.760002 | X44: 201103 | Y44: 201003 | Z44: 2010-03-19 | AA44: 5 | AB44: 1 | AC44: 2.339 | AD44: 0.01830776427
A45: 30 | B45: 2018-03-05 | C45: 267.730011 | D45: 272.890015 | E45: 267.609985 | F45: 272.190002 | G45: 97307400 | H45: 271.104218 | I45: 0.9960109336 | J45: 1 | K45: 266.66 | L45: 271.8 | M45: 266.54 | N45: 271.1 | O45: 97307400 | U45: 2010-12-17 | V45: 0.653 | W45: 124.300003 | X45: 201012 | Y45: 200912 | Z45: 2009-12-18 | AA45: 5 | AB45: 1 | AC45: 2.266 | AD45: 0.01823008806
A46: 31 | B46: 2018-03-02 | C46: 265.799988 | D46: 269.720001 | E46: 264.820007 | F46: 269.079987 | G46: 139083200 | H46: 268.006592 | I46: 0.9960108702 | J46: 1 | K46: 264.74 | L46: 268.64 | M46: 263.76 | N46: 268.01 | O46: 139083200 | U46: 2010-09-17 | V46: 0.602 | W46: 112.489998 | X46: 201009 | Y46: 200909 | Z46: 2009-09-18 | AA46: 5 | AB46: 1 | AC46: 2.203 | AD46: 0.01958396337
A47: 32 | B47: 2018-03-01 | C47: 271.410004 | D47: 273.170013 | E47: 266 | F47: 267.700012 | G47: 176855100 | H47: 266.632141 | I47: 0.9960109415 | J47: 1 | K47: 270.33 | L47: 272.08 | M47: 264.94 | N47: 266.63 | O47: 176855100 | U47: 2010-06-18 | V47: 0.531 | W47: 111.730003 | X47: 201006 | Y47: 200906 | Z47: 2009-06-19 | AA47: 5 | AB47: 1 | AC47: 2.109 | AD47: 0.01887586094
A48: 33 | B48: 2018-02-28 | C48: 275.679993 | D48: 276.190002 | E48: 271.290009 | F48: 271.649994 | G48: 121907800 | H48: 270.566345 | I48: 0.9960108632 | J48: 1 | K48: 274.58 | L48: 275.09 | M48: 270.21 | N48: 270.57 | O48: 121907800 | U48: 2010-03-19 | V48: 0.48 | W48: 115.970001 | X48: 201003 | Y48: 200903 | Z48: 2009-03-20 | AA48: 5 | AB48: 1 | AC48: 2.096 | AD48: 0.01807363958
A49: 34 | B49: 2018-02-27 | C49: 278.109985 | D49: 278.920013 | E49: 274.359985 | F49: 274.429993 | G49: 99099200 | H49: 273.335266 | I49: 0.9960109061 | J49: 1 | K49: 277 | L49: 277.81 | M49: 273.27 | N49: 273.34 | O49: 99099200 | U49: 2009-12-18 | V49: 0.59 | W49: 110.209999 | X49: 200912 | Y49: 200812 | Z49: 2008-12-19 | AA49: 5 | AB49: 1 | AC49: 2.177 | AD49: 0.01975319862
A50: 35 | B50: 2018-02-26 | C50: 275.929993 | D50: 278.01001 | E50: 275.26001 | F50: 277.899994 | G50: 86491400 | H50: 276.791412 | I50: 0.9960108599 | J50: 1 | K50: 274.83 | L50: 276.9 | M50: 274.16 | N50: 276.79 | O50: 86491400 | U50: 2009-09-18 | V50: 0.508 | W50: 106.720001 | X50: 200909 | Y50: 200809 | Z50: 2008-09-19 | AA50: 5 | AB50: 1 | AC50: 2.306 | AD50: 0.02160794582
A51: 36 | B51: 2018-02-23 | C51: 271.790009 | D51: 274.709991 | E51: 271.25 | F51: 274.709991 | G51: 92766400 | H51: 273.614136 | I51: 0.9960108659 | J51: 1 | K51: 270.71 | L51: 273.61 | M51: 270.17 | N51: 273.61 | O51: 92766400 | U51: 2009-06-19 | V51: 0.518 | W51: 92.040001 | X51: 200906 | Y51: 200806 | Z51: 2008-06-20 | AA51: 5 | AB51: 1 | AC51: 2.489 | AD51: 0.02704258988
A52: 37 | B52: 2018-02-22 | C52: 271.100006 | D52: 273.049988 | E52: 269.640015 | F52: 270.399994 | G52: 110511300 | H52: 269.32135 | I52: 0.9960109319 | J52: 1 | K52: 270.02 | L52: 271.96 | M52: 268.56 | N52: 269.32 | O52: 110511300 | U52: 2009-03-20 | V52: 0.561 | W52: 76.709999 | X52: 200903 | Y52: 200803 | Z52: 2008-03-20 | AA52: 5 | AB52: 1 | AC52: 2.64 | AD52: 0.03441533091
A53: 38 | B53: 2018-02-21 | C53: 271.899994 | D53: 274.720001 | E53: 269.940002 | F53: 270.049988 | G53: 98883700 | H53: 268.972717 | I53: 0.996010846 | J53: 1 | K53: 270.82 | L53: 273.62 | M53: 268.86 | N53: 268.97 | O53: 98883700 | U53: 2008-12-19 | V53: 0.719 | W53: 88.190002 | X53: 200812 | Y53: 200712 | Z53: 2007-12-21 | AA53: 5 | AB53: 1 | AC53: 2.721 | AD53: 0.0308538376
A54: 39 | B54: 2018-02-20 | C54: 272.029999 | D54: 273.670013 | E54: 270.5 | F54: 271.399994 | G54: 86369700 | H54: 270.317352 | I54: 0.996010899 | J54: 1 | K54: 270.94 | L54: 272.58 | M54: 269.42 | N54: 270.32 | O54: 86369700 | U54: 2008-09-19 | V54: 0.691 | W54: 124.120003 | X54: 200809 | Y54: 200709 | Z54: 2007-09-21 | AA54: 5 | AB54: 1 | AC54: 2.777 | AD54: 0.02237350897
A55: 40 | B55: 2018-02-16 | C55: 272.320007 | D55: 275.320007 | E55: 272.269989 | F55: 273.109985 | G55: 160420100 | H55: 272.020508 | I55: 0.9960108489 | J55: 1 | K55: 271.23 | L55: 274.22 | M55: 271.18 | N55: 272.02 | O55: 160420100 | U55: 2008-06-20 | V55: 0.669 | W55: 131.580002 | X55: 200806 | Y55: 200706 | Z55: 2007-06-15 | AA55: 5 | AB55: 1 | AC55: 2.805 | AD55: 0.02131782913
A56: 41 | B56: 2018-02-15 | C56: 271.570007 | D56: 273.040009 | E56: 268.769989 | F56: 273.029999 | G56: 111200300 | H56: 271.940857 | I56: 0.9960109072 | J56: 1 | K56: 270.49 | L56: 271.95 | M56: 267.7 | N56: 271.94 | O56: 111200300 | U56: 2008-03-20 | V56: 0.642 | W56: 132.080002 | X56: 200803 | Y56: 200703 | Z56: 2007-03-16 | AA56: 5 | AB56: 1 | AC56: 2.792 | AD56: 0.0211387035
A57: 42 | B57: 2018-02-14 | C57: 264.309998 | D57: 270 | E57: 264.299988 | F57: 269.589996 | G57: 120735700 | H57: 268.514587 | I57: 0.9960109462 | J57: 1 | K57: 263.26 | L57: 268.92 | M57: 263.25 | N57: 268.51 | O57: 120735700 | U57: 2007-12-21 | V57: 0.775 | W57: 148.130005 | X57: 200712 | Y57: 200612 | Z57: 2006-12-15 | AA57: 5 | AB57: 1 | AC57: 2.701 | AD57: 0.01823398305
A58: 43 | B58: 2018-02-13 | C58: 263.970001 | D58: 266.619995 | E58: 263.309998 | F58: 266 | G58: 81223600 | H58: 264.938904 | I58: 0.9960109173 | J58: 1 | K58: 262.92 | L58: 265.56 | M58: 262.26 | N58: 264.94 | O58: 81223600 | U58: 2007-09-21 | V58: 0.719 | W58: 151.970001 | X58: 200709 | Y58: 200609 | Z58: 2006-09-15 | AA58: 5 | AB58: 1 | AC58: 2.719 | AD58: 0.01789168903
A59: 44 | B59: 2018-02-12 | C59: 263.829987 | D59: 267.01001 | E59: 261.660004 | F59: 265.339996 | G59: 143736000 | H59: 264.281525 | I59: 0.9960108879 | J59: 1 | K59: 262.78 | L59: 265.94 | M59: 260.62 | N59: 264.28 | O59: 143736000 | U59: 2007-06-15 | V59: 0.656 | W59: 153.070007 | X59: 200706 | Y59: 200606 | Z59: 2006-06-16 | AA59: 5 | AB59: 1 | AC59: 2.579 | AD59: 0.01684849992
A60: 45 | B60: 2018-02-09 | C60: 260.799988 | D60: 263.609985 | E60: 252.919998 | F60: 261.5 | G60: 283565300 | H60: 260.456848 | I60: 0.996010891 | J60: 1 | K60: 259.76 | L60: 262.56 | M60: 251.91 | N60: 260.46 | O60: 283565300 | U60: 2007-03-16 | V60: 0.551 | W60: 138.529999 | X60: 200703 | Y60: 200603 | Z60: 2006-03-17 | AA60: 5 | AB60: 1 | AC60: 2.478 | AD60: 0.01788782226
A61: 46 | B61: 2018-02-08 | C61: 268.01001 | D61: 268.170013 | E61: 257.589996 | F61: 257.630005 | G61: 246449500 | H61: 256.602295 | I61: 0.9960109072 | J61: 1 | K61: 266.94 | L61: 267.1 | M61: 256.56 | N61: 256.6 | O61: 246449500 | U61: 2006-12-15 | V61: 0.793 | W61: 142.339996 | X61: 200612 | Y61: 200512 | Z61: 2005-12-16 | AA61: 5 | AB61: 1 | AC61: 2.446 | AD61: 0.01718420731
A62: 47 | B62: 2018-02-07 | C62: 268.5 | D62: 272.359985 | E62: 267.579987 | F62: 267.670013 | G62: 167376100 | H62: 266.602264 | I62: 0.9960109502 | J62: 1 | K62: 267.43 | L62: 271.27 | M62: 266.51 | N62: 266.6 | O62: 167376100 | U62: 2006-09-15 | V62: 0.579 | W62: 131.960007 | X62: 200609 | Y62: 200509 | Z62: 2005-09-16 | AA62: 5 | AB62: 1 | AC62: 2.325 | AD62: 0.01761897451
A63: 48 | B63: 2018-02-06 | C63: 259.940002 | D63: 269.700012 | E63: 258.700012 | F63: 269.130005 | G63: 355026800 | H63: 268.056427 | I63: 0.9960109316 | J63: 1 | K63: 258.9 | L63: 268.62 | M63: 257.67 | N63: 268.06 | O63: 355026800 | U63: 2006-06-16 | V63: 0.555 | W63: 124.650002 | X63: 200606 | Y63: 200506 | Z63: 2005-06-17 | AA63: 5 | AB63: 1 | AC63: 2.268 | AD63: 0.01819494556
A64: 49 | B64: 2018-02-05 | C64: 273.450012 | D64: 275.850006 | E64: 263.309998 | F64: 263.929993 | G64: 294681800 | H64: 262.877136 | I64: 0.9960108475 | J64: 1 | K64: 272.36 | L64: 274.75 | M64: 262.26 | N64: 262.88 | O64: 294681800 | U64: 2006-03-17 | V64: 0.519 | W64: 130.619995 | X64: 200603 | Y64: 200503 | Z64: 2005-03-18 | AA64: 5 | AB64: 1 | AC64: 2.201 | AD64: 0.0168504064
A65: 50 | B65: 2018-02-02 | C65: 280.079987 | D65: 280.230011 | E65: 275.410004 | F65: 275.450012 | G65: 173174800 | H65: 274.351227 | I65: 0.9960109459 | J65: 1 | K65: 278.96 | L65: 279.11 | M65: 274.31 | N65: 274.35 | O65: 173174800 | U65: 2005-12-16 | V65: 0.672 | W65: 126.360001 | X65: 200512 | Y65: 200412 | Z65: 2004-12-17 | AA65: 5 | AB65: 1 | AC65: 2.149 | AD65: 0.01700696409
A66: 51 | B66: 2018-02-01 | C66: 281.070007 | D66: 283.059998 | E66: 280.679993 | F66: 281.579987 | G66: 90102500 | H66: 280.456726 | I66: 0.9960108635 | J66: 1 | K66: 279.95 | L66: 281.93 | M66: 279.56 | N66: 280.46 | O66: 90102500 | U66: 2005-09-16 | V66: 0.522 | W66: 123.5 | X66: 200509 | Y66: 200409 | Z66: 2004-09-17 | AA66: 6 | AB66: 1 | AC66: 2.396 | AD66: 0.01940080972
A67: 52 | B67: 2018-01-31 | C67: 282.730011 | D67: 283.299988 | E67: 280.679993 | F67: 281.899994 | G67: 108364800 | H67: 280.775452 | I67: 0.9960108477 | J67: 1 | K67: 281.6 | L67: 282.17 | M67: 279.56 | N67: 280.78 | O67: 108364800 | U67: 2005-06-17 | V67: 0.488 | W67: 121.360001 | X67: 200506 | Y67: 200406 | Z67: 2004-06-18 | AA67: 6 | AB67: 1 | AC67: 2.343 | AD67: 0.01930619628
A68: 53 | B68: 2018-01-30 | C68: 282.600006 | D68: 284.73999 | E68: 281.220001 | F68: 281.76001 | G68: 131796400 | H68: 280.636047 | I68: 0.9960109208 | J68: 1 | K68: 281.47 | L68: 283.6 | M68: 280.1 | N68: 280.64 | O68: 131796400 | U68: 2005-03-18 | V68: 0.467 | W68: 118.540001 | X68: 200503 | Y68: 200403 | Z68: 2004-03-19 | AA68: 6 | AB68: 1 | AC68: 2.269 | AD68: 0.01914121799
A69: 54 | B69: 2018-01-29 | C69: 285.929993 | D69: 286.429993 | E69: 284.5 | F69: 284.679993 | G69: 90118300 | H69: 283.544373 | I69: 0.9960108893 | J69: 1 | K69: 284.79 | L69: 285.29 | M69: 283.37 | N69: 283.54 | O69: 90118300 | U69: 2004-12-17 | V69: 0.568 | W69: 119.440002 | X69: 200412 | Y69: 200312 | Z69: 2003-12-19 | AA69: 6 | AB69: 1 | AC69: 2.197 | AD69: 0.0183941725
A70: 55 | B70: 2018-01-26 | C70: 284.25 | D70: 286.579987 | E70: 283.959991 | F70: 286.579987 | G70: 107743100 | H70: 285.436798 | I70: 0.9960109252 | J70: 1 | K70: 283.12 | L70: 285.44 | M70: 282.83 | N70: 285.44 | O70: 107743100 | U70: 2004-11-15 | V70: 0.351 | W70: 118.730003 | X70: 200411 | Y70: 200311 | Z70: 2003-12-19 | AA70: 5 | AB70: 0 | AC70: 2.145 | AD70: 0.01806620017
A71: 56 | B71: 2018-01-25 | C71: 284.160004 | D71: 284.269989 | E71: 282.399994 | F71: 283.299988 | G71: 84587300 | H71: 282.169861 | I71: 0.996010847 | J71: 1 | K71: 283.03 | L71: 283.14 | M71: 281.27 | N71: 282.17 | O71: 84587300 | U71: 2004-09-17 | V71: 0.469 | W71: 113.150002 | X71: 200409 | Y71: 200309 | Z71: 2003-09-19 | AA71: 5 | AB71: 1 | AC71: 1.794 | AD71: 0.01585505938
A72: 57 | B72: 2018-01-24 | C72: 284.019989 | D72: 284.700012 | E72: 281.839996 | F72: 283.179993 | G72: 134816100 | H72: 282.050354 | I72: 0.9960108799 | J72: 1 | K72: 282.89 | L72: 283.56 | M72: 280.72 | N72: 282.05 | O72: 134816100 | U72: 2004-06-18 | V72: 0.414 | W72: 113.629997 | X72: 200406 | Y72: 200306 | Z72: 2003-06-20 | AA72: 5 | AB72: 1 | AC72: 1.725 | AD72: 0.01518085053
A73: 58 | B73: 2018-01-23 | C73: 282.73999 | D73: 283.619995 | E73: 282.369995 | F73: 283.290009 | G73: 97084700 | H73: 282.159943 | I73: 0.9960109218 | J73: 1 | K73: 281.61 | L73: 282.49 | M73: 281.24 | N73: 282.16 | O73: 97084700 | U73: 2004-03-19 | V73: 0.395 | W73: 111.059998 | X73: 200403 | Y73: 200303 | Z73: 2003-03-21 | AA73: 5 | AB73: 1 | AC73: 1.671 | AD73: 0.01504592139
A74: 59 | B74: 2018-01-22 | C74: 280.170013 | D74: 282.690002 | E74: 280.109985 | F74: 282.690002 | G74: 91322400 | H74: 281.562317 | I74: 0.9960108777 | J74: 1 | K74: 279.05 | L74: 281.56 | M74: 278.99 | N74: 281.56 | O74: 91322400 | U74: 2003-12-19 | V74: 0.516 | W74: 108.900002 | X74: 200312 | Y74: 200212 | Z74: 2002-12-20 | AA74: 5 | AB74: 1 | AC74: 1.63 | AD74: 0.01496786015
A75: 60 | B75: 2018-01-19 | C75: 279.799988 | D75: 280.410004 | E75: 279.140015 | F75: 280.410004 | G75: 140920100 | H75: 279.291412 | I75: 0.9960108699 | J75: 1 | K75: 278.68 | L75: 279.29 | M75: 278.03 | N75: 279.29 | O75: 140920100 | U75: 2003-09-19 | V75: 0.4 | W75: 103.669998 | X75: 200309 | Y75: 200209 | Z75: 2002-09-20 | AA75: 5 | AB75: 1 | AC75: 1.55 | AD75: 0.01495128803
A76: 61 | B76: 2018-01-18 | C76: 279.480011 | D76: 279.959991 | E76: 278.579987 | F76: 279.140015 | G76: 100728000 | H76: 278.026489 | I76: 0.9960108693 | J76: 1 | K76: 278.37 | L76: 278.84 | M76: 277.47 | N76: 278.03 | O76: 100728000 | U76: 2003-06-20 | V76: 0.36 | W76: 99.440002 | X76: 200306 | Y76: 200206 | Z76: 2002-06-21 | AA76: 5 | AB76: 1 | AC76: 1.528 | AD76: 0.01536604957
A77: 62 | B77: 2018-01-17 | C77: 278.029999 | D77: 280.049988 | E77: 276.970001 | F77: 279.609985 | G77: 113258800 | H77: 278.494598 | I77: 0.9960109186 | J77: 1 | K77: 276.92 | L77: 278.93 | M77: 275.87 | N77: 278.49 | O77: 113258800 | U77: 2003-03-21 | V77: 0.354 | W77: 89.669998 | X77: 200303 | Y77: 200203 | Z77: 2002-03-15 | AA77: 5 | AB77: 1 | AC77: 1.521 | AD77: 0.01696219509
A78: 63 | B78: 2018-01-16 | C78: 279.350006 | D78: 280.089996 | E78: 276.179993 | F78: 276.970001 | G78: 106555100 | H78: 275.865143 | I78: 0.9960109109 | J78: 1 | K78: 278.24 | L78: 278.97 | M78: 275.08 | N78: 275.87 | O78: 106555100 | U78: 2002-12-20 | V78: 0.436 | W78: 89.989998 | X78: 200212 | Y78: 200112 | Z78: 2001-12-21 | AA78: 5 | AB78: 1 | AC78: 1.498 | AD78: 0.0166462944
A79: 64 | B79: 2018-01-12 | C79: 276.420013 | D79: 278.109985 | E79: 276.079987 | F79: 277.920013 | G79: 90816100 | H79: 276.811371 | I79: 0.9960109314 | J79: 1 | K79: 275.32 | L79: 277 | M79: 274.98 | N79: 276.81 | O79: 90816100 | U79: 2002-09-20 | V79: 0.378 | W79: 84.349998 | X79: 200209 | Y79: 200109 | Z79: 2001-09-21 | AA79: 5 | AB79: 1 | AC79: 1.455 | AD79: 0.01724955583
A80: 65 | B80: 2018-01-11 | C80: 274.75 | D80: 276.119995 | E80: 274.559998 | F80: 276.119995 | G80: 62361500 | H80: 275.018524 | I80: 0.9960108974 | J80: 1 | K80: 273.65 | L80: 275.02 | M80: 273.46 | N80: 275.02 | O80: 62361500 | U80: 2002-06-21 | V80: 0.353 | W80: 99.279999 | X80: 200206 | Y80: 200106 | Z80: 2001-06-15 | AA80: 5 | AB80: 1 | AC80: 1.446 | AD80: 0.01456486719
A81: 66 | B81: 2018-01-10 | C81: 273.679993 | D81: 274.420013 | E81: 272.920013 | F81: 274.119995 | G81: 69574300 | H81: 273.026489 | I81: =IF(F81=0,1,H81/F81) -> 0.9960108492 | J81: =INDEX(OFFSET($T$15,0,0,$S$13+1,1),MATCH(B81,OFFSET($Q$15,0,0,$S$13+1,1),-1)) -> 1 | K81: =ROUND($I81*C81,2) -> 272.59 | L81: =ROUND($I81*D81,2) -> 273.33 | M81: =ROUND($I81*E81,2) -> 271.83 | N81: =ROUND($I81*F81,2) -> 273.03 | O81: =G81*J81 -> 69574300 | U81: 2002-03-15 | V81: 0.331 | W81: =(INDEX(OFFSET($F$15,1,0,$B$10,1),MATCH(U81,OFFSET($B$15,1,0,$B$10,1),-1))) -> 116.650002 | X81: =YEAR(U81)&RIGHT("0"&MONTH(U81),2) -> 200203 | Y81: =YEAR(U81)-1&RIGHT("0"&MONTH(U81),2) -> 200103 | Z81: =OFFSET(U80,AA81,0,1,1) -> 2001-03-16 | AA81: =MATCH(Y81,OFFSET($X$15,A81,0,$V$14+1-A81,1),-1) -> 5 | AB81: =IF(OR(AND(YEAR(U81)=YEAR(Z81),MONTH(U81)=MONTH(Z81)),MONTH(U81)=MONTH(Z81)),1,0) -> 1 | AC81: =(V81+IF(AA81-AB81=0,0,IFERROR(SUM(OFFSET(V81,1,0,AA81-AB81-1,1)),0))) -> 1.439 | AD81: =AC81/(INDEX(OFFSET($F$15,1,0,$B$10,1),MATCH(U81,OFFSET($B$15,1,0,$B$10,1),-1))) -> 0.0123360478
A82: 67 | B82: 2018-01-09 | C82: 274.399994 | D82: 275.25 | E82: 274.079987 | F82: 274.540009 | G82: 57254000 | H82: 273.444855 | I82: 0.9960109494 | J82: 1 | K82: 273.31 | L82: 274.15 | M82: 272.99 | N82: 273.44 | O82: 57254000 | U82: 2001-12-21 | V82: 0.393 | W82: 114.949997 | X82: 200112 | Y82: 200012 | Z82: 2000-12-27 | AA82: 5 | AB82: 1 | AC82: 1.424 | AD82: 0.0123879951
A83: 68 | B83: 2018-01-08 | C83: 273.309998 | D83: 274.100006 | E83: 272.980011 | F83: 273.920013 | G83: 57319200 | H83: 272.827332 | I83: 0.9960109486 | J83: 1 | K83: 272.22 | L83: 273.01 | M83: 271.89 | N83: 272.83 | O83: 57319200 | U83: 2001-09-21 | V83: 0.369 | W83: 97.279999 | X83: 200109 | Y83: 200009 | Z83: 2000-09-15 | AA83: 6 | AB83: 1 | AC83: 1.442 | AD83: 0.01482319094
A84: 69 | B84: 2018-01-05 | C84: 272.51001 | D84: 273.559998 | E84: 271.950012 | F84: 273.420013 | G84: 83524000 | H84: 272.329315 | I84: 0.9960109065 | J84: 1 | K84: 271.42 | L84: 272.47 | M84: 270.87 | N84: 272.33 | O84: 83524000 | U84: 2001-06-15 | V84: 0.346 | W84: 121.849998 | X84: 200106 | Y84: 200006 | Z84: 2000-06-16 | AA84: 7 | AB84: 1 | AC84: 1.448 | AD84: 0.01188346347
A85: 70 | B85: 2018-01-04 | C85: 271.200012 | D85: 272.160004 | E85: 270.540009 | F85: 271.609985 | G85: 80636400 | H85: 270.52652 | I85: 0.996010953 | J85: 1 | K85: 270.12 | L85: 271.07 | M85: 269.46 | N85: 270.53 | O85: 80636400 | U85: 2001-03-16 | V85: 0.316 | W85: 115.010002 | X85: 200103 | Y85: 200003 | Z85: 2000-03-17 | AA85: 7 | AB85: 1 | AC85: 1.45 | AD85: 0.01260759912
A86: 71 | B86: 2018-01-03 | C86: 268.959991 | D86: 270.640015 | E86: 268.959991 | F86: 270.470001 | G86: 90070400 | H86: 269.391083 | I86: 0.9960109513 | J86: 1 | K86: 267.89 | L86: 269.56 | M86: 267.89 | N86: 269.39 | O86: 90070400 | U86: 2000-12-27 | V86: 0 | W86: 133.3125 | X86: 200012 | Y86: 199912 | Z86: 1999-12-17 | AA86: 7 | AB86: 1 | AC86: 1.505 | AD86: 0.01128926395
A87: 72 | B87: 2018-01-02 | C87: 267.839996 | D87: 268.809998 | E87: 267.399994 | F87: 268.769989 | G87: 86655700 | H87: 267.697845 | I87: 0.9960109237 | J87: 1 | K87: 266.77 | L87: 267.74 | M87: 266.33 | N87: 267.7 | O87: 86655700 | U87: 2000-12-15 | V87: 0.411 | W87: 130.968704 | X87: 200012 | Y87: 199912 | Z87: 1999-12-17 | AA87: 6 | AB87: 1 | AC87: 1.505 | AD87: 0.0114912949
A88: 73 | B88: 2017-12-29 | C88: 268.529999 | D88: 268.549988 | E88: 266.640015 | F88: 266.859985 | G88: 96007400 | H88: 265.795441 | I88: 0.9960108519 | J88: 1 | K88: 267.46 | L88: 267.48 | M88: 265.58 | N88: 265.8 | O88: 96007400 | U88: 2000-09-15 | V88: 0.375 | W88: 146 | X88: 200009 | Y88: 199909 | Z88: 1999-09-17 | AA88: 6 | AB88: 1 | AC88: 1.442 | AD88: 0.009876712329
A89: 74 | B89: 2017-12-28 | C89: 267.890015 | D89: 267.920013 | E89: 267.450012 | F89: 267.869995 | G89: 45116100 | H89: 266.801422 | I89: 0.9960108522 | J89: 1 | K89: 266.82 | L89: 266.85 | M89: 266.38 | N89: 266.8 | O89: 45116100 | U89: 2000-09-14 | V89: 0 | W89: 149.640594 | X89: 200009 | Y89: 199909 | Z89: 1999-09-17 | AA89: 5 | AB89: 1 | AC89: 1.067 | AD89: 0.0071304181
A90: 75 | B90: 2017-12-27 | C90: 267.380005 | D90: 267.730011 | E90: 267.01001 | F90: 267.320007 | G90: 57751000 | H90: 266.253632 | I90: 0.9960108672 | J90: 1 | K90: 266.31 | L90: 266.66 | M90: 265.94 | N90: 266.25 | O90: 57751000 | U90: 2000-06-16 | V90: 0.348 | W90: 146.593704 | X90: 200006 | Y90: 199906 | Z90: 1999-06-18 | AA90: 5 | AB90: 1 | AC90: 1.439 | AD90: 0.009816246952
A91: 76 | B91: 2017-12-26 | C91: 267.049988 | D91: 267.440002 | E91: 266.890015 | F91: 267.190002 | G91: 45244400 | H91: 266.124146 | I91: 0.9960108687 | J91: 1 | K91: 265.98 | L91: 266.37 | M91: 265.83 | N91: 266.12 | O91: 45244400 | U91: 2000-03-17 | V91: 0.371 | W91: 146.9375 | X91: 200003 | Y91: 199903 | Z91: 1999-03-19 | AA91: 5 | AB91: 1 | AC91: 1.496 | AD91: 0.01018119949
A92: 77 | B92: 2017-12-22 | C92: 267.600006 | D92: 267.640015 | E92: 266.899994 | F92: 267.51001 | G92: 78720900 | H92: 266.442871 | I92: 0.9960108446 | J92: 1 | K92: 266.53 | L92: 266.57 | M92: 265.84 | N92: 266.44 | O92: 78720900 | U92: 1999-12-17 | V92: 0.348 | W92: 142.6875 | X92: 199912 | Y92: 199812 | Z92: 1998-12-18 | AA92: 5 | AB92: 1 | AC92: 1.445 | AD92: 0.01012702584
A93: 78 | B93: 2017-12-21 | C93: 267.73999 | D93: 268.390015 | E93: 267.299988 | F93: 267.579987 | G93: 67032300 | H93: 266.512573 | I93: 0.9960108601 | J93: 1 | K93: 266.67 | L93: 267.32 | M93: 266.23 | N93: 266.51 | O93: 67032300 | U93: 1999-09-17 | V93: 0.372 | W93: 133.75 | X93: 199909 | Y93: 199809 | Z93: 1998-09-18 | AA93: 5 | AB93: 1 | AC93: 1.489 | AD93: 0.01113271028
A94: 79 | B94: 2017-12-20 | C94: 268.269989 | D94: 268.329987 | E94: 266.690002 | F94: 267.029999 | G94: 76751500 | H94: 265.964783 | I94: 0.9960108752 | J94: 1 | K94: 267.2 | L94: 267.26 | M94: 265.63 | N94: 265.96 | O94: 76751500 | U94: 1999-06-18 | V94: 0.405 | W94: 134.3125 | X94: 199906 | Y94: 199806 | Z94: 1998-06-19 | AA94: 5 | AB94: 1 | AC94: 1.476 | AD94: 0.01098929735
A95: 80 | B95: 2017-12-19 | C95: 268.480011 | D95: 268.529999 | E95: 267.089996 | F95: 267.170013 | G95: 82382900 | H95: 266.104248 | I95: 0.9960109109 | J95: 1 | K95: 267.41 | L95: 267.46 | M95: 266.02 | N95: 266.1 | O95: 82382900 | U95: 1999-03-19 | V95: 0.32 | W95: 129.6875 | X95: 199903 | Y95: 199803 | Z95: 1998-03-20 | AA95: 5 | AB95: 1 | AC95: 1.423 | AD95: 0.01097253012
A96: 81 | B96: 2017-12-18 | C96: 268.100006 | D96: 268.600006 | E96: 267.980011 | F96: 268.200012 | G96: 83653600 | H96: 267.130127 | I96: 0.9960108689 | J96: 1 | K96: 267.03 | L96: 267.53 | M96: 266.91 | N96: 267.13 | O96: 83653600 | U96: 1998-12-18 | V96: 0.392 | W96: 118.5 | X96: 199812 | Y96: 199712 | Z96: 1997-12-19 | AA96: 5 | AB96: 1 | AC96: 1.416 | AD96: 0.01194936709
A97: 82 | B97: 2017-12-15 | C97: 265.450012 | D97: 267.040009 | E97: 265.390015 | F97: 266.51001 | G97: 144610300 | H97: 265.446869 | I97: 0.9960108778 | J97: 1 | K97: 264.39 | L97: 265.97 | M97: 264.33 | N97: 265.45 | O97: 144610300 | U97: 1998-09-18 | V97: 0.359 | W97: 102.093697 | X97: 199809 | Y97: 199709 | Z97: 1997-09-19 | AA97: 5 | AB97: 1 | AC97: 1.404 | AD97: 0.01375207325
A98: 83 | B98: 2017-12-14 | C98: 267.089996 | D98: 267.220001 | E98: 265.600006 | F98: 265.660004 | G98: 100666700 | H98: 263.254639 | I98: 0.9909457014 | J98: 1 | K98: 264.67 | L98: 264.8 | M98: 263.2 | N98: 263.25 | O98: 100666700 | U98: 1998-06-19 | V98: 0.352 | W98: 110.0625 | X98: 199806 | Y98: 199706 | Z98: 1997-06-20 | AA98: 5 | AB98: 1 | AC98: 1.393 | AD98: 0.0126564452
A99: 84 | B99: 2017-12-13 | C99: 267.059998 | D99: 267.559998 | E99: 266.649994 | F99: 266.75 | G99: 102905400 | H99: 264.334778 | I99: 0.990945747 | J99: 1 | K99: 264.64 | L99: 265.14 | M99: 264.24 | N99: 264.33 | O99: 102905400 | U99: 1998-03-20 | V99: 0.313 | W99: 109.875 | X99: 199803 | Y99: 199703 | Z99: 1997-03-21 | AA99: 5 | AB99: 1 | AC99: 1.391 | AD99: 0.01265984073
A100: 85 | B100: 2017-12-12 | C100: 267.209991 | D100: 267.320007 | E100: 266.350006 | F100: 266.779999 | G100: 85195800 | H100: 264.364502 | I100: 0.9909457343 | J100: 1 | K100: 264.79 | L100: 264.9 | M100: 263.94 | N100: 264.36 | O100: 85195800 | U100: 1997-12-19 | V100: 0.38 | W100: 94.781197 | X100: 199712 | Y100: 199612 | Z100: 1996-12-20 | AA100: 5 | AB100: 1 | AC100: 1.377 | AD100: 0.01452819803
A101: 86 | B101: 2017-12-11 | C101: 266.309998 | D101: 266.380005 | E101: 265.480011 | F101: 266.309998 | G101: 83077500 | H101: 263.898743 | I101: 0.9909456835 | J101: 1 | K101: 263.9 | L101: 263.97 | M101: 263.08 | N101: 263.9 | O101: 83077500 | U101: 1997-09-19 | V101: 0.348 | W101: 95.031197 | X101: 199709 | Y101: 199609 | Z101: 1996-09-20 | AA101: 5 | AB101: 1 | AC101: 1.364 | AD101: 0.0143531813
A102: 87 | B102: 2017-12-08 | C102: 265.160004 | D102: 265.519989 | E102: 264.029999 | F102: 265.51001 | G102: 76563900 | H102: 263.106018 | I102: 0.9909457576 | J102: 1 | K102: 262.76 | L102: 263.12 | M102: 261.64 | N102: 263.11 | O102: 76563900 | U102: 1997-06-20 | V102: 0.35 | W102: 89.578102 | X102: 199706 | Y102: 199606 | Z102: 1996-06-21 | AA102: 5 | AB102: 1 | AC102: 1.368 | AD102: 0.01527158948
A103: 88 | B103: 2017-12-07 | C103: 264.070007 | D103: 264.429993 | E103: 262.940002 | F103: 264.070007 | G103: 77218600 | H103: 261.679047 | I103: 0.9909457343 | J103: 1 | K103: 261.68 | L103: 262.04 | M103: 260.56 | N103: 261.68 | O103: 77218600 | U103: 1997-03-21 | V103: 0.299 | W103: 78.4375 | X103: 199703 | Y103: 199603 | Z103: 1996-03-15 | AA103: 5 | AB103: 1 | AC103: 1.369 | AD103: 0.01745338645
A104: 89 | B104: 2017-12-06 | C104: 263.299988 | D104: 263.730011 | E104: 262.709991 | F104: 263.23999 | G104: 75898600 | H104: 260.856567 | I104: 0.9909458172 | J104: 1 | K104: 260.92 | L104: 261.34 | M104: 260.33 | N104: 260.86 | O104: 75898600 | U104: 1996-12-20 | V104: 0.367 | W104: 74.843697 | X104: 199612 | Y104: 199512 | Z104: 1995-12-15 | AA104: 5 | AB104: 1 | AC104: 1.355 | AD104: 0.01810439695
A105: 90 | B105: 2017-12-05 | C105: 263.190002 | D105: 265.149994 | E105: 263.040009 | F105: 263.190002 | G105: 77994500 | H105: 260.807007 | I105: 0.9909457237 | J105: 1 | K105: 260.81 | L105: 262.75 | M105: 260.66 | N105: 260.81 | O105: 77994500 | U105: 1996-09-20 | V105: 0.352 | W105: 68.640602 | X105: 199609 | Y105: 199509 | Z105: 1995-09-15 | AA105: 5 | AB105: 1 | AC105: 1.37 | AD105: 0.01995903241
A106: 91 | B106: 2017-12-04 | C106: 266.309998 | D106: 266.799988 | E106: 264.079987 | F106: 264.140015 | G106: 94040600 | H106: 261.748413 | I106: 0.9909457036 | J106: 1 | K106: 263.9 | L106: 264.38 | M106: 261.69 | N106: 261.75 | O106: 94040600 | U106: 1996-06-21 | V106: 0.351 | W106: 66.8125 | X106: 199606 | Y106: 199506 | Z106: 1995-06-16 | AA106: 5 | AB106: 1 | AC106: 1.33 | AD106: 0.01990645463
A107: 92 | B107: 2017-12-01 | C107: 264.76001 | D107: 265.309998 | E107: 260.76001 | F107: 264.459991 | G107: 164390900 | H107: 262.065491 | I107: 0.9909457004 | J107: 1 | K107: 262.36 | L107: 262.91 | M107: 258.4 | N107: 262.07 | O107: 164390900 | U107: 1996-03-15 | V107: 0.285 | W107: 64.125 | X107: 199603 | Y107: 199503 | Z107: 1995-03-17 | AA107: 5 | AB107: 1 | AC107: 1.295 | AD107: 0.02019493177
A108: 93 | B108: 2017-11-30 | C108: 263.76001 | D108: 266.049988 | E108: 263.670013 | F108: 265.01001 | G108: 127894400 | H108: 262.610535 | I108: 0.9909457194 | J108: 1 | K108: 261.37 | L108: 263.64 | M108: 261.28 | N108: 262.61 | O108: 127894400 | U108: 1995-12-15 | V108: 0.382 | W108: 61.8125 | X108: 199512 | Y108: 199412 | Z108: 1994-12-16 | AA108: 5 | AB108: 1 | AC108: 1.278 | AD108: 0.02067542973
A109: 94 | B109: 2017-11-29 | C109: 263.019989 | D109: 263.630005 | E109: 262.200012 | F109: 262.709991 | G109: 77512100 | H109: 260.331329 | I109: 0.9909456736 | J109: 1 | K109: 260.64 | L109: 261.24 | M109: 259.83 | N109: 260.33 | O109: 77512100 | U109: 1995-09-15 | V109: 0.312 | W109: 58.4375 | X109: 199509 | Y109: 199409 | Z109: 1994-09-19 | AA109: 5 | AB109: 1 | AC109: 1.259 | AD109: 0.02154438503
A110: 95 | B110: 2017-11-28 | C110: 260.76001 | D110: 262.899994 | E110: 260.649994 | F110: 262.869995 | G110: 98971700 | H110: 260.489899 | I110: 0.9909457297 | J110: 1 | K110: 258.4 | L110: 260.52 | M110: 258.29 | N110: 260.49 | O110: 98971700 | U110: 1995-06-16 | V110: 0.316 | W110: 53.9687 | X110: 199506 | Y110: 199406 | Z110: 1994-06-17 | AA110: 6 | AB110: 1 | AC110: 1.235 | AD110: 0.0228836344
A111: 96 | B111: 2017-11-27 | C111: 260.410004 | D111: 260.75 | E111: 260 | F111: 260.230011 | G111: 52274900 | H111: 257.87381 | I111: 0.9909456984 | J111: 1 | K111: 258.05 | L111: 258.39 | M111: 257.65 | N111: 257.87 | O111: 52274900 | U111: 1995-03-17 | V111: 0.268 | W111: 49.5625 | X111: 199503 | Y111: 199403 | Z111: 1994-03-18 | AA111: 6 | AB111: 1 | AC111: 1.224 | AD111: 0.02469609079
A112: 97 | B112: 2017-11-24 | C112: 260.320007 | D112: 260.480011 | E112: 260.160004 | F112: 260.359985 | G112: 27856500 | H112: 258.002625 | I112: 0.9909457669 | J112: 1 | K112: 257.96 | L112: 258.12 | M112: 257.8 | N112: 258 | O112: 27856500 | U112: 1994-12-16 | V112: 0.363 | W112: 45.75 | X112: 199412 | Y112: 199312 | Z112: 1993-12-17 | AA112: 6 | AB112: 1 | AC112: 1.227 | AD112: 0.02681967213
A113: 98 | B113: 2017-11-22 | C113: 260 | D113: 260.149994 | E113: 259.570007 | F113: 259.76001 | G113: 45033400 | H113: 257.408081 | I113: 0.9909457618 | J113: 1 | K113: 257.65 | L113: 257.79 | M113: 257.22 | N113: 257.41 | O113: 45033400 | U113: 1994-09-19 | V113: 0 | W113: 47.0625 | X113: 199409 | Y113: 199309 | Z113: 1993-09-17 | AA113: 6 | AB113: 1 | AC113: 1.181 | AD113: 0.02509428951
A114: 99 | B114: 2017-11-21 | C114: 259.179993 | D114: 260.200012 | E114: 258.26001 | F114: 259.98999 | G114: 69176800 | H114: 257.635956 | I114: 0.9909456745 | J114: 1 | K114: 256.83 | L114: 257.84 | M114: 255.92 | N114: 257.64 | O114: 69176800 | U114: 1994-09-16 | V114: 0.288 | W114: 47.015598 | X114: 199409 | Y114: 199309 | Z114: 1993-09-17 | AA114: 5 | AB114: 1 | AC114: 1.181 | AD114: 0.02511932317
A115: 100 | B115: 2017-11-20 | C115: 258.140015 | D115: 258.519989 | E115: 257.859985 | F115: 258.299988 | G115: 48075500 | H115: 255.961258 | I115: 0.9909456829 | J115: 1 | K115: 255.8 | L115: 256.18 | M115: 255.53 | N115: 255.96 | O115: 48075500 | U115: 1994-06-17 | V115: 0.305 | W115: 45.875 | X115: 199406 | Y115: 199306 | Z115: 1993-06-18 | AA115: 5 | AB115: 1 | AC115: 1.179 | AD115: 0.02570027248
A116: 101 | B116: 2017-11-17 | C116: 258.220001 | D116: 258.589996 | E116: 257.769989 | F116: 257.859985 | G116: 75756800 | H116: 255.525253 | I116: 0.9909457375 | J116: 1 | K116: 255.88 | L116: 256.25 | M116: 255.44 | N116: 255.53 | O116: 75756800 | U116: 1994-03-18 | V116: 0.271 | W116: 46.9687 | X116: 199403 | Y116: 199303 | Z116: 1993-03-19 | AA116: 5 | AB116: 1 | AC116: 1.192 | AD116: 0.0253786032
A117: 102 | B117: 2017-11-16 | C117: 257.519989 | D117: 259.040009 | E117: 257.470001 | F117: 258.619995 | G117: 67777000 | H117: 256.278381 | I117: 0.9909457349 | J117: 1 | K117: 255.19 | L117: 256.69 | M117: 255.14 | N117: 256.28 | O117: 67777000 | U117: 1993-12-17 | V117: 0.317 | W117: 46.5625 | X117: 199312 | Y117: 199212 | Z117: 1993-03-19 | AA117: 4 | AB117: 0 | AC117: 1.134 | AD117: 0.02435436242
A118: 103 | B118: 2017-11-15 | C118: 256.619995 | D118: 257.220001 | E118: 255.630005 | F118: 256.440002 | G118: 80811500 | H118: 254.118118 | I118: 0.9909457028 | J118: 1 | K118: 254.3 | L118: 254.89 | M118: 253.32 | N118: 254.12 | O118: 80811500 | U118: 1993-09-17 | V118: 0.286 | W118: 45.8125 | X118: 199309 | Y118: 199209 | Z118: 1993-03-19 | AA118: 3 | AB118: 0 | AC118: 0.817 | AD118: 0.01783356071
A119: 104 | B119: 2017-11-14 | C119: 257.410004 | D119: 257.850006 | E119: 256.519989 | F119: 257.730011 | G119: 61315200 | H119: 255.396454 | I119: 0.9909457304 | J119: 1 | K119: 255.08 | L119: 255.52 | M119: 254.2 | N119: 255.4 | O119: 61315200 | U119: 1993-06-18 | V119: 0.318 | W119: 44.5 | X119: 199306 | Y119: 199206 | Z119: 1993-03-19 | AA119: 2 | AB119: 0 | AC119: 0.531 | AD119: 0.01193258427
A120: 105 | B120: 2017-11-13 | C120: 257.309998 | D120: 258.589996 | E120: 257.269989 | F120: 258.329987 | G120: 50228600 | H120: 255.990982 | I120: 0.9909456698 | J120: 1 | K120: 254.98 | L120: 256.25 | M120: 254.94 | N120: 255.99 | O120: 50228600 | U120: 1993-03-19 | V120: 0.213 | W120: 45.0312 | X120: 199303 | Y120: 199203 | Z120: 1993-03-19 | AA120: 1 | AB120: 1 | AC120: 0.213 | AD120: 0.004730053829
A121: 106 | B121: 2017-11-10 | C121: 257.730011 | D121: 258.290009 | E121: 257.369995 | F121: 258.089996 | G121: 59984700 | H121: 255.753189 | I121: 0.9909457668 | J121: 1 | K121: 255.4 | L121: 255.95 | M121: 255.04 | N121: 255.75 | O121: 59984700
A122: 107 | B122: 2017-11-09 | C122: 257.730011 | D122: 258.390015 | E122: 256.359985 | F122: 258.170013 | G122: 95085500 | H122: 255.832458 | I122: 0.9909456758 | J122: 1 | K122: 255.4 | L122: 256.05 | M122: 254.04 | N122: 255.83 | O122: 95085500
A123: 108 | B123: 2017-11-08 | C123: 258.470001 | D123: 259.220001 | E123: 258.149994 | F123: 259.109985 | G123: 50469600 | H123: 256.763916 | I123: 0.9909456635 | J123: 1 | K123: 256.13 | L123: 256.87 | M123: 255.81 | N123: 256.76 | O123: 50469600
A124: 109 | B124: 2017-11-07 | C124: 258.970001 | D124: 259.350006 | E124: 258.089996 | F124: 258.670013 | G124: 57502200 | H124: 256.327942 | I124: 0.9909457189 | J124: 1 | K124: 256.63 | L124: 257 | M124: 255.75 | N124: 256.33 | O124: 57502200
A125: 110 | B125: 2017-11-06 | C125: 258.299988 | D125: 259 | E125: 258.220001 | F125: 258.850006 | G125: 49652600 | H125: 256.506287 | I125: 0.9909456483 | J125: 1 | K125: 255.96 | L125: 256.65 | M125: 255.88 | N125: 256.51 | O125: 49652600
A126: 111 | B126: 2017-11-03 | C126: 257.769989 | D126: 258.5 | E126: 257.299988 | F126: 258.450012 | G126: 59589700 | H126: 256.109955 | I126: 0.9909458043 | J126: 1 | K126: 255.44 | L126: 256.16 | M126: 254.97 | N126: 256.11 | O126: 59589700
A127: 112 | B127: 2017-11-02 | C127: 257.410004 | D127: 257.75 | E127: 256.190002 | F127: 257.589996 | G127: 56449500 | H127: 255.257706 | I127: 0.9909457276 | J127: 1 | K127: 255.08 | L127: 255.42 | M127: 253.87 | N127: 255.26 | O127: 56449500
A128: 113 | B128: 2017-11-01 | C128: 258.040009 | D128: 258.429993 | E128: 257.070007 | F128: 257.48999 | G128: 54202700 | H128: 255.1586 | I128: 0.9909457063 | J128: 1 | K128: 255.7 | L128: 256.09 | M128: 254.74 | N128: 255.16 | O128: 54202700
A129: 114 | B129: 2017-10-31 | C129: 257.179993 | D129: 257.440002 | E129: 256.809998 | F129: 257.149994 | G129: 60304800 | H129: 254.821701 | I129: 0.9909457785 | J129: 1 | K129: 254.85 | L129: 255.11 | M129: 254.48 | N129: 254.82 | O129: 60304800
A130: 115 | B130: 2017-10-30 | C130: 256.470001 | D130: 257.600006 | E130: 256.410004 | F130: 256.75 | G130: 54285700 | H130: 254.425308 | I130: 0.9909456981 | J130: 1 | K130: 254.15 | L130: 255.27 | M130: 254.09 | N130: 254.43 | O130: 54285700
A131: 116 | B131: 2017-10-27 | C131: 256.470001 | D131: 257.890015 | E131: 255.630005 | F131: 257.709991 | G131: 85562500 | H131: 255.376602 | I131: 0.9909456789 | J131: 1 | K131: 254.15 | L131: 255.55 | M131: 253.32 | N131: 255.38 | O131: 85562500
A132: 117 | B132: 2017-10-26 | C132: 255.990005 | D132: 256.299988 | E132: 255.479996 | F132: 255.619995 | G132: 69798000 | H132: 253.305527 | I132: 0.9909456692 | J132: 1 | K132: 253.67 | L132: 253.98 | M132: 253.17 | N132: 253.31 | O132: 69798000
A133: 118 | B133: 2017-10-25 | C133: 256.179993 | D133: 256.309998 | E133: 254 | F133: 255.289993 | G133: 103715300 | H133: 252.978531 | I133: 0.9909457399 | J133: 1 | K133: 253.86 | L133: 253.99 | M133: 251.7 | N133: 252.98 | O133: 103715300
A134: 119 | B134: 2017-10-24 | C134: 256.600006 | D134: 256.829987 | E134: 256.149994 | F134: 256.559998 | G134: 66935900 | H134: 254.23703 | I134: 0.9909457124 | J134: 1 | K134: 254.28 | L134: 254.5 | M134: 253.83 | N134: 254.24 | O134: 66935900
A135: 120 | B135: 2017-10-23 | C135: 257.480011 | D135: 257.51001 | E135: 256.019989 | F135: 256.109985 | G135: 63915300 | H135: 253.791092 | I135: 0.9909457142 | J135: 1 | K135: 255.15 | L135: 255.18 | M135: 253.7 | N135: 253.79 | O135: 63915300
A136: 121 | B136: 2017-10-20 | C136: 256.700012 | D136: 257.140015 | E136: 255.770004 | F136: 257.109985 | G136: 89176400 | H136: 254.782043 | I136: 0.9909457348 | J136: 1 | K136: 254.38 | L136: 254.81 | M136: 253.45 | N136: 254.78 | O136: 89176400
A137: 122 | B137: 2017-10-19 | C137: 254.830002 | D137: 255.830002 | E137: 254.350006 | F137: 255.789993 | G137: 61903800 | H137: 253.473999 | I137: 0.9909457209 | J137: 1 | K137: 252.52 | L137: 253.51 | M137: 252.05 | N137: 253.47 | O137: 61903800
A138: 123 | B138: 2017-10-18 | C138: 255.899994 | D138: 255.949997 | E138: 255.5 | F138: 255.720001 | G138: 40888300 | H138: 253.404633 | I138: 0.9909456906 | J138: 1 | K138: 253.58 | L138: 253.63 | M138: 253.19 | N138: 253.4 | O138: 40888300
A139: 124 | B139: 2017-10-17 | C139: 255.229996 | D139: 255.520004 | E139: 254.979996 | F139: 255.470001 | G139: 31561000 | H139: 253.156906 | I139: 0.9909457275 | J139: 1 | K139: 252.92 | L139: 253.21 | M139: 252.67 | N139: 253.16 | O139: 31561000
A140: 125 | B140: 2017-10-16 | C140: 255.210007 | D140: 255.509995 | E140: 254.820007 | F140: 255.289993 | G140: 38221700 | H140: 252.978531 | I140: 0.9909457399 | J140: 1 | K140: 252.9 | L140: 253.2 | M140: 252.51 | N140: 252.98 | O140: 38221700
A141: 126 | B141: 2017-10-13 | C141: 255.139999 | D141: 255.270004 | E141: 254.639999 | F141: 254.949997 | G141: 54800400 | H141: 252.641617 | I141: 0.990945754 | J141: 1 | K141: 252.83 | L141: 252.96 | M141: 252.33 | N141: 252.64 | O141: 54800400
A142: 127 | B142: 2017-10-12 | C142: 254.660004 | D142: 255.059998 | E142: 254.369995 | F142: 254.639999 | G142: 47065100 | H142: 252.334427 | I142: 0.9909457587 | J142: 1 | K142: 252.35 | L142: 252.75 | M142: 252.07 | N142: 252.33 | O142: 47065100
A143: 128 | B143: 2017-10-11 | C143: 254.509995 | D143: 255.020004 | E143: 254.320007 | F143: 255.020004 | G143: 47674300 | H143: 252.710983 | I143: 0.990945726 | J143: 1 | K143: 252.21 | L143: 252.71 | M143: 252.02 | N143: 252.71 | O143: 47674300
A144: 129 | B144: 2017-10-10 | C144: 254.600006 | D144: 255.050003 | E144: 253.979996 | F144: 254.619995 | G144: 43057400 | H144: 252.31459 | I144: 0.9909457032 | J144: 1 | K144: 252.29 | L144: 252.74 | M144: 251.68 | N144: 252.31 | O144: 43057400
A145: 130 | B145: 2017-10-09 | C145: 254.630005 | D145: 254.699997 | E145: 253.649994 | F145: 253.949997 | G145: 35803100 | H145: 251.650665 | I145: =IF(F145=0,1,H145/F145) -> 0.9909457294 | J145: =INDEX(OFFSET($T$15,0,0,$S$13+1,1),MATCH(B145,OFFSET($Q$15,0,0,$S$13+1,1),-1)) -> 1 | K145: =ROUND($I145*C145,2) -> 252.32 | L145: =ROUND($I145*D145,2) -> 252.39 | M145: =ROUND($I145*E145,2) -> 251.35 | N145: =ROUND($I145*F145,2) -> 251.65 | O145: =G145*J145 -> 35803100
A146: 131 | B146: 2017-10-06 | C146: 254.149994 | D146: 254.699997 | E146: 253.850006 | F146: 254.369995 | G146: 80646000 | H146: 252.066849 | I146: 0.9909456852 | J146: 1 | K146: 251.85 | L146: 252.39 | M146: 251.55 | N146: 252.07 | O146: 80646000
A147: 132 | B147: 2017-10-05 | C147: 253.539993 | D147: 254.679993 | E147: 253.199997 | F147: 254.660004 | G147: 63522800 | H147: 252.354233 | I147: 0.9909456885 | J147: 1 | K147: 251.24 | L147: 252.37 | M147: 250.91 | N147: 252.35 | O147: 63522800
A148: 133 | B148: 2017-10-04 | C148: 252.690002 | D148: 253.440002 | E148: 252.559998 | F148: 253.160004 | G148: 55953600 | H148: 250.867813 | I148: 0.9909456827 | J148: 1 | K148: 250.4 | L148: 251.15 | M148: 250.27 | N148: 250.87 | O148: 55953600
A149: 134 | B149: 2017-10-03 | C149: 252.320007 | D149: 252.889999 | E149: 252.229996 | F149: 252.860001 | G149: 66810200 | H149: 250.570541 | I149: 0.9909457408 | J149: 1 | K149: 250.04 | L149: 250.6 | M149: 249.95 | N149: 250.57 | O149: 66810200
A150: 135 | B150: 2017-10-02 | C150: 251.490005 | D150: 252.320007 | E150: 251.289993 | F150: 252.320007 | G150: 59023000 | H150: 250.035431 | I150: 0.99094572 | J150: 1 | K150: 249.21 | L150: 250.04 | M150: 249.01 | N150: 250.04 | O150: 59023000
A151: 136 | B151: 2017-09-29 | C151: 250.339996 | D151: 251.320007 | E151: 250.130005 | F151: 251.229996 | G151: 85578000 | H151: 248.955292 | I151: 0.9909457309 | J151: 1 | K151: 248.07 | L151: 249.04 | M151: 247.87 | N151: 248.96 | O151: 85578000
A152: 137 | B152: 2017-09-28 | C152: 249.729996 | D152: 250.440002 | E152: 249.630005 | F152: 250.350006 | G152: 44778800 | H152: 248.083267 | I152: 0.9909457202 | J152: 1 | K152: 247.47 | L152: 248.17 | M152: 247.37 | N152: 248.08 | O152: 44778800
A153: 138 | B153: 2017-09-27 | C153: 249.880005 | D153: 250.490005 | E153: 248.869995 | F153: 250.050003 | G153: 81001400 | H153: 247.78598 | I153: 0.990945719 | J153: 1 | K153: 247.62 | L153: 248.22 | M153: 246.62 | N153: 247.79 | O153: 81001400
A154: 139 | B154: 2017-09-26 | C154: 249.419998 | D154: 249.699997 | E154: 248.809998 | F154: 249.080002 | G154: 54082000 | H154: 246.824753 | I154: 0.9909456842 | J154: 1 | K154: 247.16 | L154: 247.44 | M154: 246.56 | N154: 246.82 | O154: 54082000
A155: 140 | B155: 2017-09-25 | C155: 249.149994 | D155: 249.550003 | E155: 248.080002 | F155: 248.929993 | G155: 57064400 | H155: 246.676102 | I155: 0.9909456833 | J155: 1 | K155: 246.89 | L155: 247.29 | M155: 245.83 | N155: 246.68 | O155: 57064400
A156: 141 | B156: 2017-09-22 | C156: 249.050003 | D156: 249.630005 | E156: 249.020004 | F156: 249.440002 | G156: 51214000 | H156: 247.181503 | I156: 0.9909457225 | J156: 1 | K156: 246.8 | L156: 247.37 | M156: 246.77 | N156: 247.18 | O156: 51214000
A157: 142 | B157: 2017-09-21 | C157: 249.880005 | D157: 249.979996 | E157: 249.190002 | F157: 249.389999 | G157: 48211400 | H157: 247.131958 | I157: 0.9909457436 | J157: 1 | K157: 247.62 | L157: 247.72 | M157: 246.93 | N157: 247.13 | O157: 48211400
A158: 143 | B158: 2017-09-20 | C158: 250.070007 | D158: 250.190002 | E158: 248.919998 | F158: 250.059998 | G158: 59574100 | H158: 247.795883 | I158: 0.990945713 | J158: 1 | K158: 247.81 | L158: 247.92 | M158: 246.67 | N158: 247.8 | O158: 59574100
A159: 144 | B159: 2017-09-19 | C159: 250 | D159: 250.070007 | E159: 249.600006 | F159: 249.970001 | G159: 47108100 | H159: 247.706696 | I159: 0.9909456935 | J159: 1 | K159: 247.74 | L159: 247.81 | M159: 247.34 | N159: 247.71 | O159: 47108100
A160: 145 | B160: 2017-09-18 | C160: 249.610001 | D160: 250.119995 | E160: 249.279999 | F160: 249.720001 | G160: 46235200 | H160: 247.458969 | I160: 0.9909457313 | J160: 1 | K160: 247.35 | L160: 247.86 | M160: 247.02 | N160: 247.46 | O160: 46235200
A161: 146 | B161: 2017-09-15 | C161: 248.690002 | D161: 249.289993 | E161: 248.570007 | F161: 249.190002 | G161: 95432400 | H161: 246.933762 | I161: 0.9909457042 | J161: 1 | K161: 246.44 | L161: 247.03 | M161: 246.32 | N161: 246.93 | O161: 95432400
A162: 147 | B162: 2017-09-14 | C162: 249.800003 | D162: 250.320007 | E162: 249.600006 | F162: 250.089996 | G162: 95446300 | H162: 246.601791 | I162: 0.986052201 | J162: 1 | K162: 246.32 | L162: 246.83 | M162: 246.12 | N162: 246.6 | O162: 95446300
A163: 148 | B163: 2017-09-13 | C163: 249.720001 | D163: 250.210007 | E163: 249.589996 | F163: 250.169998 | G163: 59228000 | H163: 246.680679 | I163: 0.9860522084 | J163: 1 | K163: 246.24 | L163: 246.72 | M163: 246.11 | N163: 246.68 | O163: 59228000
A164: 149 | B164: 2017-09-12 | C164: 249.630005 | D164: 250.089996 | E164: 249.419998 | F164: 250.050003 | G164: 56896000 | H164: 246.562347 | I164: 0.9860521657 | J164: 1 | K164: 246.15 | L164: 246.6 | M164: 245.94 | N164: 246.56 | O164: 56896000
A165: 150 | B165: 2017-09-11 | C165: 248.039993 | D165: 249.300003 | E165: 248.020004 | F165: 249.210007 | G165: 71364800 | H165: 245.73407 | I165: 0.9860521773 | J165: 1 | K165: 244.58 | L165: 245.82 | M165: 244.56 | N165: 245.73 | O165: 71364800
A166: 151 | B166: 2017-09-08 | C166: 246.539993 | D166: 247.110001 | E166: 246.300003 | F166: 246.580002 | G166: 63832800 | H166: 243.140762 | I166: 0.9860522347 | J166: 1 | K166: 243.1 | L166: 243.66 | M166: 242.86 | N166: 243.14 | O166: 63832800
A167: 152 | B167: 2017-09-07 | C167: 247.25 | D167: 247.270004 | E167: 246.399994 | F167: 246.869995 | G167: 58034700 | H167: 243.426712 | I167: 0.9860522418 | J167: 1 | K167: 243.8 | L167: 243.82 | M167: 242.96 | N167: 243.43 | O167: 58034700
A168: 153 | B168: 2017-09-06 | C168: 246.839996 | D168: 247.279999 | E168: 246.229996 | F168: 246.899994 | G168: 57916900 | H168: 243.456284 | I168: 0.986052207 | J168: 1 | K168: 243.4 | L168: 243.83 | M168: 242.8 | N168: 243.46 | O168: 57916900
A169: 154 | B169: 2017-09-05 | C169: 247.259995 | D169: 247.520004 | E169: 244.949997 | F169: 246.059998 | G169: 91398800 | H169: 242.627991 | I169: 0.9860521538 | J169: 1 | K169: 243.81 | L169: 244.07 | M169: 241.53 | N169: 242.63 | O169: 91398800
A170: 155 | B170: 2017-09-01 | C170: 247.919998 | D170: 248.330002 | E170: 247.669998 | F170: 247.839996 | G170: 62007000 | H170: 244.383163 | I170: 0.9860521584 | J170: 1 | K170: 244.46 | L170: 244.87 | M170: 244.22 | N170: 244.38 | O170: 62007000
A171: 156 | B171: 2017-08-31 | C171: 246.720001 | D171: 247.770004 | E171: 246.050003 | F171: 247.490005 | G171: 103803900 | H171: 244.038055 | I171: 0.986052164 | J171: 1 | K171: 243.28 | L171: 244.31 | M171: 242.62 | N171: 244.04 | O171: 103803900
A172: 157 | B172: 2017-08-30 | C172: 244.830002 | D172: 246.320007 | E172: 244.619995 | F172: 246.009995 | G172: 62030800 | H172: 242.57869 | I172: 0.9860521724 | J172: 1 | K172: 241.42 | L172: 242.88 | M172: 241.21 | N172: 242.58 | O172: 62030800
A173: 158 | B173: 2017-08-29 | C173: 243.059998 | D173: 245.149994 | E173: 242.929993 | F173: 244.850006 | G173: 51135700 | H173: 241.434891 | I173: 0.986052216 | J173: 1 | K173: 239.67 | L173: 241.73 | M173: 239.54 | N173: 241.43 | O173: 51135700
A174: 159 | B174: 2017-08-28 | C174: 245.169998 | D174: 245.199997 | E174: 244.089996 | F174: 244.570007 | G174: 40565600 | H174: 241.158783 | I174: 0.9860521572 | J174: 1 | K174: 241.75 | L174: 241.78 | M174: 240.69 | N174: 241.16 | O174: 40565600
A175: 160 | B175: 2017-08-25 | C175: 244.899994 | D175: 245.610001 | E175: 244.389999 | F175: 244.559998 | G175: 64445900 | H175: 241.148911 | I175: 0.9860521466 | J175: 1 | K175: 241.48 | L175: 242.18 | M175: 240.98 | N175: 241.15 | O175: 64445900
A176: 161 | B176: 2017-08-24 | C176: 245 | D176: 245.179993 | E176: 243.75 | F176: 243.990005 | G176: 49730500 | H176: 240.586884 | I176: 0.9860522114 | J176: 1 | K176: 241.58 | L176: 241.76 | M176: 240.35 | N176: 240.59 | O176: 49730500
A177: 162 | B177: 2017-08-23 | C177: 244.330002 | D177: 245.050003 | E177: 244.160004 | F177: 244.559998 | G177: 50203800 | H177: 241.148911 | I177: 0.9860521466 | J177: 1 | K177: 240.92 | L177: 241.63 | M177: 240.75 | N177: 241.15 | O177: 50203800
A178: 163 | B178: 2017-08-22 | C178: 243.570007 | D178: 245.619995 | E178: 243.550003 | F178: 245.440002 | G178: 63140100 | H178: 242.016663 | I178: 0.9860522369 | J178: 1 | K178: 240.17 | L178: 242.19 | M178: 240.15 | N178: 242.02 | O178: 63140100
A179: 164 | B179: 2017-08-21 | C179: 242.639999 | D179: 243.199997 | E179: 241.830002 | F179: 242.899994 | G179: 65469700 | H179: 239.51207 | I179: 0.9860521857 | J179: 1 | K179: 239.26 | L179: 239.81 | M179: 238.46 | N179: 239.51 | O179: 65469700
A180: 165 | B180: 2017-08-18 | C180: 242.899994 | D180: 244.190002 | E180: 242.199997 | F180: 242.710007 | G180: 136748000 | H180: 239.324738 | I180: 0.9860522067 | J180: 1 | K180: 239.51 | L180: 240.78 | M180: 238.82 | N180: 239.32 | O180: 136748000
A181: 166 | B181: 2017-08-17 | C181: 246.240005 | D181: 246.600006 | E181: 243.089996 | F181: 243.089996 | G181: 128490400 | H181: 239.699417 | I181: 0.9860521656 | J181: 1 | K181: 242.81 | L181: 243.16 | M181: 239.7 | N181: 239.7 | O181: 128490400
A182: 167 | B182: 2017-08-16 | C182: 247.110001 | D182: 247.570007 | E182: 246.449997 | F182: 246.940002 | G182: 56715500 | H182: 243.495728 | I182: 0.9860521828 | J182: 1 | K182: 243.66 | L182: 244.12 | M182: 243.01 | N182: 243.5 | O182: 56715500
A183: 168 | B183: 2017-08-15 | C183: 246.979996 | D183: 247 | E183: 246.160004 | F183: 246.509995 | G183: 55242700 | H183: 243.071716 | I183: 0.986052172 | J183: 1 | K183: 243.54 | L183: 243.55 | M183: 242.73 | N183: 243.07 | O183: 55242700
A184: 169 | B184: 2017-08-14 | C184: 245.589996 | D184: 246.789993 | E184: 245.550003 | F184: 246.539993 | G184: 72139000 | H184: 243.101303 | I184: 0.9860522021 | J184: 1 | K184: 242.16 | L184: 243.35 | M184: 242.13 | N184: 243.1 | O184: 72139000
A185: 170 | B185: 2017-08-11 | C185: 244.020004 | D185: 244.800003 | E185: 243.75 | F185: 244.119995 | G185: 74869900 | H185: 240.715057 | I185: 0.9860521954 | J185: 1 | K185: 240.62 | L185: 241.39 | M185: 240.35 | N185: 240.72 | O185: 74869900
A186: 171 | B186: 2017-08-10 | C186: 246.289993 | D186: 246.440002 | E186: 243.699997 | F186: 243.759995 | G186: 120479500 | H186: 240.360077 | I186: 0.9860521904 | J186: 1 | K186: 242.85 | L186: 243 | M186: 240.3 | N186: 240.36 | O186: 120479500
A187: 172 | B187: 2017-08-09 | C187: 246.470001 | D187: 247.309998 | E187: 246.059998 | F187: 247.25 | G187: 62632600 | H187: 243.801407 | I187: 0.9860522022 | J187: 1 | K187: 243.03 | L187: 243.86 | M187: 242.63 | N187: 243.8 | O187: 62632600
A188: 173 | B188: 2017-08-08 | C188: 247.509995 | D188: 248.910004 | E188: 246.830002 | F188: 247.259995 | G188: 61719400 | H188: 243.811264 | I188: 0.9860522079 | J188: 1 | K188: 244.06 | L188: 245.44 | M188: 243.39 | N188: 243.81 | O188: 61719400
A189: 174 | B189: 2017-08-07 | C189: 247.490005 | D189: 247.869995 | E189: 247.369995 | F189: 247.869995 | G189: 31995000 | H189: 244.412735 | I189: 0.9860521238 | J189: 1 | K189: 244.04 | L189: 244.41 | M189: 243.92 | N189: 244.41 | O189: 31995000
A190: 175 | B190: 2017-08-04 | C190: 247.520004 | D190: 247.789993 | E190: 246.970001 | F190: 247.410004 | G190: 60191800 | H190: 243.959167 | I190: 0.9860521525 | J190: 1 | K190: 244.07 | L190: 244.33 | M190: 243.53 | N190: 243.96 | O190: 60191800
A191: 176 | B191: 2017-08-03 | C191: 247.309998 | D191: 247.339996 | E191: 246.639999 | F191: 246.960007 | G191: 40856000 | H191: 243.515457 | I191: 0.9860521951 | J191: 1 | K191: 243.86 | L191: 243.89 | M191: 243.2 | N191: 243.52 | O191: 40856000
A192: 177 | B192: 2017-08-02 | C192: 247.470001 | D192: 247.600006 | E192: 246.369995 | F192: 247.440002 | G192: 47211200 | H192: 243.988739 | I192: 0.9860521218 | J192: 1 | K192: 244.02 | L192: 244.15 | M192: 242.93 | N192: 243.99 | O192: 47211200
A193: 178 | B193: 2017-08-01 | C193: 247.460007 | D193: 247.5 | E193: 246.720001 | F193: 247.320007 | G193: 55050400 | H193: 243.870422 | I193: 0.9860521393 | J193: 1 | K193: 244.01 | L193: 244.05 | M193: 243.28 | N193: 243.87 | O193: 55050400
A194: 179 | B194: 2017-07-31 | C194: 247.369995 | D194: 247.479996 | E194: 246.529999 | F194: 246.770004 | G194: 65838700 | H194: 243.32811 | I194: 0.9860522189 | J194: 1 | K194: 243.92 | L194: 244.03 | M194: 243.09 | N194: 243.33 | O194: 65838700
A195: 180 | B195: 2017-07-28 | C195: 246.649994 | D195: 247.059998 | E195: 246.130005 | F195: 246.910004 | G195: 50088400 | H195: 243.466156 | I195: 0.9860522136 | J195: 1 | K195: 243.21 | L195: 243.61 | M195: 242.7 | N195: 243.47 | O195: 50088400
A196: 181 | B196: 2017-07-27 | C196: 247.960007 | D196: 248 | E196: 245.679993 | F196: 247.199997 | G196: 70766600 | H196: 243.752106 | I196: 0.9860522207 | J196: 1 | K196: 244.5 | L196: 244.54 | M196: 242.25 | N196: 243.75 | O196: 70766600
A197: 182 | B197: 2017-07-26 | C197: 247.75 | D197: 247.789993 | E197: 247.130005 | F197: 247.429993 | G197: 47575400 | H197: 243.978897 | I197: 0.9860522326 | J197: 1 | K197: 244.29 | L197: 244.33 | M197: 243.68 | N197: 243.98 | O197: 47575400
A198: 183 | B198: 2017-07-25 | C198: 247.679993 | D198: 247.800003 | E198: 247.160004 | F198: 247.419998 | G198: 54915600 | H198: 243.969025 | I198: 0.9860521662 | J198: 1 | K198: 244.23 | L198: 244.34 | M198: 243.71 | N198: 243.97 | O198: 54915600
A199: 184 | B199: 2017-07-24 | C199: 246.789993 | D199: 246.979996 | E199: 246.279999 | F199: 246.820007 | G199: 46622300 | H199: 243.377411 | I199: 0.9860522004 | J199: 1 | K199: 243.35 | L199: 243.54 | M199: 242.84 | N199: 243.38 | O199: 46622300
A200: 185 | B200: 2017-07-21 | C200: 246.440002 | D200: 246.910004 | E200: 246.179993 | F200: 246.880005 | G200: 82340800 | H200: 243.436569 | I200: 0.9860521876 | J200: 1 | K200: 243 | L200: 243.47 | M200: 242.75 | N200: 243.44 | O200: 82340800
... 6164 more rows

Sheet CalculationsAndCharts
A1: Technical Method For Rating Stocks
A2: =InputPriceData!A1 -> McDonald's Corporation (MCD) -NYSE (Daily)
A4: User Charting Controls | E4: Click to Shift Chart One Bar:
A5: Data Control
A6: =InputPriceData!$B$10 -> 12182 | B6: Available Input Data Rows | E6: Earliest: | F6: =OFFSET(InputPriceData!B15,CalculationsAndCharts!A6,0,1,1) -> 1970-01-02
B7: Use Close Adjusted: | C7: FALSE | E7: Latest: | F7: =OFFSET(InputPriceData!B15,1,0,1,1) -> 2018-04-16
A8: =MIN(A6-A11,LOOKUP(2,1/(B:B<>0),ROW(A:A))-32) -> 1000 | B8: Logically Available for Calc / Plot | E8: $ Change: | F8: =G33-G34 -> -0.029999
F10: Y-axis Range
A11: 0 | B11: Input Data Offset (Pan) | E11: Max High+ | F11: =CEILING(MAX(MAX(OFFSET($E$33,0,0,$A$12,1)))+2*F14,0.1) -> 185.6
A12: 600 | B12: Data Points to Plot (Zoom) | E12: Min Low- | F12: =FLOOR(MIN(MIN(OFFSET($F$33,0,0,$A$12,1)))-2*F14,0.1) -> 103.4
B13: First: | C13: =OFFSET(B32,A12,0,1,1) -> 2015-11-25 | E13: White space %: | F13: 0.05
B14: ="Last: " & IF(OFFSET(InputPriceData!P15,1+A11,0,1,1)="","",TEXT(OFFSET(InputPriceData!P15,1+A11,0,1,1),"H:MM AM/PM")) -> Last: | C14: =B33 -> 2018-04-16 | E14: Allowance: | F14: =FLOOR((CEILING(MAX(MAX(OFFSET($E$33,0,0,$A$12,1))),1)-FLOOR(MIN(MIN(OFFSET($F$33,0,0,$A$12,1))),1))*F13,0.01) -> 3.45
A15: User Controls | D15: Market Index: | E15: SPY | F15: VFI
A16: 5 | B16: ScoreCrit | D16: Condition Weights | F16: Coef
A17: 63 | B17: MAP | D17: VFI : W1 | E17: 1 | F17: 0.2
A18: 7 | B18: StiffMax | D18: MA : W2 | E18: 1 | F18: Vcoef
A19: 130 | B19: VfiPeriod | D19: MA>MA(4) : W3 | E19: 1 | F19: 2.5 | V19: ="Coefficients used for EMA(" & $A$20 & ") of " & InputIndexData!B4 -> Coefficients used for EMA(100) of SPY
A20: 100 | B20: MaIndex | D20: Stiffness : W4 | E20: 1 | F20: EMA
A21: 100 | B21: MaDays | D21: Index : W5 | E21: 2 | F21: 3 | G21: Alpha: | H21: =2/(F21+1) -> 0.5
D22: Sum of Weights | E22: =SUM(E17:E21) -> 6 | G22: 1-Alpha | H22: =1-H21 -> 0.5
A23: 4 | B23: Close Up-Trend Test Bar Separation | V23: Alpha
A24: 2 | B24: NDX Up-Trend Test Bar Separation | V24: =2/(A20+1) -> 0.0198019802
A25: Help! I would like to plot data | V25: 1-alpha
A26: From | B26: 2016-12-05 | C26: =OFFSET(InputPriceData!$A$15,MATCH(B26,OFFSET(InputPriceData!B15,1,0,InputPriceData!$B$10,1),0),0,1,1)-C27 -> 260 | E26: 75 | V26: =1-V24 -> 0.9801980198 | Z26: Separation Bars | AB26: Separation Bars
A27: To | B27: 2017-12-14 | C27: =OFFSET(InputPriceData!$A$15,MATCH(B27,OFFSET(InputPriceData!$B$15,1,0,InputPriceData!$B$10,1),0),0,1,1)-1 -> 82 | E27: =$A$12-$E$26+1 -> 526
H28: @ Cursor => | I28: =OFFSET(A32,$E$27,0,1,1)&"(RR)" -> 526(RR) | J28: =OFFSET($B$32,E27,0,1,1) -> 2016-03-15 | K28: =TEXT(OFFSET(D32,$E$27,0,1,1),"#,##0.00")&"(o)" -> 122.30(o) | L28: =TEXT(OFFSET(E32,$E$27,0,1,1),"#,##0.00")&"(h)" -> 123.76(h) | M28: =TEXT(OFFSET(F32,$E$27,0,1,1),"#,##0.00")&"(l)" -> 122.21(l) | N28: =TEXT(OFFSET(G32,$E$27,0,1,1),"#,##0.00")&"(c)" -> 123.43(c) | Z28: =A23 -> 4 | AB28: =A24 -> 2
E29: Cursor ==> | X29: Weighted Conditions, Score, and Filter | AT29: Chart Cursor work area
X30: Cond 1 | Y30: Cond 2 | Z30: Cond 3 | AA30: Cond 4 | AB30: Cond 5 | AC30: ="Score" &CHAR(10) & "Card" -> Score Card | AD30: Filter | AE30: ScoreCrit
A31: Rel Row | H31: VFI Calculations | S31: Stiffness | V31: ="EMA(" & $A$20 & ") of " & InputIndexData!B4 -> EMA(100) of SPY | X31: Positive VFI | Y31: Close Above MA | Z31: Close MA Trend Up | AA31: Stiffness <= Max | AB31: NDX Trend Up | AC31: Weighted Cond's | AD31: Score >= ScoreCrit | AE31: Score Crit | AF31: Buy Flag | AO31: Used To Color Vol Bars
B32: Date | C32: Volume | D32: Open | E32: High | F32: Low | G32: Close | H32: AVG | I32: inter | J32: Vinter | K32: Cutoff | L32: ="Vave("&A19&")" -> Vave(130) | M32: Vmax | N32: Vc | O32: MF | P32: VCP | Q32: VFI Prelim | R32: ="VFI (EMA:" & F21 & ")" -> VFI (EMA:3) | S32: ="MaClose("&A21&")" -> MaClose(100) | T32: CLMA | U32: ="Stiff("&A17&")" -> Stiff(63) | AO32: Up Vol | AP32: Dn Vol | AT32: Volume Cursor | AV32: =MAX(OFFSET(C33,0,0,A12,1)) -> 15141500 | AW32: Score Chart Cursor | AY32: Price Chart Cursor
A33: 1 | B33: =OFFSET(InputPriceData!B$15,CalculationsAndCharts!$A33+$A$11,0,1,1) -> 2018-04-16 | C33: =OFFSET(InputPriceData!G$15,CalculationsAndCharts!$A33+$A$11,IF($C$7,8,0),1,1) -> 2261078 | D33: =OFFSET(InputPriceData!C$15,CalculationsAndCharts!$A33+$A$11,IF($C$7,8,0),1,1) -> 161.300003 | E33: =OFFSET(InputPriceData!D$15,CalculationsAndCharts!$A33+$A$11,IF($C$7,8,0),1,1) -> 162.429993 | F33: =OFFSET(InputPriceData!E$15,CalculationsAndCharts!$A33+$A$11,IF($C$7,8,0),1,1) -> 160.860001 | G33: =OFFSET(InputPriceData!F$15,CalculationsAndCharts!$A33+$A$11,IF($C$7,8,0),1,1) -> 161.699997 | H33: =AVERAGE(E33:G33) -> 161.6633303 | I33: =LN(H33)-LN(G34) -> -0.0004122884561 | J33: =STDEVP(OFFSET(I33,0,0,30,1)) -> 0.007699712569 | K33: =$F$17*J33*G33 -> 0.2490086999 | L33: =AVERAGE(OFFSET(C33,1,0,$A$19,1)) -> 3980463.846 | M33: =L33*$F$19 -> 9951159.615 | N33: =MIN(C33,M33) -> 2261078 | O33: =H33-H34 -> -0.386668 | P33: =IF(O33>K33,N33,IF(O33< -K33,-N33,0)) -> -2261078 | Q33: =SUM(OFFSET(P33,0,0,$A$19,1))/L33 -> 18.20755691 | R33: =IF(($A$8-268)>$A33,Q33*$H$21+R34*$H$22,0) -> 19.28611711 | S33: =AVERAGE(OFFSET(G33,0,0,$A$21,1)) -> 166.2324996 | T33: =(G33<S33) -> TRUE | U33: =COUNTIF(OFFSET(T33,0,0,$A$17,1),TRUE) -> 49 | V33: =OFFSET(InputIndexData!F$15,CalculationsAndCharts!$A33+$A$11,IF($C$7,8,0),1,1)*$V$24+$V$26*V34 -> 266.5942928 | X33: =IF(R33>0,1,0)*$E$17 -> 1 | Y33: =IF(G33>S33,1,0)*$E$18 -> 0 | Z33: =IF(S33>OFFSET(S33,$Z$28,0,1,1),1,0)*$E$19 -> 0 | AA33: =IF(U33<=$A$18,1,0)*$E$20 -> 0 | AB33: =IF(V33>=OFFSET(V33,$AB$28,0,1,1),1,0)*$E$21 -> 0 | AC33: =SUM(X33:AB33) -> 1 | AD33: =IF(AC33>=$A$16,1,0) -> 0 | AE33: =$A$16 -> 5 | AF33: =IF(AND(AD33=1,AD34=0),AD33*$AZ$34,NA()) ->  | AO33: =IF(G33>=D33,C33,NA()) -> 2261078 | AP33: =IF(G33<D33,C33,NA()) ->  | AT33: =$E$27 -> 526 | AV33: 0 | AW33: =$E$27 -> 526 | AX33: 0 | AY33: =$E$27 -> 526 | AZ33: 99.47759245
A34: 2 | B34: =OFFSET(InputPriceData!B$15,CalculationsAndCharts!$A34+$A$11,0,1,1) -> 2018-04-13 | C34: =OFFSET(InputPriceData!G$15,CalculationsAndCharts!$A34+$A$11,IF($C$7,8,0),1,1) -> 2441900 | D34: =OFFSET(InputPriceData!C$15,CalculationsAndCharts!$A34+$A$11,IF($C$7,8,0),1,1) -> 162.160004 | E34: =OFFSET(InputPriceData!D$15,CalculationsAndCharts!$A34+$A$11,IF($C$7,8,0),1,1) -> 163.160004 | F34: =OFFSET(InputPriceData!E$15,CalculationsAndCharts!$A34+$A$11,IF($C$7,8,0),1,1) -> 161.259995 | G34: =OFFSET(InputPriceData!F$15,CalculationsAndCharts!$A34+$A$11,IF($C$7,8,0),1,1) -> 161.729996 | H34: =AVERAGE(E34:G34) -> 162.0499983 | I34: =LN(H34)-LN(G35) -> 0.002657049434 | J34: =STDEVP(OFFSET(I34,0,0,30,1)) -> 0.0118968359 | K34: 0.3848150446 | L34: =AVERAGE(OFFSET(C34,1,0,$A$19,1)) -> 3983187.692 | M34: 9957969.231 | N34: =MIN(C34,M34) -> 2441900 | O34: =H34-H35 -> -0.803329 | P34: =IF(O34>K34,N34,IF(O34< -K34,-N34,0)) -> -2441900 | Q34: =SUM(OFFSET(P34,0,0,$A$19,1))/L34 -> 19.65363072 | R34: =IF(($A$8-268)>$A34,Q34*$H$21+R35*$H$22,0) -> 20.36467732 | S34: =AVERAGE(OFFSET(G34,0,0,$A$21,1)) -> 166.2826996 | T34: =(G34<S34) -> TRUE | U34: =COUNTIF(OFFSET(T34,0,0,$A$17,1),TRUE) -> 48 | V34: =OFFSET(InputIndexData!F$15,CalculationsAndCharts!$A34+$A$11,IF($C$7,8,0),1,1)*$V$24+$V$26*V35 -> 266.5735716 | X34: =IF(R34>0,1,0)*$E$17 -> 1 | Y34: =IF(G34>S34,1,0)*$E$18 -> 0 | Z34: =IF(S34>OFFSET(S34,$Z$28,0,1,1),1,0)*$E$19 -> 0 | AA34: =IF(U34<=$A$18,1,0)*$E$20 -> 0 | AB34: =IF(V34>=OFFSET(V34,$AB$28,0,1,1),1,0)*$E$21 -> 0 | AC34: =SUM(X34:AB34) -> 1 | AD34: =IF(AC34>=$A$16,1,0) -> 0 | AE34: =$A$16 -> 5 | AF34: =IF(AND(AD34=1,AD35=0),AD34*$AZ$34,NA()) ->  | AP34: 2441900 | AT34: =$E$27 -> 526 | AV34: =CEILING(AV32,10^INT(LOG10(AV32))) -> 20000000 | AW34: =$E$27 -> 526 | AX34: 6 | AY34: =$E$27 -> 526 | AZ34: 183.1674969
A35: 3 | B35: =OFFSET(InputPriceData!B$15,CalculationsAndCharts!$A35+$A$11,0,1,1) -> 2018-04-12 | C35: =OFFSET(InputPriceData!G$15,CalculationsAndCharts!$A35+$A$11,IF($C$7,8,0),1,1) -> 5178900 | D35: =OFFSET(InputPriceData!C$15,CalculationsAndCharts!$A35+$A$11,IF($C$7,8,0),1,1) -> 163.589996 | E35: =OFFSET(InputPriceData!D$15,CalculationsAndCharts!$A35+$A$11,IF($C$7,8,0),1,1) -> 165.399994 | F35: =OFFSET(InputPriceData!E$15,CalculationsAndCharts!$A35+$A$11,IF($C$7,8,0),1,1) -> 161.539993 | G35: =OFFSET(InputPriceData!F$15,CalculationsAndCharts!$A35+$A$11,IF($C$7,8,0),1,1) -> 161.619995 | H35: 162.8533273 | I35: -0.002983930038 | J35: 0.01193993802 | K35: 0.3859465445 | L35: 3957373.846 | M35: 9893434.615 | N35: 5178900 | O35: -0.373337 | P35: 0 | Q35: 21.10541062 | R35: 21.07572391 | S35: 166.3462996 | T35: TRUE | U35: 47 | V35: =OFFSET(InputIndexData!F$15,CalculationsAndCharts!$A35+$A$11,IF($C$7,8,0),1,1)*$V$24+$V$26*V36 -> 266.6023307 | X35: 1 | Y35: 0 | Z35: 0 | AA35: 0 | AB35: 0 | AC35: 1 | AD35: 0 | AE35: 5 | AP35: 5178900
A36: 4 | B36: =OFFSET(InputPriceData!B$15,CalculationsAndCharts!$A36+$A$11,0,1,1) -> 2018-04-11 | C36: =OFFSET(InputPriceData!G$15,CalculationsAndCharts!$A36+$A$11,IF($C$7,8,0),1,1) -> 2711100 | D36: =OFFSET(InputPriceData!C$15,CalculationsAndCharts!$A36+$A$11,IF($C$7,8,0),1,1) -> 162.5 | E36: =OFFSET(InputPriceData!D$15,CalculationsAndCharts!$A36+$A$11,IF($C$7,8,0),1,1) -> 164.059998 | F36: =OFFSET(InputPriceData!E$15,CalculationsAndCharts!$A36+$A$11,IF($C$7,8,0),1,1) -> 162.279999 | G36: =OFFSET(InputPriceData!F$15,CalculationsAndCharts!$A36+$A$11,IF($C$7,8,0),1,1) -> 163.339996 | H36: 163.2266643 | I36: 0.002801627602 | J36: 0.0121292794 | K36: 0.3962392899 | L36: 3953353.077 | M36: 9883382.692 | N36: 2711100 | O36: 0.299993 | P36: 0 | Q36: 21.12687594 | R36: 21.0460372 | S36: 166.4032997 | T36: TRUE | U36: 46 | V36: =OFFSET(InputIndexData!F$15,CalculationsAndCharts!$A36+$A$11,IF($C$7,8,0),1,1)*$V$24+$V$26*V37 -> 266.6159133 | X36: 1 | Y36: 0 | Z36: 0 | AA36: 0 | AB36: 0 | AC36: 1 | AD36: 0 | AE36: 5 | AO36: 2711100
A37: 5 | B37: =OFFSET(InputPriceData!B$15,CalculationsAndCharts!$A37+$A$11,0,1,1) -> 2018-04-10 | C37: =OFFSET(InputPriceData!G$15,CalculationsAndCharts!$A37+$A$11,IF($C$7,8,0),1,1) -> 3902600 | D37: =OFFSET(InputPriceData!C$15,CalculationsAndCharts!$A37+$A$11,IF($C$7,8,0),1,1) -> 162.830002 | E37: =OFFSET(InputPriceData!D$15,CalculationsAndCharts!$A37+$A$11,IF($C$7,8,0),1,1) -> 163.960007 | F37: =OFFSET(InputPriceData!E$15,CalculationsAndCharts!$A37+$A$11,IF($C$7,8,0),1,1) -> 162.050003 | G37: =OFFSET(InputPriceData!F$15,CalculationsAndCharts!$A37+$A$11,IF($C$7,8,0),1,1) -> 162.770004 | H37: 162.9266713 | I37: 0.0104683383 | J37: 0.01229578751 | K37: 0.4002770764 | L37: 3941848.462 | M37: 9854621.154 | N37: 3902600 | O37: 0.9733376667 | P37: 3902600 | Q37: 21.74370751 | R37: 20.96519846 | S37: 166.4509998 | T37: TRUE | U37: 45 | V37: =OFFSET(InputIndexData!F$15,CalculationsAndCharts!$A37+$A$11,IF($C$7,8,0),1,1)*$V$24+$V$26*V38 -> 266.6736083 | X37: 1 | Y37: 0 | Z37: 0 | AA37: 0 | AB37: 0 | AC37: 1 | AD37: 0 | AE37: 5 | AP37: 3902600
A38: 6 | B38: =OFFSET(InputPriceData!B$15,CalculationsAndCharts!$A38+$A$11,0,1,1) -> 2018-04-09 | C38: =OFFSET(InputPriceData!G$15,CalculationsAndCharts!$A38+$A$11,IF($C$7,8,0),1,1) -> 3581500 | D38: =OFFSET(InputPriceData!C$15,CalculationsAndCharts!$A38+$A$11,IF($C$7,8,0),1,1) -> 162.220001 | E38: =OFFSET(InputPriceData!D$15,CalculationsAndCharts!$A38+$A$11,IF($C$7,8,0),1,1) -> 163.570007 | F38: =OFFSET(InputPriceData!E$15,CalculationsAndCharts!$A38+$A$11,IF($C$7,8,0),1,1) -> 161.059998 | G38: =OFFSET(InputPriceData!F$15,CalculationsAndCharts!$A38+$A$11,IF($C$7,8,0),1,1) -> 161.229996 | H38: 161.9533337 | I38: 0.004352274272 | J38: 0.01217324058 | K38: 0.3925383059 | L38: 3942530 | M38: 9856325 | N38: 3581500 | O38: =H38-H39 -> -0.02666733333 | P38: =IF(O38>K38,N38,IF(O38< -K38,-N38,0)) -> 0 | Q38: 20.13955506 | R38: 20.18668941 | S38: 166.4969997 | T38: TRUE | U38: 44 | V38: =OFFSET(InputIndexData!F$15,CalculationsAndCharts!$A38+$A$11,IF($C$7,8,0),1,1)*$V$24+$V$26*V39 -> 266.7043884 | X38: 1 | Y38: 0 | Z38: 0 | AA38: 0 | AB38: 0 | AC38: 1 | AD38: 0 | AE38: 5 | AP38: 3581500
A39: 7 | B39: =OFFSET(InputPriceData!B$15,CalculationsAndCharts!$A39+$A$11,0,1,1) -> 2018-04-06 | C39: =OFFSET(InputPriceData!G$15,CalculationsAndCharts!$A39+$A$11,IF($C$7,8,0),1,1) -> 4321900 | D39: =OFFSET(InputPriceData!C$15,CalculationsAndCharts!$A39+$A$11,IF($C$7,8,0),1,1) -> 162.419998 | E39: =OFFSET(InputPriceData!D$15,CalculationsAndCharts!$A39+$A$11,IF($C$7,8,0),1,1) -> 163.779999 | F39: =OFFSET(InputPriceData!E$15,CalculationsAndCharts!$A39+$A$11,IF($C$7,8,0),1,1) -> 160.910004 | G39: =OFFSET(InputPriceData!F$15,CalculationsAndCharts!$A39+$A$11,IF($C$7,8,0),1,1) -> 161.25 | H39: 161.980001 | I39: -0.012088608 | J39: 0.01232897334 | K39: 0.3976093901 | L39: 3941670.769 | M39: 9854176.923 | N39: 4321900 | O39: -1.439997333 | P39: -4321900 | Q39: 20.14394521 | R39: 20.23382376 | S39: 166.5405997 | T39: TRUE | U39: 43 | V39: =OFFSET(InputIndexData!F$15,CalculationsAndCharts!$A39+$A$11,IF($C$7,8,0),1,1)*$V$24+$V$26*V40 -> 266.8196286 | X39: 1 | Y39: 0 | Z39: 0 | AA39: 0 | AB39: 0 | AC39: 1 | AD39: 0 | AE39: 5 | AP39: 4321900
A40: 8 | B40: =OFFSET(InputPriceData!B$15,CalculationsAndCharts!$A40+$A$11,0,1,1) -> 2018-04-05 | C40: =OFFSET(InputPriceData!G$15,CalculationsAndCharts!$A40+$A$11,IF($C$7,8,0),1,1) -> 4503900 | D40: =OFFSET(InputPriceData!C$15,CalculationsAndCharts!$A40+$A$11,IF($C$7,8,0),1,1) -> 162.399994 | E40: =OFFSET(InputPriceData!D$15,CalculationsAndCharts!$A40+$A$11,IF($C$7,8,0),1,1) -> 164.559998 | F40: =OFFSET(InputPriceData!E$15,CalculationsAndCharts!$A40+$A$11,IF($C$7,8,0),1,1) -> 161.75 | G40: =OFFSET(InputPriceData!F$15,CalculationsAndCharts!$A40+$A$11,IF($C$7,8,0),1,1) -> 163.949997 | H40: 163.4199983 | I40: 0.01039531036 | J40: 0.01220550979 | K40: 0.4002186586 | L40: 3937147.692 | M40: 9842869.231 | N40: 4503900 | O40: 2.833333333 | P40: 4503900 | Q40: 22.33416343 | R40: 20.32370231 | S40: 166.5980997 | T40: TRUE | U40: 42 | V40: =OFFSET(InputIndexData!F$15,CalculationsAndCharts!$A40+$A$11,IF($C$7,8,0),1,1)*$V$24+$V$26*V41 -> 266.9630554 | X40: 1 | Y40: 0 | Z40: 0 | AA40: 0 | AB40: 0 | AC40: 1 | AD40: 0 | AE40: 5 | AO40: 4503900
A41: 9 | B41: =OFFSET(InputPriceData!B$15,CalculationsAndCharts!$A41+$A$11,0,1,1) -> 2018-04-04 | C41: =OFFSET(InputPriceData!G$15,CalculationsAndCharts!$A41+$A$11,IF($C$7,8,0),1,1) -> 4888000 | D41: =OFFSET(InputPriceData!C$15,CalculationsAndCharts!$A41+$A$11,IF($C$7,8,0),1,1) -> 158.5 | E41: =OFFSET(InputPriceData!D$15,CalculationsAndCharts!$A41+$A$11,IF($C$7,8,0),1,1) -> 162.149994 | F41: =OFFSET(InputPriceData!E$15,CalculationsAndCharts!$A41+$A$11,IF($C$7,8,0),1,1) -> 157.880005 | G41: =OFFSET(InputPriceData!F$15,CalculationsAndCharts!$A41+$A$11,IF($C$7,8,0),1,1) -> 161.729996 | H41: 160.586665 | I41: 0.001163107661 | J41: 0.01227107101 | K41: 0.396920053 | L41: 3948932.308 | M41: 9872330.769 | N41: 4888000 | O41: 1.176666333 | P41: 4888000 | Q41: 20.13534135 | R41: 18.3132412 | S41: 166.6595998 | T41: TRUE | U41: 41 | V41: =OFFSET(InputIndexData!F$15,CalculationsAndCharts!$A41+$A$11,IF($C$7,8,0),1,1)*$V$24+$V$26*V42 -> 266.9897835 | X41: 1 | Y41: 0 | Z41: 0 | AA41: 0 | AB41: 0 | AC41: 1 | AD41: 0 | AE41: 5 | AO41: 4888000
A42: 10 | B42: =OFFSET(InputPriceData!B$15,CalculationsAndCharts!$A42+$A$11,0,1,1) -> 2018-04-03 | C42: =OFFSET(InputPriceData!G$15,CalculationsAndCharts!$A42+$A$11,IF($C$7,8,0),1,1) -> 4719400 | D42: =OFFSET(InputPriceData!C$15,CalculationsAndCharts!$A42+$A$11,IF($C$7,8,0),1,1) -> 157.979996 | E42: =OFFSET(InputPriceData!D$15,CalculationsAndCharts!$A42+$A$11,IF($C$7,8,0),1,1) -> 160.529999 | F42: =OFFSET(InputPriceData!E$15,CalculationsAndCharts!$A42+$A$11,IF($C$7,8,0),1,1) -> 157.300003 | G42: =OFFSET(InputPriceData!F$15,CalculationsAndCharts!$A42+$A$11,IF($C$7,8,0),1,1) -> 160.399994 | H42: 159.4099987 | I42: 0.01065817593 | J42: 0.01228527677 | K42: 0.394111664 | L42: 3940794.615 | M42: 9851986.538 | N42: 4719400 | O42: 1.699997 | P42: 4719400 | Q42: 17.30744854 | R42: 16.49114104 | S42: 166.7499998 | T42: TRUE | U42: 40 | V42: =OFFSET(InputIndexData!F$15,CalculationsAndCharts!$A42+$A$11,IF($C$7,8,0),1,1)*$V$24+$V$26*V43 -> 267.0590721 | X42: 1 | Y42: 0 | Z42: 0 | AA42: 0 | AB42: 0 | AC42: 1 | AD42: 0 | AE42: 5 | AO42: 4719400
A43: 11 | B43: =OFFSET(InputPriceData!B$15,CalculationsAndCharts!$A43+$A$11,0,1,1) -> 2018-04-02 | C43: =OFFSET(InputPriceData!G$15,CalculationsAndCharts!$A43+$A$11,IF($C$7,8,0),1,1) -> 6960100 | D43: =OFFSET(InputPriceData!C$15,CalculationsAndCharts!$A43+$A$11,IF($C$7,8,0),1,1) -> 158.270004 | E43: =OFFSET(InputPriceData!D$15,CalculationsAndCharts!$A43+$A$11,IF($C$7,8,0),1,1) -> 160.160004 | F43: =OFFSET(InputPriceData!E$15,CalculationsAndCharts!$A43+$A$11,IF($C$7,8,0),1,1) -> 155.25 | G43: =OFFSET(InputPriceData!F$15,CalculationsAndCharts!$A43+$A$11,IF($C$7,8,0),1,1) -> 157.720001 | H43: 157.7100017 | I43: 0.008468939398 | J43: 0.01249036648 | K43: 0.3939961228 | L43: 3906045.385 | M43: 9765113.462 | N43: 6960100 | O43: 0.1799976667 | P43: 0 | Q43: 15.31579747 | R43: 15.67483354 | S43: 166.8467 | T43: TRUE | U43: 39 | V43: =OFFSET(InputIndexData!F$15,CalculationsAndCharts!$A43+$A$11,IF($C$7,8,0),1,1)*$V$24+$V$26*V44 -> 267.1861243 | X43: 1 | Y43: 0 | Z43: 0 | AA43: 0 | AB43: 0 | AC43: 1 | AD43: 0 | AE43: 5 | AP43: 6960100
A44: 12 | B44: =OFFSET(InputPriceData!B$15,CalculationsAndCharts!$A44+$A$11,0,1,1) -> 2018-03-29 | C44: =OFFSET(InputPriceData!G$15,CalculationsAndCharts!$A44+$A$11,IF($C$7,8,0),1,1) -> 5289500 | D44: =OFFSET(InputPriceData!C$15,CalculationsAndCharts!$A44+$A$11,IF($C$7,8,0),1,1) -> 159 | E44: =OFFSET(InputPriceData!D$15,CalculationsAndCharts!$A44+$A$11,IF($C$7,8,0),1,1) -> 159.830002 | F44: =OFFSET(InputPriceData!E$15,CalculationsAndCharts!$A44+$A$11,IF($C$7,8,0),1,1) -> 156.380005 | G44: =OFFSET(InputPriceData!F$15,CalculationsAndCharts!$A44+$A$11,IF($C$7,8,0),1,1) -> 156.380005 | H44: 157.530004 | I44: -0.005570692242 | J44: 0.01241265912 | K44: 0.3882183391 | L44: 3884613.846 | M44: 9711534.615 | N44: 5289500 | O44: -1.133331333 | P44: -5289500 | Q44: 15.40029521 | R44: 16.03386962 | S44: 166.9559999 | T44: TRUE | U44: 38 | V44: =OFFSET(InputIndexData!F$15,CalculationsAndCharts!$A44+$A$11,IF($C$7,8,0),1,1)*$V$24+$V$26*V45 -> 267.3824096 | X44: 1 | Y44: 0 | Z44: 0 | AA44: 0 | AB44: 0 | AC44: 1 | AD44: 0 | AE44: 5 | AP44: 5289500
A45: 13 | B45: =OFFSET(InputPriceData!B$15,CalculationsAndCharts!$A45+$A$11,0,1,1) -> 2018-03-28 | C45: =OFFSET(InputPriceData!G$15,CalculationsAndCharts!$A45+$A$11,IF($C$7,8,0),1,1) -> 3913200 | D45: =OFFSET(InputPriceData!C$15,CalculationsAndCharts!$A45+$A$11,IF($C$7,8,0),1,1) -> 157.839996 | E45: =OFFSET(InputPriceData!D$15,CalculationsAndCharts!$A45+$A$11,IF($C$7,8,0),1,1) -> 159.759995 | F45: =OFFSET(InputPriceData!E$15,CalculationsAndCharts!$A45+$A$11,IF($C$7,8,0),1,1) -> 157.820007 | G45: =OFFSET(InputPriceData!F$15,CalculationsAndCharts!$A45+$A$11,IF($C$7,8,0),1,1) -> 158.410004 | H45: 158.6633353 | I45: 0.007486128869 | J45: 0.01255110679 | K45: 0.3976441754 | L45: 3882520.769 | M45: 9706301.923 | N45: 3913200 | O45: 0.7566683333 | P45: 3913200 | Q45: 16.77098562 | R45: 16.66744404 | S45: 167.0731999 | T45: TRUE | U45: 37 | V45: =OFFSET(InputIndexData!F$15,CalculationsAndCharts!$A45+$A$11,IF($C$7,8,0),1,1)*$V$24+$V$26*V46 -> 267.4679129 | X45: 1 | Y45: 0 | Z45: 0 | AA45: 0 | AB45: 0 | AC45: 1 | AD45: 0 | AE45: 5 | AO45: 3913200
A46: 14 | B46: =OFFSET(InputPriceData!B$15,CalculationsAndCharts!$A46+$A$11,0,1,1) -> 2018-03-27 | C46: =OFFSET(InputPriceData!G$15,CalculationsAndCharts!$A46+$A$11,IF($C$7,8,0),1,1) -> 3519100 | D46: =OFFSET(InputPriceData!C$15,CalculationsAndCharts!$A46+$A$11,IF($C$7,8,0),1,1) -> 158.5 | E46: =OFFSET(InputPriceData!D$15,CalculationsAndCharts!$A46+$A$11,IF($C$7,8,0),1,1) -> 159.770004 | F46: =OFFSET(InputPriceData!E$15,CalculationsAndCharts!$A46+$A$11,IF($C$7,8,0),1,1) -> 156.470001 | G46: =OFFSET(InputPriceData!F$15,CalculationsAndCharts!$A46+$A$11,IF($C$7,8,0),1,1) -> 157.479996 | H46: 157.906667 | I46: -0.0006541472237 | J46: 0.01255902059 | K46: 0.3955589025 | L46: 3882793.846 | M46: 9706984.615 | N46: 3519100 | O46: 0.433334 | P46: 3519100 | Q46: 16.69972771 | R46: 16.56390246 | S46: 167.1527998 | T46: TRUE | U46: 36 | V46: =OFFSET(InputIndexData!F$15,CalculationsAndCharts!$A46+$A$11,IF($C$7,8,0),1,1)*$V$24+$V$26*V47 -> 267.6222145 | X46: 1 | Y46: 0 | Z46: 0 | AA46: 0 | AB46: 0 | AC46: 1 | AD46: 0 | AE46: 5 | AP46: 3519100
A47: 15 | B47: =OFFSET(InputPriceData!B$15,CalculationsAndCharts!$A47+$A$11,0,1,1) -> 2018-03-26 | C47: =OFFSET(InputPriceData!G$15,CalculationsAndCharts!$A47+$A$11,IF($C$7,8,0),1,1) -> 3477000 | D47: =OFFSET(InputPriceData!C$15,CalculationsAndCharts!$A47+$A$11,IF($C$7,8,0),1,1) -> 156.210007 | E47: =OFFSET(InputPriceData!D$15,CalculationsAndCharts!$A47+$A$11,IF($C$7,8,0),1,1) -> 158.199997 | F47: =OFFSET(InputPriceData!E$15,CalculationsAndCharts!$A47+$A$11,IF($C$7,8,0),1,1) -> 156.210007 | G47: =OFFSET(InputPriceData!F$15,CalculationsAndCharts!$A47+$A$11,IF($C$7,8,0),1,1) -> 158.009995 | H47: 157.473333 | I47: 0.01596007912 | J47: 0.01298497358 | K47: 0.410351122 | L47: 3885523.846 | M47: 9713809.615 | N47: 3477000 | O47: 1.580002 | P47: 3477000 | Q47: 16.69713083 | R47: 16.4280772 | S47: 167.2470999 | T47: TRUE | U47: 35 | V47: =OFFSET(InputIndexData!F$15,CalculationsAndCharts!$A47+$A$11,IF($C$7,8,0),1,1)*$V$24+$V$26*V48 -> 267.7640773 | X47: 1 | Y47: 0 | Z47: 0 | AA47: 0 | AB47: 0 | AC47: 1 | AD47: 0 | AE47: 5 | AO47: 3477000
A48: 16 | B48: =OFFSET(InputPriceData!B$15,CalculationsAndCharts!$A48+$A$11,0,1,1) -> 2018-03-23 | C48: =OFFSET(InputPriceData!G$15,CalculationsAndCharts!$A48+$A$11,IF($C$7,8,0),1,1) -> 3447400 | D48: =OFFSET(InputPriceData!C$15,CalculationsAndCharts!$A48+$A$11,IF($C$7,8,0),1,1) -> 157.589996 | E48: =OFFSET(InputPriceData!D$15,CalculationsAndCharts!$A48+$A$11,IF($C$7,8,0),1,1) -> 157.779999 | F48: =OFFSET(InputPriceData!E$15,CalculationsAndCharts!$A48+$A$11,IF($C$7,8,0),1,1) -> 154.919998 | G48: =OFFSET(InputPriceData!F$15,CalculationsAndCharts!$A48+$A$11,IF($C$7,8,0),1,1) -> 154.979996 | H48: 155.893331 | I48: -0.007328507666 | J48: 0.01267022836 | K48: 0.3927263882 | L48: 3916121.538 | M48: 9790303.846 | N48: 3447400 | O48: -1.776667 | P48: -3447400 | Q48: 14.70030984 | R48: 16.15902358 | S48: 167.3292999 | T48: TRUE | U48: 34 | V48: =OFFSET(InputIndexData!F$15,CalculationsAndCharts!$A48+$A$11,IF($C$7,8,0),1,1)*$V$24+$V$26*V49 -> 267.8176953 | X48: 1 | Y48: 0 | Z48: 0 | AA48: 0 | AB48: 0 | AC48: 1 | AD48: 0 | AE48: 5 | AP48: 3447400
A49: 17 | B49: =OFFSET(InputPriceData!B$15,CalculationsAndCharts!$A49+$A$11,0,1,1) -> 2018-03-22 | C49: =OFFSET(InputPriceData!G$15,CalculationsAndCharts!$A49+$A$11,IF($C$7,8,0),1,1) -> 3669400 | D49: =OFFSET(InputPriceData!C$15,CalculationsAndCharts!$A49+$A$11,IF($C$7,8,0),1,1) -> 157.850006 | E49: =OFFSET(InputPriceData!D$15,CalculationsAndCharts!$A49+$A$11,IF($C$7,8,0),1,1) -> 159.119995 | F49: =OFFSET(InputPriceData!E$15,CalculationsAndCharts!$A49+$A$11,IF($C$7,8,0),1,1) -> 156.850006 | G49: =OFFSET(InputPriceData!F$15,CalculationsAndCharts!$A49+$A$11,IF($C$7,8,0),1,1) -> 157.039993 | H49: 157.669998 | I49: -0.00625934452 | J49: 0.01357344349 | K49: 0.4263146941 | L49: 3911816.154 | M49: 9779540.385 | N49: 3669400 | O49: -1.450002333 | P49: -3669400 | Q49: 17.49588869 | R49: 17.61773731 | S49: 167.4333999 | T49: TRUE | U49: 33 | V49: =OFFSET(InputIndexData!F$15,CalculationsAndCharts!$A49+$A$11,IF($C$7,8,0),1,1)*$V$24+$V$26*V50 -> 268.0150227 | X49: 1 | Y49: 0 | Z49: 0 | AA49: 0 | AB49: 0 | AC49: 1 | AD49: 0 | AE49: 5 | AP49: 3669400
A50: 18 | B50: =OFFSET(InputPriceData!B$15,CalculationsAndCharts!$A50+$A$11,0,1,1) -> 2018-03-21 | C50: =OFFSET(InputPriceData!G$15,CalculationsAndCharts!$A50+$A$11,IF($C$7,8,0),1,1) -> 3871900 | D50: =OFFSET(InputPriceData!C$15,CalculationsAndCharts!$A50+$A$11,IF($C$7,8,0),1,1) -> 160 | E50: =OFFSET(InputPriceData!D$15,CalculationsAndCharts!$A50+$A$11,IF($C$7,8,0),1,1) -> 160.410004 | F50: =OFFSET(InputPriceData!E$15,CalculationsAndCharts!$A50+$A$11,IF($C$7,8,0),1,1) -> 158.289993 | G50: =OFFSET(InputPriceData!F$15,CalculationsAndCharts!$A50+$A$11,IF($C$7,8,0),1,1) -> 158.660004 | H50: 159.1200003 | I50: -0.001632682701 | J50: 0.0135819771 | K50: 0.4309833082 | L50: 3918229.231 | M50: 9795573.077 | N50: 3871900 | O50: -0.6466673333 | P50: -3871900 | Q50: 18.40374714 | R50: 17.73958593 | S50: 167.5031 | T50: TRUE | U50: 32 | V50: =OFFSET(InputIndexData!F$15,CalculationsAndCharts!$A50+$A$11,IF($C$7,8,0),1,1)*$V$24+$V$26*V51 -> 268.1028007 | X50: 1 | Y50: 0 | Z50: 0 | AA50: 0 | AB50: 2 | AC50: 3 | AD50: 0 | AE50: 5 | AP50: 3871900
A51: 19 | B51: =OFFSET(InputPriceData!B$15,CalculationsAndCharts!$A51+$A$11,0,1,1) -> 2018-03-20 | C51: =OFFSET(InputPriceData!G$15,CalculationsAndCharts!$A51+$A$11,IF($C$7,8,0),1,1) -> 3105100 | D51: =OFFSET(InputPriceData!C$15,CalculationsAndCharts!$A51+$A$11,IF($C$7,8,0),1,1) -> 159.75 | E51: =OFFSET(InputPriceData!D$15,CalculationsAndCharts!$A51+$A$11,IF($C$7,8,0),1,1) -> 160.669998 | F51: =OFFSET(InputPriceData!E$15,CalculationsAndCharts!$A51+$A$11,IF($C$7,8,0),1,1) -> 159.25 | G51: =OFFSET(InputPriceData!F$15,CalculationsAndCharts!$A51+$A$11,IF($C$7,8,0),1,1) -> 159.380005 | H51: 159.7666677 | I51: 0.004747361877 | J51: 0.01359872834 | K51: 0.4334730782 | L51: 3973760 | M51: 9934400 | N51: 3105100 | O51: -0.09333333333 | P51: 0 | Q51: 17.93676518 | R51: 17.07542473 | S51: 167.5522999 | T51: TRUE | U51: 31 | V51: =OFFSET(InputIndexData!F$15,CalculationsAndCharts!$A51+$A$11,IF($C$7,8,0),1,1)*$V$24+$V$26*V52 -> 268.0557867 | X51: 1 | Y51: 0 | Z51: 0 | AA51: 0 | AB51: 2 | AC51: 3 | AD51: 0 | AE51: 5 | AP51: 3105100
A52: 20 | B52: =OFFSET(InputPriceData!B$15,CalculationsAndCharts!$A52+$A$11,0,1,1) -> 2018-03-19 | C52: =OFFSET(InputPriceData!G$15,CalculationsAndCharts!$A52+$A$11,IF($C$7,8,0),1,1) -> 4307600 | D52: =OFFSET(InputPriceData!C$15,CalculationsAndCharts!$A52+$A$11,IF($C$7,8,0),1,1) -> 162 | E52: =OFFSET(InputPriceData!D$15,CalculationsAndCharts!$A52+$A$11,IF($C$7,8,0),1,1) -> 162.360001 | F52: =OFFSET(InputPriceData!E$15,CalculationsAndCharts!$A52+$A$11,IF($C$7,8,0),1,1) -> 158.210007 | G52: =OFFSET(InputPriceData!F$15,CalculationsAndCharts!$A52+$A$11,IF($C$7,8,0),1,1) -> 159.009995 | H52: 159.860001 | I52: -0.01551765968 | J52: 0.01548880557 | K52: 0.4925749793 | L52: 3958575.385 | M52: 9896438.462 | N52: 4307600 | O52: -2.529998667 | P52: -4307600 | Q52: 15.84520694 | R52: 16.21408427 | S52: 167.5972999 | T52: TRUE | U52: 30 | V52: =OFFSET(InputIndexData!F$15,CalculationsAndCharts!$A52+$A$11,IF($C$7,8,0),1,1)*$V$24+$V$26*V53 -> 267.9973175 | X52: 1 | Y52: 0 | Z52: 0 | AA52: 0 | AB52: 2 | AC52: 3 | AD52: 0 | AE52: 5 | AP52: 4307600
A53: 21 | B53: =OFFSET(InputPriceData!B$15,CalculationsAndCharts!$A53+$A$11,0,1,1) -> 2018-03-16 | C53: =OFFSET(InputPriceData!G$15,CalculationsAndCharts!$A53+$A$11,IF($C$7,8,0),1,1) -> 14293800 | D53: =OFFSET(InputPriceData!C$15,CalculationsAndCharts!$A53+$A$11,IF($C$7,8,0),1,1) -> 161.880005 | E53: =OFFSET(InputPriceData!D$15,CalculationsAndCharts!$A53+$A$11,IF($C$7,8,0),1,1) -> 163.229996 | F53: =OFFSET(InputPriceData!E$15,CalculationsAndCharts!$A53+$A$11,IF($C$7,8,0),1,1) -> 161.580002 | G53: =OFFSET(InputPriceData!F$15,CalculationsAndCharts!$A53+$A$11,IF($C$7,8,0),1,1) -> 162.360001 | H53: 162.3899997 | I53: 0.004814815876 | J53: 0.01534054433 | K53: 0.4981381585 | L53: 3871578.462 | M53: 9678946.154 | N53: 9678946.154 | O53: 1.606669333 | P53: 9678946.154 | Q53: 17.9166319 | R53: 16.5829616 | S53: 167.6406 | T53: TRUE | U53: 29 | V53: =OFFSET(InputIndexData!F$15,CalculationsAndCharts!$A53+$A$11,IF($C$7,8,0),1,1)*$V$24+$V$26*V54 -> 267.9469605 | X53: 1 | Y53: 0 | Z53: 0 | AA53: 0 | AB53: 2 | AC53: 3 | AD53: 0 | AE53: 5 | AO53: 14293800
A54: 22 | B54: =OFFSET(InputPriceData!B$15,CalculationsAndCharts!$A54+$A$11,0,1,1) -> 2018-03-15 | C54: =OFFSET(InputPriceData!G$15,CalculationsAndCharts!$A54+$A$11,IF($C$7,8,0),1,1) -> 5925700 | D54: =OFFSET(InputPriceData!C$15,CalculationsAndCharts!$A54+$A$11,IF($C$7,8,0),1,1) -> 158.710007 | E54: =OFFSET(InputPriceData!D$15,CalculationsAndCharts!$A54+$A$11,IF($C$7,8,0),1,1) -> 162.149994 | F54: =OFFSET(InputPriceData!E$15,CalculationsAndCharts!$A54+$A$11,IF($C$7,8,0),1,1) -> 158.589996 | G54: =OFFSET(InputPriceData!F$15,CalculationsAndCharts!$A54+$A$11,IF($C$7,8,0),1,1) -> 161.610001 | H54: 160.7833303 | I54: 0.01594478482 | J54: 0.01530731835 | K54: 0.4947631467 | L54: 3848806.923 | M54: 9622017.308 | N54: 5925700 | O54: 2.453328667 | P54: 5925700 | Q54: 16.28320185 | R54: 15.24929131 | S54: 167.68 | T54: TRUE | U54: 28 | V54: =OFFSET(InputIndexData!F$15,CalculationsAndCharts!$A54+$A$11,IF($C$7,8,0),1,1)*$V$24+$V$26*V55 -> 267.8206362 | X54: 1 | Y54: 0 | Z54: 0 | AA54: 0 | AB54: 2 | AC54: 3 | AD54: 0 | AE54: 5 | AO54: 5925700
A55: 23 | B55: =OFFSET(InputPriceData!B$15,CalculationsAndCharts!$A55+$A$11,0,1,1) -> 2018-03-14 | C55: =OFFSET(InputPriceData!G$15,CalculationsAndCharts!$A55+$A$11,IF($C$7,8,0),1,1) -> 3879000 | D55: =OFFSET(InputPriceData!C$15,CalculationsAndCharts!$A55+$A$11,IF($C$7,8,0),1,1) -> 159 | E55: =OFFSET(InputPriceData!D$15,CalculationsAndCharts!$A55+$A$11,IF($C$7,8,0),1,1) -> 159.509995 | F55: =OFFSET(InputPriceData!E$15,CalculationsAndCharts!$A55+$A$11,IF($C$7,8,0),1,1) -> 157.240005 | G55: =OFFSET(InputPriceData!F$15,CalculationsAndCharts!$A55+$A$11,IF($C$7,8,0),1,1) -> 158.240005 | H55: 158.3300017 | I55: 0.0006949971263 | J55: 0.01495043417 | K55: 0.4731513557 | L55: 3850840 | M55: 9627100 | N55: 3879000 | O55: -0.443334 | P55: 0 | Q55: 15.50586366 | R55: 14.21538078 | S55: 167.7289 | T55: TRUE | U55: 27 | V55: =OFFSET(InputIndexData!F$15,CalculationsAndCharts!$A55+$A$11,IF($C$7,8,0),1,1)*$V$24+$V$26*V56 -> 267.6755986 | X55: 1 | Y55: 0 | Z55: 0 | AA55: 0 | AB55: 2 | AC55: 3 | AD55: 0 | AE55: 5 | AP55: 3879000
A56: 24 | B56: =OFFSET(InputPriceData!B$15,CalculationsAndCharts!$A56+$A$11,0,1,1) -> 2018-03-13 | C56: =OFFSET(InputPriceData!G$15,CalculationsAndCharts!$A56+$A$11,IF($C$7,8,0),1,1) -> 4333100 | D56: =OFFSET(InputPriceData!C$15,CalculationsAndCharts!$A56+$A$11,IF($C$7,8,0),1,1) -> 158.559998 | E56: =OFFSET(InputPriceData!D$15,CalculationsAndCharts!$A56+$A$11,IF($C$7,8,0),1,1) -> 159.889999 | F56: =OFFSET(InputPriceData!E$15,CalculationsAndCharts!$A56+$A$11,IF($C$7,8,0),1,1) -> 158.210007 | G56: =OFFSET(InputPriceData!F$15,CalculationsAndCharts!$A56+$A$11,IF($C$7,8,0),1,1) -> 158.220001 | H56: 158.7733357 | I56: 0.006529483628 | J56: 0.01539991023 | K56: 0.4873147624 | L56: 3848281.538 | M56: 9620703.846 | N56: 4333100 | O56: 0.5400033333 | P56: 4333100 | Q56: 14.43951006 | R56: 12.9248979 | S56: 167.8042 | T56: TRUE | U56: 26 | V56: =OFFSET(InputIndexData!F$15,CalculationsAndCharts!$A56+$A$11,IF($C$7,8,0),1,1)*$V$24+$V$26*V57 -> 267.5215705 | X56: 1 | Y56: 0 | Z56: 0 | AA56: 0 | AB56: 2 | AC56: 3 | AD56: 0 | AE56: 5 | AP56: 4333100
A57: 25 | B57: =OFFSET(InputPriceData!B$15,CalculationsAndCharts!$A57+$A$11,0,1,1) -> 2018-03-12 | C57: =OFFSET(InputPriceData!G$15,CalculationsAndCharts!$A57+$A$11,IF($C$7,8,0),1,1) -> 4461500 | D57: =OFFSET(InputPriceData!C$15,CalculationsAndCharts!$A57+$A$11,IF($C$7,8,0),1,1) -> 157.740005 | E57: =OFFSET(InputPriceData!D$15,CalculationsAndCharts!$A57+$A$11,IF($C$7,8,0),1,1) -> 159.449997 | F57: =OFFSET(InputPriceData!E$15,CalculationsAndCharts!$A57+$A$11,IF($C$7,8,0),1,1) -> 157.509995 | G57: =OFFSET(InputPriceData!F$15,CalculationsAndCharts!$A57+$A$11,IF($C$7,8,0),1,1) -> 157.740005 | H57: 158.2333323 | I57: 0.006297398217 | J57: 0.01529414758 | K57: 0.482499783 | L57: 3828410.769 | M57: 9571026.923 | N57: 4461500 | O57: 1.63 | P57: 4461500 | Q57: 12.33767818 | R57: 11.41028574 | S57: 167.8759999 | T57: TRUE | U57: 25 | V57: =OFFSET(InputIndexData!F$15,CalculationsAndCharts!$A57+$A$11,IF($C$7,8,0),1,1)*$V$24+$V$26*V58 -> 267.3357436 | X57: 1 | Y57: 0 | Z57: 0 | AA57: 0 | AB57: 2 | AC57: 3 | AD57: 0 | AE57: 5 | AO57: 4461500
A58: 26 | B58: =OFFSET(InputPriceData!B$15,CalculationsAndCharts!$A58+$A$11,0,1,1) -> 2018-03-09 | C58: =OFFSET(InputPriceData!G$15,CalculationsAndCharts!$A58+$A$11,IF($C$7,8,0),1,1) -> 5076500 | D58: =OFFSET(InputPriceData!C$15,CalculationsAndCharts!$A58+$A$11,IF($C$7,8,0),1,1) -> 155.619995 | E58: =OFFSET(InputPriceData!D$15,CalculationsAndCharts!$A58+$A$11,IF($C$7,8,0),1,1) -> 157.729996 | F58: =OFFSET(InputPriceData!E$15,CalculationsAndCharts!$A58+$A$11,IF($C$7,8,0),1,1) -> 154.839996 | G58: =OFFSET(InputPriceData!F$15,CalculationsAndCharts!$A58+$A$11,IF($C$7,8,0),1,1) -> 157.240005 | H58: 156.6033323 | I58: 0.01391037825 | J58: 0.01536086 | K58: 0.4830683406 | L58: 3810260.769 | M58: 9525651.923 | N58: 5076500 | O58: 2.703333333 | P58: 5076500 | Q58: 11.2255309 | R58: 10.48289331 | S58: 167.9486998 | T58: TRUE | U58: 24 | V58: =OFFSET(InputIndexData!F$15,CalculationsAndCharts!$A58+$A$11,IF($C$7,8,0),1,1)*$V$24+$V$26*V59 -> 267.1097993 | X58: 1 | Y58: 0 | Z58: 0 | AA58: 0 | AB58: 2 | AC58: 3 | AD58: 0 | AE58: 5 | AO58: 5076500
A59: 27 | B59: =OFFSET(InputPriceData!B$15,CalculationsAndCharts!$A59+$A$11,0,1,1) -> 2018-03-08 | C59: =OFFSET(InputPriceData!G$15,CalculationsAndCharts!$A59+$A$11,IF($C$7,8,0),1,1) -> 4291400 | D59: =OFFSET(InputPriceData!C$15,CalculationsAndCharts!$A59+$A$11,IF($C$7,8,0),1,1) -> 152.729996 | E59: =OFFSET(InputPriceData!D$15,CalculationsAndCharts!$A59+$A$11,IF($C$7,8,0),1,1) -> 154.610001 | F59: =OFFSET(InputPriceData!E$15,CalculationsAndCharts!$A59+$A$11,IF($C$7,8,0),1,1) -> 152.649994 | G59: =OFFSET(InputPriceData!F$15,CalculationsAndCharts!$A59+$A$11,IF($C$7,8,0),1,1) -> 154.440002 | H59: 153.899999 | I59: 0.00992560049 | J59: 0.01502141197 | K59: 0.463981379 | L59: 3794453.846 | M59: 9486134.615 | N59: 4291400 | O59: 2.299998 | P59: 4291400 | Q59: 10.65046556 | R59: 9.740255721 | S59: 168.0299997 | T59: TRUE | U59: 23 | V59: =OFFSET(InputIndexData!F$15,CalculationsAndCharts!$A59+$A$11,IF($C$7,8,0),1,1)*$V$24+$V$26*V60 -> 266.8722195 | X59: 1 | Y59: 0 | Z59: 0 | AA59: 0 | AB59: 2 | AC59: 3 | AD59: 0 | AE59: 5 | AO59: 4291400
A60: 28 | B60: =OFFSET(InputPriceData!B$15,CalculationsAndCharts!$A60+$A$11,0,1,1) -> 2018-03-07 | C60: =OFFSET(InputPriceData!G$15,CalculationsAndCharts!$A60+$A$11,IF($C$7,8,0),1,1) -> 4492000 | D60: =OFFSET(InputPriceData!C$15,CalculationsAndCharts!$A60+$A$11,IF($C$7,8,0),1,1) -> 149.860001 | E60: =OFFSET(InputPriceData!D$15,CalculationsAndCharts!$A60+$A$11,IF($C$7,8,0),1,1) -> 152.740005 | F60: =OFFSET(InputPriceData!E$15,CalculationsAndCharts!$A60+$A$11,IF($C$7,8,0),1,1) -> 149.679993 | G60: =OFFSET(InputPriceData!F$15,CalculationsAndCharts!$A60+$A$11,IF($C$7,8,0),1,1) -> 152.380005 | H60: 151.600001 | I60: 0.0026420359 | J60: 0.01479904931 | K60: 0.4510158415 | L60: 3785156.923 | M60: 9462892.308 | N60: 4492000 | O60: 0.5866646667 | P60: 4492000 | Q60: 9.54288045 | R60: 8.830045883 | S60: 168.1246997 | T60: TRUE | U60: 22 | V60: =OFFSET(InputIndexData!F$15,CalculationsAndCharts!$A60+$A$11,IF($C$7,8,0),1,1)*$V$24+$V$26*V61 -> 266.7262037 | X60: 1 | Y60: 0 | Z60: 0 | AA60: 0 | AB60: 2 | AC60: 3 | AD60: 0 | AE60: 5 | AO60: 4492000
A61: 29 | B61: =OFFSET(InputPriceData!B$15,CalculationsAndCharts!$A61+$A$11,0,1,1) -> 2018-03-06 | C61: =OFFSET(InputPriceData!G$15,CalculationsAndCharts!$A61+$A$11,IF($C$7,8,0),1,1) -> 5015400 | D61: =OFFSET(InputPriceData!C$15,CalculationsAndCharts!$A61+$A$11,IF($C$7,8,0),1,1) -> 151.25 | E61: =OFFSET(InputPriceData!D$15,CalculationsAndCharts!$A61+$A$11,IF($C$7,8,0),1,1) -> 151.710007 | F61: =OFFSET(InputPriceData!E$15,CalculationsAndCharts!$A61+$A$11,IF($C$7,8,0),1,1) -> 150.130005 | G61: =OFFSET(InputPriceData!F$15,CalculationsAndCharts!$A61+$A$11,IF($C$7,8,0),1,1) -> 151.199997 | H61: 151.0133363 | I61: -0.0001103329538 | J61: 0.01478193209 | K61: 0.4470056175 | L61: 3762171.538 | M61: 9405428.846 | N61: 5015400 | O61: 0.8700053333 | P61: 5015400 | Q61: 8.407192409 | R61: 8.117211317 | S61: 168.2323996 | T61: TRUE | U61: 21 | V61: =OFFSET(InputIndexData!F$15,CalculationsAndCharts!$A61+$A$11,IF($C$7,8,0),1,1)*$V$24+$V$26*V62 -> 266.6039048 | X61: 1 | Y61: 0 | Z61: 0 | AA61: 0 | AB61: 2 | AC61: 3 | AD61: 0 | AE61: 5 | AP61: 5015400
A62: 30 | B62: =OFFSET(InputPriceData!B$15,CalculationsAndCharts!$A62+$A$11,0,1,1) -> 2018-03-05 | C62: =OFFSET(InputPriceData!G$15,CalculationsAndCharts!$A62+$A$11,IF($C$7,8,0),1,1) -> 6397800 | D62: =OFFSET(InputPriceData!C$15,CalculationsAndCharts!$A62+$A$11,IF($C$7,8,0),1,1) -> 148.279999 | E62: =OFFSET(InputPriceData!D$15,CalculationsAndCharts!$A62+$A$11,IF($C$7,8,0),1,1) -> 151.479996 | F62: =OFFSET(InputPriceData!E$15,CalculationsAndCharts!$A62+$A$11,IF($C$7,8,0),1,1) -> 147.919998 | G62: =OFFSET(InputPriceData!F$15,CalculationsAndCharts!$A62+$A$11,IF($C$7,8,0),1,1) -> 151.029999 | H62: 150.143331 | I62: 0.01255541485 | J62: 0.01478887753 | K62: 0.4467128318 | L62: 3728493.077 | M62: 9321232.692 | N62: 6397800 | O62: 1.623332 | P62: 6397800 | Q62: 7.681709315 | R62: 7.827230225 | S62: 168.3261996 | T62: TRUE | U62: 20 | V62: =OFFSET(InputIndexData!F$15,CalculationsAndCharts!$A62+$A$11,IF($C$7,8,0),1,1)*$V$24+$V$26*V63 -> 266.4771149 | X62: 1 | Y62: 0 | Z62: 0 | AA62: 0 | AB62: 2 | AC62: 3 | AD62: 0 | AE62: 5 | AO62: 6397800
A63: 31 | B63: =OFFSET(InputPriceData!B$15,CalculationsAndCharts!$A63+$A$11,0,1,1) -> 2018-03-02 | C63: =OFFSET(InputPriceData!G$15,CalculationsAndCharts!$A63+$A$11,IF($C$7,8,0),1,1) -> 11754300 | D63: =OFFSET(InputPriceData!C$15,CalculationsAndCharts!$A63+$A$11,IF($C$7,8,0),1,1) -> 148.910004 | E63: =OFFSET(InputPriceData!D$15,CalculationsAndCharts!$A63+$A$11,IF($C$7,8,0),1,1) -> 150.449997 | F63: =OFFSET(InputPriceData!E$15,CalculationsAndCharts!$A63+$A$11,IF($C$7,8,0),1,1) -> 146.839996 | G63: =OFFSET(InputPriceData!F$15,CalculationsAndCharts!$A63+$A$11,IF($C$7,8,0),1,1) -> 148.270004 | H63: 148.519999 | I63: -0.047211437 | J63: 0.01459625715 | K63: 0.4328374211 | L63: 3650650.769 | M63: 9126626.923 | N63: 9126626.923 | O63: -8.593333333 | P63: -9126626.923 | Q63: 6.092995854 | R63: 7.972751135 | S63: 168.4170996 | T63: TRUE | U63: 19 | V63: =OFFSET(InputIndexData!F$15,CalculationsAndCharts!$A63+$A$11,IF($C$7,8,0),1,1)*$V$24+$V$26*V64 -> 266.361703 | X63: 1 | Y63: 0 | Z63: 0 | AA63: 0 | AB63: 2 | AC63: 3 | AD63: 0 | AE63: 5 | AP63: 11754300
A64: 32 | B64: =OFFSET(InputPriceData!B$15,CalculationsAndCharts!$A64+$A$11,0,1,1) -> 2018-03-01 | C64: =OFFSET(InputPriceData!G$15,CalculationsAndCharts!$A64+$A$11,IF($C$7,8,0),1,1) -> 5609000 | D64: =OFFSET(InputPriceData!C$15,CalculationsAndCharts!$A64+$A$11,IF($C$7,8,0),1,1) -> 157.800003 | E64: =OFFSET(InputPriceData!D$15,CalculationsAndCharts!$A64+$A$11,IF($C$7,8,0),1,1) -> 160.429993 | F64: =OFFSET(InputPriceData!E$15,CalculationsAndCharts!$A64+$A$11,IF($C$7,8,0),1,1) -> 155.210007 | G64: =OFFSET(InputPriceData!F$15,CalculationsAndCharts!$A64+$A$11,IF($C$7,8,0),1,1) -> 155.699997 | H64: 157.1133323 | I64: -0.003980732741 | J64: 0.01227273119 | K64: 0.3821728419 | L64: 3624356.154 | M64: 9060890.385 | N64: 5609000 | O64: -1.776672 | P64: -5609000 | Q64: 8.655337829 | R64: 9.852506417 | S64: 168.5303996 | T64: TRUE | U64: 18 | V64: =OFFSET(InputIndexData!F$15,CalculationsAndCharts!$A64+$A$11,IF($C$7,8,0),1,1)*$V$24+$V$26*V65 -> 266.3067882 | X64: 1 | Y64: 0 | Z64: 1 | AA64: 0 | AB64: 2 | AC64: 4 | AD64: 0 | AE64: 5 | AP64: 5609000
A65: 33 | B65: =OFFSET(InputPriceData!B$15,CalculationsAndCharts!$A65+$A$11,0,1,1) -> 2018-02-28 | C65: =OFFSET(InputPriceData!G$15,CalculationsAndCharts!$A65+$A$11,IF($C$7,8,0),1,1) -> 6116800 | D65: =OFFSET(InputPriceData!C$15,CalculationsAndCharts!$A65+$A$11,IF($C$7,8,0),1,1) -> 160.429993 | E65: =OFFSET(InputPriceData!D$15,CalculationsAndCharts!$A65+$A$11,IF($C$7,8,0),1,1) -> 161.210007 | F65: =OFFSET(InputPriceData!E$15,CalculationsAndCharts!$A65+$A$11,IF($C$7,8,0),1,1) -> 157.720001 | G65: =OFFSET(InputPriceData!F$15,CalculationsAndCharts!$A65+$A$11,IF($C$7,8,0),1,1) -> 157.740005 | H65: 158.8900043 | I65: -0.01107818947 | J65: 0.01239770673 | K65: 0.3911228643 | L65: 3593631.538 | M65: 8984078.846 | N65: 6116800 | O65: -3.04333 | P65: -6116800 | Q65: 9.680549202 | R65: 11.04967501 | S65: 168.5613997 | T65: TRUE | U65: 17 | V65: =OFFSET(InputIndexData!F$15,CalculationsAndCharts!$A65+$A$11,IF($C$7,8,0),1,1)*$V$24+$V$26*V66 -> 266.2786422 | X65: 1 | Y65: 0 | Z65: 1 | AA65: 0 | AB65: 2 | AC65: 4 | AD65: 0 | AE65: 5 | AP65: 6116800
A66: 34 | B66: =OFFSET(InputPriceData!B$15,CalculationsAndCharts!$A66+$A$11,0,1,1) -> 2018-02-27 | C66: =OFFSET(InputPriceData!G$15,CalculationsAndCharts!$A66+$A$11,IF($C$7,8,0),1,1) -> 4907500 | D66: =OFFSET(InputPriceData!C$15,CalculationsAndCharts!$A66+$A$11,IF($C$7,8,0),1,1) -> 164.190002 | E66: =OFFSET(InputPriceData!D$15,CalculationsAndCharts!$A66+$A$11,IF($C$7,8,0),1,1) -> 164.5 | F66: =OFFSET(InputPriceData!E$15,CalculationsAndCharts!$A66+$A$11,IF($C$7,8,0),1,1) -> 160.639999 | G66: =OFFSET(InputPriceData!F$15,CalculationsAndCharts!$A66+$A$11,IF($C$7,8,0),1,1) -> 160.660004 | H66: 161.9333343 | I66: -0.01011744546 | J66: 0.01231328238 | K66: 0.3956503992 | L66: 3572766.923 | M66: 8931917.308 | N66: 4907500 | O66: -1.610000667 | P66: -4907500 | Q66: 12.04325047 | R66: 12.41880081 | S66: 168.5560997 | T66: TRUE | U66: 16 | V66: =OFFSET(InputIndexData!F$15,CalculationsAndCharts!$A66+$A$11,IF($C$7,8,0),1,1)*$V$24+$V$26*V67 -> 266.1701301 | X66: 1 | Y66: 0 | Z66: 1 | AA66: 0 | AB66: 2 | AC66: 4 | AD66: 0 | AE66: 5 | AP66: 4907500
A67: 35 | B67: =OFFSET(InputPriceData!B$15,CalculationsAndCharts!$A67+$A$11,0,1,1) -> 2018-02-26 | C67: =OFFSET(InputPriceData!G$15,CalculationsAndCharts!$A67+$A$11,IF($C$7,8,0),1,1) -> 4525200 | D67: =OFFSET(InputPriceData!C$15,CalculationsAndCharts!$A67+$A$11,IF($C$7,8,0),1,1) -> 164 | E67: =OFFSET(InputPriceData!D$15,CalculationsAndCharts!$A67+$A$11,IF($C$7,8,0),1,1) -> 164.75 | F67: =OFFSET(InputPriceData!E$15,CalculationsAndCharts!$A67+$A$11,IF($C$7,8,0),1,1) -> 162.300003 | G67: =OFFSET(InputPriceData!F$15,CalculationsAndCharts!$A67+$A$11,IF($C$7,8,0),1,1) -> 163.580002 | H67: 163.543335 | I67: 0.002959782121 | J67: 0.01223620048 | K67: 0.4003195397 | L67: 3557924.615 | M67: 8894811.538 | N67: 4525200 | O67: 0.9400023333 | P67: 4525200 | Q67: 14.08976646 | R67: 12.79435115 | S67: 168.5180997 | T67: TRUE | U67: 15 | V67: =OFFSET(InputIndexData!F$15,CalculationsAndCharts!$A67+$A$11,IF($C$7,8,0),1,1)*$V$24+$V$26*V68 -> 266.0032642 | X67: 1 | Y67: 0 | Z67: 1 | AA67: 0 | AB67: 2 | AC67: 4 | AD67: 0 | AE67: 5 | AP67: 4525200
A68: 36 | B68: =OFFSET(InputPriceData!B$15,CalculationsAndCharts!$A68+$A$11,0,1,1) -> 2018-02-23 | C68: =OFFSET(InputPriceData!G$15,CalculationsAndCharts!$A68+$A$11,IF($C$7,8,0),1,1) -> 4272400 | D68: =OFFSET(InputPriceData!C$15,CalculationsAndCharts!$A68+$A$11,IF($C$7,8,0),1,1) -> 161.440002 | E68: =OFFSET(InputPriceData!D$15,CalculationsAndCharts!$A68+$A$11,IF($C$7,8,0),1,1) -> 163.309998 | F68: =OFFSET(InputPriceData!E$15,CalculationsAndCharts!$A68+$A$11,IF($C$7,8,0),1,1) -> 161.440002 | G68: =OFFSET(InputPriceData!F$15,CalculationsAndCharts!$A68+$A$11,IF($C$7,8,0),1,1) -> 163.059998 | H68: 162.6033327 | I68: 0.01202333737 | J68: 0.01220293193 | K68: 0.3979620113 | L68: 3548687.692 | M68: 8871719.231 | N68: 4272400 | O68: 2.283335333 | P68: 4272400 | Q68: 12.11981179 | R68: 11.49893584 | S68: 168.4518997 | T68: TRUE | U68: 14 | V68: =OFFSET(InputIndexData!F$15,CalculationsAndCharts!$A68+$A$11,IF($C$7,8,0),1,1)*$V$24+$V$26*V69 -> 265.7629262 | X68: 1 | Y68: 0 | Z68: 1 | AA68: 0 | AB68: 2 | AC68: 4 | AD68: 0 | AE68: 5 | AO68: 4272400
A69: 37 | B69: =OFFSET(InputPriceData!B$15,CalculationsAndCharts!$A69+$A$11,0,1,1) -> 2018-02-22 | C69: =OFFSET(InputPriceData!G$15,CalculationsAndCharts!$A69+$A$11,IF($C$7,8,0),1,1) -> 4398200 | D69: =OFFSET(InputPriceData!C$15,CalculationsAndCharts!$A69+$A$11,IF($C$7,8,0),1,1) -> 158.949997 | E69: =OFFSET(InputPriceData!D$15,CalculationsAndCharts!$A69+$A$11,IF($C$7,8,0),1,1) -> 161.399994 | F69: =OFFSET(InputPriceData!E$15,CalculationsAndCharts!$A69+$A$11,IF($C$7,8,0),1,1) -> 158.899994 | G69: =OFFSET(InputPriceData!F$15,CalculationsAndCharts!$A69+$A$11,IF($C$7,8,0),1,1) -> 160.660004 | H69: 160.3199973 | I69: 0.01053432336 | J69: 0.01191722603 | K69: 0.3829243164 | L69: 3537330.769 | M69: 8843326.923 | N69: 4398200 | O69: 1.133326667 | P69: 4398200 | Q69: 10.95092019 | R69: 10.87805989 | S69: 168.3880997 | T69: TRUE | U69: 13 | V69: =OFFSET(InputIndexData!F$15,CalculationsAndCharts!$A69+$A$11,IF($C$7,8,0),1,1)*$V$24+$V$26*V70 -> 265.5821774 | X69: 1 | Y69: 0 | Z69: 1 | AA69: 0 | AB69: 2 | AC69: 4 | AD69: 0 | AE69: 5 | AO69: 4398200
A70: 38 | B70: =OFFSET(InputPriceData!B$15,CalculationsAndCharts!$A70+$A$11,0,1,1) -> 2018-02-21 | C70: =OFFSET(InputPriceData!G$15,CalculationsAndCharts!$A70+$A$11,IF($C$7,8,0),1,1) -> 7833400 | D70: =OFFSET(InputPriceData!C$15,CalculationsAndCharts!$A70+$A$11,IF($C$7,8,0),1,1) -> 157.759995 | E70: =OFFSET(InputPriceData!D$15,CalculationsAndCharts!$A70+$A$11,IF($C$7,8,0),1,1) -> 161.320007 | F70: =OFFSET(InputPriceData!E$15,CalculationsAndCharts!$A70+$A$11,IF($C$7,8,0),1,1) -> 157.600006 | G70: =OFFSET(InputPriceData!F$15,CalculationsAndCharts!$A70+$A$11,IF($C$7,8,0),1,1) -> 158.639999 | H70: 159.1866707 | I70: 0.01281312279 | J70: 0.0116658488 | K70: 0.3701340484 | L70: 3493690 | M70: 8734225 | N70: 7833400 | O70: 1.653335 | P70: 7833400 | Q70: 10.6651211 | R70: 10.80519958 | S70: 168.3563997 | T70: TRUE | U70: 12 | V70: =OFFSET(InputIndexData!F$15,CalculationsAndCharts!$A70+$A$11,IF($C$7,8,0),1,1)*$V$24+$V$26*V71 -> 265.4848478 | X70: 1 | Y70: 0 | Z70: 1 | AA70: 0 | AB70: 2 | AC70: 4 | AD70: 0 | AE70: 5 | AO70: 7833400
A71: 39 | B71: =OFFSET(InputPriceData!B$15,CalculationsAndCharts!$A71+$A$11,0,1,1) -> 2018-02-20 | C71: =OFFSET(InputPriceData!G$15,CalculationsAndCharts!$A71+$A$11,IF($C$7,8,0),1,1) -> 5211100 | D71: =OFFSET(InputPriceData!C$15,CalculationsAndCharts!$A71+$A$11,IF($C$7,8,0),1,1) -> 157 | E71: =OFFSET(InputPriceData!D$15,CalculationsAndCharts!$A71+$A$11,IF($C$7,8,0),1,1) -> 159.160004 | F71: =OFFSET(InputPriceData!E$15,CalculationsAndCharts!$A71+$A$11,IF($C$7,8,0),1,1) -> 156.279999 | G71: =OFFSET(InputPriceData!F$15,CalculationsAndCharts!$A71+$A$11,IF($C$7,8,0),1,1) -> 157.160004 | H71: 157.5333357 | I71: -0.001627899788 | J71: 0.01129160796 | K71: 0.3549178304 | L71: 3475127.692 | M71: 8687819.231 | N71: 5211100 | O71: -0.9499916667 | P71: -5211100 | Q71: 9.089544247 | R71: 10.94527807 | S71: 168.3104997 | T71: TRUE | U71: 11 | V71: =OFFSET(InputIndexData!F$15,CalculationsAndCharts!$A71+$A$11,IF($C$7,8,0),1,1)*$V$24+$V$26*V72 -> 265.3926227 | X71: 1 | Y71: 0 | Z71: 1 | AA71: 0 | AB71: 2 | AC71: 4 | AD71: 0 | AE71: 5 | AO71: 5211100
A72: 40 | B72: =OFFSET(InputPriceData!B$15,CalculationsAndCharts!$A72+$A$11,0,1,1) -> 2018-02-16 | C72: =OFFSET(InputPriceData!G$15,CalculationsAndCharts!$A72+$A$11,IF($C$7,8,0),1,1) -> 7165800 | D72: =OFFSET(InputPriceData!C$15,CalculationsAndCharts!$A72+$A$11,IF($C$7,8,0),1,1) -> 159.470001 | E72: =OFFSET(InputPriceData!D$15,CalculationsAndCharts!$A72+$A$11,IF($C$7,8,0),1,1) -> 159.899994 | F72: =OFFSET(InputPriceData!E$15,CalculationsAndCharts!$A72+$A$11,IF($C$7,8,0),1,1) -> 157.759995 | G72: =OFFSET(InputPriceData!F$15,CalculationsAndCharts!$A72+$A$11,IF($C$7,8,0),1,1) -> 157.789993 | H72: 158.4833273 | I72: -0.01438756722 | J72: 0.01134059165 | K72: 0.3578863755 | L72: 3442506.154 | M72: 8606265.385 | N72: 7165800 | O72: -1.886673 | P72: -7165800 | Q72: 10.68942953 | R72: 12.8010119 | S72: 168.2723997 | T72: =(G72<S72) -> TRUE | U72: 10 | V72: =OFFSET(InputIndexData!F$15,CalculationsAndCharts!$A72+$A$11,IF($C$7,8,0),1,1)*$V$24+$V$26*V73 -> 265.2712617 | X72: 1 | Y72: 0 | Z72: 1 | AA72: 0 | AB72: 2 | AC72: 4 | AD72: 0 | AE72: 5 | AP72: 7165800
A73: 41 | B73: =OFFSET(InputPriceData!B$15,CalculationsAndCharts!$A73+$A$11,0,1,1) -> 2018-02-15 | C73: =OFFSET(InputPriceData!G$15,CalculationsAndCharts!$A73+$A$11,IF($C$7,8,0),1,1) -> 5012100 | D73: =OFFSET(InputPriceData!C$15,CalculationsAndCharts!$A73+$A$11,IF($C$7,8,0),1,1) -> 161.139999 | E73: =OFFSET(InputPriceData!D$15,CalculationsAndCharts!$A73+$A$11,IF($C$7,8,0),1,1) -> 161.520004 | F73: =OFFSET(InputPriceData!E$15,CalculationsAndCharts!$A73+$A$11,IF($C$7,8,0),1,1) -> 158.809998 | G73: =OFFSET(InputPriceData!F$15,CalculationsAndCharts!$A73+$A$11,IF($C$7,8,0),1,1) -> 160.779999 | H73: 160.3700003 | I73: 0.002372303067 | J73: 0.01127096443 | K73: 0.3624291299 | L73: 3433755.385 | M73: 8584388.462 | N73: 5012100 | O73: -0.1933336667 | P73: 0 | Q73: 13.65537776 | R73: 14.91259427 | S73: 168.2570998 | T73: TRUE | U73: 9 | V73: =OFFSET(InputIndexData!F$15,CalculationsAndCharts!$A73+$A$11,IF($C$7,8,0),1,1)*$V$24+$V$26*V74 -> 265.1129036 | X73: 1 | Y73: 0 | Z73: 1 | AA73: 0 | AB73: 2 | AC73: 4 | AD73: 0 | AE73: 5 | AP73: 5012100
A74: 42 | B74: =OFFSET(InputPriceData!B$15,CalculationsAndCharts!$A74+$A$11,0,1,1) -> 2018-02-14 | C74: =OFFSET(InputPriceData!G$15,CalculationsAndCharts!$A74+$A$11,IF($C$7,8,0),1,1) -> 5865600 | D74: =OFFSET(InputPriceData!C$15,CalculationsAndCharts!$A74+$A$11,IF($C$7,8,0),1,1) -> 161.440002 | E74: =OFFSET(InputPriceData!D$15,CalculationsAndCharts!$A74+$A$11,IF($C$7,8,0),1,1) -> 162.020004 | F74: =OFFSET(InputPriceData!E$15,CalculationsAndCharts!$A74+$A$11,IF($C$7,8,0),1,1) -> 159.679993 | G74: =OFFSET(InputPriceData!F$15,CalculationsAndCharts!$A74+$A$11,IF($C$7,8,0),1,1) -> 159.990005 | H74: 160.563334 | I74: -0.01137392169 | J74: 0.0112312779 | K74: 0.3593784414 | L74: 3411762.308 | M74: 8529405.769 | N74: 5865600 | O74: -2.086665 | P74: -5865600 | Q74: 14.87903387 | R74: 16.16981079 | S74: 168.2383998 | T74: TRUE | U74: 8 | V74: =OFFSET(InputIndexData!F$15,CalculationsAndCharts!$A74+$A$11,IF($C$7,8,0),1,1)*$V$24+$V$26*V75 -> 264.9529623 | X74: 1 | Y74: 0 | Z74: 1 | AA74: 0 | AB74: 2 | AC74: 4 | AD74: 0 | AE74: 5 | AP74: 5865600
A75: 43 | B75: =OFFSET(InputPriceData!B$15,CalculationsAndCharts!$A75+$A$11,0,1,1) -> 2018-02-13 | C75: =OFFSET(InputPriceData!G$15,CalculationsAndCharts!$A75+$A$11,IF($C$7,8,0),1,1) -> 5406000 | D75: =OFFSET(InputPriceData!C$15,CalculationsAndCharts!$A75+$A$11,IF($C$7,8,0),1,1) -> 163 | E75: =OFFSET(InputPriceData!D$15,CalculationsAndCharts!$A75+$A$11,IF($C$7,8,0),1,1) -> 163.830002 | F75: =OFFSET(InputPriceData!E$15,CalculationsAndCharts!$A75+$A$11,IF($C$7,8,0),1,1) -> 161.720001 | G75: =OFFSET(InputPriceData!F$15,CalculationsAndCharts!$A75+$A$11,IF($C$7,8,0),1,1) -> 162.399994 | H75: 162.649999 | I75: -0.007655802371 | J75: 0.01127355551 | K75: 0.3661650693 | L75: 3402749.231 | M75: 8506873.077 | N75: 5406000 | O75: -1.113332 | P75: -5406000 | Q75: 16.64222753 | R75: 17.4605877 | S75: 168.2287998 | T75: TRUE | U75: 7 | V75: =OFFSET(InputIndexData!F$15,CalculationsAndCharts!$A75+$A$11,IF($C$7,8,0),1,1)*$V$24+$V$26*V76 -> 264.8592849 | X75: 1 | Y75: 0 | Z75: 1 | AA75: 1 | AB75: 2 | AC75: 5 | AD75: 1 | AE75: 5 | AF75: 183.1674969 | AP75: 5406000
A76: 44 | B76: =OFFSET(InputPriceData!B$15,CalculationsAndCharts!$A76+$A$11,0,1,1) -> 2018-02-12 | C76: =OFFSET(InputPriceData!G$15,CalculationsAndCharts!$A76+$A$11,IF($C$7,8,0),1,1) -> 5255900 | D76: =OFFSET(InputPriceData!C$15,CalculationsAndCharts!$A76+$A$11,IF($C$7,8,0),1,1) -> 162.369995 | E76: =OFFSET(InputPriceData!D$15,CalculationsAndCharts!$A76+$A$11,IF($C$7,8,0),1,1) -> 165.889999 | F76: =OFFSET(InputPriceData!E$15,CalculationsAndCharts!$A76+$A$11,IF($C$7,8,0),1,1) -> 161.5 | G76: =OFFSET(InputPriceData!F$15,CalculationsAndCharts!$A76+$A$11,IF($C$7,8,0),1,1) -> 163.899994 | H76: 163.763331 | I76: 0.01826090649 | J76: 0.01123668296 | K76: 0.3683384539 | L76: 3387335.385 | M76: 8468338.462 | N76: 5255900 | O76: 4.426666 | P76: 5255900 | Q76: 18.3139016 | R76: 18.27894788 | S76: 168.2035999 | T76: TRUE | U76: 6 | V76: =OFFSET(InputIndexData!F$15,CalculationsAndCharts!$A76+$A$11,IF($C$7,8,0),1,1)*$V$24+$V$26*V77 -> 264.8362401 | X76: 1 | Y76: 0 | Z76: 1 | AA76: 1 | AB76: 0 | AC76: 3 | AD76: 0 | AE76: 5 | AO76: 5255900
A77: 45 | B77: =OFFSET(InputPriceData!B$15,CalculationsAndCharts!$A77+$A$11,0,1,1) -> 2018-02-09 | C77: =OFFSET(InputPriceData!G$15,CalculationsAndCharts!$A77+$A$11,IF($C$7,8,0),1,1) -> 7187100 | D77: =OFFSET(InputPriceData!C$15,CalculationsAndCharts!$A77+$A$11,IF($C$7,8,0),1,1) -> 159.979996 | E77: =OFFSET(InputPriceData!D$15,CalculationsAndCharts!$A77+$A$11,IF($C$7,8,0),1,1) -> 161.979996 | F77: =OFFSET(InputPriceData!E$15,CalculationsAndCharts!$A77+$A$11,IF($C$7,8,0),1,1) -> 155.229996 | G77: =OFFSET(InputPriceData!F$15,CalculationsAndCharts!$A77+$A$11,IF($C$7,8,0),1,1) -> 160.800003 | H77: 159.336665 | I77: 0.002303842183 | J77: 0.01062060785 | K77: 0.3415587547 | L77: 3366168.462 | M77: 8415421.154 | N77: 7187100 | O77: -1.816665667 | P77: -7187100 | Q77: 17.83378569 | R77: 18.24399415 | S77: 168.1388999 | T77: TRUE | U77: 5 | V77: =OFFSET(InputIndexData!F$15,CalculationsAndCharts!$A77+$A$11,IF($C$7,8,0),1,1)*$V$24+$V$26*V78 -> 264.8260632 | X77: 1 | Y77: 0 | Z77: 1 | AA77: 1 | AB77: 0 | AC77: 3 | AD77: 0 | AE77: 5 | AO77: 7187100
A78: 46 | B78: =OFFSET(InputPriceData!B$15,CalculationsAndCharts!$A78+$A$11,0,1,1) -> 2018-02-08 | C78: =OFFSET(InputPriceData!G$15,CalculationsAndCharts!$A78+$A$11,IF($C$7,8,0),1,1) -> 5656000 | D78: =OFFSET(InputPriceData!C$15,CalculationsAndCharts!$A78+$A$11,IF($C$7,8,0),1,1) -> 165.690002 | E78: =OFFSET(InputPriceData!D$15,CalculationsAndCharts!$A78+$A$11,IF($C$7,8,0),1,1) -> 165.729996 | F78: =OFFSET(InputPriceData!E$15,CalculationsAndCharts!$A78+$A$11,IF($C$7,8,0),1,1) -> 158.759995 | G78: =OFFSET(InputPriceData!F$15,CalculationsAndCharts!$A78+$A$11,IF($C$7,8,0),1,1) -> 158.970001 | H78: 161.1533307 | I78: -0.02788303872 | J78: 0.01066532041 | K78: 0.3390931994 | L78: 3350861.538 | M78: 8377153.846 | N78: 5656000 | O78: -5.010004667 | P78: -5656000 | Q78: 18.73644321 | R78: 18.65420262 | S78: 168.0976998 | T78: TRUE | U78: 4 | V78: =OFFSET(InputIndexData!F$15,CalculationsAndCharts!$A78+$A$11,IF($C$7,8,0),1,1)*$V$24+$V$26*V79 -> 264.8932564 | X78: 1 | Y78: 0 | Z78: 1 | AA78: 1 | AB78: 0 | AC78: 3 | AD78: 0 | AE78: 5 | AP78: 5656000
A79: 47 | B79: =OFFSET(InputPriceData!B$15,CalculationsAndCharts!$A79+$A$11,0,1,1) -> 2018-02-07 | C79: =OFFSET(InputPriceData!G$15,CalculationsAndCharts!$A79+$A$11,IF($C$7,8,0),1,1) -> 4974000 | D79: =OFFSET(InputPriceData!C$15,CalculationsAndCharts!$A79+$A$11,IF($C$7,8,0),1,1) -> 164.860001 | E79: =OFFSET(InputPriceData!D$15,CalculationsAndCharts!$A79+$A$11,IF($C$7,8,0),1,1) -> 168.259995 | F79: =OFFSET(InputPriceData!E$15,CalculationsAndCharts!$A79+$A$11,IF($C$7,8,0),1,1) -> 164.520004 | G79: =OFFSET(InputPriceData!F$15,CalculationsAndCharts!$A79+$A$11,IF($C$7,8,0),1,1) -> 165.710007 | H79: 166.1633353 | I79: 0.005935506384 | J79: 0.00957720275 | K79: 0.3174076669 | L79: 3338184.615 | M79: 8345461.538 | N79: 4974000 | O79: 3.003336667 | P79: 4974000 | Q79: 19.40369823 | R79: 18.57196203 | S79: 168.0771997 | T79: TRUE | U79: 3 | V79: =OFFSET(InputIndexData!F$15,CalculationsAndCharts!$A79+$A$11,IF($C$7,8,0),1,1)*$V$24+$V$26*V80 -> 265.0399888 | X79: 1 | Y79: 0 | Z79: 1 | AA79: 1 | AB79: 2 | AC79: 5 | AD79: 1 | AE79: 5 | AO79: 4974000
A80: 48 | B80: =OFFSET(InputPriceData!B$15,CalculationsAndCharts!$A80+$A$11,0,1,1) -> 2018-02-06 | C80: =OFFSET(InputPriceData!G$15,CalculationsAndCharts!$A80+$A$11,IF($C$7,8,0),1,1) -> 7020000 | D80: =OFFSET(InputPriceData!C$15,CalculationsAndCharts!$A80+$A$11,IF($C$7,8,0),1,1) -> 158.350006 | E80: =OFFSET(InputPriceData!D$15,CalculationsAndCharts!$A80+$A$11,IF($C$7,8,0),1,1) -> 166.050003 | F80: =OFFSET(InputPriceData!E$15,CalculationsAndCharts!$A80+$A$11,IF($C$7,8,0),1,1) -> 158.25 | G80: =OFFSET(InputPriceData!F$15,CalculationsAndCharts!$A80+$A$11,IF($C$7,8,0),1,1) -> 165.179993 | H80: 163.1599987 | I80: -0.004220105486 | J80: 0.009473370375 | K80: 0.3129622504 | L80: 3316377.692 | M80: 8290944.231 | N80: 7020000 | O80: 0.769994 | P80: 7020000 | Q80: 19.03436001 | R80: 17.74022583 | S80: 167.9900997 | T80: TRUE | U80: 2 | V80: =OFFSET(InputIndexData!F$15,CalculationsAndCharts!$A80+$A$11,IF($C$7,8,0),1,1)*$V$24+$V$26*V81 -> 264.986857 | X80: 1 | Y80: 0 | Z80: 1 | AA80: 1 | AB80: 2 | AC80: 5 | AD80: 1 | AE80: 5 | AO80: 7020000
A81: 49 | B81: =OFFSET(InputPriceData!B$15,CalculationsAndCharts!$A81+$A$11,0,1,1) -> 2018-02-05 | C81: =OFFSET(InputPriceData!G$15,CalculationsAndCharts!$A81+$A$11,IF($C$7,8,0),1,1) -> 7309300 | D81: =OFFSET(InputPriceData!C$15,CalculationsAndCharts!$A81+$A$11,IF($C$7,8,0),1,1) -> 168.610001 | E81: =OFFSET(InputPriceData!D$15,CalculationsAndCharts!$A81+$A$11,IF($C$7,8,0),1,1) -> 169.460007 | F81: =OFFSET(InputPriceData!E$15,CalculationsAndCharts!$A81+$A$11,IF($C$7,8,0),1,1) -> 153.860001 | G81: =OFFSET(InputPriceData!F$15,CalculationsAndCharts!$A81+$A$11,IF($C$7,8,0),1,1) -> 163.850006 | H81: 162.3900047 | I81: -0.0421438628 | J81: 0.009468024123 | K81: 0.3102671619 | L81: 3293016.923 | M81: 8232542.308 | N81: 7309300 | O81: -7.976664 | P81: -7309300 | Q81: 15.76670516 | R81: 16.44609164 | S81: 167.9082997 | T81: TRUE | U81: 1 | V81: =OFFSET(InputIndexData!F$15,CalculationsAndCharts!$A81+$A$11,IF($C$7,8,0),1,1)*$V$24+$V$26*V82 -> 264.903157 | X81: 1 | Y81: 0 | Z81: 1 | AA81: 1 | AB81: 2 | AC81: 5 | AD81: 1 | AE81: 5 | AP81: 7309300
A82: 50 | B82: =OFFSET(InputPriceData!B$15,CalculationsAndCharts!$A82+$A$11,0,1,1) -> 2018-02-02 | C82: =OFFSET(InputPriceData!G$15,CalculationsAndCharts!$A82+$A$11,IF($C$7,8,0),1,1) -> 4604500 | D82: =OFFSET(InputPriceData!C$15,CalculationsAndCharts!$A82+$A$11,IF($C$7,8,0),1,1) -> 170.800003 | E82: =OFFSET(InputPriceData!D$15,CalculationsAndCharts!$A82+$A$11,IF($C$7,8,0),1,1) -> 172.729996 | F82: =OFFSET(InputPriceData!E$15,CalculationsAndCharts!$A82+$A$11,IF($C$7,8,0),1,1) -> 168.990005 | G82: =OFFSET(InputPriceData!F$15,CalculationsAndCharts!$A82+$A$11,IF($C$7,8,0),1,1) -> 169.380005 | H82: 170.3666687 | I82: -0.008959888639 | J82: 0.005855313782 | K82: 0.1983546155 | L82: 3288093.846 | M82: 8220234.615 | N82: 4604500 | O82: -1.07666 | P82: -4604500 | Q82: 16.71391678 | R82: 17.12547812 | S82: 167.8330997 | T82: FALSE | U82: 0 | V82: =OFFSET(InputIndexData!F$15,CalculationsAndCharts!$A82+$A$11,IF($C$7,8,0),1,1)*$V$24+$V$26*V83 -> 264.9228169 | X82: 1 | Y82: 1 | Z82: 1 | AA82: 1 | AB82: 2 | AC82: 6 | AD82: 1 | AE82: 5 | AO82: =IF(G82>=D82,C82,NA()) ->  | AP82: =IF(G82<D82,C82,NA()) -> 4604500
A83: 51 | B83: =OFFSET(InputPriceData!B$15,CalculationsAndCharts!$A83+$A$11,0,1,1) -> 2018-02-01 | C83: =OFFSET(InputPriceData!G$15,CalculationsAndCharts!$A83+$A$11,IF($C$7,8,0),1,1) -> 4751300 | D83: =OFFSET(InputPriceData!C$15,CalculationsAndCharts!$A83+$A$11,IF($C$7,8,0),1,1) -> 170.270004 | E83: =OFFSET(InputPriceData!D$15,CalculationsAndCharts!$A83+$A$11,IF($C$7,8,0),1,1) -> 173.539993 | F83: =OFFSET(InputPriceData!E$15,CalculationsAndCharts!$A83+$A$11,IF($C$7,8,0),1,1) -> 168.889999 | G83: =OFFSET(InputPriceData!F$15,CalculationsAndCharts!$A83+$A$11,IF($C$7,8,0),1,1) -> 171.899994 | H83: 171.4433287 | I83: 0.001770837758 | J83: 0.0056586789 | K83: 0.1945453738 | L83: 3287115.385 | M83: 8217788.462 | N83: 4751300 | O83: -0.4600066667 | P83: -4751300 | Q83: 16.91359153 | R83: 17.53703945 | S83: 167.7545996 | T83: FALSE | U83: 0 | V83: =OFFSET(InputIndexData!F$15,CalculationsAndCharts!$A83+$A$11,IF($C$7,8,0),1,1)*$V$24+$V$26*V84 -> 264.7101463 | X83: 1 | Y83: 1 | Z83: 1 | AA83: 1 | AB83: 2 | AC83: 6 | AD83: 1 | AE83: 5 | AO83: 4751300
A84: 52 | B84: =OFFSET(InputPriceData!B$15,CalculationsAndCharts!$A84+$A$11,0,1,1) -> 2018-01-31 | C84: =OFFSET(InputPriceData!G$15,CalculationsAndCharts!$A84+$A$11,IF($C$7,8,0),1,1) -> 7004200 | D84: =OFFSET(InputPriceData!C$15,CalculationsAndCharts!$A84+$A$11,IF($C$7,8,0),1,1) -> 173.600006 | E84: =OFFSET(InputPriceData!D$15,CalculationsAndCharts!$A84+$A$11,IF($C$7,8,0),1,1) -> 174.300003 | F84: =OFFSET(InputPriceData!E$15,CalculationsAndCharts!$A84+$A$11,IF($C$7,8,0),1,1) -> 170.270004 | G84: =OFFSET(InputPriceData!F$15,CalculationsAndCharts!$A84+$A$11,IF($C$7,8,0),1,1) -> 171.139999 | H84: 171.9033353 | I84: -0.003348949575 | J84: 0.005692743691 | K84: 0.1948512299 | L84: 3269229.231 | M84: 8173073.077 | N84: 7004200 | O84: -1.763331333 | P84: -7004200 | Q84: 17.04503508 | R84: 18.16048738 | S84: 167.6326998 | T84: FALSE | U84: 0 | V84: =OFFSET(InputIndexData!F$15,CalculationsAndCharts!$A84+$A$11,IF($C$7,8,0),1,1)*$V$24+$V$26*V85 -> 264.3693414 | X84: 1 | Y84: 1 | Z84: 1 | AA84: 1 | AB84: 2 | AC84: 6 | AD84: 1 | AE84: 5 | AP84: 7004200
A85: 53 | B85: =OFFSET(InputPriceData!B$15,CalculationsAndCharts!$A85+$A$11,0,1,1) -> 2018-01-30 | C85: =OFFSET(InputPriceData!G$15,CalculationsAndCharts!$A85+$A$11,IF($C$7,8,0),1,1) -> 9613000 | D85: =OFFSET(InputPriceData!C$15,CalculationsAndCharts!$A85+$A$11,IF($C$7,8,0),1,1) -> 177.100006 | E85: =OFFSET(InputPriceData!D$15,CalculationsAndCharts!$A85+$A$11,IF($C$7,8,0),1,1) -> 177.669998 | F85: =OFFSET(InputPriceData!E$15,CalculationsAndCharts!$A85+$A$11,IF($C$7,8,0),1,1) -> 170.850006 | G85: =OFFSET(InputPriceData!F$15,CalculationsAndCharts!$A85+$A$11,IF($C$7,8,0),1,1) -> 172.479996 | H85: 173.6666667 | I85: -0.02335284935 | J85: 0.005794646605 | K85: 0.1998921247 | L85: 3268447.692 | M85: 8171119.231 | N85: 8171119.231 | O85: -4.236668667 | P85: -8171119.231 | Q85: 17.76051887 | R85: 19.27593968 | S85: 167.5202997 | T85: FALSE | U85: 0 | V85: =OFFSET(InputIndexData!F$15,CalculationsAndCharts!$A85+$A$11,IF($C$7,8,0),1,1)*$V$24+$V$26*V86 -> 264.0151868 | X85: 1 | Y85: 1 | Z85: 1 | AA85: 1 | AB85: 2 | AC85: 6 | AD85: 1 | AE85: 5 | AP85: 9613000
A86: 54 | B86: =OFFSET(InputPriceData!B$15,CalculationsAndCharts!$A86+$A$11,0,1,1) -> 2018-01-29 | C86: =OFFSET(InputPriceData!G$15,CalculationsAndCharts!$A86+$A$11,IF($C$7,8,0),1,1) -> 6091900 | D86: =OFFSET(InputPriceData!C$15,CalculationsAndCharts!$A86+$A$11,IF($C$7,8,0),1,1) -> 178.300003 | E86: =OFFSET(InputPriceData!D$15,CalculationsAndCharts!$A86+$A$11,IF($C$7,8,0),1,1) -> 178.699997 | F86: =OFFSET(InputPriceData!E$15,CalculationsAndCharts!$A86+$A$11,IF($C$7,8,0),1,1) -> 177.240005 | G86: =OFFSET(InputPriceData!F$15,CalculationsAndCharts!$A86+$A$11,IF($C$7,8,0),1,1) -> 177.770004 | H86: 177.9033353 | I86: -0.002563642509 | J86: 0.003862007415 | K86: 0.1373098147 | L86: 3262413.077 | M86: 8156032.692 | N86: 6091900 | O86: 0.646672 | P86: 6091900 | Q86: 23.00447085 | R86: 20.79136048 | S86: 167.3776998 | T86: FALSE | U86: 0 | V86: =OFFSET(InputIndexData!F$15,CalculationsAndCharts!$A86+$A$11,IF($C$7,8,0),1,1)*$V$24+$V$26*V87 -> 263.6567056 | X86: 1 | Y86: 1 | Z86: 1 | AA86: 1 | AB86: 2 | AC86: 6 | AD86: 1 | AE86: 5 | AP86: 6091900
A87: 55 | B87: =OFFSET(InputPriceData!B$15,CalculationsAndCharts!$A87+$A$11,0,1,1) -> 2018-01-26 | C87: =OFFSET(InputPriceData!G$15,CalculationsAndCharts!$A87+$A$11,IF($C$7,8,0),1,1) -> 3957700 | D87: =OFFSET(InputPriceData!C$15,CalculationsAndCharts!$A87+$A$11,IF($C$7,8,0),1,1) -> 175.669998 | E87: =OFFSET(InputPriceData!D$15,CalculationsAndCharts!$A87+$A$11,IF($C$7,8,0),1,1) -> 178.399994 | F87: =OFFSET(InputPriceData!E$15,CalculationsAndCharts!$A87+$A$11,IF($C$7,8,0),1,1) -> 175.009995 | G87: =OFFSET(InputPriceData!F$15,CalculationsAndCharts!$A87+$A$11,IF($C$7,8,0),1,1) -> 178.360001 | H87: 177.2566633 | I87: 0.009048426299 | J87: 0.003933389694 | K87: 0.140311878 | L87: 3259064.615 | M87: 8147661.538 | N87: 3957700 | O87: 1.609995667 | P87: 3957700 | Q87: 19.53038496 | R87: 18.5782501 | S87: 167.1909998 | T87: FALSE | U87: 0 | V87: =OFFSET(InputIndexData!F$15,CalculationsAndCharts!$A87+$A$11,IF($C$7,8,0),1,1)*$V$24+$V$26*V88 -> 263.2319927 | X87: 1 | Y87: 1 | Z87: 1 | AA87: 1 | AB87: 2 | AC87: 6 | AD87: 1 | AE87: 5 | AO87: 3957700
A88: 56 | B88: =OFFSET(InputPriceData!B$15,CalculationsAndCharts!$A88+$A$11,0,1,1) -> 2018-01-25 | C88: =OFFSET(InputPriceData!G$15,CalculationsAndCharts!$A88+$A$11,IF($C$7,8,0),1,1) -> 2815800 | D88: =OFFSET(InputPriceData!C$15,CalculationsAndCharts!$A88+$A$11,IF($C$7,8,0),1,1) -> 176.399994 | E88: =OFFSET(InputPriceData!D$15,CalculationsAndCharts!$A88+$A$11,IF($C$7,8,0),1,1) -> 176.619995 | F88: =OFFSET(InputPriceData!E$15,CalculationsAndCharts!$A88+$A$11,IF($C$7,8,0),1,1) -> 174.660004 | G88: =OFFSET(InputPriceData!F$15,CalculationsAndCharts!$A88+$A$11,IF($C$7,8,0),1,1) -> 175.660004 | H88: 175.6466677 | I88: -0.002691145405 | J88: 0.003771712837 | K88: 0.1325078184 | L88: 3254636.923 | M88: 8136592.308 | N88: 2815800 | O88: -0.576665 | P88: -2815800 | Q88: 17.25866444 | R88: 17.62611525 | S88: 167.0054997 | T88: FALSE | U88: 0 | V88: =OFFSET(InputIndexData!F$15,CalculationsAndCharts!$A88+$A$11,IF($C$7,8,0),1,1)*$V$24+$V$26*V89 -> 262.760316 | X88: 1 | Y88: 1 | Z88: 1 | AA88: 1 | AB88: 2 | AC88: 6 | AD88: 1 | AE88: 5 | AP88: 2815800
A89: 57 | B89: =OFFSET(InputPriceData!B$15,CalculationsAndCharts!$A89+$A$11,0,1,1) -> 2018-01-24 | C89: =OFFSET(InputPriceData!G$15,CalculationsAndCharts!$A89+$A$11,IF($C$7,8,0),1,1) -> 2810800 | D89: =OFFSET(InputPriceData!C$15,CalculationsAndCharts!$A89+$A$11,IF($C$7,8,0),1,1) -> 177.300003 | E89: =OFFSET(InputPriceData!D$15,CalculationsAndCharts!$A89+$A$11,IF($C$7,8,0),1,1) -> 177.300003 | F89: =OFFSET(InputPriceData!E$15,CalculationsAndCharts!$A89+$A$11,IF($C$7,8,0),1,1) -> 175.25 | G89: =OFFSET(InputPriceData!F$15,CalculationsAndCharts!$A89+$A$11,IF($C$7,8,0),1,1) -> 176.119995 | H89: 176.2233327 | I89: -0.003323572153 | J89: 0.003741735641 | K89: 0.1317988925 | L89: 3256647.692 | M89: 8141619.231 | N89: 2810800 | O89: -0.2466686667 | P89: -2810800 | Q89: 18.80052506 | R89: 17.99356606 | S89: 166.8485997 | T89: FALSE | U89: 0 | V89: =OFFSET(InputIndexData!F$15,CalculationsAndCharts!$A89+$A$11,IF($C$7,8,0),1,1)*$V$24+$V$26*V90 -> 262.3453732 | X89: 1 | Y89: 1 | Z89: 1 | AA89: 1 | AB89: 2 | AC89: 6 | AD89: 1 | AE89: 5 | AP89: 2810800
A90: 58 | B90: =OFFSET(InputPriceData!B$15,CalculationsAndCharts!$A90+$A$11,0,1,1) -> 2018-01-23 | C90: =OFFSET(InputPriceData!G$15,CalculationsAndCharts!$A90+$A$11,IF($C$7,8,0),1,1) -> 3197600 | D90: =OFFSET(InputPriceData!C$15,CalculationsAndCharts!$A90+$A$11,IF($C$7,8,0),1,1) -> 175.570007 | E90: =OFFSET(InputPriceData!D$15,CalculationsAndCharts!$A90+$A$11,IF($C$7,8,0),1,1) -> 177.75 | F90: =OFFSET(InputPriceData!E$15,CalculationsAndCharts!$A90+$A$11,IF($C$7,8,0),1,1) -> 174.850006 | G90: =OFFSET(InputPriceData!F$15,CalculationsAndCharts!$A90+$A$11,IF($C$7,8,0),1,1) -> 176.809998 | H90: 176.4700013 | I90: 0.001474392505 | J90: 0.003670159554 | K90: 0.1297841807 | L90: 3261976.154 | M90: 8154940.385 | N90: 3197600 | O90: 0.2533313333 | P90: 3197600 | Q90: 18.68967879 | R90: 17.18660706 | S90: 166.6826998 | T90: FALSE | U90: 0 | V90: =OFFSET(InputIndexData!F$15,CalculationsAndCharts!$A90+$A$11,IF($C$7,8,0),1,1)*$V$24+$V$26*V91 -> 261.9244717 | X90: 1 | Y90: 1 | Z90: 1 | AA90: 1 | AB90: 2 | AC90: 6 | AD90: 1 | AE90: 5 | AO90: 3197600
A91: 59 | B91: =OFFSET(InputPriceData!B$15,CalculationsAndCharts!$A91+$A$11,0,1,1) -> 2018-01-22 | C91: =OFFSET(InputPriceData!G$15,CalculationsAndCharts!$A91+$A$11,IF($C$7,8,0),1,1) -> 3217900 | D91: =OFFSET(InputPriceData!C$15,CalculationsAndCharts!$A91+$A$11,IF($C$7,8,0),1,1) -> 175.970001 | E91: =OFFSET(InputPriceData!D$15,CalculationsAndCharts!$A91+$A$11,IF($C$7,8,0),1,1) -> 176.830002 | F91: =OFFSET(InputPriceData!E$15,CalculationsAndCharts!$A91+$A$11,IF($C$7,8,0),1,1) -> 175.610001 | G91: =OFFSET(InputPriceData!F$15,CalculationsAndCharts!$A91+$A$11,IF($C$7,8,0),1,1) -> 176.210007 | H91: 176.21667 | I91: 0.0005487649287 | J91: 0.00378392791 | K91: 0.1333531927 | L91: 3255751.538 | M91: 8139378.846 | N91: 3217900 | O91: 0.503337 | P91: 3217900 | Q91: 16.54837167 | R91: 15.68353534 | S91: 166.5083998 | T91: FALSE | U91: 0 | V91: =OFFSET(InputIndexData!F$15,CalculationsAndCharts!$A91+$A$11,IF($C$7,8,0),1,1)*$V$24+$V$26*V92 -> 261.4928447 | X91: 1 | Y91: 1 | Z91: 1 | AA91: 1 | AB91: 2 | AC91: 6 | AD91: 1 | AE91: 5 | AO91: 3217900
A92: 60 | B92: =OFFSET(InputPriceData!B$15,CalculationsAndCharts!$A92+$A$11,0,1,1) -> 2018-01-19 | C92: =OFFSET(InputPriceData!G$15,CalculationsAndCharts!$A92+$A$11,IF($C$7,8,0),1,1) -> 3746300 | D92: =OFFSET(InputPriceData!C$15,CalculationsAndCharts!$A92+$A$11,IF($C$7,8,0),1,1) -> 174.990005 | E92: =OFFSET(InputPriceData!D$15,CalculationsAndCharts!$A92+$A$11,IF($C$7,8,0),1,1) -> 176.639999 | F92: =OFFSET(InputPriceData!E$15,CalculationsAndCharts!$A92+$A$11,IF($C$7,8,0),1,1) -> 174.380005 | G92: =OFFSET(InputPriceData!F$15,CalculationsAndCharts!$A92+$A$11,IF($C$7,8,0),1,1) -> 176.119995 | H92: 175.713333 | I92: 0.00652802991 | J92: 0.003827425861 | K92: 0.1348172447 | L92: 3245704.615 | M92: 8114261.538 | N92: 3746300 | O92: 1.073333667 | P92: 3746300 | Q92: 15.60816295 | R92: 14.818699 | S92: 166.3429997 | T92: FALSE | U92: 0 | V92: =OFFSET(InputIndexData!F$15,CalculationsAndCharts!$A92+$A$11,IF($C$7,8,0),1,1)*$V$24+$V$26*V93 -> 261.0646193 | X92: 1 | Y92: 1 | Z92: 1 | AA92: 1 | AB92: 2 | AC92: 6 | AD92: 1 | AE92: 5 | AO92: 3746300
A93: 61 | B93: =OFFSET(InputPriceData!B$15,CalculationsAndCharts!$A93+$A$11,0,1,1) -> 2018-01-18 | C93: =OFFSET(InputPriceData!G$15,CalculationsAndCharts!$A93+$A$11,IF($C$7,8,0),1,1) -> 2154800 | D93: =OFFSET(InputPriceData!C$15,CalculationsAndCharts!$A93+$A$11,IF($C$7,8,0),1,1) -> 175.190002 | E93: =OFFSET(InputPriceData!D$15,CalculationsAndCharts!$A93+$A$11,IF($C$7,8,0),1,1) -> 175.449997 | F93: =OFFSET(InputPriceData!E$15,CalculationsAndCharts!$A93+$A$11,IF($C$7,8,0),1,1) -> 173.899994 | G93: =OFFSET(InputPriceData!F$15,CalculationsAndCharts!$A93+$A$11,IF($C$7,8,0),1,1) -> 174.570007 | H93: 174.6399993 | I93: -0.001944950394 | J93: 0.004506007479 | K93: 0.1573227514 | L93: 3253511.538 | M93: 8133778.846 | N93: 2154800 | O93: -0.2100016667 | P93: -2154800 | Q93: 14.41924701 | R93: 14.02923504 | S93: 166.1699999 | T93: FALSE | U93: 0 | V93: =OFFSET(InputIndexData!F$15,CalculationsAndCharts!$A93+$A$11,IF($C$7,8,0),1,1)*$V$24+$V$26*V94 -> 260.6738035 | X93: 1 | Y93: 1 | Z93: 1 | AA93: 1 | AB93: 2 | AC93: 6 | AD93: 1 | AE93: 5 | AP93: 2154800
A94: 62 | B94: =OFFSET(InputPriceData!B$15,CalculationsAndCharts!$A94+$A$11,0,1,1) -> 2018-01-17 | C94: =OFFSET(InputPriceData!G$15,CalculationsAndCharts!$A94+$A$11,IF($C$7,8,0),1,1) -> 4129600 | D94: =OFFSET(InputPriceData!C$15,CalculationsAndCharts!$A94+$A$11,IF($C$7,8,0),1,1) -> 174.350006 | E94: =OFFSET(InputPriceData!D$15,CalculationsAndCharts!$A94+$A$11,IF($C$7,8,0),1,1) -> 175.690002 | F94: =OFFSET(InputPriceData!E$15,CalculationsAndCharts!$A94+$A$11,IF($C$7,8,0),1,1) -> 173.880005 | G94: =OFFSET(InputPriceData!F$15,CalculationsAndCharts!$A94+$A$11,IF($C$7,8,0),1,1) -> 174.979996 | H94: 174.850001 | I94: 0.006713983963 | J94: 0.004749284563 | K94: 0.1662059588 | L94: 3237860 | M94: 8094650 | N94: 4129600 | O94: 1.193333667 | P94: 4129600 | Q94: 14.17550065 | R94: 13.63922307 | S94: 166.0083998 | T94: FALSE | U94: 0 | V94: =OFFSET(InputIndexData!F$15,CalculationsAndCharts!$A94+$A$11,IF($C$7,8,0),1,1)*$V$24+$V$26*V95 -> 260.3007487 | X94: 1 | Y94: 1 | Z94: 1 | AA94: 1 | AB94: 2 | AC94: 6 | AD94: 1 | AE94: 5 | AO94: 4129600
A95: 63 | B95: =OFFSET(InputPriceData!B$15,CalculationsAndCharts!$A95+$A$11,0,1,1) -> 2018-01-16 | C95: =OFFSET(InputPriceData!G$15,CalculationsAndCharts!$A95+$A$11,IF($C$7,8,0),1,1) -> 3662600 | D95: =OFFSET(InputPriceData!C$15,CalculationsAndCharts!$A95+$A$11,IF($C$7,8,0),1,1) -> 173.619995 | E95: =OFFSET(InputPriceData!D$15,CalculationsAndCharts!$A95+$A$11,IF($C$7,8,0),1,1) -> 174.410004 | F95: =OFFSET(InputPriceData!E$15,CalculationsAndCharts!$A95+$A$11,IF($C$7,8,0),1,1) -> 172.880005 | G95: =OFFSET(InputPriceData!F$15,CalculationsAndCharts!$A95+$A$11,IF($C$7,8,0),1,1) -> 173.679993 | H95: 173.6566673 | I95: 0.0004991571301 | J95: 0.004618504023 | K95: 0.1604283493 | L95: 3225138.462 | M95: 8062846.154 | N95: 3662600 | O95: 0.2433323333 | P95: 3662600 | Q95: 13.60052818 | R95: 13.1029455 | S95: 165.8466998 | T95: FALSE | U95: 0 | V95: =OFFSET(InputIndexData!F$15,CalculationsAndCharts!$A95+$A$11,IF($C$7,8,0),1,1)*$V$24+$V$26*V96 -> 259.9106631 | X95: 1 | Y95: 1 | Z95: 1 | AA95: 1 | AB95: 2 | AC95: 6 | AD95: 1 | AE95: 5 | AO95: 3662600
A96: 64 | B96: =OFFSET(InputPriceData!B$15,CalculationsAndCharts!$A96+$A$11,0,1,1) -> 2018-01-12 | C96: =OFFSET(InputPriceData!G$15,CalculationsAndCharts!$A96+$A$11,IF($C$7,8,0),1,1) -> 2901600 | D96: =OFFSET(InputPriceData!C$15,CalculationsAndCharts!$A96+$A$11,IF($C$7,8,0),1,1) -> 173.360001 | E96: =OFFSET(InputPriceData!D$15,CalculationsAndCharts!$A96+$A$11,IF($C$7,8,0),1,1) -> 173.789993 | F96: =OFFSET(InputPriceData!E$15,CalculationsAndCharts!$A96+$A$11,IF($C$7,8,0),1,1) -> 172.880005 | G96: =OFFSET(InputPriceData!F$15,CalculationsAndCharts!$A96+$A$11,IF($C$7,8,0),1,1) -> 173.570007 | H96: 173.413335 | I96: 0.0001345777145 | J96: 0.004729357566 | K96: 0.1641749252 | L96: 3221296.923 | M96: 8053242.308 | N96: 2901600 | O96: 0.06666566667 | P96: 0 | Q96: 11.85615218 | R96: 12.60536281 | S96: 165.7062999 | T96: FALSE | U96: 0 | V96: =OFFSET(InputIndexData!F$15,CalculationsAndCharts!$A96+$A$11,IF($C$7,8,0),1,1)*$V$24+$V$26*V97 -> 259.56603 | X96: 1 | Y96: 1 | Z96: 1 | AA96: 1 | AB96: 2 | AC96: 6 | AD96: 1 | AE96: 5 | AO96: 2901600
A97: 65 | B97: =OFFSET(InputPriceData!B$15,CalculationsAndCharts!$A97+$A$11,0,1,1) -> 2018-01-11 | C97: =OFFSET(InputPriceData!G$15,CalculationsAndCharts!$A97+$A$11,IF($C$7,8,0),1,1) -> 3078000 | D97: =OFFSET(InputPriceData!C$15,CalculationsAndCharts!$A97+$A$11,IF($C$7,8,0),1,1) -> 173.559998 | E97: =OFFSET(InputPriceData!D$15,CalculationsAndCharts!$A97+$A$11,IF($C$7,8,0),1,1) -> 174.550003 | F97: =OFFSET(InputPriceData!E$15,CalculationsAndCharts!$A97+$A$11,IF($C$7,8,0),1,1) -> 172.100006 | G97: =OFFSET(InputPriceData!F$15,CalculationsAndCharts!$A97+$A$11,IF($C$7,8,0),1,1) -> 173.389999 | H97: 173.3466693 | I97: -0.0009417473875 | J97: 0.004836455339 | K97: =$F$17*J97*G97 -> 0.1677185973 | L97: 3229295.385 | M97: =L97*$F$19 -> 8073238.462 | N97: 3078000 | O97: 0.020004 | P97: 0 | Q97: 12.57066378 | R97: 13.35457344 | S97: 165.5541998 | T97: FALSE | U97: 0 | V97: =OFFSET(InputIndexData!F$15,CalculationsAndCharts!$A97+$A$11,IF($C$7,8,0),1,1)*$V$24+$V$26*V98 -> 259.1952425 | X97: 1 | Y97: 1 | Z97: 1 | AA97: 1 | AB97: 2 | AC97: 6 | AD97: 1 | AE97: 5 | AP97: 3078000
A98: 66 | B98: =OFFSET(InputPriceData!B$15,CalculationsAndCharts!$A98+$A$11,0,1,1) -> 2018-01-10 | C98: =OFFSET(InputPriceData!G$15,CalculationsAndCharts!$A98+$A$11,IF($C$7,8,0),1,1) -> 2172500 | D98: =OFFSET(InputPriceData!C$15,CalculationsAndCharts!$A98+$A$11,IF($C$7,8,0),1,1) -> 173.5 | E98: =OFFSET(InputPriceData!D$15,CalculationsAndCharts!$A98+$A$11,IF($C$7,8,0),1,1) -> 174 | F98: =OFFSET(InputPriceData!E$15,CalculationsAndCharts!$A98+$A$11,IF($C$7,8,0),1,1) -> 172.470001 | G98: =OFFSET(InputPriceData!F$15,CalculationsAndCharts!$A98+$A$11,IF($C$7,8,0),1,1) -> 173.509995 | H98: =AVERAGE(E98:G98) -> 173.3266653 | I98: =LN(H98)-LN(G99) -> -0.001230027092 | J98: =STDEVP(OFFSET(I98,0,0,30,1)) -> 0.005089143262 | K98: 0.1766034444 | L98: =AVERAGE(OFFSET(C98,1,0,$A$19,1)) -> 3228120.769 | M98: 8070301.923 | N98: =MIN(C98,M98) -> 2172500 | O98: -0.2666626667 | P98: -2172500 | Q98: =SUM(OFFSET(P98,0,0,$A$19,1))/L98 -> 13.8508407 | R98: =IF(($A$8-268)>$A98,Q98*$H$21+R99*$H$22,0) -> 14.13848309 | S98: =AVERAGE(OFFSET(G98,0,0,$A$21,1)) -> 165.3978998 | T98: FALSE | U98: =COUNTIF(OFFSET(T98,0,0,$A$17,1),TRUE) -> 0 | V98: =OFFSET(InputIndexData!F$15,CalculationsAndCharts!$A98+$A$11,IF($C$7,8,0),1,1)*$V$24+$V$26*V99 -> 258.8533283 | X98: =IF(R98>0,1,0)*$E$17 -> 1 | Y98: =IF(G98>S98,1,0)*$E$18 -> 1 | Z98: =IF(S98>OFFSET(S98,$Z$28,0,1,1),1,0)*$E$19 -> 1 | AA98: =IF(U98<=$A$18,1,0)*$E$20 -> 1 | AB98: =IF(V98>=OFFSET(V98,$AB$28,0,1,1),1,0)*$E$21 -> 2 | AC98: =SUM(X98:AB98) -> 6 | AD98: =IF(AC98>=$A$16,1,0) -> 1 | AE98: =$A$16 -> 5 | AF98: =IF(AND(AD98=1,AD99=0),AD98*$AZ$34,NA()) ->  | AO98: 2172500
A99: 67 | B99: =OFFSET(InputPriceData!B$15,CalculationsAndCharts!$A99+$A$11,0,1,1) -> 2018-01-09 | C99: =OFFSET(InputPriceData!G$15,CalculationsAndCharts!$A99+$A$11,IF($C$7,8,0),1,1) -> 2674300 | D99: =OFFSET(InputPriceData!C$15,CalculationsAndCharts!$A99+$A$11,IF($C$7,8,0),1,1) -> 174.229996 | E99: =OFFSET(InputPriceData!D$15,CalculationsAndCharts!$A99+$A$11,IF($C$7,8,0),1,1) -> 174.229996 | F99: =OFFSET(InputPriceData!E$15,CalculationsAndCharts!$A99+$A$11,IF($C$7,8,0),1,1) -> 173.009995 | G99: =OFFSET(InputPriceData!F$15,CalculationsAndCharts!$A99+$A$11,IF($C$7,8,0),1,1) -> 173.539993 | H99: 173.593328 | I99: -0.001937510866 | J99: 0.005105164818 | K99: 0.1771900534 | L99: 3226759.231 | M99: 8066898.077 | N99: 2674300 | O99: -0.09666966667 | P99: 0 | Q99: 14.52996124 | R99: 14.42612548 | S99: 165.2416999 | T99: FALSE | U99: 0 | V99: =OFFSET(InputIndexData!F$15,CalculationsAndCharts!$A99+$A$11,IF($C$7,8,0),1,1)*$V$24+$V$26*V100 -> 258.5449108 | X99: 1 | Y99: 1 | Z99: 1 | AA99: 1 | AB99: 2 | AC99: 6 | AD99: 1 | AE99: 5 | AP99: 2674300
A100: 68 | B100: =OFFSET(InputPriceData!B$15,CalculationsAndCharts!$A100+$A$11,0,1,1) -> 2018-01-08 | C100: =OFFSET(InputPriceData!G$15,CalculationsAndCharts!$A100+$A$11,IF($C$7,8,0),1,1) -> 2060800 | D100: =OFFSET(InputPriceData!C$15,CalculationsAndCharts!$A100+$A$11,IF($C$7,8,0),1,1) -> 173.740005 | E100: =OFFSET(InputPriceData!D$15,CalculationsAndCharts!$A100+$A$11,IF($C$7,8,0),1,1) -> 174.210007 | F100: =OFFSET(InputPriceData!E$15,CalculationsAndCharts!$A100+$A$11,IF($C$7,8,0),1,1) -> 172.929993 | G100: =OFFSET(InputPriceData!F$15,CalculationsAndCharts!$A100+$A$11,IF($C$7,8,0),1,1) -> 173.929993 | H100: 173.6899977 | I100: -0.002070543862 | J100: 0.005078432736 | K100: 0.1766583541 | L100: 3219373.846 | M100: 8048434.615 | N100: 2060800 | O100: -0.4600013333 | P100: -2060800 | Q100: 14.5632936 | R100: 14.32228973 | S100: 165.0952999 | T100: FALSE | U100: 0 | V100: =OFFSET(InputIndexData!F$15,CalculationsAndCharts!$A100+$A$11,IF($C$7,8,0),1,1)*$V$24+$V$26*V101 -> 258.2217775 | X100: 1 | Y100: 1 | Z100: 1 | AA100: 1 | AB100: 2 | AC100: 6 | AD100: 1 | AE100: 5 | AO100: 2060800
A101: 69 | B101: =OFFSET(InputPriceData!B$15,CalculationsAndCharts!$A101+$A$11,0,1,1) -> 2018-01-05 | C101: =OFFSET(InputPriceData!G$15,CalculationsAndCharts!$A101+$A$11,IF($C$7,8,0),1,1) -> 3737700 | D101: =OFFSET(InputPriceData!C$15,CalculationsAndCharts!$A101+$A$11,IF($C$7,8,0),1,1) -> 174 | E101: =OFFSET(InputPriceData!D$15,CalculationsAndCharts!$A101+$A$11,IF($C$7,8,0),1,1) -> 175 | F101: =OFFSET(InputPriceData!E$15,CalculationsAndCharts!$A101+$A$11,IF($C$7,8,0),1,1) -> 173.399994 | G101: =OFFSET(InputPriceData!F$15,CalculationsAndCharts!$A101+$A$11,IF($C$7,8,0),1,1) -> 174.050003 | H101: 174.149999 | I101: 0.002587335094 | J101: 0.00513171015 | K101: 0.1786348334 | L101: 3209916.154 | M101: 8024790.385 | N101: 3737700 | O101: 0.6299996667 | P101: 3737700 | Q101: 14.90530726 | R101: 14.08128585 | S101: 164.9321999 | T101: FALSE | U101: 0 | V101: =OFFSET(InputIndexData!F$15,CalculationsAndCharts!$A101+$A$11,IF($C$7,8,0),1,1)*$V$24+$V$26*V102 -> 257.9046414 | X101: 1 | Y101: 1 | Z101: 1 | AA101: 1 | AB101: 2 | AC101: 6 | AD101: 1 | AE101: 5 | AO101: 3737700
A102: 70 | B102: =OFFSET(InputPriceData!B$15,CalculationsAndCharts!$A102+$A$11,0,1,1) -> 2018-01-04 | C102: =OFFSET(InputPriceData!G$15,CalculationsAndCharts!$A102+$A$11,IF($C$7,8,0),1,1) -> 2756400 | D102: =OFFSET(InputPriceData!C$15,CalculationsAndCharts!$A102+$A$11,IF($C$7,8,0),1,1) -> 173.240005 | E102: =OFFSET(InputPriceData!D$15,CalculationsAndCharts!$A102+$A$11,IF($C$7,8,0),1,1) -> 174.130005 | F102: =OFFSET(InputPriceData!E$15,CalculationsAndCharts!$A102+$A$11,IF($C$7,8,0),1,1) -> 172.729996 | G102: =OFFSET(InputPriceData!F$15,CalculationsAndCharts!$A102+$A$11,IF($C$7,8,0),1,1) -> 173.699997 | H102: 173.5199993 | I102: 0.005953569913 | J102: 0.005290704116 | K102: 0.1837990578 | L102: 3203912.308 | M102: 8009780.769 | N102: 2756400 | O102: =H102-H103 -> 0.809998 | P102: =IF(O102>K102,N102,IF(O102< -K102,-N102,0)) -> 2756400 | Q102: 13.76663351 | R102: 13.25726445 | S102: 164.7642998 | T102: FALSE | U102: 0 | V102: =OFFSET(InputIndexData!F$15,CalculationsAndCharts!$A102+$A$11,IF($C$7,8,0),1,1)*$V$24+$V$26*V103 -> 257.5911996 | X102: 1 | Y102: 1 | Z102: 1 | AA102: 1 | AB102: 2 | AC102: 6 | AD102: 1 | AE102: 5 | AO102: 2756400
A103: 71 | B103: =OFFSET(InputPriceData!B$15,CalculationsAndCharts!$A103+$A$11,0,1,1) -> 2018-01-03 | C103: =OFFSET(InputPriceData!G$15,CalculationsAndCharts!$A103+$A$11,IF($C$7,8,0),1,1) -> 3789600 | D103: =OFFSET(InputPriceData!C$15,CalculationsAndCharts!$A103+$A$11,IF($C$7,8,0),1,1) -> 173.229996 | E103: =OFFSET(InputPriceData!D$15,CalculationsAndCharts!$A103+$A$11,IF($C$7,8,0),1,1) -> 173.639999 | F103: =OFFSET(InputPriceData!E$15,CalculationsAndCharts!$A103+$A$11,IF($C$7,8,0),1,1) -> 172 | G103: =OFFSET(InputPriceData!F$15,CalculationsAndCharts!$A103+$A$11,IF($C$7,8,0),1,1) -> 172.490005 | H103: 172.7100013 | I103: -0.0029485736 | J103: 0.005230781501 | K103: 0.1804515055 | L103: 3184783.077 | M103: 7961957.692 | N103: 3789600 | O103: -0.7433323333 | P103: -3789600 | Q103: 12.36341239 | R103: 12.74789538 | S103: 164.6002999 | T103: FALSE | U103: 0 | V103: =OFFSET(InputIndexData!F$15,CalculationsAndCharts!$A103+$A$11,IF($C$7,8,0),1,1)*$V$24+$V$26*V104 -> 257.3079918 | X103: 1 | Y103: 1 | Z103: 1 | AA103: 1 | AB103: 2 | AC103: 6 | AD103: 1 | AE103: 5 | AP103: 3789600
A104: 72 | B104: =OFFSET(InputPriceData!B$15,CalculationsAndCharts!$A104+$A$11,0,1,1) -> 2018-01-02 | C104: =OFFSET(InputPriceData!G$15,CalculationsAndCharts!$A104+$A$11,IF($C$7,8,0),1,1) -> 3696900 | D104: =OFFSET(InputPriceData!C$15,CalculationsAndCharts!$A104+$A$11,IF($C$7,8,0),1,1) -> 173.729996 | E104: =OFFSET(InputPriceData!D$15,CalculationsAndCharts!$A104+$A$11,IF($C$7,8,0),1,1) -> 174.479996 | F104: =OFFSET(InputPriceData!E$15,CalculationsAndCharts!$A104+$A$11,IF($C$7,8,0),1,1) -> 172.660004 | G104: =OFFSET(InputPriceData!F$15,CalculationsAndCharts!$A104+$A$11,IF($C$7,8,0),1,1) -> 173.220001 | H104: 173.4533337 | I104: 0.007716714066 | J104: 0.005407561317 | K104: 0.1873395553 | L104: 3172799.231 | M104: 7931998.077 | N104: 3696900 | O104: 1.113337333 | P104: 3696900 | Q104: 14.01512775 | R104: 13.13237838 | S104: 164.4415998 | T104: FALSE | U104: 0 | V104: =OFFSET(InputIndexData!F$15,CalculationsAndCharts!$A104+$A$11,IF($C$7,8,0),1,1)*$V$24+$V$26*V105 -> 257.0420926 | X104: 1 | Y104: 1 | Z104: 1 | AA104: 1 | AB104: 2 | AC104: 6 | AD104: 1 | AE104: 5 | AP104: 3696900
A105: 73 | B105: =OFFSET(InputPriceData!B$15,CalculationsAndCharts!$A105+$A$11,0,1,1) -> 2017-12-29 | C105: =OFFSET(InputPriceData!G$15,CalculationsAndCharts!$A105+$A$11,IF($C$7,8,0),1,1) -> 2201800 | D105: =OFFSET(InputPriceData!C$15,CalculationsAndCharts!$A105+$A$11,IF($C$7,8,0),1,1) -> 172.979996 | E105: =OFFSET(InputPriceData!D$15,CalculationsAndCharts!$A105+$A$11,IF($C$7,8,0),1,1) -> 172.979996 | F105: =OFFSET(InputPriceData!E$15,CalculationsAndCharts!$A105+$A$11,IF($C$7,8,0),1,1) -> 171.919998 | G105: =OFFSET(InputPriceData!F$15,CalculationsAndCharts!$A105+$A$11,IF($C$7,8,0),1,1) -> 172.119995 | H105: 172.3399963 | I105: -0.004400248308 | J105: 0.00532131752 | K105: 0.183181029 | L105: 3174023.077 | M105: 7935057.692 | N105: 2201800 | O105: -0.750005 | P105: -2201800 | Q105: 12.17107929 | R105: 12.24962902 | S105: 164.2585997 | T105: FALSE | U105: 0 | V105: =OFFSET(InputIndexData!F$15,CalculationsAndCharts!$A105+$A$11,IF($C$7,8,0),1,1)*$V$24+$V$26*V106 -> 256.8051654 | X105: 1 | Y105: 1 | Z105: 1 | AA105: 1 | AB105: 2 | AC105: 6 | AD105: 1 | AE105: 5 | AP105: 2201800
A106: 74 | B106: =OFFSET(InputPriceData!B$15,CalculationsAndCharts!$A106+$A$11,0,1,1) -> 2017-12-28 | C106: =OFFSET(InputPriceData!G$15,CalculationsAndCharts!$A106+$A$11,IF($C$7,8,0),1,1) -> 1800100 | D106: =OFFSET(InputPriceData!C$15,CalculationsAndCharts!$A106+$A$11,IF($C$7,8,0),1,1) -> 173.259995 | E106: =OFFSET(InputPriceData!D$15,CalculationsAndCharts!$A106+$A$11,IF($C$7,8,0),1,1) -> 173.550003 | F106: =OFFSET(InputPriceData!E$15,CalculationsAndCharts!$A106+$A$11,IF($C$7,8,0),1,1) -> 172.619995 | G106: =OFFSET(InputPriceData!F$15,CalculationsAndCharts!$A106+$A$11,IF($C$7,8,0),1,1) -> 173.100006 | H106: 173.0900013 | I106: 0.0024294513 | J106: 0.005262355042 | K106: 0.1821827379 | L106: 3177212.308 | M106: 7943030.769 | N106: 1800100 | O106: 1.003331667 | P106: 1800100 | Q106: 12.10878683 | R106: 12.32817875 | S106: 164.0865998 | T106: FALSE | U106: 0 | V106: =OFFSET(InputIndexData!F$15,CalculationsAndCharts!$A106+$A$11,IF($C$7,8,0),1,1)*$V$24+$V$26*V107 -> 256.6020377 | X106: 1 | Y106: 1 | Z106: 1 | AA106: 1 | AB106: 2 | AC106: 6 | AD106: 1 | AE106: 5 | AP106: 1800100
A107: 75 | B107: =OFFSET(InputPriceData!B$15,CalculationsAndCharts!$A107+$A$11,0,1,1) -> 2017-12-27 | C107: =OFFSET(InputPriceData!G$15,CalculationsAndCharts!$A107+$A$11,IF($C$7,8,0),1,1) -> 1596800 | D107: =OFFSET(InputPriceData!C$15,CalculationsAndCharts!$A107+$A$11,IF($C$7,8,0),1,1) -> 171.330002 | E107: =OFFSET(InputPriceData!D$15,CalculationsAndCharts!$A107+$A$11,IF($C$7,8,0),1,1) -> 172.740005 | F107: =OFFSET(InputPriceData!E$15,CalculationsAndCharts!$A107+$A$11,IF($C$7,8,0),1,1) -> 170.850006 | G107: =OFFSET(InputPriceData!F$15,CalculationsAndCharts!$A107+$A$11,IF($C$7,8,0),1,1) -> 172.669998 | H107: 172.0866697 | I107: 0.004640257669 | J107: 0.005259358967 | K107: 0.1816267005 | L107: 3180343.077 | M107: 7950857.692 | N107: 1596800 | O107: 0.83667 | P107: 1596800 | Q107: 12.22723008 | R107: 12.54757067 | S107: 163.9052997 | T107: FALSE | U107: 0 | V107: =OFFSET(InputIndexData!F$15,CalculationsAndCharts!$A107+$A$11,IF($C$7,8,0),1,1)*$V$24+$V$26*V108 -> 256.3744022 | X107: 1 | Y107: 1 | Z107: 1 | AA107: 1 | AB107: 2 | AC107: 6 | AD107: 1 | AE107: 5 | AO107: 1596800
A108: 76 | B108: =OFFSET(InputPriceData!B$15,CalculationsAndCharts!$A108+$A$11,0,1,1) -> 2017-12-26 | C108: =OFFSET(InputPriceData!G$15,CalculationsAndCharts!$A108+$A$11,IF($C$7,8,0),1,1) -> 1280200 | D108: =OFFSET(InputPriceData!C$15,CalculationsAndCharts!$A108+$A$11,IF($C$7,8,0),1,1) -> 171.089996 | E108: =OFFSET(InputPriceData!D$15,CalculationsAndCharts!$A108+$A$11,IF($C$7,8,0),1,1) -> 171.639999 | F108: =OFFSET(InputPriceData!E$15,CalculationsAndCharts!$A108+$A$11,IF($C$7,8,0),1,1) -> 170.820007 | G108: =OFFSET(InputPriceData!F$15,CalculationsAndCharts!$A108+$A$11,IF($C$7,8,0),1,1) -> 171.289993 | H108: 171.2499997 | I108: -0.0009921986076 | J108: 0.005338308721 | K108: 0.1828797727 | L108: 3189330 | M108: 7973325 | N108: 1280200 | O108: -0.086665 | P108: 0 | Q108: 12.32038909 | R108: 12.86791126 | S108: 163.7167998 | T108: FALSE | U108: 1 | V108: =OFFSET(InputIndexData!F$15,CalculationsAndCharts!$A108+$A$11,IF($C$7,8,0),1,1)*$V$24+$V$26*V109 -> 256.1532789 | X108: 1 | Y108: 1 | Z108: 1 | AA108: 1 | AB108: 2 | AC108: 6 | AD108: 1 | AE108: 5 | AO108: 1280200
A109: 77 | B109: =OFFSET(InputPriceData!B$15,CalculationsAndCharts!$A109+$A$11,0,1,1) -> 2017-12-22 | C109: =OFFSET(InputPriceData!G$15,CalculationsAndCharts!$A109+$A$11,IF($C$7,8,0),1,1) -> 3234100 | D109: =OFFSET(InputPriceData!C$15,CalculationsAndCharts!$A109+$A$11,IF($C$7,8,0),1,1) -> 171.820007 | E109: =OFFSET(InputPriceData!D$15,CalculationsAndCharts!$A109+$A$11,IF($C$7,8,0),1,1) -> 172.039993 | F109: =OFFSET(InputPriceData!E$15,CalculationsAndCharts!$A109+$A$11,IF($C$7,8,0),1,1) -> 170.550003 | G109: =OFFSET(InputPriceData!F$15,CalculationsAndCharts!$A109+$A$11,IF($C$7,8,0),1,1) -> 171.419998 | H109: 171.3366647 | I109: -0.002991618032 | J109: 0.005710978335 | K109: 0.195795179 | L109: 3192255.385 | M109: 7980638.462 | N109: 3234100 | O109: -0.7533366667 | P109: -3234100 | Q109: 11.54208611 | R109: 13.41543342 | S109: 163.5510999 | T109: FALSE | U109: 2 | V109: =OFFSET(InputIndexData!F$15,CalculationsAndCharts!$A109+$A$11,IF($C$7,8,0),1,1)*$V$24+$V$26*V110 -> 255.9303148 | X109: 1 | Y109: 1 | Z109: 1 | AA109: 1 | AB109: 2 | AC109: 6 | AD109: 1 | AE109: 5 | AP109: 3234100
A110: 78 | B110: =OFFSET(InputPriceData!B$15,CalculationsAndCharts!$A110+$A$11,0,1,1) -> 2017-12-21 | C110: =OFFSET(InputPriceData!G$15,CalculationsAndCharts!$A110+$A$11,IF($C$7,8,0),1,1) -> 2343300 | D110: =OFFSET(InputPriceData!C$15,CalculationsAndCharts!$A110+$A$11,IF($C$7,8,0),1,1) -> 172.600006 | E110: =OFFSET(InputPriceData!D$15,CalculationsAndCharts!$A110+$A$11,IF($C$7,8,0),1,1) -> 172.75 | F110: =OFFSET(InputPriceData!E$15,CalculationsAndCharts!$A110+$A$11,IF($C$7,8,0),1,1) -> 171.669998 | G110: =OFFSET(InputPriceData!F$15,CalculationsAndCharts!$A110+$A$11,IF($C$7,8,0),1,1) -> 171.850006 | H110: 172.0900013 | I110: -0.0004647456473 | J110: 0.006423661054 | K110: 0.2207812382 | L110: 3199336.154 | M110: 7998340.385 | N110: 2343300 | O110: -0.4966686667 | P110: -2343300 | Q110: 13.65714149 | R110: 15.28878073 | S110: 163.4027999 | T110: FALSE | U110: 2 | V110: =OFFSET(InputIndexData!F$15,CalculationsAndCharts!$A110+$A$11,IF($C$7,8,0),1,1)*$V$24+$V$26*V111 -> 255.6963816 | X110: 1 | Y110: 1 | Z110: 1 | AA110: 1 | AB110: 2 | AC110: 6 | AD110: 1 | AE110: 5 | AP110: 2343300
A111: 79 | B111: =OFFSET(InputPriceData!B$15,CalculationsAndCharts!$A111+$A$11,0,1,1) -> 2017-12-20 | C111: =OFFSET(InputPriceData!G$15,CalculationsAndCharts!$A111+$A$11,IF($C$7,8,0),1,1) -> 2749400 | D111: =OFFSET(InputPriceData!C$15,CalculationsAndCharts!$A111+$A$11,IF($C$7,8,0),1,1) -> 173.830002 | E111: =OFFSET(InputPriceData!D$15,CalculationsAndCharts!$A111+$A$11,IF($C$7,8,0),1,1) -> 173.880005 | F111: =OFFSET(InputPriceData!E$15,CalculationsAndCharts!$A111+$A$11,IF($C$7,8,0),1,1) -> 171.710007 | G111: =OFFSET(InputPriceData!F$15,CalculationsAndCharts!$A111+$A$11,IF($C$7,8,0),1,1) -> 172.169998 | H111: 172.58667 | I111: -0.004643841713 | J111: 0.006464119323 | K111: 0.2225854822 | L111: 3220063.077 | M111: 8050157.692 | N111: 2749400 | O111: -1.203328333 | P111: -2749400 | Q111: 15.31053441 | R111: 16.92041997 | S111: 163.2246997 | T111: FALSE | U111: 2 | V111: =OFFSET(InputIndexData!F$15,CalculationsAndCharts!$A111+$A$11,IF($C$7,8,0),1,1)*$V$24+$V$26*V112 -> 255.4563087 | X111: 1 | Y111: 1 | Z111: 1 | AA111: 1 | AB111: 2 | AC111: 6 | AD111: 1 | AE111: 5 | AP111: 2749400
A112: 80 | B112: =OFFSET(InputPriceData!B$15,CalculationsAndCharts!$A112+$A$11,0,1,1) -> 2017-12-19 | C112: =OFFSET(InputPriceData!G$15,CalculationsAndCharts!$A112+$A$11,IF($C$7,8,0),1,1) -> 3122500 | D112: =OFFSET(InputPriceData!C$15,CalculationsAndCharts!$A112+$A$11,IF($C$7,8,0),1,1) -> 174.389999 | E112: =OFFSET(InputPriceData!D$15,CalculationsAndCharts!$A112+$A$11,IF($C$7,8,0),1,1) -> 174.899994 | F112: =OFFSET(InputPriceData!E$15,CalculationsAndCharts!$A112+$A$11,IF($C$7,8,0),1,1) -> 173.080002 | G112: =OFFSET(InputPriceData!F$15,CalculationsAndCharts!$A112+$A$11,IF($C$7,8,0),1,1) -> 173.389999 | H112: 173.7899983 | I112: -0.00235638301 | J112: 0.006399042616 | K112: 0.2219059986 | L112: 3215409.231 | M112: 8038523.077 | N112: 3122500 | O112: -0.9066673333 | P112: -3122500 | Q112: 17.88083022 | R112: 18.53030553 | S112: 163.0543997 | T112: FALSE | U112: 2 | V112: =OFFSET(InputIndexData!F$15,CalculationsAndCharts!$A112+$A$11,IF($C$7,8,0),1,1)*$V$24+$V$26*V113 -> 255.2224968 | X112: 1 | Y112: 1 | Z112: 1 | AA112: 1 | AB112: 2 | AC112: 6 | AD112: 1 | AE112: 5 | AP112: 3122500
A113: 81 | B113: =OFFSET(InputPriceData!B$15,CalculationsAndCharts!$A113+$A$11,0,1,1) -> 2017-12-18 | C113: =OFFSET(InputPriceData!G$15,CalculationsAndCharts!$A113+$A$11,IF($C$7,8,0),1,1) -> 2426300 | D113: =OFFSET(InputPriceData!C$15,CalculationsAndCharts!$A113+$A$11,IF($C$7,8,0),1,1) -> 174.869995 | E113: =OFFSET(InputPriceData!D$15,CalculationsAndCharts!$A113+$A$11,IF($C$7,8,0),1,1) -> 175.779999 | F113: =OFFSET(InputPriceData!E$15,CalculationsAndCharts!$A113+$A$11,IF($C$7,8,0),1,1) -> 174.110001 | G113: =OFFSET(InputPriceData!F$15,CalculationsAndCharts!$A113+$A$11,IF($C$7,8,0),1,1) -> 174.199997 | H113: 174.6966657 | I113: 0.003651075035 | J113: 0.006449879821 | K113: 0.2247138091 | L113: 3217326.154 | M113: 8043315.385 | N113: 2426300 | O113: 0.4200033333 | P113: 2426300 | Q113: 19.62318507 | R113: 19.17978085 | S113: 162.8789998 | T113: FALSE | U113: 2 | V113: =OFFSET(InputIndexData!F$15,CalculationsAndCharts!$A113+$A$11,IF($C$7,8,0),1,1)*$V$24+$V$26*V114 -> 254.9811328 | X113: 1 | Y113: 1 | Z113: 1 | AA113: 1 | AB113: 2 | AC113: 6 | AD113: 1 | AE113: 5 | AP113: 2426300
A114: 82 | B114: =OFFSET(InputPriceData!B$15,CalculationsAndCharts!$A114+$A$11,0,1,1) -> 2017-12-15 | C114: =OFFSET(InputPriceData!G$15,CalculationsAndCharts!$A114+$A$11,IF($C$7,8,0),1,1) -> 7435200 | D114: =OFFSET(InputPriceData!C$15,CalculationsAndCharts!$A114+$A$11,IF($C$7,8,0),1,1) -> 174.300003 | E114: =OFFSET(InputPriceData!D$15,CalculationsAndCharts!$A114+$A$11,IF($C$7,8,0),1,1) -> 175.089996 | F114: =OFFSET(InputPriceData!E$15,CalculationsAndCharts!$A114+$A$11,IF($C$7,8,0),1,1) -> 173.679993 | G114: =OFFSET(InputPriceData!F$15,CalculationsAndCharts!$A114+$A$11,IF($C$7,8,0),1,1) -> 174.059998 | H114: 174.2766623 | I114: 0.00654353988 | J114: 0.006439354747 | K114: 0.2241668149 | L114: 3192960.769 | M114: 7982401.923 | N114: 7435200 | O114: 0.9266613333 | P114: 7435200 | Q114: 19.85097567 | R114: 18.73637663 | S114: 162.7064998 | T114: FALSE | U114: 2 | V114: =OFFSET(InputIndexData!F$15,CalculationsAndCharts!$A114+$A$11,IF($C$7,8,0),1,1)*$V$24+$V$26*V115 -> 254.7140848 | X114: 1 | Y114: 1 | Z114: 1 | AA114: 1 | AB114: 2 | AC114: 6 | AD114: 1 | AE114: 5 | AP114: 7435200
A115: 83 | B115: =OFFSET(InputPriceData!B$15,CalculationsAndCharts!$A115+$A$11,0,1,1) -> 2017-12-14 | C115: =OFFSET(InputPriceData!G$15,CalculationsAndCharts!$A115+$A$11,IF($C$7,8,0),1,1) -> 2666900 | D115: =OFFSET(InputPriceData!C$15,CalculationsAndCharts!$A115+$A$11,IF($C$7,8,0),1,1) -> 173.660004 | E115: =OFFSET(InputPriceData!D$15,CalculationsAndCharts!$A115+$A$11,IF($C$7,8,0),1,1) -> 174.080002 | F115: =OFFSET(InputPriceData!E$15,CalculationsAndCharts!$A115+$A$11,IF($C$7,8,0),1,1) -> 172.830002 | G115: =OFFSET(InputPriceData!F$15,CalculationsAndCharts!$A115+$A$11,IF($C$7,8,0),1,1) -> 173.139999 | H115: 173.350001 | I115: -0.001153081694 | J115: 0.006483665853 | K115: 0.2245163799 | L115: 3217850.769 | M115: 8044626.923 | N115: 2666900 | O115: 0.04666633333 | P115: 0 | Q115: 18.71307617 | R115: 17.6217776 | S115: 162.5309998 | T115: FALSE | U115: 2 | V115: =OFFSET(InputIndexData!F$15,CalculationsAndCharts!$A115+$A$11,IF($C$7,8,0),1,1)*$V$24+$V$26*V116 -> 254.4757833 | X115: 1 | Y115: 1 | Z115: 1 | AA115: 1 | AB115: 2 | AC115: 6 | AD115: 1 | AE115: 5 | AP115: 2666900
A116: 84 | B116: =OFFSET(InputPriceData!B$15,CalculationsAndCharts!$A116+$A$11,0,1,1) -> 2017-12-13 | C116: =OFFSET(InputPriceData!G$15,CalculationsAndCharts!$A116+$A$11,IF($C$7,8,0),1,1) -> 2554000 | D116: =OFFSET(InputPriceData!C$15,CalculationsAndCharts!$A116+$A$11,IF($C$7,8,0),1,1) -> 172.440002 | E116: =OFFSET(InputPriceData!D$15,CalculationsAndCharts!$A116+$A$11,IF($C$7,8,0),1,1) -> 173.960007 | F116: =OFFSET(InputPriceData!E$15,CalculationsAndCharts!$A116+$A$11,IF($C$7,8,0),1,1) -> 172.399994 | G116: =OFFSET(InputPriceData!F$15,CalculationsAndCharts!$A116+$A$11,IF($C$7,8,0),1,1) -> 173.550003 | H116: 173.3033347 | I116: 0.006212669075 | J116: 0.006488925579 | K116: 0.2252306107 | L116: 3230074.615 | M116: 8075186.538 | N116: 2554000 | O116: 0.8766683333 | P116: 2554000 | Q116: 16.81487055 | R116: 16.53047902 | S116: 162.3902999 | T116: FALSE | U116: 2 | V116: =OFFSET(InputIndexData!F$15,CalculationsAndCharts!$A116+$A$11,IF($C$7,8,0),1,1)*$V$24+$V$26*V117 -> 254.2498394 | X116: 1 | Y116: 1 | Z116: 1 | AA116: 1 | AB116: 2 | AC116: 6 | AD116: 1 | AE116: 5 | AO116: 2554000
A117: 85 | B117: =OFFSET(InputPriceData!B$15,CalculationsAndCharts!$A117+$A$11,0,1,1) -> 2017-12-12 | C117: =OFFSET(InputPriceData!G$15,CalculationsAndCharts!$A117+$A$11,IF($C$7,8,0),1,1) -> 2805900 | D117: =OFFSET(InputPriceData!C$15,CalculationsAndCharts!$A117+$A$11,IF($C$7,8,0),1,1) -> 173 | E117: =OFFSET(InputPriceData!D$15,CalculationsAndCharts!$A117+$A$11,IF($C$7,8,0),1,1) -> 173.199997 | F117: =OFFSET(InputPriceData!E$15,CalculationsAndCharts!$A117+$A$11,IF($C$7,8,0),1,1) -> 171.850006 | G117: =OFFSET(InputPriceData!F$15,CalculationsAndCharts!$A117+$A$11,IF($C$7,8,0),1,1) -> 172.229996 | H117: 172.4266663 | I117: -0.004763614694 | J117: 0.006433413411 | K117: 0.2216053532 | L117: 3236925.385 | M117: 8092313.462 | N117: 2805900 | O117: -0.4800006667 | P117: -2805900 | Q117: 15.99026248 | R117: 16.24608749 | S117: 162.1732999 | T117: FALSE | U117: 2 | V117: =OFFSET(InputIndexData!F$15,CalculationsAndCharts!$A117+$A$11,IF($C$7,8,0),1,1)*$V$24+$V$26*V118 -> 253.9973109 | X117: 1 | Y117: 1 | Z117: 1 | AA117: 1 | AB117: 2 | AC117: 6 | AD117: 1 | AE117: 5 | AP117: 2805900
A118: 86 | B118: =OFFSET(InputPriceData!B$15,CalculationsAndCharts!$A118+$A$11,0,1,1) -> 2017-12-11 | C118: =OFFSET(InputPriceData!G$15,CalculationsAndCharts!$A118+$A$11,IF($C$7,8,0),1,1) -> 2340800 | D118: =OFFSET(InputPriceData!C$15,CalculationsAndCharts!$A118+$A$11,IF($C$7,8,0),1,1) -> 172.940002 | E118: =OFFSET(InputPriceData!D$15,CalculationsAndCharts!$A118+$A$11,IF($C$7,8,0),1,1) -> 173.25 | F118: =OFFSET(InputPriceData!E$15,CalculationsAndCharts!$A118+$A$11,IF($C$7,8,0),1,1) -> 172.220001 | G118: =OFFSET(InputPriceData!F$15,CalculationsAndCharts!$A118+$A$11,IF($C$7,8,0),1,1) -> 173.25 | H118: 172.906667 | I118: -0.001406284389 | J118: 0.006355583196 | K118: 0.2202209577 | L118: 3241403.077 | M118: 8103507.692 | N118: 2340800 | O118: -0.1599936667 | P118: 0 | Q118: 16.8338171 | R118: 16.5019125 | S118: 161.9901999 | T118: FALSE | U118: 2 | V118: =OFFSET(InputIndexData!F$15,CalculationsAndCharts!$A118+$A$11,IF($C$7,8,0),1,1)*$V$24+$V$26*V119 -> 253.7390748 | X118: 1 | Y118: 1 | Z118: 1 | AA118: 1 | AB118: 2 | AC118: 6 | AD118: 1 | AE118: 5 | AO118: 2340800
A119: 87 | B119: =OFFSET(InputPriceData!B$15,CalculationsAndCharts!$A119+$A$11,0,1,1) -> 2017-12-08 | C119: =OFFSET(InputPriceData!G$15,CalculationsAndCharts!$A119+$A$11,IF($C$7,8,0),1,1) -> 2241100 | D119: =OFFSET(InputPriceData!C$15,CalculationsAndCharts!$A119+$A$11,IF($C$7,8,0),1,1) -> 173.039993 | E119: =OFFSET(InputPriceData!D$15,CalculationsAndCharts!$A119+$A$11,IF($C$7,8,0),1,1) -> 173.539993 | F119: =OFFSET(InputPriceData!E$15,CalculationsAndCharts!$A119+$A$11,IF($C$7,8,0),1,1) -> 172.509995 | G119: =OFFSET(InputPriceData!F$15,CalculationsAndCharts!$A119+$A$11,IF($C$7,8,0),1,1) -> 173.149994 | H119: 173.0666607 | I119: 0.0009055910029 | J119: 0.006399328845 | K119: 0.2216087502 | L119: 3252332.308 | M119: 8130830.769 | N119: 2241100 | O119: 0.3599956667 | P119: 2241100 | Q119: 16.77724826 | R119: 16.17000791 | S119: 161.7998 | T119: FALSE | U119: 2 | V119: =OFFSET(InputIndexData!F$15,CalculationsAndCharts!$A119+$A$11,IF($C$7,8,0),1,1)*$V$24+$V$26*V120 -> 253.4851167 | X119: 1 | Y119: 1 | Z119: 1 | AA119: 1 | AB119: 2 | AC119: 6 | AD119: 1 | AE119: 5 | AO119: 2241100
A120: 88 | B120: =OFFSET(InputPriceData!B$15,CalculationsAndCharts!$A120+$A$11,0,1,1) -> 2017-12-07 | C120: =OFFSET(InputPriceData!G$15,CalculationsAndCharts!$A120+$A$11,IF($C$7,8,0),1,1) -> 2284800 | D120: =OFFSET(InputPriceData!C$15,CalculationsAndCharts!$A120+$A$11,IF($C$7,8,0),1,1) -> 172.550003 | E120: =OFFSET(InputPriceData!D$15,CalculationsAndCharts!$A120+$A$11,IF($C$7,8,0),1,1) -> 173.289993 | F120: =OFFSET(InputPriceData!E$15,CalculationsAndCharts!$A120+$A$11,IF($C$7,8,0),1,1) -> 171.919998 | G120: =OFFSET(InputPriceData!F$15,CalculationsAndCharts!$A120+$A$11,IF($C$7,8,0),1,1) -> 172.910004 | H120: 172.706665 | I120: -0.004467718566 | J120: 0.006409625869 | K120: 0.2216576869 | L120: 3255016.154 | M120: 8137540.385 | N120: 2284800 | O120: -0.9333343333 | P120: -2284800 | Q120: 14.94990631 | R120: 15.56276756 | S120: 161.6072 | T120: FALSE | U120: 2 | V120: =OFFSET(InputIndexData!F$15,CalculationsAndCharts!$A120+$A$11,IF($C$7,8,0),1,1)*$V$24+$V$26*V121 -> 253.2421896 | X120: 1 | Y120: 1 | Z120: 1 | AA120: 1 | AB120: 2 | AC120: 6 | AD120: 1 | AE120: 5 | AO120: 2284800
A121: 89 | B121: =OFFSET(InputPriceData!B$15,CalculationsAndCharts!$A121+$A$11,0,1,1) -> 2017-12-06 | C121: =OFFSET(InputPriceData!G$15,CalculationsAndCharts!$A121+$A$11,IF($C$7,8,0),1,1) -> 2618700 | D121: =OFFSET(InputPriceData!C$15,CalculationsAndCharts!$A121+$A$11,IF($C$7,8,0),1,1) -> 173.479996 | E121: =OFFSET(InputPriceData!D$15,CalculationsAndCharts!$A121+$A$11,IF($C$7,8,0),1,1) -> 174.440002 | F121: =OFFSET(InputPriceData!E$15,CalculationsAndCharts!$A121+$A$11,IF($C$7,8,0),1,1) -> 173 | G121: =OFFSET(InputPriceData!F$15,CalculationsAndCharts!$A121+$A$11,IF($C$7,8,0),1,1) -> 173.479996 | H121: 173.6399993 | I121: 0.00375036833 | J121: 0.00632194636 | K121: 0.2193462459 | L121: 3268077.692 | M121: 8170194.231 | N121: 2618700 | O121: 0.406662 | P121: 2618700 | Q121: 15.58928255 | R121: 16.1756288 | S121: 161.4177001 | T121: FALSE | U121: 2 | V121: =OFFSET(InputIndexData!F$15,CalculationsAndCharts!$A121+$A$11,IF($C$7,8,0),1,1)*$V$24+$V$26*V122 -> 253.0234458 | X121: 1 | Y121: 1 | Z121: 1 | AA121: 1 | AB121: 2 | AC121: 6 | AD121: 1 | AE121: 5 | AO121: 2618700
A122: 90 | B122: =OFFSET(InputPriceData!B$15,CalculationsAndCharts!$A122+$A$11,0,1,1) -> 2017-12-05 | C122: =OFFSET(InputPriceData!G$15,CalculationsAndCharts!$A122+$A$11,IF($C$7,8,0),1,1) -> 3228700 | D122: =OFFSET(InputPriceData!C$15,CalculationsAndCharts!$A122+$A$11,IF($C$7,8,0),1,1) -> 173.639999 | E122: =OFFSET(InputPriceData!D$15,CalculationsAndCharts!$A122+$A$11,IF($C$7,8,0),1,1) -> 174.25 | F122: =OFFSET(InputPriceData!E$15,CalculationsAndCharts!$A122+$A$11,IF($C$7,8,0),1,1) -> 172.460007 | G122: =OFFSET(InputPriceData!F$15,CalculationsAndCharts!$A122+$A$11,IF($C$7,8,0),1,1) -> 172.990005 | H122: 173.2333373 | I122: 0.01502481624 | J122: 0.006416797353 | K122: 0.2220083612 | L122: 3276701.538 | M122: 8191753.846 | N122: 3228700 | O122: 1.713343 | P122: 3228700 | Q122: 16.06645766 | R122: 16.76197505 | S122: 161.2355001 | T122: FALSE | U122: 2 | V122: =OFFSET(InputIndexData!F$15,CalculationsAndCharts!$A122+$A$11,IF($C$7,8,0),1,1)*$V$24+$V$26*V123 -> 252.817051 | X122: 1 | Y122: 1 | Z122: 1 | AA122: 1 | AB122: 2 | AC122: 6 | AD122: 1 | AE122: 5 | AP122: 3228700
A123: 91 | B123: =OFFSET(InputPriceData!B$15,CalculationsAndCharts!$A123+$A$11,0,1,1) -> 2017-12-04 | C123: =OFFSET(InputPriceData!G$15,CalculationsAndCharts!$A123+$A$11,IF($C$7,8,0),1,1) -> 3943100 | D123: =OFFSET(InputPriceData!C$15,CalculationsAndCharts!$A123+$A$11,IF($C$7,8,0),1,1) -> 173.270004 | E123: =OFFSET(InputPriceData!D$15,CalculationsAndCharts!$A123+$A$11,IF($C$7,8,0),1,1) -> 173.479996 | F123: =OFFSET(InputPriceData!E$15,CalculationsAndCharts!$A123+$A$11,IF($C$7,8,0),1,1) -> 170.429993 | G123: =OFFSET(InputPriceData!F$15,CalculationsAndCharts!$A123+$A$11,IF($C$7,8,0),1,1) -> 170.649994 | H123: 171.5199943 | I123: -0.007839993167 | J123: 0.006437325855 | K123: 0.2197059237 | L123: 3295721.538 | M123: 8239303.846 | N123: 3943100 | O123: -0.6166683333 | P123: -3943100 | Q123: 16.31390453 | R123: 17.45749244 | S123: 161.0584 | T123: FALSE | U123: 2 | V123: =OFFSET(InputIndexData!F$15,CalculationsAndCharts!$A123+$A$11,IF($C$7,8,0),1,1)*$V$24+$V$26*V124 -> 252.6074964 | X123: 1 | Y123: 1 | Z123: 1 | AA123: 1 | AB123: 2 | AC123: 6 | AD123: 1 | AE123: 5 | AP123: 3943100
A124: 92 | B124: =OFFSET(InputPriceData!B$15,CalculationsAndCharts!$A124+$A$11,0,1,1) -> 2017-12-01 | C124: =OFFSET(InputPriceData!G$15,CalculationsAndCharts!$A124+$A$11,IF($C$7,8,0),1,1) -> 4279200 | D124: =OFFSET(InputPriceData!C$15,CalculationsAndCharts!$A124+$A$11,IF($C$7,8,0),1,1) -> 172.770004 | E124: =OFFSET(InputPriceData!D$15,CalculationsAndCharts!$A124+$A$11,IF($C$7,8,0),1,1) -> 173.149994 | F124: =OFFSET(InputPriceData!E$15,CalculationsAndCharts!$A124+$A$11,IF($C$7,8,0),1,1) -> 170.389999 | G124: =OFFSET(InputPriceData!F$15,CalculationsAndCharts!$A124+$A$11,IF($C$7,8,0),1,1) -> 172.869995 | H124: 172.1366627 | I124: 0.0009686629019 | J124: 0.006236997859 | K124: 0.2156379578 | L124: 3286757.692 | M124: 8216894.231 | N124: 4279200 | O124: 0.643331 | P124: 4279200 | Q124: 19.51007423 | R124: 18.60108036 | S124: 160.9023 | T124: FALSE | U124: 2 | V124: =OFFSET(InputIndexData!F$15,CalculationsAndCharts!$A124+$A$11,IF($C$7,8,0),1,1)*$V$24+$V$26*V125 -> 252.3745163 | X124: 1 | Y124: 1 | Z124: 1 | AA124: 1 | AB124: 2 | AC124: 6 | AD124: 1 | AE124: 5 | AO124: 4279200
A125: 93 | B125: =OFFSET(InputPriceData!B$15,CalculationsAndCharts!$A125+$A$11,0,1,1) -> 2017-11-30 | C125: =OFFSET(InputPriceData!G$15,CalculationsAndCharts!$A125+$A$11,IF($C$7,8,0),1,1) -> 6023700 | D125: =OFFSET(InputPriceData!C$15,CalculationsAndCharts!$A125+$A$11,IF($C$7,8,0),1,1) -> 170.240005 | E125: =OFFSET(InputPriceData!D$15,CalculationsAndCharts!$A125+$A$11,IF($C$7,8,0),1,1) -> 173.169998 | F125: =OFFSET(InputPriceData!E$15,CalculationsAndCharts!$A125+$A$11,IF($C$7,8,0),1,1) -> 169.339996 | G125: =OFFSET(InputPriceData!F$15,CalculationsAndCharts!$A125+$A$11,IF($C$7,8,0),1,1) -> 171.970001 | H125: 171.4933317 | I125: 0.006219769275 | J125: 0.006240037706 | K125: 0.2146198581 | L125: 3265484.615 | M125: 8163711.538 | N125: 6023700 | O125: 0.9933316667 | P125: 6023700 | Q125: 18.3267397 | R125: 17.69208649 | S125: 160.7394001 | T125: FALSE | U125: 2 | V125: =OFFSET(InputIndexData!F$15,CalculationsAndCharts!$A125+$A$11,IF($C$7,8,0),1,1)*$V$24+$V$26*V126 -> 252.1303652 | X125: 1 | Y125: 1 | Z125: 1 | AA125: 1 | AB125: 2 | AC125: 6 | AD125: 1 | AE125: 5 | AO125: 6023700
A126: 94 | B126: =OFFSET(InputPriceData!B$15,CalculationsAndCharts!$A126+$A$11,0,1,1) -> 2017-11-29 | C126: =OFFSET(InputPriceData!G$15,CalculationsAndCharts!$A126+$A$11,IF($C$7,8,0),1,1) -> 4590300 | D126: =OFFSET(InputPriceData!C$15,CalculationsAndCharts!$A126+$A$11,IF($C$7,8,0),1,1) -> 171.699997 | E126: =OFFSET(InputPriceData!D$15,CalculationsAndCharts!$A126+$A$11,IF($C$7,8,0),1,1) -> 172.020004 | F126: =OFFSET(InputPriceData!E$15,CalculationsAndCharts!$A126+$A$11,IF($C$7,8,0),1,1) -> 169.050003 | G126: =OFFSET(InputPriceData!F$15,CalculationsAndCharts!$A126+$A$11,IF($C$7,8,0),1,1) -> 170.429993 | H126: 170.5 | I126: -0.004914566467 | J126: 0.006172318255 | K126: 0.2103896314 | L126: 3256390.769 | M126: 8140976.923 | N126: 4590300 | O126: -0.08666466667 | P126: 0 | Q126: 16.52811052 | R126: 17.05743329 | S126: 160.5688001 | T126: FALSE | U126: 2 | V126: =OFFSET(InputIndexData!F$15,CalculationsAndCharts!$A126+$A$11,IF($C$7,8,0),1,1)*$V$24+$V$26*V127 -> 251.8701704 | X126: 1 | Y126: 1 | Z126: 1 | AA126: 1 | AB126: 2 | AC126: 6 | AD126: 1 | AE126: 5 | AP126: 4590300
A127: 95 | B127: =OFFSET(InputPriceData!B$15,CalculationsAndCharts!$A127+$A$11,0,1,1) -> 2017-11-28 | C127: =OFFSET(InputPriceData!G$15,CalculationsAndCharts!$A127+$A$11,IF($C$7,8,0),1,1) -> 2909900 | D127: =OFFSET(InputPriceData!C$15,CalculationsAndCharts!$A127+$A$11,IF($C$7,8,0),1,1) -> 169.229996 | E127: =OFFSET(InputPriceData!D$15,CalculationsAndCharts!$A127+$A$11,IF($C$7,8,0),1,1) -> 171.380005 | F127: =OFFSET(InputPriceData!E$15,CalculationsAndCharts!$A127+$A$11,IF($C$7,8,0),1,1) -> 169.039993 | G127: =OFFSET(InputPriceData!F$15,CalculationsAndCharts!$A127+$A$11,IF($C$7,8,0),1,1) -> 171.339996 | H127: 170.5866647 | I127: 0.009581422802 | J127: 0.006082888365 | K127: 0.2084484136 | L127: 3259767.692 | M127: 8149419.231 | N127: 2909900 | O127: 1.843332667 | P127: 2909900 | Q127: 17.55649235 | R127: 17.58675605 | S127: 160.4197002 | T127: FALSE | U127: 2 | V127: =OFFSET(InputIndexData!F$15,CalculationsAndCharts!$A127+$A$11,IF($C$7,8,0),1,1)*$V$24+$V$26*V128 -> 251.6511841 | X127: 1 | Y127: 1 | Z127: 1 | AA127: 1 | AB127: 2 | AC127: 6 | AD127: 1 | AE127: 5 | AO127: 2909900
A128: 96 | B128: =OFFSET(InputPriceData!B$15,CalculationsAndCharts!$A128+$A$11,0,1,1) -> 2017-11-27 | C128: =OFFSET(InputPriceData!G$15,CalculationsAndCharts!$A128+$A$11,IF($C$7,8,0),1,1) -> 2082400 | D128: =OFFSET(InputPriceData!C$15,CalculationsAndCharts!$A128+$A$11,IF($C$7,8,0),1,1) -> 168.899994 | E128: =OFFSET(InputPriceData!D$15,CalculationsAndCharts!$A128+$A$11,IF($C$7,8,0),1,1) -> 169.179993 | F128: =OFFSET(InputPriceData!E$15,CalculationsAndCharts!$A128+$A$11,IF($C$7,8,0),1,1) -> 168.089996 | G128: =OFFSET(InputPriceData!F$15,CalculationsAndCharts!$A128+$A$11,IF($C$7,8,0),1,1) -> 168.960007 | H128: 168.743332 | I128: -0.002170581777 | J128: 0.00589434629 | K128: 0.1991817581 | L128: 3268843.846 | M128: 8172109.615 | N128: 2082400 | O128: -0.4200033333 | P128: -2082400 | Q128: 17.64204387 | R128: 17.61701975 | S128: 160.2690003 | T128: FALSE | U128: 2 | V128: =OFFSET(InputIndexData!F$15,CalculationsAndCharts!$A128+$A$11,IF($C$7,8,0),1,1)*$V$24+$V$26*V129 -> 251.4245415 | X128: 1 | Y128: 1 | Z128: 1 | AA128: 1 | AB128: 2 | AC128: 6 | AD128: 1 | AE128: 5 | AO128: 2082400
A129: 97 | B129: =OFFSET(InputPriceData!B$15,CalculationsAndCharts!$A129+$A$11,0,1,1) -> 2017-11-24 | C129: =OFFSET(InputPriceData!G$15,CalculationsAndCharts!$A129+$A$11,IF($C$7,8,0),1,1) -> 963200 | D129: =OFFSET(InputPriceData!C$15,CalculationsAndCharts!$A129+$A$11,IF($C$7,8,0),1,1) -> 168.880005 | E129: =OFFSET(InputPriceData!D$15,CalculationsAndCharts!$A129+$A$11,IF($C$7,8,0),1,1) -> 169.559998 | F129: =OFFSET(InputPriceData!E$15,CalculationsAndCharts!$A129+$A$11,IF($C$7,8,0),1,1) -> 168.820007 | G129: =OFFSET(InputPriceData!F$15,CalculationsAndCharts!$A129+$A$11,IF($C$7,8,0),1,1) -> 169.110001 | H129: 169.1633353 | I129: 0.000670182543 | J129: 0.005959677673 | K129: 0.2015682194 | L129: 3286776.923 | M129: 8216942.308 | N129: 963200 | O129: -0.1933336667 | P129: 0 | Q129: 17.18680271 | R129: 17.59199563 | S129: 160.1103002 | T129: FALSE | U129: 2 | V129: =OFFSET(InputIndexData!F$15,CalculationsAndCharts!$A129+$A$11,IF($C$7,8,0),1,1)*$V$24+$V$26*V130 -> 251.2466532 | X129: 1 | Y129: 1 | Z129: 1 | AA129: 1 | AB129: 2 | AC129: 6 | AD129: 1 | AE129: 5 | AO129: 963200
A130: 98 | B130: =OFFSET(InputPriceData!B$15,CalculationsAndCharts!$A130+$A$11,0,1,1) -> 2017-11-22 | C130: =OFFSET(InputPriceData!G$15,CalculationsAndCharts!$A130+$A$11,IF($C$7,8,0),1,1) -> 2719200 | D130: =OFFSET(InputPriceData!C$15,CalculationsAndCharts!$A130+$A$11,IF($C$7,8,0),1,1) -> 169.270004 | E130: =OFFSET(InputPriceData!D$15,CalculationsAndCharts!$A130+$A$11,IF($C$7,8,0),1,1) -> 170.350006 | F130: =OFFSET(InputPriceData!E$15,CalculationsAndCharts!$A130+$A$11,IF($C$7,8,0),1,1) -> 168.669998 | G130: =OFFSET(InputPriceData!F$15,CalculationsAndCharts!$A130+$A$11,IF($C$7,8,0),1,1) -> 169.050003 | H130: 169.356669 | I130: 0.006258839449 | J130: 0.005973798731 | K130: 0.2019741387 | L130: 3297176.923 | M130: 8242942.308 | N130: 2719200 | O130: 1.000004667 | P130: 2719200 | Q130: 18.13177998 | R130: 17.99718855 | S130: 159.9499002 | T130: FALSE | U130: 2 | V130: =OFFSET(InputIndexData!F$15,CalculationsAndCharts!$A130+$A$11,IF($C$7,8,0),1,1)*$V$24+$V$26*V131 -> 251.0625455 | X130: 1 | Y130: 1 | Z130: 1 | AA130: 1 | AB130: 2 | AC130: 6 | AD130: 1 | AE130: 5 | AP130: 2719200
A131: 99 | B131: =OFFSET(InputPriceData!B$15,CalculationsAndCharts!$A131+$A$11,0,1,1) -> 2017-11-21 | C131: =OFFSET(InputPriceData!G$15,CalculationsAndCharts!$A131+$A$11,IF($C$7,8,0),1,1) -> 2653100 | D131: =OFFSET(InputPriceData!C$15,CalculationsAndCharts!$A131+$A$11,IF($C$7,8,0),1,1) -> 167.550003 | E131: =OFFSET(InputPriceData!D$15,CalculationsAndCharts!$A131+$A$11,IF($C$7,8,0),1,1) -> 169.259995 | F131: =OFFSET(InputPriceData!E$15,CalculationsAndCharts!$A131+$A$11,IF($C$7,8,0),1,1) -> 167.509995 | G131: =OFFSET(InputPriceData!F$15,CalculationsAndCharts!$A131+$A$11,IF($C$7,8,0),1,1) -> 168.300003 | H131: 168.3566643 | I131: 0.00851021007 | J131: 0.006157470393 | K131: 0.2072604571 | L131: 3297775.385 | M131: 8244438.462 | N131: 2653100 | O131: 1.176666333 | P131: 2653100 | Q131: 18.53846288 | R131: 17.86259711 | S131: 159.7844002 | T131: FALSE | U131: 2 | V131: =OFFSET(InputIndexData!F$15,CalculationsAndCharts!$A131+$A$11,IF($C$7,8,0),1,1)*$V$24+$V$26*V132 -> 250.8868391 | X131: 1 | Y131: 1 | Z131: 1 | AA131: 1 | AB131: 2 | AC131: 6 | AD131: 1 | AE131: 5 | AO131: 2653100
A132: 100 | B132: =OFFSET(InputPriceData!B$15,CalculationsAndCharts!$A132+$A$11,0,1,1) -> 2017-11-20 | C132: =OFFSET(InputPriceData!G$15,CalculationsAndCharts!$A132+$A$11,IF($C$7,8,0),1,1) -> 2442300 | D132: =OFFSET(InputPriceData!C$15,CalculationsAndCharts!$A132+$A$11,IF($C$7,8,0),1,1) -> 167.330002 | E132: =OFFSET(InputPriceData!D$15,CalculationsAndCharts!$A132+$A$11,IF($C$7,8,0),1,1) -> 167.850006 | F132: =OFFSET(InputPriceData!E$15,CalculationsAndCharts!$A132+$A$11,IF($C$7,8,0),1,1) -> 166.759995 | G132: =OFFSET(InputPriceData!F$15,CalculationsAndCharts!$A132+$A$11,IF($C$7,8,0),1,1) -> 166.929993 | H132: 167.179998 | I132: 0.002755299745 | J132: 0.006017348354 | K132: 0.2008951837 | L132: 3308800.769 | M132: 8272001.923 | N132: 2442300 | O132: 0.3199973333 | P132: 2442300 | Q132: 17.67485884 | R132: 17.18673134 | S132: 159.6330002 | T132: FALSE | U132: 2 | V132: =OFFSET(InputIndexData!F$15,CalculationsAndCharts!$A132+$A$11,IF($C$7,8,0),1,1)*$V$24+$V$26*V133 -> 250.7029371 | X132: 1 | Y132: 1 | Z132: 1 | AA132: 1 | AB132: 2 | AC132: 6 | AD132: 1 | AE132: 5 | AP132: 2442300
A133: 101 | B133: =OFFSET(InputPriceData!B$15,CalculationsAndCharts!$A133+$A$11,0,1,1) -> 2017-11-17 | C133: =OFFSET(InputPriceData!G$15,CalculationsAndCharts!$A133+$A$11,IF($C$7,8,0),1,1) -> 2221400 | D133: =OFFSET(InputPriceData!C$15,CalculationsAndCharts!$A133+$A$11,IF($C$7,8,0),1,1) -> 167.539993 | E133: =OFFSET(InputPriceData!D$15,CalculationsAndCharts!$A133+$A$11,IF($C$7,8,0),1,1) -> 167.699997 | F133: =OFFSET(InputPriceData!E$15,CalculationsAndCharts!$A133+$A$11,IF($C$7,8,0),1,1) -> 166.160004 | G133: =OFFSET(InputPriceData!F$15,CalculationsAndCharts!$A133+$A$11,IF($C$7,8,0),1,1) -> 166.720001 | H133: 166.8600007 | I133: -0.007344384979 | J133: 0.006017132317 | K133: 0.2006352612 | L133: 3318950.769 | M133: 8297376.923 | N133: 2221400 | O133: -1.309997333 | P133: -2221400 | Q133: 15.71722215 | R133: 16.69860384 | S133: 159.4950003 | T133: FALSE | U133: 2 | V133: =OFFSET(InputIndexData!F$15,CalculationsAndCharts!$A133+$A$11,IF($C$7,8,0),1,1)*$V$24+$V$26*V134 -> 250.5494613 | X133: 1 | Y133: 1 | Z133: 1 | AA133: 1 | AB133: 2 | AC133: 6 | AD133: 1 | AE133: 5 | AP133: 2221400
A134: 102 | B134: =OFFSET(InputPriceData!B$15,CalculationsAndCharts!$A134+$A$11,0,1,1) -> 2017-11-16 | C134: =OFFSET(InputPriceData!G$15,CalculationsAndCharts!$A134+$A$11,IF($C$7,8,0),1,1) -> 2293400 | D134: =OFFSET(InputPriceData!C$15,CalculationsAndCharts!$A134+$A$11,IF($C$7,8,0),1,1) -> 167.679993 | E134: =OFFSET(InputPriceData!D$15,CalculationsAndCharts!$A134+$A$11,IF($C$7,8,0),1,1) -> 168.889999 | F134: =OFFSET(InputPriceData!E$15,CalculationsAndCharts!$A134+$A$11,IF($C$7,8,0),1,1) -> 167.529999 | G134: =OFFSET(InputPriceData!F$15,CalculationsAndCharts!$A134+$A$11,IF($C$7,8,0),1,1) -> 168.089996 | H134: 168.169998 | I134: 0.005067172232 | J134: 0.005831147371 | K134: 0.1960315077 | L134: 3326946.154 | M134: 8317365.385 | N134: 2293400 | O134: 0.449997 | P134: 2293400 | Q134: 17.411459 | R134: 17.67998554 | S134: 159.3708003 | T134: FALSE | U134: 2 | V134: =OFFSET(InputIndexData!F$15,CalculationsAndCharts!$A134+$A$11,IF($C$7,8,0),1,1)*$V$24+$V$26*V135 -> 250.401774 | X134: 1 | Y134: 1 | Z134: 1 | AA134: 1 | AB134: 2 | AC134: 6 | AD134: 1 | AE134: 5 | AO134: 2293400
A135: 103 | B135: =OFFSET(InputPriceData!B$15,CalculationsAndCharts!$A135+$A$11,0,1,1) -> 2017-11-15 | C135: =OFFSET(InputPriceData!G$15,CalculationsAndCharts!$A135+$A$11,IF($C$7,8,0),1,1) -> 2019300 | D135: =OFFSET(InputPriceData!C$15,CalculationsAndCharts!$A135+$A$11,IF($C$7,8,0),1,1) -> 167.690002 | E135: =OFFSET(InputPriceData!D$15,CalculationsAndCharts!$A135+$A$11,IF($C$7,8,0),1,1) -> 168.690002 | F135: =OFFSET(InputPriceData!E$15,CalculationsAndCharts!$A135+$A$11,IF($C$7,8,0),1,1) -> 167.149994 | G135: =OFFSET(InputPriceData!F$15,CalculationsAndCharts!$A135+$A$11,IF($C$7,8,0),1,1) -> 167.320007 | H135: 167.720001 | I135: -0.002322604729 | J135: 0.00588655596 | K135: 0.1969877169 | L135: 3332550.769 | M135: 8331376.923 | N135: 2019300 | O135: 0.019999 | P135: 0 | Q135: 17.69406998 | R135: 17.94851208 | S135: 159.2271004 | T135: FALSE | U135: 2 | V135: =OFFSET(InputIndexData!F$15,CalculationsAndCharts!$A135+$A$11,IF($C$7,8,0),1,1)*$V$24+$V$26*V136 -> 250.2357493 | X135: 1 | Y135: 1 | Z135: 1 | AA135: 1 | AB135: 2 | AC135: 6 | AD135: 1 | AE135: 5 | AP135: 2019300
A136: 104 | B136: =OFFSET(InputPriceData!B$15,CalculationsAndCharts!$A136+$A$11,0,1,1) -> 2017-11-14 | C136: =OFFSET(InputPriceData!G$15,CalculationsAndCharts!$A136+$A$11,IF($C$7,8,0),1,1) -> 2180900 | D136: =OFFSET(InputPriceData!C$15,CalculationsAndCharts!$A136+$A$11,IF($C$7,8,0),1,1) -> 166.839996 | E136: =OFFSET(InputPriceData!D$15,CalculationsAndCharts!$A136+$A$11,IF($C$7,8,0),1,1) -> 168.419998 | F136: =OFFSET(InputPriceData!E$15,CalculationsAndCharts!$A136+$A$11,IF($C$7,8,0),1,1) -> 166.570007 | G136: =OFFSET(InputPriceData!F$15,CalculationsAndCharts!$A136+$A$11,IF($C$7,8,0),1,1) -> 168.110001 | H136: 167.700002 | I136: 0.001969780104 | J136: 0.005843643264 | K136: 0.196474975 | L136: 3330712.308 | M136: 8326780.769 | N136: 2180900 | O136: 0.900004 | P136: 2180900 | Q136: 18.52885534 | R136: 18.20295417 | S136: 159.0935004 | T136: =(G136<S136) -> FALSE | U136: 2 | V136: =OFFSET(InputIndexData!F$15,CalculationsAndCharts!$A136+$A$11,IF($C$7,8,0),1,1)*$V$24+$V$26*V137 -> 250.1104109 | X136: 1 | Y136: 1 | Z136: 1 | AA136: 1 | AB136: 2 | AC136: 6 | AD136: 1 | AE136: 5 | AO136: 2180900
A137: 105 | B137: =OFFSET(InputPriceData!B$15,CalculationsAndCharts!$A137+$A$11,0,1,1) -> 2017-11-13 | C137: =OFFSET(InputPriceData!G$15,CalculationsAndCharts!$A137+$A$11,IF($C$7,8,0),1,1) -> 2605600 | D137: =OFFSET(InputPriceData!C$15,CalculationsAndCharts!$A137+$A$11,IF($C$7,8,0),1,1) -> 165.470001 | E137: =OFFSET(InputPriceData!D$15,CalculationsAndCharts!$A137+$A$11,IF($C$7,8,0),1,1) -> 167.949997 | F137: =OFFSET(InputPriceData!E$15,CalculationsAndCharts!$A137+$A$11,IF($C$7,8,0),1,1) -> 165.080002 | G137: =OFFSET(InputPriceData!F$15,CalculationsAndCharts!$A137+$A$11,IF($C$7,8,0),1,1) -> 167.369995 | H137: 166.799998 | I137: 0.007280648436 | J137: 0.005854769427 | K137: 0.1959825459 | L137: 3328156.154 | M137: 8320390.385 | N137: 2605600 | O137: 1.496663667 | P137: 2605600 | Q137: 17.30432224 | R137: 17.877053 | S137: 158.9588004 | T137: FALSE | U137: 2 | V137: =OFFSET(InputIndexData!F$15,CalculationsAndCharts!$A137+$A$11,IF($C$7,8,0),1,1)*$V$24+$V$26*V138 -> 249.9564796 | X137: 1 | Y137: 1 | Z137: 1 | AA137: 1 | AB137: 2 | AC137: 6 | AD137: 1 | AE137: 5 | AO137: 2605600
A138: 106 | B138: =OFFSET(InputPriceData!B$15,CalculationsAndCharts!$A138+$A$11,0,1,1) -> 2017-11-10 | C138: =OFFSET(InputPriceData!G$15,CalculationsAndCharts!$A138+$A$11,IF($C$7,8,0),1,1) -> 4226800 | D138: =OFFSET(InputPriceData!C$15,CalculationsAndCharts!$A138+$A$11,IF($C$7,8,0),1,1) -> 166.399994 | E138: =OFFSET(InputPriceData!D$15,CalculationsAndCharts!$A138+$A$11,IF($C$7,8,0),1,1) -> 166.800003 | F138: =OFFSET(InputPriceData!E$15,CalculationsAndCharts!$A138+$A$11,IF($C$7,8,0),1,1) -> 163.520004 | G138: =OFFSET(InputPriceData!F$15,CalculationsAndCharts!$A138+$A$11,IF($C$7,8,0),1,1) -> 165.589996 | H138: 165.3033343 | I138: -0.01021163639 | J138: 0.005764005979 | K138: 0.1908923454 | L138: 3319133.077 | M138: 8297832.692 | N138: 4226800 | O138: -2.13 | P138: -4226800 | Q138: 16.56633984 | R138: 18.44978377 | S138: 158.8331005 | T138: FALSE | U138: 2 | V138: =OFFSET(InputIndexData!F$15,CalculationsAndCharts!$A138+$A$11,IF($C$7,8,0),1,1)*$V$24+$V$26*V139 -> 249.7873178 | X138: 1 | Y138: 1 | Z138: 1 | AA138: 1 | AB138: 2 | AC138: 6 | AD138: 1 | AE138: 5 | AP138: 4226800
A139: 107 | B139: =OFFSET(InputPriceData!B$15,CalculationsAndCharts!$A139+$A$11,0,1,1) -> 2017-11-09 | C139: =OFFSET(InputPriceData!G$15,CalculationsAndCharts!$A139+$A$11,IF($C$7,8,0),1,1) -> 4219000 | D139: =OFFSET(InputPriceData!C$15,CalculationsAndCharts!$A139+$A$11,IF($C$7,8,0),1,1) -> 168.720001 | E139: =OFFSET(InputPriceData!D$15,CalculationsAndCharts!$A139+$A$11,IF($C$7,8,0),1,1) -> 169.199997 | F139: =OFFSET(InputPriceData!E$15,CalculationsAndCharts!$A139+$A$11,IF($C$7,8,0),1,1) -> 166.100006 | G139: =OFFSET(InputPriceData!F$15,CalculationsAndCharts!$A139+$A$11,IF($C$7,8,0),1,1) -> 167 | H139: 167.4333343 | I139: -0.01580126661 | J139: 0.005432369559 | K139: 0.1814411433 | L139: 3308317.692 | M139: 8270794.231 | N139: 4219000 | O139: -2.723332667 | P139: -4219000 | Q139: 18.82119323 | R139: 20.3332277 | S139: 158.7145005 | T139: FALSE | U139: 2 | V139: =OFFSET(InputIndexData!F$15,CalculationsAndCharts!$A139+$A$11,IF($C$7,8,0),1,1)*$V$24+$V$26*V140 -> 249.6195869 | X139: 1 | Y139: 1 | Z139: 1 | AA139: 1 | AB139: 2 | AC139: 6 | AD139: 1 | AE139: 5 | AP139: 4219000
A140: 108 | B140: =OFFSET(InputPriceData!B$15,CalculationsAndCharts!$A140+$A$11,0,1,1) -> 2017-11-08 | C140: =OFFSET(InputPriceData!G$15,CalculationsAndCharts!$A140+$A$11,IF($C$7,8,0),1,1) -> 2605000 | D140: =OFFSET(InputPriceData!C$15,CalculationsAndCharts!$A140+$A$11,IF($C$7,8,0),1,1) -> 170.169998 | E140: =OFFSET(InputPriceData!D$15,CalculationsAndCharts!$A140+$A$11,IF($C$7,8,0),1,1) -> 170.919998 | F140: =OFFSET(InputPriceData!E$15,CalculationsAndCharts!$A140+$A$11,IF($C$7,8,0),1,1) -> 169.449997 | G140: =OFFSET(InputPriceData!F$15,CalculationsAndCharts!$A140+$A$11,IF($C$7,8,0),1,1) -> 170.100006 | H140: 170.156667 | I140: -0.003598062069 | J140: 0.00538181707 | K140: 0.1830894232 | L140: 3307146.154 | M140: 8267865.385 | N140: 2605000 | O140: -0.213338 | P140: -2605000 | Q140: 20.95416511 | R140: 21.84526218 | S140: 158.5852005 | T140: FALSE | U140: 2 | V140: =OFFSET(InputIndexData!F$15,CalculationsAndCharts!$A140+$A$11,IF($C$7,8,0),1,1)*$V$24+$V$26*V141 -> 249.446851 | X140: 1 | Y140: 1 | Z140: 1 | AA140: 1 | AB140: 2 | AC140: 6 | AD140: 1 | AE140: 5 | AP140: 2605000
A141: 109 | B141: =OFFSET(InputPriceData!B$15,CalculationsAndCharts!$A141+$A$11,0,1,1) -> 2017-11-07 | C141: =OFFSET(InputPriceData!G$15,CalculationsAndCharts!$A141+$A$11,IF($C$7,8,0),1,1) -> 2506000 | D141: =OFFSET(InputPriceData!C$15,CalculationsAndCharts!$A141+$A$11,IF($C$7,8,0),1,1) -> 170.100006 | E141: =OFFSET(InputPriceData!D$15,CalculationsAndCharts!$A141+$A$11,IF($C$7,8,0),1,1) -> 170.820007 | F141: =OFFSET(InputPriceData!E$15,CalculationsAndCharts!$A141+$A$11,IF($C$7,8,0),1,1) -> 169.520004 | G141: =OFFSET(InputPriceData!F$15,CalculationsAndCharts!$A141+$A$11,IF($C$7,8,0),1,1) -> 170.770004 | H141: 170.370005 | I141: 0.001762413741 | J141: 0.00526197521 | K141: 0.1797175055 | L141: 3320013.846 | M141: 8300034.615 | N141: 2506000 | O141: 0.6733346667 | P141: 2506000 | Q141: 22.39634832 | R141: 22.73635926 | S141: 158.4156005 | T141: FALSE | U141: 2 | V141: =OFFSET(InputIndexData!F$15,CalculationsAndCharts!$A141+$A$11,IF($C$7,8,0),1,1)*$V$24+$V$26*V142 -> 249.2516362 | X141: 1 | Y141: 1 | Z141: 1 | AA141: 1 | AB141: 2 | AC141: 6 | AD141: 1 | AE141: 5 | AO141: 2506000
A142: 110 | B142: =OFFSET(InputPriceData!B$15,CalculationsAndCharts!$A142+$A$11,0,1,1) -> 2017-11-06 | C142: =OFFSET(InputPriceData!G$15,CalculationsAndCharts!$A142+$A$11,IF($C$7,8,0),1,1) -> 3087700 | D142: =OFFSET(InputPriceData!C$15,CalculationsAndCharts!$A142+$A$11,IF($C$7,8,0),1,1) -> 168.899994 | E142: =OFFSET(InputPriceData!D$15,CalculationsAndCharts!$A142+$A$11,IF($C$7,8,0),1,1) -> 170.419998 | F142: =OFFSET(InputPriceData!E$15,CalculationsAndCharts!$A142+$A$11,IF($C$7,8,0),1,1) -> 168.600006 | G142: =OFFSET(InputPriceData!F$15,CalculationsAndCharts!$A142+$A$11,IF($C$7,8,0),1,1) -> 170.070007 | H142: 169.6966703 | I142: 0.006187025217 | J142: 0.005860739145 | K142: 0.1993471895 | L142: 3329173.077 | M142: 8322932.692 | N142: 3087700 | O142: 1.130004667 | P142: 3087700 | Q142: 22.83719854 | R142: 23.07637019 | S142: 158.2278005 | T142: FALSE | U142: 2 | V142: =OFFSET(InputIndexData!F$15,CalculationsAndCharts!$A142+$A$11,IF($C$7,8,0),1,1)*$V$24+$V$26*V143 -> 249.061366 | X142: 1 | Y142: 1 | Z142: 1 | AA142: 1 | AB142: 2 | AC142: 6 | AD142: 1 | AE142: 5 | AO142: 3087700
A143: 111 | B143: =OFFSET(InputPriceData!B$15,CalculationsAndCharts!$A143+$A$11,0,1,1) -> 2017-11-03 | C143: =OFFSET(InputPriceData!G$15,CalculationsAndCharts!$A143+$A$11,IF($C$7,8,0),1,1) -> 1959500 | D143: =OFFSET(InputPriceData!C$15,CalculationsAndCharts!$A143+$A$11,IF($C$7,8,0),1,1) -> 168 | E143: =OFFSET(InputPriceData!D$15,CalculationsAndCharts!$A143+$A$11,IF($C$7,8,0),1,1) -> 169.449997 | F143: =OFFSET(InputPriceData!E$15,CalculationsAndCharts!$A143+$A$11,IF($C$7,8,0),1,1) -> 167.600006 | G143: =OFFSET(InputPriceData!F$15,CalculationsAndCharts!$A143+$A$11,IF($C$7,8,0),1,1) -> 168.649994 | H143: 168.5666657 | I143: 0.002772237378 | J143: 0.006369271266 | K143: 0.2148355122 | L143: 3343131.538 | M143: 8357828.846 | N143: 1959500 | O143: 0.8766633333 | P143: 1959500 | Q143: 23.09801025 | R143: 23.31554184 | S143: 158.0388004 | T143: FALSE | U143: 2 | V143: =OFFSET(InputIndexData!F$15,CalculationsAndCharts!$A143+$A$11,IF($C$7,8,0),1,1)*$V$24+$V$26*V144 -> 248.8636157 | X143: 1 | Y143: 1 | Z143: 1 | AA143: 1 | AB143: 2 | AC143: 6 | AD143: 1 | AE143: 5 | AO143: 1959500
A144: 112 | B144: =OFFSET(InputPriceData!B$15,CalculationsAndCharts!$A144+$A$11,0,1,1) -> 2017-11-02 | C144: =OFFSET(InputPriceData!G$15,CalculationsAndCharts!$A144+$A$11,IF($C$7,8,0),1,1) -> 2291000 | D144: =OFFSET(InputPriceData!C$15,CalculationsAndCharts!$A144+$A$11,IF($C$7,8,0),1,1) -> 166.990005 | E144: =OFFSET(InputPriceData!D$15,CalculationsAndCharts!$A144+$A$11,IF($C$7,8,0),1,1) -> 168.470001 | F144: =OFFSET(InputPriceData!E$15,CalculationsAndCharts!$A144+$A$11,IF($C$7,8,0),1,1) -> 166.5 | G144: =OFFSET(InputPriceData!F$15,CalculationsAndCharts!$A144+$A$11,IF($C$7,8,0),1,1) -> 168.100006 | H144: 167.6900023 | I144: 0.007902857055 | J144: 0.006374244556 | K144: 0.2143021096 | L144: 3354333.077 | M144: 8385832.692 | N144: 2291000 | O144: 1.046666667 | P144: 2291000 | Q144: 23.56184813 | R144: 23.53307343 | S144: 157.8591004 | T144: FALSE | U144: 2 | V144: =OFFSET(InputIndexData!F$15,CalculationsAndCharts!$A144+$A$11,IF($C$7,8,0),1,1)*$V$24+$V$26*V145 -> 248.6699511 | X144: 1 | Y144: 1 | Z144: 1 | AA144: 1 | AB144: 2 | AC144: 6 | AD144: 1 | AE144: 5 | AO144: 2291000
A145: 113 | B145: =OFFSET(InputPriceData!B$15,CalculationsAndCharts!$A145+$A$11,0,1,1) -> 2017-11-01 | C145: =OFFSET(InputPriceData!G$15,CalculationsAndCharts!$A145+$A$11,IF($C$7,8,0),1,1) -> 2186100 | D145: =OFFSET(InputPriceData!C$15,CalculationsAndCharts!$A145+$A$11,IF($C$7,8,0),1,1) -> 165.720001 | E145: =OFFSET(InputPriceData!D$15,CalculationsAndCharts!$A145+$A$11,IF($C$7,8,0),1,1) -> 167.990005 | F145: =OFFSET(InputPriceData!E$15,CalculationsAndCharts!$A145+$A$11,IF($C$7,8,0),1,1) -> 165.570007 | G145: =OFFSET(InputPriceData!F$15,CalculationsAndCharts!$A145+$A$11,IF($C$7,8,0),1,1) -> 166.369995 | H145: 166.6433357 | I145: -0.001598955 | J145: 0.006361169593 | K145: 0.2116615507 | L145: 3374197.692 | M145: 8435494.231 | N145: 2186100 | O145: -0.1733353333 | P145: 0 | Q145: 23.85470381 | R145: 23.50429873 | S145: 157.6763004 | T145: FALSE | U145: 2 | V145: =OFFSET(InputIndexData!F$15,CalculationsAndCharts!$A145+$A$11,IF($C$7,8,0),1,1)*$V$24+$V$26*V146 -> 248.4897482 | X145: 1 | Y145: 1 | Z145: 1 | AA145: 1 | AB145: 2 | AC145: 6 | AD145: 1 | AE145: 5 | AO145: 2186100
A146: 114 | B146: =OFFSET(InputPriceData!B$15,CalculationsAndCharts!$A146+$A$11,0,1,1) -> 2017-10-31 | C146: =OFFSET(InputPriceData!G$15,CalculationsAndCharts!$A146+$A$11,IF($C$7,8,0),1,1) -> 2873000 | D146: =OFFSET(InputPriceData!C$15,CalculationsAndCharts!$A146+$A$11,IF($C$7,8,0),1,1) -> 166.25 | E146: =OFFSET(InputPriceData!D$15,CalculationsAndCharts!$A146+$A$11,IF($C$7,8,0),1,1) -> 167.410004 | F146: =OFFSET(InputPriceData!E$15,CalculationsAndCharts!$A146+$A$11,IF($C$7,8,0),1,1) -> 166.130005 | G146: =OFFSET(InputPriceData!F$15,CalculationsAndCharts!$A146+$A$11,IF($C$7,8,0),1,1) -> 166.910004 | H146: 166.816671 | I146: 0.003523083489 | J146: 0.006560818855 | K146: 0.2190132603 | L146: 3391972.308 | M146: 8479930.769 | N146: 2873000 | O146: 0.9966736667 | P146: 2873000 | Q146: 22.32388111 | R146: 23.15389365 | S146: 157.4973004 | T146: FALSE | U146: 2 | V146: =OFFSET(InputIndexData!F$15,CalculationsAndCharts!$A146+$A$11,IF($C$7,8,0),1,1)*$V$24+$V$26*V147 -> 248.3079251 | X146: 1 | Y146: 1 | Z146: 1 | AA146: 1 | AB146: 2 | AC146: 6 | AD146: 1 | AE146: 5 | AO146: =IF(G146>=D146,C146,NA()) -> 2873000 | AP146: =IF(G146<D146,C146,NA()) -> 
A147: 115 | B147: =OFFSET(InputPriceData!B$15,CalculationsAndCharts!$A147+$A$11,0,1,1) -> 2017-10-30 | C147: =OFFSET(InputPriceData!G$15,CalculationsAndCharts!$A147+$A$11,IF($C$7,8,0),1,1) -> 2051000 | D147: =OFFSET(InputPriceData!C$15,CalculationsAndCharts!$A147+$A$11,IF($C$7,8,0),1,1) -> 165 | E147: =OFFSET(InputPriceData!D$15,CalculationsAndCharts!$A147+$A$11,IF($C$7,8,0),1,1) -> 166.559998 | F147: =OFFSET(InputPriceData!E$15,CalculationsAndCharts!$A147+$A$11,IF($C$7,8,0),1,1) -> 164.669998 | G147: =OFFSET(InputPriceData!F$15,CalculationsAndCharts!$A147+$A$11,IF($C$7,8,0),1,1) -> 166.229996 | H147: 165.8199973 | I147: 0.002596531383 | J147: 0.006560140627 | K147: 0.21809843 | L147: 3431058.462 | M147: 8577646.154 | N147: 2051000 | O147: 0.816661 | P147: 2051000 | Q147: 22.74303613 | R147: 23.9839062 | S147: 157.3430004 | T147: FALSE | U147: 2 | V147: =OFFSET(InputIndexData!F$15,CalculationsAndCharts!$A147+$A$11,IF($C$7,8,0),1,1)*$V$24+$V$26*V148 -> 248.1292975 | X147: 1 | Y147: 1 | Z147: 1 | AA147: 1 | AB147: 2 | AC147: 6 | AD147: 1 | AE147: 5 | AO147: 2051000
A148: 116 | B148: =OFFSET(InputPriceData!B$15,CalculationsAndCharts!$A148+$A$11,0,1,1) -> 2017-10-27 | C148: =OFFSET(InputPriceData!G$15,CalculationsAndCharts!$A148+$A$11,IF($C$7,8,0),1,1) -> 2298100 | D148: =OFFSET(InputPriceData!C$15,CalculationsAndCharts!$A148+$A$11,IF($C$7,8,0),1,1) -> 164.089996 | E148: =OFFSET(InputPriceData!D$15,CalculationsAndCharts!$A148+$A$11,IF($C$7,8,0),1,1) -> 165.850006 | F148: =OFFSET(InputPriceData!E$15,CalculationsAndCharts!$A148+$A$11,IF($C$7,8,0),1,1) -> 163.770004 | G148: =OFFSET(InputPriceData!F$15,CalculationsAndCharts!$A148+$A$11,IF($C$7,8,0),1,1) -> 165.389999 | H148: 165.0033363 | I148: 0.006038322809 | J148: 0.006565894105 | K148: 0.2171866439 | L148: 3497179.231 | M148: 8742948.077 | N148: 2298100 | O148: 0.8666733333 | P148: 2298100 | Q148: 23.76597854 | R148: 25.22477627 | S148: 157.1950003 | T148: FALSE | U148: 2 | V148: =OFFSET(InputIndexData!F$15,CalculationsAndCharts!$A148+$A$11,IF($C$7,8,0),1,1)*$V$24+$V$26*V149 -> 247.9551418 | X148: 1 | Y148: 1 | Z148: 1 | AA148: 1 | AB148: 2 | AC148: 6 | AD148: 1 | AE148: 5 | AO148: 2298100
A149: 117 | B149: =OFFSET(InputPriceData!B$15,CalculationsAndCharts!$A149+$A$11,0,1,1) -> 2017-10-26 | C149: =OFFSET(InputPriceData!G$15,CalculationsAndCharts!$A149+$A$11,IF($C$7,8,0),1,1) -> 2934400 | D149: =OFFSET(InputPriceData!C$15,CalculationsAndCharts!$A149+$A$11,IF($C$7,8,0),1,1) -> 164.139999 | E149: =OFFSET(InputPriceData!D$15,CalculationsAndCharts!$A149+$A$11,IF($C$7,8,0),1,1) -> 164.649994 | F149: =OFFSET(InputPriceData!E$15,CalculationsAndCharts!$A149+$A$11,IF($C$7,8,0),1,1) -> 163.75 | G149: =OFFSET(InputPriceData!F$15,CalculationsAndCharts!$A149+$A$11,IF($C$7,8,0),1,1) -> 164.009995 | H149: 164.136663 | I149: 0.003397212256 | J149: 0.006518105793 | K149: 0.2138068997 | L149: 3513383.846 | M149: 8783459.615 | N149: 2934400 | O149: 0.236664 | P149: 2934400 | Q149: 25.78953525 | R149: 26.683574 | S149: 157.0605004 | T149: FALSE | U149: 2 | V149: =OFFSET(InputIndexData!F$15,CalculationsAndCharts!$A149+$A$11,IF($C$7,8,0),1,1)*$V$24+$V$26*V150 -> 247.7580742 | X149: 1 | Y149: 1 | Z149: 1 | AA149: 1 | AB149: 2 | AC149: 6 | AD149: 1 | AE149: 5 | AP149: 2934400
A150: 118 | B150: =OFFSET(InputPriceData!B$15,CalculationsAndCharts!$A150+$A$11,0,1,1) -> 2017-10-25 | C150: =OFFSET(InputPriceData!G$15,CalculationsAndCharts!$A150+$A$11,IF($C$7,8,0),1,1) -> 3716200 | D150: =OFFSET(InputPriceData!C$15,CalculationsAndCharts!$A150+$A$11,IF($C$7,8,0),1,1) -> 163.410004 | E150: =OFFSET(InputPriceData!D$15,CalculationsAndCharts!$A150+$A$11,IF($C$7,8,0),1,1) -> 165.119995 | F150: =OFFSET(InputPriceData!E$15,CalculationsAndCharts!$A150+$A$11,IF($C$7,8,0),1,1) -> 163 | G150: =OFFSET(InputPriceData!F$15,CalculationsAndCharts!$A150+$A$11,IF($C$7,8,0),1,1) -> 163.580002 | H150: 163.899999 | I150: 0.0001219964597 | J150: 0.006529940383 | K150: 0.2136335322 | L150: 3511460 | M150: 8778650 | N150: 3716200 | O150: -0.7533363333 | P150: -3716200 | Q150: 26.40358613 | R150: 27.57761274 | S150: 156.9327004 | T150: FALSE | U150: 2 | V150: =OFFSET(InputIndexData!F$15,CalculationsAndCharts!$A150+$A$11,IF($C$7,8,0),1,1)*$V$24+$V$26*V151 -> 247.5992475 | X150: 1 | Y150: 1 | Z150: 1 | AA150: 1 | AB150: 2 | AC150: 6 | AD150: 1 | AE150: 5 | AO150: 3716200
A151: 119 | B151: =OFFSET(InputPriceData!B$15,CalculationsAndCharts!$A151+$A$11,0,1,1) -> 2017-10-24 | C151: =OFFSET(InputPriceData!G$15,CalculationsAndCharts!$A151+$A$11,IF($C$7,8,0),1,1) -> 7855200 | D151: =OFFSET(InputPriceData!C$15,CalculationsAndCharts!$A151+$A$11,IF($C$7,8,0),1,1) -> 165.259995 | E151: =OFFSET(InputPriceData!D$15,CalculationsAndCharts!$A151+$A$11,IF($C$7,8,0),1,1) -> 166.490005 | F151: =OFFSET(InputPriceData!E$15,CalculationsAndCharts!$A151+$A$11,IF($C$7,8,0),1,1) -> 163.589996 | G151: =OFFSET(InputPriceData!F$15,CalculationsAndCharts!$A151+$A$11,IF($C$7,8,0),1,1) -> 163.880005 | H151: 164.6533353 | I151: 0.008008372287 | J151: 0.006537936591 | K151: 0.2142874163 | L151: 3471783.846 | M151: 8679459.615 | N151: 7855200 | O151: 0.4766693333 | P151: 7855200 | Q151: 28.77409452 | R151: 28.75163936 | S151: 156.8248003 | T151: FALSE | U151: 2 | V151: =OFFSET(InputIndexData!F$15,CalculationsAndCharts!$A151+$A$11,IF($C$7,8,0),1,1)*$V$24+$V$26*V152 -> 247.4438789 | X151: 1 | Y151: 1 | Z151: 1 | AA151: 1 | AB151: 2 | AC151: 6 | AD151: 1 | AE151: 5 | AP151: 7855200
A152: 120 | B152: =OFFSET(InputPriceData!B$15,CalculationsAndCharts!$A152+$A$11,0,1,1) -> 2017-10-23 | C152: =OFFSET(InputPriceData!G$15,CalculationsAndCharts!$A152+$A$11,IF($C$7,8,0),1,1) -> 6214800 | D152: =OFFSET(InputPriceData!C$15,CalculationsAndCharts!$A152+$A$11,IF($C$7,8,0),1,1) -> 166.100006 | E152: =OFFSET(InputPriceData!D$15,CalculationsAndCharts!$A152+$A$11,IF($C$7,8,0),1,1) -> 166.100006 | F152: =OFFSET(InputPriceData!E$15,CalculationsAndCharts!$A152+$A$11,IF($C$7,8,0),1,1) -> 163.089996 | G152: =OFFSET(InputPriceData!F$15,CalculationsAndCharts!$A152+$A$11,IF($C$7,8,0),1,1) -> 163.339996 | H152: 164.176666 | I152: -0.0128503245 | J152: 0.007941078327 | K152: 0.2594191404 | L152: 3448076.154 | M152: 8620190.385 | N152: 6214800 | O152: -2.389999667 | P152: -6214800 | Q152: 27.47605688 | R152: 28.7291842 | S152: 156.7234003 | T152: FALSE | U152: 2 | V152: =OFFSET(InputIndexData!F$15,CalculationsAndCharts!$A152+$A$11,IF($C$7,8,0),1,1)*$V$24+$V$26*V153 -> 247.2597149 | X152: 1 | Y152: 1 | Z152: 1 | AA152: 1 | AB152: 2 | AC152: 6 | AD152: 1 | AE152: 5 | AP152: 6214800
A153: 121 | B153: =OFFSET(InputPriceData!B$15,CalculationsAndCharts!$A153+$A$11,0,1,1) -> 2017-10-20 | C153: =OFFSET(InputPriceData!G$15,CalculationsAndCharts!$A153+$A$11,IF($C$7,8,0),1,1) -> 5577700 | D153: =OFFSET(InputPriceData!C$15,CalculationsAndCharts!$A153+$A$11,IF($C$7,8,0),1,1) -> 167.229996 | E153: =OFFSET(InputPriceData!D$15,CalculationsAndCharts!$A153+$A$11,IF($C$7,8,0),1,1) -> 167.899994 | F153: =OFFSET(InputPriceData!E$15,CalculationsAndCharts!$A153+$A$11,IF($C$7,8,0),1,1) -> 165.5 | G153: =OFFSET(InputPriceData!F$15,CalculationsAndCharts!$A153+$A$11,IF($C$7,8,0),1,1) -> 166.300003 | H153: 166.5666657 | I153: 0.0004003142579 | J153: 0.00765993424 | K153: 0.2547694174 | L153: 3432996.923 | M153: 8582492.308 | N153: 5577700 | O153: 0.443334 | P153: 5577700 | Q153: 30.31961253 | R153: 29.98231152 | S153: 156.6139003 | T153: FALSE | U153: 2 | V153: =OFFSET(InputIndexData!F$15,CalculationsAndCharts!$A153+$A$11,IF($C$7,8,0),1,1)*$V$24+$V$26*V154 -> 247.0809216 | X153: 1 | Y153: 1 | Z153: 1 | AA153: 1 | AB153: 2 | AC153: 6 | AD153: 1 | AE153: 5 | AP153: 5577700
A154: 122 | B154: =OFFSET(InputPriceData!B$15,CalculationsAndCharts!$A154+$A$11,0,1,1) -> 2017-10-19 | C154: =OFFSET(InputPriceData!G$15,CalculationsAndCharts!$A154+$A$11,IF($C$7,8,0),1,1) -> 2478100 | D154: =OFFSET(InputPriceData!C$15,CalculationsAndCharts!$A154+$A$11,IF($C$7,8,0),1,1) -> 165.820007 | E154: =OFFSET(InputPriceData!D$15,CalculationsAndCharts!$A154+$A$11,IF($C$7,8,0),1,1) -> 166.949997 | F154: =OFFSET(InputPriceData!E$15,CalculationsAndCharts!$A154+$A$11,IF($C$7,8,0),1,1) -> 164.919998 | G154: =OFFSET(InputPriceData!F$15,CalculationsAndCharts!$A154+$A$11,IF($C$7,8,0),1,1) -> 166.5 | H154: 166.1233317 | I154: 0.002129164778 | J154: 0.007668116307 | K154: 0.255348273 | L154: 3438830 | M154: 8597075 | N154: 2478100 | O154: 0.8199973333 | P154: 2478100 | Q154: 29.6981347 | R154: 29.64501052 | S154: 156.4598003 | T154: FALSE | U154: 2 | V154: =OFFSET(InputIndexData!F$15,CalculationsAndCharts!$A154+$A$11,IF($C$7,8,0),1,1)*$V$24+$V$26*V155 -> 246.8783142 | X154: 1 | Y154: 1 | Z154: 1 | AA154: 1 | AB154: 2 | AC154: 6 | AD154: 1 | AE154: 5 | AO154: 2478100
A155: 123 | B155: =OFFSET(InputPriceData!B$15,CalculationsAndCharts!$A155+$A$11,0,1,1) -> 2017-10-18 | C155: =OFFSET(InputPriceData!G$15,CalculationsAndCharts!$A155+$A$11,IF($C$7,8,0),1,1) -> 2798300 | D155: =OFFSET(InputPriceData!C$15,CalculationsAndCharts!$A155+$A$11,IF($C$7,8,0),1,1) -> 165.289993 | E155: =OFFSET(InputPriceData!D$15,CalculationsAndCharts!$A155+$A$11,IF($C$7,8,0),1,1) -> 166.25 | F155: =OFFSET(InputPriceData!E$15,CalculationsAndCharts!$A155+$A$11,IF($C$7,8,0),1,1) -> 163.889999 | G155: =OFFSET(InputPriceData!F$15,CalculationsAndCharts!$A155+$A$11,IF($C$7,8,0),1,1) -> 165.770004 | H155: 165.3033343 | I155: -0.0005845702848 | J155: 0.007754149458 | K155: 0.2570810773 | L155: 3435990.769 | M155: 8589976.923 | N155: 2798300 | O155: -0.086665 | P155: 0 | Q155: 29.94336814 | R155: 29.59188634 | S155: 156.2941002 | T155: FALSE | U155: 2 | V155: =OFFSET(InputIndexData!F$15,CalculationsAndCharts!$A155+$A$11,IF($C$7,8,0),1,1)*$V$24+$V$26*V156 -> 246.6982803 | X155: 1 | Y155: 1 | Z155: 1 | AA155: 1 | AB155: 2 | AC155: 6 | AD155: 1 | AE155: 5 | AO155: 2798300
A156: 124 | B156: =OFFSET(InputPriceData!B$15,CalculationsAndCharts!$A156+$A$11,0,1,1) -> 2017-10-17 | C156: =OFFSET(InputPriceData!G$15,CalculationsAndCharts!$A156+$A$11,IF($C$7,8,0),1,1) -> 2379700 | D156: =OFFSET(InputPriceData!C$15,CalculationsAndCharts!$A156+$A$11,IF($C$7,8,0),1,1) -> 164.919998 | E156: =OFFSET(InputPriceData!D$15,CalculationsAndCharts!$A156+$A$11,IF($C$7,8,0),1,1) -> 166.020004 | F156: =OFFSET(InputPriceData!E$15,CalculationsAndCharts!$A156+$A$11,IF($C$7,8,0),1,1) -> 164.75 | G156: =OFFSET(InputPriceData!F$15,CalculationsAndCharts!$A156+$A$11,IF($C$7,8,0),1,1) -> 165.399994 | H156: 165.3899993 | I156: 0.002300269415 | J156: 0.007788794823 | K156: 0.2576533234 | L156: 3442266.154 | M156: 8605665.385 | N156: 2379700 | O156: 0.3266653333 | P156: 2379700 | Q156: 29.18308232 | R156: 29.24040453 | S156: 156.1350002 | T156: FALSE | U156: 2 | V156: =OFFSET(InputIndexData!F$15,CalculationsAndCharts!$A156+$A$11,IF($C$7,8,0),1,1)*$V$24+$V$26*V157 -> 246.5160233 | X156: 1 | Y156: 1 | Z156: 1 | AA156: 1 | AB156: 2 | AC156: 6 | AD156: 1 | AE156: 5 | AO156: 2379700
A157: 125 | B157: =OFFSET(InputPriceData!B$15,CalculationsAndCharts!$A157+$A$11,0,1,1) -> 2017-10-16 | C157: =OFFSET(InputPriceData!G$15,CalculationsAndCharts!$A157+$A$11,IF($C$7,8,0),1,1) -> 2132300 | D157: =OFFSET(InputPriceData!C$15,CalculationsAndCharts!$A157+$A$11,IF($C$7,8,0),1,1) -> 165.440002 | E157: =OFFSET(InputPriceData!D$15,CalculationsAndCharts!$A157+$A$11,IF($C$7,8,0),1,1) -> 165.740005 | F157: =OFFSET(InputPriceData!E$15,CalculationsAndCharts!$A157+$A$11,IF($C$7,8,0),1,1) -> 164.440002 | G157: =OFFSET(InputPriceData!F$15,CalculationsAndCharts!$A157+$A$11,IF($C$7,8,0),1,1) -> 165.009995 | H157: 165.063334 | I157: -0.001856114751 | J157: 0.007871582783 | K157: 0.2597779671 | L157: 3454153.077 | M157: 8635382.692 | N157: 2132300 | O157: 0.07667 | P157: 0 | Q157: 29.3188328 | R157: 29.29772673 | S157: 155.9788002 | T157: FALSE | U157: 2 | V157: =OFFSET(InputIndexData!F$15,CalculationsAndCharts!$A157+$A$11,IF($C$7,8,0),1,1)*$V$24+$V$26*V158 -> 246.3351349 | X157: 1 | Y157: 1 | Z157: 1 | AA157: 1 | AB157: 2 | AC157: 6 | AD157: 1 | AE157: 5 | AP157: 2132300
A158: 126 | B158: =OFFSET(InputPriceData!B$15,CalculationsAndCharts!$A158+$A$11,0,1,1) -> 2017-10-13 | C158: =OFFSET(InputPriceData!G$15,CalculationsAndCharts!$A158+$A$11,IF($C$7,8,0),1,1) -> 2957400 | D158: =OFFSET(InputPriceData!C$15,CalculationsAndCharts!$A158+$A$11,IF($C$7,8,0),1,1) -> 164.449997 | E158: =OFFSET(InputPriceData!D$15,CalculationsAndCharts!$A158+$A$11,IF($C$7,8,0),1,1) -> 165.509995 | F158: =OFFSET(InputPriceData!E$15,CalculationsAndCharts!$A158+$A$11,IF($C$7,8,0),1,1) -> 164.080002 | G158: =OFFSET(InputPriceData!F$15,CalculationsAndCharts!$A158+$A$11,IF($C$7,8,0),1,1) -> 165.369995 | H158: 164.986664 | I158: 0.006547125287 | J158: 0.007861221419 | K158: 0.2600020293 | L158: 3452244.615 | M158: 8630611.538 | N158: 2957400 | O158: 1.29333 | P158: 2957400 | Q158: 30.4003187 | R158: 29.27662066 | S158: 155.8237003 | T158: FALSE | U158: 2 | V158: =OFFSET(InputIndexData!F$15,CalculationsAndCharts!$A158+$A$11,IF($C$7,8,0),1,1)*$V$24+$V$26*V159 -> 246.1542286 | X158: 1 | Y158: 1 | Z158: 1 | AA158: 1 | AB158: 2 | AC158: 6 | AD158: 1 | AE158: 5 | AO158: 2957400
A159: 127 | B159: =OFFSET(InputPriceData!B$15,CalculationsAndCharts!$A159+$A$11,0,1,1) -> 2017-10-12 | C159: =OFFSET(InputPriceData!G$15,CalculationsAndCharts!$A159+$A$11,IF($C$7,8,0),1,1) -> 3023600 | D159: =OFFSET(InputPriceData!C$15,CalculationsAndCharts!$A159+$A$11,IF($C$7,8,0),1,1) -> 162.990005 | E159: =OFFSET(InputPriceData!D$15,CalculationsAndCharts!$A159+$A$11,IF($C$7,8,0),1,1) -> 164.399994 | F159: =OFFSET(InputPriceData!E$15,CalculationsAndCharts!$A159+$A$11,IF($C$7,8,0),1,1) -> 162.770004 | G159: =OFFSET(InputPriceData!F$15,CalculationsAndCharts!$A159+$A$11,IF($C$7,8,0),1,1) -> 163.910004 | H159: 163.693334 | I159: 0.003324776454 | J159: 0.007795875448 | K159: 0.2555643952 | L159: 3445729.231 | M159: 8614323.077 | N159: 3023600 | O159: 1.370000333 | P159: 3023600 | Q159: 29.59952153 | R159: 28.15292263 | S159: 155.6482004 | T159: FALSE | U159: 2 | V159: =OFFSET(InputIndexData!F$15,CalculationsAndCharts!$A159+$A$11,IF($C$7,8,0),1,1)*$V$24+$V$26*V160 -> 245.9765364 | X159: 1 | Y159: 1 | Z159: 1 | AA159: 1 | AB159: 2 | AC159: 6 | AD159: 1 | AE159: 5 | AO159: 3023600
A160: 128 | B160: =OFFSET(InputPriceData!B$15,CalculationsAndCharts!$A160+$A$11,0,1,1) -> 2017-10-11 | C160: =OFFSET(InputPriceData!G$15,CalculationsAndCharts!$A160+$A$11,IF($C$7,8,0),1,1) -> 3572500 | D160: =OFFSET(InputPriceData!C$15,CalculationsAndCharts!$A160+$A$11,IF($C$7,8,0),1,1) -> 160.899994 | E160: =OFFSET(InputPriceData!D$15,CalculationsAndCharts!$A160+$A$11,IF($C$7,8,0),1,1) -> 163.240005 | F160: =OFFSET(InputPriceData!E$15,CalculationsAndCharts!$A160+$A$11,IF($C$7,8,0),1,1) -> 160.580002 | G160: =OFFSET(InputPriceData!F$15,CalculationsAndCharts!$A160+$A$11,IF($C$7,8,0),1,1) -> 163.149994 | H160: 162.3233337 | I160: 0.01079795972 | J160: 0.00779259522 | K160: 0.2542723727 | L160: 3447916.923 | M160: 8619792.308 | N160: 3572500 | O160: 1.740000333 | P160: 3572500 | Q160: 28.07252573 | R160: 26.70632373 | S160: 155.4910004 | T160: FALSE | U160: 2 | V160: =OFFSET(InputIndexData!F$15,CalculationsAndCharts!$A160+$A$11,IF($C$7,8,0),1,1)*$V$24+$V$26*V161 -> 245.8015169 | X160: 1 | Y160: 1 | Z160: 1 | AA160: 1 | AB160: 2 | AC160: 6 | AD160: 1 | AE160: 5 | AO160: 3572500
A161: 129 | B161: =OFFSET(InputPriceData!B$15,CalculationsAndCharts!$A161+$A$11,0,1,1) -> 2017-10-10 | C161: =OFFSET(InputPriceData!G$15,CalculationsAndCharts!$A161+$A$11,IF($C$7,8,0),1,1) -> 2909600 | D161: =OFFSET(InputPriceData!C$15,CalculationsAndCharts!$A161+$A$11,IF($C$7,8,0),1,1) -> 159.690002 | E161: =OFFSET(InputPriceData!D$15,CalculationsAndCharts!$A161+$A$11,IF($C$7,8,0),1,1) -> 161.580002 | F161: =OFFSET(InputPriceData!E$15,CalculationsAndCharts!$A161+$A$11,IF($C$7,8,0),1,1) -> 159.589996 | G161: =OFFSET(InputPriceData!F$15,CalculationsAndCharts!$A161+$A$11,IF($C$7,8,0),1,1) -> 160.580002 | H161: 160.5833333 | I161: 0.002889515729 | J161: 0.007581874751 | K161: =$F$17*J161*G161 -> 0.2434994925 | L161: 3456706.154 | M161: =L161*$F$19 -> 8641765.385 | N161: 2909600 | O161: 0.5466666667 | P161: 2909600 | Q161: 25.85187533 | R161: 25.34012174 | S161: 155.3410004 | T161: FALSE | U161: 2 | V161: =OFFSET(InputIndexData!F$15,CalculationsAndCharts!$A161+$A$11,IF($C$7,8,0),1,1)*$V$24+$V$26*V162 -> 245.6152848 | X161: 1 | Y161: 1 | Z161: 1 | AA161: 1 | AB161: 2 | AC161: 6 | AD161: 1 | AE161: 5 | AO161: 2909600
A162: 130 | B162: =OFFSET(InputPriceData!B$15,CalculationsAndCharts!$A162+$A$11,0,1,1) -> 2017-10-09 | C162: =OFFSET(InputPriceData!G$15,CalculationsAndCharts!$A162+$A$11,IF($C$7,8,0),1,1) -> 2120000 | D162: =OFFSET(InputPriceData!C$15,CalculationsAndCharts!$A162+$A$11,IF($C$7,8,0),1,1) -> 159.610001 | E162: =OFFSET(InputPriceData!D$15,CalculationsAndCharts!$A162+$A$11,IF($C$7,8,0),1,1) -> 160.490005 | F162: =OFFSET(InputPriceData!E$15,CalculationsAndCharts!$A162+$A$11,IF($C$7,8,0),1,1) -> 159.5 | G162: =OFFSET(InputPriceData!F$15,CalculationsAndCharts!$A162+$A$11,IF($C$7,8,0),1,1) -> 160.119995 | H162: =AVERAGE(E162:G162) -> 160.0366667 | I162: =LN(H162)-LN(G163) -> 0.002732233036 | J162: =STDEVP(OFFSET(I162,0,0,30,1)) -> 0.007594499546 | K162: 0.2432062459 | L162: =AVERAGE(OFFSET(C162,1,0,$A$19,1)) -> 3466660 | M162: 8666650 | N162: =MIN(C162,M162) -> 2120000 | O162: 0.5999956667 | P162: 2120000 | Q162: =SUM(OFFSET(P162,0,0,$A$19,1))/L162 -> 26.10724344 | R162: =IF(($A$8-268)>$A162,Q162*$H$21+R163*$H$22,0) -> 24.82836815 | S162: =AVERAGE(OFFSET(G162,0,0,$A$21,1)) -> 155.2053003 | T162: FALSE | U162: =COUNTIF(OFFSET(T162,0,0,$A$17,1),TRUE) -> 2 | V162: =OFFSET(InputIndexData!F$15,CalculationsAndCharts!$A162+$A$11,IF($C$7,8,0),1,1)*$V$24+$V$26*V163 -> 245.4333715 | X162: =IF(R162>0,1,0)*$E$17 -> 1 | Y162: =IF(G162>S162,1,0)*$E$18 -> 1 | Z162: =IF(S162>OFFSET(S162,$Z$28,0,1,1),1,0)*$E$19 -> 1 | AA162: =IF(U162<=$A$18,1,0)*$E$20 -> 1 | AB162: =IF(V162>=OFFSET(V162,$AB$28,0,1,1),1,0)*$E$21 -> 2 | AC162: =SUM(X162:AB162) -> 6 | AD162: =IF(AC162>=$A$16,1,0) -> 1 | AE162: =$A$16 -> 5 | AF162: =IF(AND(AD162=1,AD163=0),AD162*$AZ$34,NA()) ->  | AO162: 2120000
A163: 131 | B163: =OFFSET(InputPriceData!B$15,CalculationsAndCharts!$A163+$A$11,0,1,1) -> 2017-10-06 | C163: =OFFSET(InputPriceData!G$15,CalculationsAndCharts!$A163+$A$11,IF($C$7,8,0),1,1) -> 3548500 | D163: =OFFSET(InputPriceData!C$15,CalculationsAndCharts!$A163+$A$11,IF($C$7,8,0),1,1) -> 158.580002 | E163: =OFFSET(InputPriceData!D$15,CalculationsAndCharts!$A163+$A$11,IF($C$7,8,0),1,1) -> 160.130005 | F163: =OFFSET(InputPriceData!E$15,CalculationsAndCharts!$A163+$A$11,IF($C$7,8,0),1,1) -> 158.580002 | G163: =OFFSET(InputPriceData!F$15,CalculationsAndCharts!$A163+$A$11,IF($C$7,8,0),1,1) -> 159.600006 | H163: 159.436671 | I163: 0.004001228654 | J163: 0.007598267935 | K163: 0.2425367216 | L163: 3464649.231 | M163: 8661623.077 | N163: 3548500 | O163: 1.096669667 | P163: 3548500 | Q163: 24.52511954 | R163: 23.54949285 | S163: 155.0682004 | T163: FALSE | U163: 2 | V163: =OFFSET(InputIndexData!F$15,CalculationsAndCharts!$A163+$A$11,IF($C$7,8,0),1,1)*$V$24+$V$26*V164 -> 245.2613185 | X163: 1 | Y163: 1 | Z163: 1 | AA163: 1 | AB163: 2 | AC163: 6 | AD163: 1 | AE163: 5 | AO163: 3548500
A164: 132 | B164: =OFFSET(InputPriceData!B$15,CalculationsAndCharts!$A164+$A$11,0,1,1) -> 2017-10-05 | C164: =OFFSET(InputPriceData!G$15,CalculationsAndCharts!$A164+$A$11,IF($C$7,8,0),1,1) -> 2796000 | D164: =OFFSET(InputPriceData!C$15,CalculationsAndCharts!$A164+$A$11,IF($C$7,8,0),1,1) -> 157.300003 | E164: =OFFSET(InputPriceData!D$15,CalculationsAndCharts!$A164+$A$11,IF($C$7,8,0),1,1) -> 158.919998 | F164: =OFFSET(InputPriceData!E$15,CalculationsAndCharts!$A164+$A$11,IF($C$7,8,0),1,1) -> 157.300003 | G164: =OFFSET(InputPriceData!F$15,CalculationsAndCharts!$A164+$A$11,IF($C$7,8,0),1,1) -> 158.800003 | H164: 158.3400013 | I164: 0.007162092434 | J164: 0.007567972749 | K164: 0.240358819 | L164: 3466539.231 | M164: 8666348.077 | N164: 2796000 | O164: 1.246668333 | P164: 2796000 | Q164: 22.53986796 | R164: 22.57386617 | S164: 154.9451002 | T164: FALSE | U164: 2 | V164: =OFFSET(InputIndexData!F$15,CalculationsAndCharts!$A164+$A$11,IF($C$7,8,0),1,1)*$V$24+$V$26*V165 -> 245.0773048 | X164: 1 | Y164: 1 | Z164: 1 | AA164: 1 | AB164: 2 | AC164: 6 | AD164: 1 | AE164: 5 | AO164: 2796000
